Workbook

Sheet Summary
C2: =" " & Data!$H$2 &CHAR(10) & " " & Settings!$D$5 -> LGROW Design Spreadsheet City of Ferrysburg | O2: =rowheight -> 56.1
C3: =CONCATENATE("Version ",TEXT(Data!$I$4,"0.0")) -> Version 3.4 | O3: =rowheight -> 16.5
C4: Instructions
C5: 1) After opening the spreadsheet you will need to enable the use of an embedded macro. Look for security warning above and click "Enable Content."
C6: 2) Data is entered in yellow cells. Green cells allow selection of items from pulldown menus or buttons. | O6: =rowheight -> 16.5
C7: 3) To clear all input data entered in a worksheet, click the Clear Worksheet button at the top of the page and hit the delete key.
C8: 4) Comments are indicated by red triangles in cells. Further direction is provided in the LGROW Design Spreadsheet Tutorial. | O8: =rowheight -> 16.5
C9: 5) The spreadsheet can be used to model a single discharge point from the site including structural BMPs in series or parallel. | O9: =rowheight -> 16.5 | P9: This page collects results from the various sub-catchment pages
O10: =rowheight -> 16.5 | P10: If modifications are needed to the subcatchment pages the following steps must be taken.
O11: =rowheight -> 16.5 | P11: - First delete all but page "Sub1"
C12: Project Description | O12: =rowheight -> 16.5 | P12: - Next, make changes to Sub1
O13: =rowheight -> 18 | P13: - Make copies of Sub1
C14: Development Name | I14: Design Firm | O14: =rowheight -> 16.5 | P14: - Rename them Sub2, Sub3, Sub4, etc.
C15: Address/Location | I15: Engineer | O15: =rowheight -> 16.5
C16: Developer/Owner | I16: Date | O16: =rowheight -> 16.5
O17: =rowheight -> 16.5
C18: Run | O18: =rowheight -> 16.5
O19: =rowheight -> 16.5
E20: Select if Yes | F20: Notes | O20: =rowheight -> 16.5
C21: Drainage District | O21: =rowheight -> 16.5
C22: Watershed Policy | O22: =rowheight -> 18
C23: Redevelopment/Addition | O23: =rowheight -> 16.5
C24: MS4 | O24: =rowheight -> 16.5
C25: Hotspot | O25: =rowheight -> 16.5
C26: Coldwater Stream | O26: =rowheight -> 16.5
O27: =rowheight -> 16.5
C29: Sensitive Areas
C31: Description | F31: Notes
O38: =rowheight -> 16.5
C39: Channel Protection Volume Basis | O39: =rowheight -> 16.5
O40: =rowheight -> 16.5
C41: Pre-development Land Use Definition | E41: Existing | F41: Notes | O41: =rowheight -> 16.5
C42: Not Required | O42: =rowheight -> 18
C43: Provided Offsite | O43: =rowheight -> 18
C44: Alternative Approach | P44: FALSE | Q44: Leave cell unlocked
F45: =IF(P44,"Submit Engineer's Certification","") ->  | O45: =rowheight -> 16.5
C47: Subcatchment Connectivity
C49: Number of Subcatchments | F49: =IF(OR(E49<1,E49>Data!B23),CONCATENATE("Number must be between 1 and ",Data!B23),"") -> Number must be between 1 and 8 | T49: 1 | U49: 2 | V49: 3 | W49: 4 | X49: 5 | Y49: 6 | Z49: 7 | AA49: 8 | AB49: 9 | AC49: 10
C50: =+IF(D62<E49,"Downstream subcatchments must be selected.","") ->  | P50: =+Data!B23 -> 8 | Q50: Maximum number of subcatchment sheets in spreadsheet | T50: Sub1 | U50: Sub2 | V50: Sub3 | W50: Sub4 | X50: Sub5 | Y50: Sub6 | Z50: Sub7 | AA50: Sub8 | AB50: Sub9 | AC50: Sub10
C51: Subcatchment Name | E51: Downstream Subcatchment | F51: Subcatchment Description | T51: =+VLOOKUP(T50,$C$52:$E$61,3,FALSE) ->  | U51: =+VLOOKUP(U50,$C$52:$E$61,3,FALSE) -> 
C52: =+IF(AND(Q52<=$E$49,Q52<=Data!$B$23),CONCATENATE("Sub",Q52),"") ->  | D52: =+IF(E52="",0,1) -> 0 | Q52: 1 | S52: none | T52: =+IFERROR(IF(AND(T$49<=$E$49,$Q52<=$E$49,T$49<>$Q52,T$51=0),T$50,""),"") ->  | U52: =+IFERROR(IF(AND(U$49<=$E$49,$Q52<=$E$49,U$49<>$Q52,U$51=0),U$50,""),"") -> 
C53: =+IF(AND(Q53<=$E$49,Q53<=Data!$B$23),CONCATENATE("Sub",Q53),"") ->  | D53: =+IF(E53="",0,1) -> 0 | Q53: 2 | S53: none | T53: =+IFERROR(IF(AND(T$49<=$E$49,$Q53<=$E$49,T$49<>$Q53,T$51=0),T$50,""),"") -> 
C54: =+IF(AND(Q54<=$E$49,Q54<=Data!$B$23),CONCATENATE("Sub",Q54),"") ->  | D54: 0 | Q54: 3 | S54: none
C55: =+IF(AND(Q55<=$E$49,Q55<=Data!$B$23),CONCATENATE("Sub",Q55),"") ->  | D55: 0 | Q55: 4 | S55: none
C56: =+IF(AND(Q56<=$E$49,Q56<=Data!$B$23),CONCATENATE("Sub",Q56),"") ->  | D56: 0 | Q56: 5 | S56: none
C57: =+IF(AND(Q57<=$E$49,Q57<=Data!$B$23),CONCATENATE("Sub",Q57),"") ->  | D57: 0 | Q57: 6 | S57: none
C58: =+IF(AND(Q58<=$E$49,Q58<=Data!$B$23),CONCATENATE("Sub",Q58),"") ->  | D58: 0 | Q58: 7 | S58: none
C59: =+IF(AND(Q59<=$E$49,Q59<=Data!$B$23),CONCATENATE("Sub",Q59),"") ->  | D59: 0 | Q59: 8 | S59: none
C60: =+IF(AND(Q60<=$E$49,Q60<=Data!$B$23),CONCATENATE("Sub",Q60),"") ->  | D60: 0 | P60: HIDE | Q60: 9 | S60: none
C61: =+IF(AND(Q61<=$E$49,Q61<=Data!$B$23),CONCATENATE("Sub",Q61),"") ->  | D61: 0 | P61: HIDE | Q61: 10 | S61: none
D62: =+SUM(D52:D61) -> 0
C64: =" " & Data!$H$2 &CHAR(10) & " " & Settings!$D$5 -> LGROW Design Spreadsheet City of Ferrysburg
P65: Tables on this page collect results from various sub-catchment pages using a combination of offset and indirect functions.
C66: Subcatchment Hydrology Summary | O66: =rowheight -> 16.5 | R66: =+$E$68 -> Existing | S66: =+$E$68 -> Existing | T66: =+$E$68 -> Existing | U66: =+$E$68 -> Existing | V66: =+$I$68 -> Developed | W66: =+$I$68 -> Developed | X66: =+$I$68 -> Developed | Y66: =+$I$68 -> Developed
O67: =rowheight -> 16.5 | Q67: =+C68 -> Subcatchment Name | R67: =+I69 -> Area [ac] | S67: =+F69 -> % Impervious | T67: Ia [in] | U67: Average CN | V67: Area [ac] | W67: % Impervious | X67: Ia [in] | Y67: Average CN
C68: Subcatchment Name | E68: Existing | I68: Developed | O68: =rowheight -> 24 | Q68: =ROW('Sub1'!D4) -> 4 | R68: =+ROW('Sub1'!E13) -> 13 | S68: =+ROW('Sub1'!D103) -> 103 | T68: =ROW('Sub1'!G102) -> 102 | U68: =ROW('Sub1'!F102) -> 102 | V68: =+ROW('Sub1'!E22) -> 22 | W68: =+ROW('Sub1'!D113) -> 113 | X68: =ROW('Sub1'!G112) -> 112 | Y68: =+ROW('Sub1'!F112) -> 112
D69: Yes/No | E69: Area [ac] | F69: % Impervious | G69: Ia [in] | H69: Average CN | I69: Area [ac] | J69: % Impervious | K69: =+G69 -> Ia [in] | L69: Average CN | O69: =rowheight -> 16.5 | P69: Sub | Q69: =+COLUMN('Sub1'!D4) -> 4 | R69: =+COLUMN('Sub1'!E13) -> 5 | S69: =+COLUMN('Sub1'!D103) -> 4 | T69: =+COLUMN('Sub1'!G102) -> 7 | U69: =+COLUMN('Sub1'!F102) -> 6 | V69: =+COLUMN('Sub1'!E22) -> 5 | W69: =+COLUMN('Sub1'!D113) -> 4 | X69: =COLUMN('Sub1'!G112) -> 7 | Y69: =+COLUMN('Sub1'!F112) -> 6
C70: =+C52 ->  | D70: =IF(OR(P70="b",P70>$E$49),"N",IF(OFFSET(INDIRECT(CONCATENATE("'Sub",$P70,"'!a1")),R$68-1,R$69-1)=0,"N","Y")) -> N | E70: =IF($D70="N","",OFFSET(INDIRECT(CONCATENATE("'Sub",$P70,"'!a1")),R$68-1,R$69-1)) ->  | F70: =IF($D70="N","",OFFSET(INDIRECT(CONCATENATE("'Sub",$P70,"'!a1")),S$68-1,S$69-1)) ->  | G70: =IF($D70="N","",OFFSET(INDIRECT(CONCATENATE("'Sub",$P70,"'!a1")),T$68-1,T$69-1)) ->  | O70: =rowheight -> 16.5 | P70: 1
D71: N | G71: =IF($D71="N","",OFFSET(INDIRECT(CONCATENATE("'Sub",$P71,"'!a1")),T$68-1,T$69-1)) ->  | H71: =IF($D71="N","",OFFSET(INDIRECT(CONCATENATE("'Sub",$P71,"'!a1")),U$68-1,U$69-1)) ->  | I71: =IF($D71="N","",OFFSET(INDIRECT(CONCATENATE("'Sub",$P71,"'!a1")),V$68-1,V$69-1)) ->  | J71: =IF($D71="N","",OFFSET(INDIRECT(CONCATENATE("'Sub",$P71,"'!a1")),W$68-1,W$69-1)) ->  | L71: =IF($D71="N","",OFFSET(INDIRECT(CONCATENATE("'Sub",$P71,"'!a1")),Y$68-1,Y$69-1)) ->  | O71: =rowheight -> 16.5 | P71: =IF(P70="b","b",IF(P70+1<=$P$50,P70+1,"b")) -> 2
D72: N | O72: =rowheight -> 16.5 | P72: 3
D73: N | O73: =rowheight -> 16.5 | P73: 4
D74: N | O74: =rowheight -> 16.5 | P74: 5
D75: N | O75: =rowheight -> 16.5 | P75: 6
D76: N | O76: =rowheight -> 16.5 | P76: 7
D77: N | O77: =rowheight -> 16.5 | P77: 8
D78: N | O78: =rowheight -> 16.5 | P78: b
D79: N | O79: =rowheight -> 16.5 | P79: b
C80: Site Totals and Averages: | E80: =+SUM(E70:E79) -> 0 | F80: =+IF($E80=0,"",SUMPRODUCT($E70:$E79,F70:F79)/$E80) ->  | G80: =IFERROR(SUMPRODUCT($E70:$E79,G70:G79)/$E80,0) -> 0 | H80: =IFERROR(SUMPRODUCT($E70:$E79,H70:H79)/$E80,0) -> 0 | I80: =+SUM(I70:I79) -> 0 | J80: =+IF($E80=0,"",SUMPRODUCT($E70:$E79,J70:J79)/$E80) ->  | K80: =IFERROR(SUMPRODUCT($I70:$I79,K70:K79)/$I80,0) -> 0 | L80: =IFERROR(SUMPRODUCT($I70:$I79,L70:L79)/$I80,0) -> 0 | O80: =rowheight -> 16.5 | P80: THIS ROW ACCESSED IN FLOOD CONTROL and Hydro TABs
O81: =rowheight -> 16.5
O82: =rowheight -> 16.5
C83: Channel Protection Volume from Structural BMPs | O83: =rowheight -> 0
O84: =rowheight -> 0 | Q84: =+C85 -> Subcatchment Name | R84: =+E86 -> Required | S84: =+F86 -> Upstream | T84: =+H86 -> Credited | U84: =+G86 -> BMP volume | V84: Inf volume
C85: Subcatchment Name | E85: Channel Protection Volume [cft] | O85: =rowheight -> 0 | Q85: =+ROW('Sub1'!D4) -> 4 | R85: =+ROW('Sub1'!E32) -> 32 | S85: =ROW('Sub1'!E33) -> 33 | T85: =+ROW('Sub1'!I42) -> 42 | U85: =+ROW('Sub1'!E138) -> 138 | V85: =+ROW('Sub1'!G138) -> 138
E86: Required | F86: Upstream | G86: BMP volume | H86: Credited | I86: Unmet | K86: Inf volume | O86: =rowheight -> 0 | P86: Sub | Q86: =+COLUMN('Sub1'!D4) -> 4 | R86: =+COLUMN('Sub1'!E32) -> 5 | S86: =COLUMN('Sub1'!E33) -> 5 | T86: =+COLUMN('Sub1'!I42) -> 9 | U86: =+COLUMN('Sub1'!E138) -> 5 | V86: =+COLUMN('Sub1'!G138) -> 7
C87: =+C70 ->  | D87: N | E87: =IF($D87="N","",OFFSET(INDIRECT(CONCATENATE("'Sub",$P87,"'!a1")),R$85-1,R$86-1)) ->  | G87: =IF($D87="N","",OFFSET(INDIRECT(CONCATENATE("'Sub",$P87,"'!a1")),U$85-1,U$86-1)) ->  | H87: =IF($D87="N","",OFFSET(INDIRECT(CONCATENATE("'Sub",$P87,"'!a1")),T$85-1,T$86-1)) ->  | I87: =+IF(D87="Y",IFERROR(MAX(E87+F87-H87,0),""),"") ->  | K87: =IF($D87="N","",OFFSET(INDIRECT(CONCATENATE("'Sub",$P87,"'!a1")),V$85-1,V$86-1)) ->  | O87: =rowheight -> 0 | P87: =+P70 -> 1
D88: N | H88: =IF($D88="N","",OFFSET(INDIRECT(CONCATENATE("'Sub",$P88,"'!a1")),T$85-1,T$86-1)) ->  | I88: =+IF(D88="Y",IFERROR(MAX(E88+F88-H88,0),""),"") ->  | K88: =IF($D88="N","",OFFSET(INDIRECT(CONCATENATE("'Sub",$P88,"'!a1")),V$85-1,V$86-1)) ->  | O88: =rowheight -> 0 | P88: 2
D89: N | O89: =rowheight -> 0 | P89: 3
D90: N | O90: =rowheight -> 0 | P90: 4
D91: N | O91: =rowheight -> 0 | P91: 5
D92: N | O92: =rowheight -> 0 | P92: 6
D93: N | O93: =rowheight -> 0 | P93: 7
D94: N | O94: =rowheight -> 0 | P94: 8
D95: N | O95: =rowheight -> 0 | P95: b
D96: N | O96: =rowheight -> 0 | P96: b
C97: Total | E97: =SUM(E87:E96) -> 0 | G97: =IF(SUM(G87:G96)<=0,0,SUM(G87:G96)) -> 0 | H97: =SUM(H87:H96) -> 0 | K97: =IF(SUM(K87:K96)<=0,0,SUM(K87:K96)) -> 0 | O97: =rowheight -> 0 | P97: THIS ROW ACCESSED IN FLOOD CONTROL TAB
F99: Percent of Channel Protection Volume met by Onsite Retention | H99: =+MIN(IFERROR(H97/E97*100,0),100) -> 0 | O99: =rowheight -> 0
C100: Required Extended Detention Volume [cft] | H100: =+MAX(0,E97-H97) -> 0 | O100: =rowheight -> 0
C101: Required Extended Detention Release Rate [cfs] | H101: =IFERROR(2*H100/(72*3600),"N.A.") -> 0 | O101: =rowheight -> 0
F102: 1-year Existing Peak Discharge [cfs] | H102: =+'Flood Control'!D84 -> 0
O103: =rowheight -> 0
O104: =rowheight -> 0
C105: Water Quality Volume and TSS Removal | O105: =rowheight -> 0
O106: =rowheight -> 0 | Q106: =+C107 -> Subcatchment Name | R106: =+E107 -> Water Quality Volume [cft] | S106: Met | T106: Generated | U106: Upstream | V106: Removed | W106: Released water
C107: Subcatchment Name | E107: Water Quality Volume [cft] | F107: Volume Met | H107: TSS | O107: =rowheight -> 0 | Q107: =ROW('Sub1'!D4) -> 4 | R107: =ROW('Sub1'!E51) -> 51 | S107: =+ROW('Sub1'!D63) -> 63 | T107: =+ROW('Sub1'!I51) -> 51 | U107: =+ROW('Sub1'!I52) -> 52 | V107: =+ROW('Sub1'!I62) -> 62 | W107: =+ROW('Sub1'!D62) -> 62
G108: Released water | H108: Generated | I108: Upstream | J108: Total | K108: Released | L108: Removed | O108: =rowheight -> 0 | P108: Sub | Q108: =+COLUMN('Sub1'!D4) -> 4 | R108: =COLUMN('Sub1'!E51) -> 5 | S108: =+COLUMN('Sub1'!D63) -> 4 | T108: =+COLUMN('Sub1'!I51) -> 9 | U108: =+COLUMN('Sub1'!I52) -> 9 | V108: =+COLUMN('Sub1'!I62) -> 9 | W108: =+COLUMN('Sub1'!D62) -> 4
C109: =+C87 ->  | D109: N | E109: =IF($D109="N","",OFFSET(INDIRECT(CONCATENATE("'Sub",$P109,"'!a1")),R$107-1,R$108-1)) ->  | F109: =IF($D109="N","",OFFSET(INDIRECT(CONCATENATE("'Sub",$P109,"'!a1")),S$107-1,S$108-1)) ->  | G109: =IF($D109="N","",OFFSET(INDIRECT(CONCATENATE("'Sub",$P109,"'!a1")),W$107-1,W$108-1)) ->  | H109: =IF($D109="N","",OFFSET(INDIRECT(CONCATENATE("'Sub",$P109,"'!a1")),T$107-1,T$108-1)) ->  | I109: =IF($D109="N","",OFFSET(INDIRECT(CONCATENATE("'Sub",$P109,"'!a1")),U$107-1,U$108-1)) ->  | J109: =+IFERROR(H109+I109,"") ->  | K109: =+IFERROR(J109-L109,0) -> 0 | L109: =IF($D109="N","",OFFSET(INDIRECT(CONCATENATE("'Sub",$P109,"'!a1")),V$107-1,V$108-1)) ->  | O109: =rowheight -> 0 | P109: =+P87 -> 1 | S109: =+IF(AND(F109=Data!$H$38,Summary!E52=S52),1,0) -> 0
D110: N | E110: =IF($D110="N","",OFFSET(INDIRECT(CONCATENATE("'Sub",$P110,"'!a1")),R$107-1,R$108-1)) ->  | F110: =IF($D110="N","",OFFSET(INDIRECT(CONCATENATE("'Sub",$P110,"'!a1")),S$107-1,S$108-1)) ->  | K110: 0 | O110: =rowheight -> 0 | P110: 2 | S110: =+IF(AND(F110=Data!$H$38,Summary!E53=S53),1,0) -> 0
D111: N | K111: 0 | O111: =rowheight -> 0 | P111: 3 | S111: =+IF(AND(F111=Data!$H$38,Summary!E54=S54),1,0) -> 0
D112: N | K112: 0 | O112: =rowheight -> 0 | P112: 4 | S112: =+IF(AND(F112=Data!$H$38,Summary!E55=S55),1,0) -> 0
D113: N | K113: 0 | O113: =rowheight -> 0 | P113: 5 | S113: =+IF(AND(F113=Data!$H$38,Summary!E56=S56),1,0) -> 0
D114: N | K114: 0 | O114: =rowheight -> 0 | P114: 6 | S114: =+IF(AND(F114=Data!$H$38,Summary!E57=S57),1,0) -> 0
D115: N | K115: 0 | O115: =rowheight -> 0 | P115: 7 | S115: =+IF(AND(F115=Data!$H$38,Summary!E58=S58),1,0) -> 0
D116: N | K116: 0 | O116: =rowheight -> 0 | P116: 8 | S116: =+IF(AND(F116=Data!$H$38,Summary!E59=S59),1,0) -> 0
D117: N | K117: 0 | O117: =rowheight -> 0 | P117: b | S117: =+IF(AND(F117=Data!$H$38,Summary!E60=S60),1,0) -> 0
D118: N | K118: 0 | O118: =rowheight -> 0 | P118: b | S118: =+IF(AND(F118=Data!$H$38,Summary!E61=S61),1,0) -> 0
C119: Total | E119: =SUM(E109:E118) -> 0 | F119: =IF(S119=0,Data!H39,IF(S119=1,Data!H38,"Too many downstream subcatchments")) -> No | H119: =SUM(H109:H118) -> 0 | L119: =SUM(L109:L118) -> 0 | O119: =rowheight -> 0 | S119: =+SUM(S109:S118) -> 0
J120: TSS Removal Efficiency [%] | L120: =+IFERROR(L119/H119*100,0) -> 0
J121: 80% TSS removal met? | L121: =+IF(L120>80,"Yes","No") -> No
O122: =rowheight -> 0
B127: =CELL("width",B127) -> 4 | C127: =CELL("width",C127) -> 38 | E127: =CELL("width",E127) -> 15 | F127: =CELL("width",F127) -> 15 | H127: =CELL("width",H127) -> 15 | I127: =CELL("width",I127) -> 15 | J127: =CELL("width",J127) -> 15 | L127: =CELL("width",L127) -> 15 | M127: =CELL("width",M127) -> 4 | AD127: =SUM(B127:M127) -> 136 | AG127: =+SUM(B127:M127) -> 136
C131: Start Hidden Rows
Q134: =+C136 -> Sub-catchment Name | R134: =+E136 -> Area [ac] | S134: =+F136 -> % Impervious | T134: =+G136 -> Pervious CN
C135: Hydrologic summary for pre-settlement condition | Q135: =ROW('Sub1'!M5) -> 5 | R135: =+ROW('Sub1'!E13) -> 13 | S135: =+ROW('Sub1'!E122) -> 122 | T135: =+ROW('Sub1'!F121) -> 121
C136: Sub-catchment Name | E136: Area [ac] | F136: % Impervious | G136: Pervious CN | P136: Sub | Q136: =+COLUMN('Sub1'!M5) -> 13 | R136: =+COLUMN('Sub1'!E13) -> 5 | S136: =+COLUMN('Sub1'!E122) -> 5 | T136: =+COLUMN('Sub1'!F121) -> 6
C137: =+C109 ->  | D137: =+D109 -> N | E137: =IF($D137="N","",OFFSET(INDIRECT(CONCATENATE("'Sub",$P137,"'!a1")),R$135-1,R$136-1)) ->  | F137: =IF($D137="N","",OFFSET(INDIRECT(CONCATENATE("'Sub",$P137,"'!a1")),S$135-1,S$136-1)) ->  | G137: =IF($D137="N","",OFFSET(INDIRECT(CONCATENATE("'Sub",$P137,"'!a1")),T$135-1,T$136-1)) ->  | P137: =+P70 -> 1
C138: =+C110 ->  | D138: N | P138: 2
D139: N | P139: 3
D140: N | P140: 4
D141: N | P141: 5
D142: N | P142: 6
D143: N | P143: 7
D144: N | P144: 8
D145: N | P145: b
D146: N | P146: b
E147: =SUM(E137:E146) -> 0 | F147: =+IF($E147=0,0,SUMPRODUCT($E137:$E146,F137:F146)/$E147) -> 0 | G147: =+IF($E147=0,100,SUMPRODUCT($E137:$E146,G137:G146)/$E147) -> 100 | P147: THIS ROW ACCESSED IN FLOOD CONTROL TAB
Q150: =+C152 -> Sub-catchment Name | R150: =+E152 -> 1-year | S150: =+F152 -> 2-year | T150: =+G152 -> 10-year | U150: =+H152 -> 25-year | V150: =+J152 -> 100-year
C151: Maximum Retention Volume per sub-catchment [cft] | Q151: =+ROW('Sub1'!D4) -> 4 | R151: =+ROW('Sub1'!D151) -> 151 | S151: =+ROW('Sub1'!E151) -> 151 | T151: =+ROW('Sub1'!F151) -> 151 | U151: =+ROW('Sub1'!G151) -> 151 | V151: =+ROW('Sub1'!H151) -> 151
C152: Sub-catchment Name | E152: =+'Sub1'!D145 -> 1-year | F152: =+'Sub1'!E145 -> 2-year | G152: =+'Sub1'!F145 -> 10-year | H152: =+'Sub1'!G145 -> 25-year | J152: =+'Sub1'!H145 -> 100-year | P152: Sub | Q152: =+COLUMN('Sub1'!D4) -> 4 | R152: =COLUMN('Sub1'!D151) -> 4 | S152: =COLUMN('Sub1'!E151) -> 5 | T152: =COLUMN('Sub1'!F151) -> 6 | U152: =COLUMN('Sub1'!G151) -> 7 | V152: =COLUMN('Sub1'!H151) -> 8
C153: =+C137 ->  | D153: =+D137 -> N | E153: =IF($D153="N","",OFFSET(INDIRECT(CONCATENATE("'Sub",$P153,"'!a1")),R$151-1,R$152-1)) ->  | F153: =IF($D153="N","",OFFSET(INDIRECT(CONCATENATE("'Sub",$P153,"'!a1")),S$151-1,S$152-1)) ->  | G153: =IF($D153="N","",OFFSET(INDIRECT(CONCATENATE("'Sub",$P153,"'!a1")),T$151-1,T$152-1)) ->  | H153: =IF($D153="N","",OFFSET(INDIRECT(CONCATENATE("'Sub",$P153,"'!a1")),U$151-1,U$152-1)) ->  | J153: =IF($D153="N","",OFFSET(INDIRECT(CONCATENATE("'Sub",$P153,"'!a1")),V$151-1,V$152-1)) ->  | P153: =+P137 -> 1
C154: =+C138 ->  | D154: =+D138 -> N | P154: =+P138 -> 2
D155: N | P155: =+P139 -> 3
D156: N | P156: 4
D157: N | P157: 5
D158: N | P158: 6
D159: N | P159: 7
D160: N | P160: 8
D161: N | P161: b
D162: N | P162: b
C163: Total [cft] | E163: =+SUM(E153:E162) -> 0 | F163: =+SUM(F153:F162) -> 0 | G163: =+SUM(G153:G162) -> 0 | H163: =+SUM(H153:H162) -> 0 | J163: =+SUM(J153:J162) -> 0
C164: Total [ac-ft] | E164: =+E163/43560 -> 0 | F164: =+F163/43560 -> 0 | G164: 0 | H164: 0 | J164: 0
Q166: =+C168 -> Sub-catchment name | R166: =+F168 -> Req WQ volume | S166: =+G168 -> Provided WQ volume
C167: TSS Removal Efficiency for Entire Site | Q167: =+ROW('Sub1'!D4) -> 4 | R167: =+ROW('Sub1'!E51) -> 51 | S167: =ROW('Sub1'!D62) -> 62
C168: Sub-catchment name | E168: TSS removal | F168: Req WQ volume | G168: Provided WQ volume | H168: TSS removed | Q168: =+COLUMN('Sub1'!D4) -> 4 | R168: =COLUMN('Sub1'!E51) -> 5 | S168: =+COLUMN('Sub1'!D62) -> 4
C169: =+C153 ->  | D169: =D137 -> N | E169: =+L109 ->  | F169: =IF(OR($P169="b",$D169="N"),0,OFFSET(INDIRECT(CONCATENATE("'Sub",$P169,"'!a1")),R$167-1,R$168-1)) -> 0 | G169: =IF(OR($P169="b",$D169="N"),0,OFFSET(INDIRECT(CONCATENATE("'Sub",$P169,"'!a1")),S$167-1,S$168-1)) -> 0 | H169: =+IFERROR(G169*E169/100,0) -> 0 | P169: =+P153 -> 1
C170: =+C154 ->  | D170: =D138 -> N | F170: =IF(OR($P170="b",$D170="N"),0,OFFSET(INDIRECT(CONCATENATE("'Sub",$P170,"'!a1")),R$167-1,R$168-1)) -> 0 | G170: =IF(OR($P170="b",$D170="N"),0,OFFSET(INDIRECT(CONCATENATE("'Sub",$P170,"'!a1")),S$167-1,S$168-1)) -> 0 | H170: =+IFERROR(G170*E170/100,0) -> 0 | P170: =+P154 -> 2
D171: N | F171: 0 | G171: 0 | H171: 0 | P171: 3
D172: N | F172: 0 | G172: 0 | H172: 0 | P172: 4
D173: N | F173: 0 | G173: 0 | H173: 0 | P173: 5
D174: N | F174: 0 | G174: 0 | H174: 0 | P174: 6
D175: N | F175: 0 | G175: 0 | H175: 0 | P175: 7
D176: N | F176: 0 | G176: 0 | H176: 0 | P176: 8
D177: N | F177: 0 | G177: 0 | H177: 0 | P177: b
D178: N | F178: 0 | G178: 0 | H178: 0 | P178: b
E179: Totals | F179: =SUM(F169:F178) -> 0 | G179: =SUM(G169:G178) -> 0 | H179: =SUM(H169:H178) -> 0
E180: Removal Efficiency | F180: =+IFERROR(H179/F179*100,"") -> 
C183: Credited Flood Control Volume | Q183: =+ROW('Sub1'!D159) -> 159 | R183: =+ROW('Sub1'!E159) -> 159 | S183: =+ROW('Sub1'!F159) -> 159 | T183: =+ROW('Sub1'!G159) -> 159 | U183: =+ROW('Sub1'!H159) -> 159
C184: Sub-catchment name | E184: =+Data!$H$20 -> 1-year | F184: =+Data!$H$21 -> 2-year | G184: =+Data!$H$22 -> 10-year | H184: =+Data!$H$23 -> 25-year | I184: =+Data!$H$24 -> 100-year | Q184: =COLUMN('Sub1'!D159) -> 4 | R184: =COLUMN('Sub1'!E159) -> 5 | S184: =COLUMN('Sub1'!F159) -> 6 | T184: =COLUMN('Sub1'!G159) -> 7 | U184: =COLUMN('Sub1'!H159) -> 8
C185: =+C169 ->  | D185: =+E52 -> 0 | E185: =IF($C185="",0,OFFSET(INDIRECT(CONCATENATE("'Sub",$P185,"'!a1")),Q$183-1,Q$184-1)) -> 0 | F185: 0 | G185: 0 | H185: 0 | I185: 0 | P185: =+P169 -> 1
C186: =+C170 ->  | D186: 0 | E186: 0 | F186: 0 | G186: 0 | H186: 0 | I186: 0 | P186: =+P170 -> 2
D187: 0 | E187: =IF($C187="",0,OFFSET(INDIRECT(CONCATENATE("'Sub",$P187,"'!a1")),Q$183-1,Q$184-1)) -> 0 | F187: =IF($C187="",0,OFFSET(INDIRECT(CONCATENATE("'Sub",$P187,"'!a1")),R$183-1,R$184-1)) -> 0 | G187: =IF($C187="",0,OFFSET(INDIRECT(CONCATENATE("'Sub",$P187,"'!a1")),S$183-1,S$184-1)) -> 0 | H187: =IF($C187="",0,OFFSET(INDIRECT(CONCATENATE("'Sub",$P187,"'!a1")),T$183-1,T$184-1)) -> 0 | I187: =IF($C187="",0,OFFSET(INDIRECT(CONCATENATE("'Sub",$P187,"'!a1")),U$183-1,U$184-1)) -> 0 | P187: 3
D188: 0 | E188: 0 | F188: 0 | G188: 0 | H188: 0 | I188: 0 | P188: 4
D189: 0 | E189: 0 | F189: 0 | G189: 0 | H189: 0 | I189: 0 | P189: 5
D190: 0 | E190: 0 | F190: 0 | G190: 0 | H190: 0 | I190: 0 | P190: 6
D191: 0 | E191: 0 | F191: 0 | G191: 0 | H191: 0 | I191: 0 | P191: 7
D192: 0 | E192: 0 | F192: 0 | G192: 0 | H192: 0 | I192: 0 | P192: 8
D193: 0 | E193: 0 | F193: 0 | G193: 0 | H193: 0 | I193: 0 | P193: b
D194: 0 | E194: 0 | F194: 0 | G194: 0 | H194: 0 | I194: 0 | P194: b
E195: =SUM(E185:E194) -> 0 | F195: =SUM(F185:F194) -> 0 | G195: 0 | H195: 0 | I195: 0 | P195: This row linked to row 211 below
C197: Flood Control Volume retained | Q197: =+ROW('Sub1'!D151) -> 151 | R197: =+ROW('Sub1'!E151) -> 151 | S197: =+ROW('Sub1'!F151) -> 151 | T197: =+ROW('Sub1'!G151) -> 151 | U197: =+ROW('Sub1'!H151) -> 151
C198: Sub-catchment name | E198: =+Data!$H$20 -> 1-year | F198: =+Data!$H$21 -> 2-year | G198: =+Data!$H$22 -> 10-year | H198: =+Data!$H$23 -> 25-year | I198: =+Data!$H$24 -> 100-year | Q198: =+COLUMN('Sub1'!D151) -> 4 | R198: =+COLUMN('Sub1'!E151) -> 5 | S198: =+COLUMN('Sub1'!F151) -> 6 | T198: =+COLUMN('Sub1'!G151) -> 7 | U198: =+COLUMN('Sub1'!H151) -> 8
C199: =+C185 ->  | D199: =+D185 -> 0 | E199: =IF($C199="",0,OFFSET(INDIRECT(CONCATENATE("'Sub",$P199,"'!a1")),Q$197-1,Q$198-1)) -> 0 | F199: =IF($C199="",0,OFFSET(INDIRECT(CONCATENATE("'Sub",$P199,"'!a1")),R$197-1,R$198-1)) -> 0 | G199: 0 | H199: 0 | I199: 0 | P199: =+P185 -> 1
C200: =+C186 ->  | D200: =+D186 -> 0 | E200: =IF($C200="",0,OFFSET(INDIRECT(CONCATENATE("'Sub",$P200,"'!a1")),Q$197-1,Q$198-1)) -> 0 | F200: =IF($C200="",0,OFFSET(INDIRECT(CONCATENATE("'Sub",$P200,"'!a1")),R$197-1,R$198-1)) -> 0 | G200: =IF($C200="",0,OFFSET(INDIRECT(CONCATENATE("'Sub",$P200,"'!a1")),S$197-1,S$198-1)) -> 0 | H200: =IF($C200="",0,OFFSET(INDIRECT(CONCATENATE("'Sub",$P200,"'!a1")),T$197-1,T$198-1)) -> 0 | I200: =IF($C200="",0,OFFSET(INDIRECT(CONCATENATE("'Sub",$P200,"'!a1")),U$197-1,U$198-1)) -> 0 | P200: =+P186 -> 2
D201: 0 | E201: 0 | F201: 0 | G201: 0 | H201: 0 | I201: 0 | P201: 3
D202: 0 | E202: 0 | F202: 0 | G202: 0 | H202: 0 | I202: 0 | P202: 4
D203: 0 | E203: 0 | F203: 0 | G203: 0 | H203: 0 | I203: 0 | P203: 5
D204: 0 | E204: 0 | F204: 0 | G204: 0 | H204: 0 | I204: 0 | P204: 6
D205: 0 | E205: 0 | F205: 0 | G205: 0 | H205: 0 | I205: 0 | P205: 7
D206: 0 | E206: 0 | F206: 0 | G206: 0 | H206: 0 | I206: 0 | P206: 8
D207: 0 | E207: 0 | F207: 0 | G207: 0 | H207: 0 | I207: 0 | P207: b
D208: 0 | E208: 0 | F208: 0 | G208: 0 | H208: 0 | I208: 0 | P208: b
C209: Total [cft] | E209: =+SUM(E199:E208) -> 0 | F209: =+SUM(F199:F208) -> 0 | G209: 0 | H209: 0 | I209: 0 | P209: THIS ROW ACCESSED IN FLOOD CONTROL TAB
C210: Total [acft] | E210: =+E209/43560 -> 0 | F210: =+F209/43560 -> 0 | G210: 0 | H210: 0 | I210: 0 | P210: THIS ROW ACCESSED IN FLOOD CONTROL TAB
C211: Credited for detention [acft] | E211: =+E195/43560 -> 0 | F211: =+F195/43560 -> 0 | G211: 0 | H211: 0 | I211: 0 | P211: THIS ROW ACCESSED IN FLOOD CONTROL and Hydro TABs
C213: Developed Runoff volume [cft] each subcatchment | Q213: =+ROW('Sub1'!D148) -> 148 | R213: =+ROW('Sub1'!E148) -> 148 | S213: =+ROW('Sub1'!F148) -> 148 | T213: =+ROW('Sub1'!G148) -> 148 | U213: =+ROW('Sub1'!H148) -> 148
C214: Sub-catchment name | E214: =+Data!$H$20 -> 1-year | F214: =+Data!$H$21 -> 2-year | G214: =+Data!$H$22 -> 10-year | H214: =+Data!$H$23 -> 25-year | I214: =+Data!$H$24 -> 100-year | Q214: =COLUMN('Sub1'!D148) -> 4 | R214: =COLUMN('Sub1'!E148) -> 5 | S214: =COLUMN('Sub1'!F148) -> 6 | T214: =COLUMN('Sub1'!G148) -> 7 | U214: =COLUMN('Sub1'!H148) -> 8
C215: =+C199 ->  | D215: =+D199 -> 0 | E215: =IF(OR($P215="b",$D215=0),0,OFFSET(INDIRECT(CONCATENATE("'Sub",$P215,"'!a1")),Q$213-1,Q$214-1)) -> 0 | F215: =IF(OR($P215="b",$D215=0),0,OFFSET(INDIRECT(CONCATENATE("'Sub",$P215,"'!a1")),R$213-1,R$214-1)) -> 0 | G215: 0 | H215: 0 | I215: 0 | P215: =+P199 -> 1
C216: =+C200 ->  | D216: =+D200 -> 0 | E216: =IF(OR($P216="b",$D216=0),0,OFFSET(INDIRECT(CONCATENATE("'Sub",$P216,"'!a1")),Q$213-1,Q$214-1)) -> 0 | F216: =IF(OR($P216="b",$D216=0),0,OFFSET(INDIRECT(CONCATENATE("'Sub",$P216,"'!a1")),R$213-1,R$214-1)) -> 0 | G216: =IF(OR($P216="b",$D216=0),0,OFFSET(INDIRECT(CONCATENATE("'Sub",$P216,"'!a1")),S$213-1,S$214-1)) -> 0 | H216: =IF(OR($P216="b",$D216=0),0,OFFSET(INDIRECT(CONCATENATE("'Sub",$P216,"'!a1")),T$213-1,T$214-1)) -> 0 | I216: =IF(OR($P216="b",$D216=0),0,OFFSET(INDIRECT(CONCATENATE("'Sub",$P216,"'!a1")),U$213-1,U$214-1)) -> 0 | P216: =+P200 -> 2
D217: 0 | E217: 0 | F217: 0 | G217: 0 | H217: 0 | I217: 0 | P217: 3
D218: 0 | E218: 0 | F218: 0 | G218: 0 | H218: 0 | I218: 0 | P218: 4
D219: 0 | E219: 0 | F219: 0 | G219: 0 | H219: 0 | I219: 0 | P219: 5
D220: 0 | E220: 0 | F220: 0 | G220: 0 | H220: 0 | I220: 0 | P220: 6
D221: 0 | E221: 0 | F221: 0 | G221: 0 | H221: 0 | I221: 0 | P221: 7
D222: 0 | E222: 0 | F222: 0 | G222: 0 | H222: 0 | I222: 0 | P222: 8
D223: 0 | E223: 0 | F223: 0 | G223: 0 | H223: 0 | I223: 0 | P223: b
D224: 0 | E224: 0 | F224: 0 | G224: 0 | H224: 0 | I224: 0 | P224: b
C225: Total [cft] | E225: =+SUM(E215:E224) -> 0 | F225: =+SUM(F215:F224) -> 0 | G225: 0 | H225: 0 | I225: 0 | P225: THIS ROW ACCESSED IN FLOOD CONTROL TAB
C226: Total [acft] | E226: =+E225/43560 -> 0 | F226: =+F225/43560 -> 0 | G226: 0 | H226: 0 | I226: 0
C227: Runoff depth [in] | E227: =+IFERROR(E226/$I$80*12,0) -> 0 | F227: =+IFERROR(F226/$I$80*12,0) -> 0 | G227: 0 | H227: 0 | I227: 0 | P227: THIS ROW ACCESSED IN FLOOD CONTROL TAB
C229: Existing Runoff volume [cft] each subcatchment | Q229: =ROW('Sub1'!I102) -> 102 | R229: =ROW('Sub1'!M102) -> 102 | S229: =+ROW('Sub1'!O102) -> 102 | T229: =+ROW('Sub1'!Q102) -> 102 | U229: =ROW('Sub1'!S102) -> 102
C230: Sub-catchment name | E230: =+Data!$H$20 -> 1-year | F230: =+Data!$H$21 -> 2-year | G230: =+Data!$H$22 -> 10-year | H230: =+Data!$H$23 -> 25-year | I230: =+Data!$H$24 -> 100-year | Q230: =COLUMN('Sub1'!I102) -> 9 | R230: =COLUMN('Sub1'!M102) -> 13 | S230: =COLUMN('Sub1'!O102) -> 15 | T230: =COLUMN('Sub1'!Q102) -> 17 | U230: =COLUMN('Sub1'!S102) -> 19
... 28 more rows

Sheet Sub1
C2: =" " & Data!$H$2 &CHAR(10) & " " & Settings!$D$5 -> LGROW Design Spreadsheet City of Ferrysburg
B4: =CONCATENATE(M5,": ") -> Sub1: | D4: =+IFERROR(IF(VLOOKUP(M5,Summary!$C$52:$L$61,4,FALSE)=0,"",VLOOKUP(M5,Summary!$C$52:$L$61,4,FALSE)),N4) -> This subcatchment is not defined on the Summary tab. | M4: Text | N4: This subcatchment is not defined on the Summary tab.
C5: Runoff | M5: =MID(CELL("filename",A1),FIND("]",CELL("filename",A1))+1,255) -> Sub1 | N5: Sheet name
G6: Curve Number | M6: =RIGHT(M5,1) -> 1 | N6: Subcatchment number
C7: Existing Land Use | D7: HSG | E7: Area | F7: Units | G7: Existing | I7: Pre-settlement
G8: =IF(H8<2,"",VLOOKUP(C8,Data!$A$4:$E$21,H8,FALSE)) ->  | H8: =IF(AND(C8="",D8=""),0,IF(AND(C8<>"",D8<>""),HLOOKUP(D8,Data!$B$2:$E$3,2),1)) -> 0 | I8: =+F116 -> 
G9: =IF(H9<2,"",VLOOKUP(C9,Data!$A$4:$E$21,H9,FALSE)) ->  | H9: =IF(AND(C9="",D9=""),0,IF(AND(C9<>"",D9<>""),HLOOKUP(D9,Data!$B$2:$E$3,2),1)) -> 0
G10: =IF(H10<2,"",VLOOKUP(C10,Data!$A$4:$E$21,H10,FALSE)) ->  | H10: =IF(AND(C10="",D10=""),0,IF(AND(C10<>"",D10<>""),HLOOKUP(D10,Data!$B$2:$E$3,2),1)) -> 0
G11: =IF(H11<2,"",VLOOKUP(C11,Data!$A$4:$E$21,H11,FALSE)) ->  | H11: =IF(AND(C11="",D11=""),0,IF(AND(C11<>"",D11<>""),HLOOKUP(D11,Data!$B$2:$E$3,2),1)) -> 0
G12: =IF(H12<2,"",VLOOKUP(C12,Data!$A$4:$E$21,H12,FALSE)) ->  | H12: =IF(AND(C12="",D12=""),0,IF(AND(C12<>"",D12<>""),HLOOKUP(D12,Data!$B$2:$E$3,2),1)) -> 0
E13: =+D102/43560 -> 0 | F13: acre | G13: =+IF(F102=100,"",F102) ->  | I13: =+IF(F121=100,"",F121) -> 
C15: Developed Land Use | D15: HSG | E15: Area | F15: Units | G15: Curve Number | I15: Notes
G16: =IF(H16<2,"",VLOOKUP(C16,Data!$A$28:$E$67,H16,FALSE)) ->  | H16: =+IF(AND(C16="",D16=""),0,IF(AND(C16<>"",D16<>""),HLOOKUP(D16,Data!$B$2:$E$3,2),1)) -> 0
G17: =IF(H17<2,"",VLOOKUP(C17,Data!$A$28:$E$67,H17,FALSE)) ->  | H17: =+IF(AND(C17="",D17=""),0,IF(AND(C17<>"",D17<>""),HLOOKUP(D17,Data!$B$2:$E$3,2),1)) -> 0
G18: =IF(H18<2,"",VLOOKUP(C18,Data!$A$28:$E$67,H18,FALSE)) ->  | H18: =+IF(AND(C18="",D18=""),0,IF(AND(C18<>"",D18<>""),HLOOKUP(D18,Data!$B$2:$E$3,2),1)) -> 0
G19: =IF(H19<2,"",VLOOKUP(C19,Data!$A$28:$E$67,H19,FALSE)) ->  | H19: =+IF(AND(C19="",D19=""),0,IF(AND(C19<>"",D19<>""),HLOOKUP(D19,Data!$B$2:$E$3,2),1)) -> 0
G20: =IF(H20<2,"",VLOOKUP(C20,Data!$A$28:$E$67,H20,FALSE)) ->  | H20: =+IF(AND(C20="",D20=""),0,IF(AND(C20<>"",D20<>""),HLOOKUP(D20,Data!$B$2:$E$3,2),1)) -> 0
G21: =IF(H21<2,"",VLOOKUP(C21,Data!$A$28:$E$67,H21,FALSE)) ->  | H21: =+IF(AND(C21="",D21=""),0,IF(AND(C21<>"",D21<>""),HLOOKUP(D21,Data!$B$2:$E$3,2),1)) -> 0
C22: Notes: | D22: =IF(H22=1,"≠ Existing →","") ->  | E22: =+D112/43560 -> 0 | F22: acre | G22: =+IF(F112=100,"",F112) ->  | H22: =IF(AND(E13=0,E22=0),0,IF(ABS(E22-E13)/MAX(E22,E13)>0.01,1,0)) -> 0
C24: Subcatchment Runoff Volume for Developed Land Use
C25: Rainfall Frequency | D25: =+Data!$H$20 -> 1-year | E25: =+Data!$H$21 -> 2-year | F25: =+Data!$H$22 -> 10-year | G25: =+Data!$H$23 -> 25-year | I25: =+Data!$H$24 -> 100-year
C26: Volume from this Subcatchment [cft] | D26: =D148 -> 0 | E26: =E148 -> 0 | F26: 0 | G26: 0 | I26: =+H148 -> 0
C29: Channel Protection Volume
C30: Required Channel Protection Volume | F30: 2-year Runoff Volumes [cft]
D31: Is Channel Protection Volume required? If no, provide reason. | E31: Yes | F31: Developed | G31: Pre-developed
D32: Required this Subcatchment [cft] | E32: =IF(E31=Data!H38,MAX(F32-G32,0),0) -> 0 | F32: =+D128 -> 0 | G32: =+IF(Summary!E41=Data!H9,E128,F128) -> 0
D33: Unmet from Upstream Subcatchments [cft] | E33: =+E186 -> 0
C34: Required Channel Protection Volume [cft] | E34: =+E33+E32 -> 0
C35: Structural BMPs used to meet Channel Protection Volume
C36: Structural BMP | D36: A Infiltration Area [sqft] | E36: V Storage Volume [cft] | F36: i Design Infiltration Rate [in/hr] | G36: Drain Time [hr] | I36: Volume Retained [cft]
G37: =+I134 -> N.A. | I37: =+IF(H134<=0,"",H134) -> 
G38: =+I135 -> N.A. | I38: =+IF(H135<=0,"",H135) -> 
G39: N.A.
G40: =+I137 -> N.A. | I40: =+IF(H137<=0,"",H137) -> 
C41: Totals | E41: =+SUM(E37:E40) -> 0 | I41: =+H138 -> 0
G42: Credited Channel Protection Volume | I42: =MIN(H138,H141,E34) -> 0
C43: Notes: | G43: Percentage of Channel Protection Volume Met by Retention | I43: =+IFERROR(IF(E32>0,MIN(1,I42/E34),1),"") -> 1
C47: Water Quality Volume
F48: =+Data!$A$89 -> Paved [ac] | G48: =+Data!$A$88 -> Pitched Roofs [ac] | I48: =+Data!$A$87 -> Flat Roofs/Unpaved [ac] | L48: Paved | M48: Pitched | O48: Flat
D49: Sum of Directly Connected Impervious Area [ac] | E49: =+I171 -> 0 | F49: =+E49-I49-G49 -> 0 | H49: =+IF(OR(F49<0,F49>E49),1,0) -> 0 | L49: =+F49/12*VLOOKUP(F48,WaterQualityFactors,2,FALSE) -> 0 | M49: =+G49/12*VLOOKUP(G48,WaterQualityFactors,2,FALSE) -> 0 | O49: =+I49/12*VLOOKUP(I48,WaterQualityFactors,2,FALSE) -> 0
D50: Sum of Directly Connected Disturbed Pervious Area [ac] | E50: =SUM(L51,M51,N51) -> 0 | G50: =+IF(OR(G49<0,G49>E$49,H$49=1),"Invalid Entry","") ->  | H50: =+SUM(O49,M49,L49,L52,M52,N52) -> 0 | I50: =+IF(OR(I49<0,I49>E$49,H$49=1),"Invalid Entry","") ->  | L50: =+Data!$A$90 -> Sandy Soils (HSG A) [ac] | M50: =+Data!$A$91 -> Silty Soils (HSG B) [ac] | N50: =+Data!$A$92 -> Clayey Soils (HSG C&D) [ac]
D51: Required Volume this Subcatchment [cft] | E51: =43560*H50 -> 0 | G51: TSS Generated this Subcatchment | I51: =+E51 -> 0 | L51: =+F171 -> 0 | M51: =+G171 -> 0 | N51: =H171 -> 0
D52: Volume from Upstream Subcatchments [cft] | E52: =+F186 -> 0 | G52: TSS from Upstream Subcatchments | I52: =+G186 -> 0 | L52: =+L51/12*VLOOKUP(L50,WaterQualityFactors,2,FALSE) -> 0 | M52: =+M51/12*VLOOKUP(M50,WaterQualityFactors,2,FALSE) -> 0 | N52: =+N51/12*VLOOKUP(N50,WaterQualityFactors,2,FALSE) -> 0
C53: Water Quality Volume to be Treated [cft] | E53: =+E52+E51 -> 0 | F53: TSS to be Treated | I53: =+I51+I52 -> 0
C54: TSS Accounting
C55: BMPs Used in Treatment Train | D55: Treated Water Volume [cft] | E55: TSS Removal Efficiency | I55: TSS Removed
E56: Tabulated | F56: Third-Party | G56: Effective | H56: TSS in stream | M56: Released water Volume | P56: Need 3rd party value
E57: =+IF(C57="","",IF(P57=Data!$H$38,"--",VLOOKUP(C57,Data!$A$109:$B$143,2,FALSE))) ->  | G57: =+IF(C57="","",IF(P57=Data!$H$38,F57,VLOOKUP(C57,Data!$A$109:$B$143,2,FALSE))*MIN(1,IFERROR(D57/L57,0))) ->  | H57: =+I53-I57 -> 0 | I57: =+IFERROR(I53*G57/100,0) -> 0 | L57: =+$E$53 -> 0 | M57: =+IF(D57="","",IFERROR(MIN(IF(VLOOKUP(C57,Data!$A$109:$C$143,3,FALSE)=Data!$C$112,L57,MAX(0,L57-D57)),$E$53),"")) ->  | N57: =IFERROR(1/ISNUMBER(M57),"") ->  | O57: =+IF(D57*1.01>L57,1,0) -> 0 | P57: =+IF(C57="","",IF(VLOOKUP(C57,Data!$A$109:$B$143,2,FALSE)="",Data!$H$38,Data!$H$39)) -> 
E58: =+IF(C58="","",IF(P58=Data!$H$38,"--",VLOOKUP(C58,Data!$A$109:$B$143,2,FALSE))) ->  | G58: =+IF(C58="","",IF(P58=Data!$H$38,F58,VLOOKUP(C58,Data!$A$109:$B$143,2,FALSE))*MIN(1,IFERROR(D58/L58,0))) ->  | H58: =+H57-I58 -> 0 | I58: =+IFERROR(H57*G58/100,0) -> 0 | L58: =MIN(L57:M57) -> 0 | M58: =+IF(D58="","",IFERROR(MIN(IF(VLOOKUP(C58,Data!$A$109:$C$143,3,FALSE)=Data!$C$112,L58,MAX(0,L58-D58)),$E$53),"")) ->  | N58: =IFERROR(1/ISNUMBER(M58),"") ->  | O58: =+IF(D58*1.01>L58,1,0) -> 0 | P58: =+IF(C58="","",IF(VLOOKUP(C58,Data!$A$109:$B$143,2,FALSE)="",Data!$H$38,Data!$H$39)) -> 
E59: =+IF(C59="","",IF(P59=Data!$H$38,"--",VLOOKUP(C59,Data!$A$109:$B$143,2,FALSE))) ->  | G59: =+IF(C59="","",IF(P59=Data!$H$38,F59,VLOOKUP(C59,Data!$A$109:$B$143,2,FALSE))*MIN(1,IFERROR(D59/L59,0))) ->  | H59: =+H58-I59 -> 0 | I59: =+IFERROR(H58*G59/100,0) -> 0 | L59: =MIN(L58:M58) -> 0 | M59: =+IF(D59="","",IFERROR(MIN(IF(VLOOKUP(C59,Data!$A$109:$C$143,3,FALSE)=Data!$C$112,L59,MAX(0,L59-D59)),$E$53),"")) ->  | N59: =IFERROR(1/ISNUMBER(M59),"") ->  | O59: =+IF(D59*1.01>L59,1,0) -> 0 | P59: =+IF(C59="","",IF(VLOOKUP(C59,Data!$A$109:$B$143,2,FALSE)="",Data!$H$38,Data!$H$39)) -> 
E60: =+IF(C60="","",IF(P60=Data!$H$38,"--",VLOOKUP(C60,Data!$A$109:$B$143,2,FALSE))) ->  | G60: =+IF(C60="","",IF(P60=Data!$H$38,F60,VLOOKUP(C60,Data!$A$109:$B$143,2,FALSE))*MIN(1,IFERROR(D60/L60,0))) ->  | H60: =+H59-I60 -> 0 | I60: =+IFERROR(H59*G60/100,0) -> 0 | L60: 0 | M60: =+IF(D60="","",IFERROR(MIN(IF(VLOOKUP(C60,Data!$A$109:$C$143,3,FALSE)=Data!$C$112,L60,MAX(0,L60-D60)),$E$53),"")) ->  | N60: =IFERROR(1/ISNUMBER(M60),"") ->  | O60: =+IF(D60*1.01>L60,1,0) -> 0 | P60: =+IF(C60="","",IF(VLOOKUP(C60,Data!$A$109:$B$143,2,FALSE)="",Data!$H$38,Data!$H$39)) -> 
E61: =+IF(C61="","",IF(P61=Data!$H$38,"--",VLOOKUP(C61,Data!$A$109:$B$143,2,FALSE))) ->  | G61: =+IF(C61="","",IF(P61=Data!$H$38,F61,VLOOKUP(C61,Data!$A$109:$B$143,2,FALSE))*MIN(1,IFERROR(D61/L61,0))) ->  | H61: 0 | I61: 0 | L61: 0 | M61: =+IF(D61="","",IFERROR(MIN(IF(VLOOKUP(C61,Data!$A$109:$C$143,3,FALSE)=Data!$C$112,L61,MAX(0,L61-D61)),$E$53),"")) ->  | O61: 0 | P61: =+IF(C61="","",IF(VLOOKUP(C61,Data!$A$109:$B$143,2,FALSE)="",Data!$H$38,Data!$H$39)) -> 
C62: Released Water Volume [cft] | D62: =+M62 -> 0 | G62: Total TSS Removed | I62: =+SUM(I57:I61) -> 0 | M62: =IFERROR(LOOKUP(2,N57:N61,M57:M61),E53) -> 0 | O62: =SUM(O57:O61) -> 0
C63: Water Quality Volume met? | D63: =+M63 -> Yes | G63: TSS Remaining | I63: =+I53-I62 -> 0 | M63: =IF(OR(O62>0,E53<0.5),"Yes","No") -> Yes
C64: Notes: | G64: TSS Removal Efficiency [%] | I64: =+IFERROR(I62/I53*100,0) -> 0
C68: Infiltration Rate Calculator for Filter Media
C70: Filter Media Component | D70: K [ft/day] | E70: Weight | G70: Constructed Filter | H70: Weight | I70: Value
D71: =+IFERROR(VLOOKUP(C71,Data!$A$146:$B$151,2,FALSE),"") ->  | G71: Average Head on the Filter [ft] | H71: =+IF(D71="",0,E71) -> 0
D72: =+IFERROR(VLOOKUP(C72,Data!$A$146:$B$151,2,FALSE),"") ->  | G72: Depth of Filter Media [ft] | H72: =+IF(D72="",0,E72) -> 0
D73: =+IFERROR(VLOOKUP(C73,Data!$A$146:$B$151,2,FALSE),"") ->  | G73: Infiltration Rate [in/hr] | H73: 0 | I73: =+IFERROR(D75*(I71+I72)/2/I72,"") -> 
G74: Retentive BMP | H74: 0
C75: Average Hydraulic Conductivity of Filter Media [ft/day] | D75: =IFERROR(SUMPRODUCT(D71:D74,H71:H74)/SUM(H71:H74),"") ->  | G75: Infiltration Rate [in/hr] | I75: =IFERROR(D75/2,"") -> 
C76: Notes:
B89: =CELL("width",B89) -> 4 | C89: 54 | D89: 15 | E89: 15 | F89: 15 | G89: 15 | I89: =CELL("width",I89) -> 15 | J89: =CELL("width",J89) -> 4 | R89: =+SUM(B89:J89) -> 137
C90: Start of Hidden Cells
C92: Calculation of pervious CN and fraction impervious
E94: Ia factor | F94: 0.2 | H94: =+Data!H20 -> 1-year | I94: =VLOOKUP(H94,Settings!$C$20:$D$24,2,FALSE) -> 2.22 | L94: =+Data!H21 -> 2-year | M94: =VLOOKUP(L94,Settings!$C$20:$D$24,2,FALSE) -> 2.56 | N94: =+Data!H22 -> 10-year | O94: =VLOOKUP(N94,Settings!$C$20:$D$24,2,FALSE) -> 3.77 | P94: =+Data!H23 -> 25-year | Q94: =VLOOKUP(P94,Settings!$C$20:$D$24,2,FALSE) -> 4.66 | R94: =+Data!H24 -> 100-year | S94: =VLOOKUP(R94,Settings!$C$20:$D$24,2,FALSE) -> 6.27
C96: Existing CNs | D96: Area [sqft] | E96: Per. area [sqft] | F96: CN | G96: Ia [in] | H96: SRO [in] | I96: Volume [cft] | L96: SRO [in] | M96: Volume [cft] | N96: SRO [in] | O96: Volume [cft] | P96: SRO [in] | Q96: Volume [cft] | R96: SRO [in] | S96: Volume [cft]
C97: =+IF(C8="","",C8) ->  | D97: =+IF(H8>1,E8*IFERROR(VLOOKUP(F8,Data!$H$33:$I$35,2,FALSE),Data!$I$34),0) -> 0 | E97: =+IF(C97<>Data!$A$4,D97,0) -> 0 | F97: =+G8 ->  | G97: =+IFERROR(IF(F97=0,0,1000/F97-10),0)*$F$94 -> 0 | H97: =+IF((I$94-$G97)<0,0,(I$94-$G97)^2/(I$94+4*$G97)) -> 2.22 | I97: =+$D97*H97/12 -> 0 | L97: =+IF((M$94-$G97)<0,0,(M$94-$G97)^2/(M$94+4*$G97)) -> 2.56 | M97: =+$D97*L97/12 -> 0 | N97: =+IF((O$94-$G97)<0,0,(O$94-$G97)^2/(O$94+4*$G97)) -> 3.77 | O97: =+$D97*N97/12 -> 0 | P97: =+IF((Q$94-$G97)<0,0,(Q$94-$G97)^2/(Q$94+4*$G97)) -> 4.66 | Q97: =+$D97*P97/12 -> 0 | R97: =+IF((S$94-$G97)<0,0,(S$94-$G97)^2/(S$94+4*$G97)) -> 6.27 | S97: =+$D97*R97/12 -> 0
C98: =+IF(C9="","",C9) ->  | D98: =+IF(H9>1,E9*IFERROR(VLOOKUP(F9,Data!$H$33:$I$35,2,FALSE),Data!$I$34),0) -> 0 | E98: =+IF(C98<>Data!$A$4,D98,0) -> 0 | F98: =+G9 ->  | G98: =+IFERROR(IF(F98=0,0,1000/F98-10),0)*$F$94 -> 0 | H98: =+IF((I$94-$G98)<0,0,(I$94-$G98)^2/(I$94+4*$G98)) -> 2.22 | I98: =+$D98*H98/12 -> 0 | L98: 2.56 | M98: =+$D98*L98/12 -> 0 | N98: 3.77 | O98: =+$D98*N98/12 -> 0 | P98: 4.66 | Q98: =+$D98*P98/12 -> 0 | R98: 6.27 | S98: =+$D98*R98/12 -> 0
C99: =+IF(C10="","",C10) ->  | D99: =+IF(H10>1,E10*IFERROR(VLOOKUP(F10,Data!$H$33:$I$35,2,FALSE),Data!$I$34),0) -> 0 | E99: =+IF(C99<>Data!$A$4,D99,0) -> 0 | F99: =+G10 ->  | G99: =+IFERROR(IF(F99=0,0,1000/F99-10),0)*$F$94 -> 0 | H99: =+IF((I$94-$G99)<0,0,(I$94-$G99)^2/(I$94+4*$G99)) -> 2.22 | I99: 0 | L99: 2.56 | M99: 0 | N99: 3.77 | O99: 0 | P99: 4.66 | Q99: 0 | R99: 6.27 | S99: 0
C100: =+IF(C11="","",C11) ->  | D100: =+IF(H11>1,E11*IFERROR(VLOOKUP(F11,Data!$H$33:$I$35,2,FALSE),Data!$I$34),0) -> 0 | E100: =+IF(C100<>Data!$A$4,D100,0) -> 0 | F100: =+G11 ->  | G100: =+IFERROR(IF(F100=0,0,1000/F100-10),0)*$F$94 -> 0 | H100: =+IF((I$94-$G100)<0,0,(I$94-$G100)^2/(I$94+4*$G100)) -> 2.22 | I100: 0 | L100: 2.56 | M100: 0 | N100: 3.77 | O100: 0 | P100: 4.66 | Q100: 0 | R100: 6.27 | S100: 0
C101: =+IF(C12="","",C12) ->  | D101: =+IF(H12>1,E12*IFERROR(VLOOKUP(F12,Data!$H$33:$I$35,2,FALSE),Data!$I$34),0) -> 0 | E101: =+IF(C101<>Data!$A$4,D101,0) -> 0 | F101: =+G12 ->  | G101: =+IFERROR(IF(F101=0,0,1000/F101-10),0)*$F$94 -> 0 | H101: =+IF((I$94-$G101)<0,0,(I$94-$G101)^2/(I$94+4*$G101)) -> 2.22 | I101: 0 | L101: 2.56 | M101: 0 | N101: 3.77 | O101: 0 | P101: 4.66 | Q101: 0 | R101: 6.27 | S101: 0
C102: Totals | D102: =+SUM(D97:D101) -> 0 | E102: =+SUM(E97:E101) -> 0 | F102: =+IF(D102<>0,SUMPRODUCT(D97:D101,F97:F101)/D102,100) -> 100 | G102: =+IFERROR(SUMPRODUCT(D97:D101,G97:G101)/D102,0) -> 0 | I102: =SUM(I97:I101) -> 0 | L102: 2.56 | M102: =SUM(M97:M101) -> 0 | N102: 3.77 | O102: =SUM(O97:O101) -> 0 | P102: 4.66 | Q102: =SUM(Q97:Q101) -> 0 | R102: 6.27 | S102: =SUM(S97:S101) -> 0
C103: Fraction Impervious | D103: =+IF(D102<>0,(D102-E102)/D102,0) -> 0
C105: Developed CN's | D105: Area [sqft] | E105: Perv. Area [sqft] | F105: CN | G105: Ia [in] | H105: SRO [in] | I105: Volume [cft] | L105: SRO [in] | M105: Volume [cft] | N105: SRO [in] | O105: Volume [cft] | P105: SRO [in] | Q105: Volume [cft] | R105: SRO [in] | S105: Volume [cft]
C106: =+IF(C16="","",C16) ->  | D106: =+IF(H16>1,E16*IFERROR(VLOOKUP(F16,Data!$H$33:$I$35,2,FALSE),Data!$I$34),0) -> 0 | E106: =+IF(F106=98,0,D106) -> 0 | F106: =+G16 ->  | G106: =+IFERROR(IF(F106=0,0,1000/F106-10),0)*$F$94 -> 0 | H106: =+IF((I$94-$G106)<0,0,(I$94-$G106)^2/(I$94+4*$G106)) -> 2.22 | I106: =+$D106*H106/12 -> 0 | L106: =+IF((M$94-$G106)<0,0,(M$94-$G106)^2/(M$94+4*$G106)) -> 2.56 | M106: =+$D106*L106/12 -> 0 | N106: =+IF((O$94-$G106)<0,0,(O$94-$G106)^2/(O$94+4*$G106)) -> 3.77 | O106: =+$D106*N106/12 -> 0 | P106: =+IF((Q$94-$G106)<0,0,(Q$94-$G106)^2/(Q$94+4*$G106)) -> 4.66 | Q106: =+$D106*P106/12 -> 0 | R106: =+IF((S$94-$G106)<0,0,(S$94-$G106)^2/(S$94+4*$G106)) -> 6.27 | S106: =+$D106*R106/12 -> 0
D107: =+IF(H17>1,E17*IFERROR(VLOOKUP(F17,Data!$H$33:$I$35,2,FALSE),Data!$I$34),0) -> 0 | E107: =+IF(F107=98,0,D107) -> 0 | G107: 0 | H107: 2.22 | I107: =+$D107*H107/12 -> 0 | L107: 2.56 | M107: =+$D107*L107/12 -> 0 | N107: 3.77 | O107: =+$D107*N107/12 -> 0 | P107: 4.66 | Q107: =+$D107*P107/12 -> 0 | R107: 6.27 | S107: =+$D107*R107/12 -> 0
D108: =+IF(H18>1,E18*IFERROR(VLOOKUP(F18,Data!$H$33:$I$35,2,FALSE),Data!$I$34),0) -> 0 | E108: 0 | G108: 0 | H108: 2.22 | I108: 0 | L108: 2.56 | M108: 0 | N108: 3.77 | O108: 0 | P108: 4.66 | Q108: 0 | R108: 6.27 | S108: 0
D109: =+IF(H19>1,E19*IFERROR(VLOOKUP(F19,Data!$H$33:$I$35,2,FALSE),Data!$I$34),0) -> 0 | E109: =+IF(F109=98,0,D109) -> 0 | G109: 0 | H109: 2.22 | I109: =+$D109*H109/12 -> 0 | L109: 2.56 | M109: =+$D109*L109/12 -> 0 | N109: 3.77 | O109: =+$D109*N109/12 -> 0 | P109: 4.66 | Q109: =+$D109*P109/12 -> 0 | R109: 6.27 | S109: =+$D109*R109/12 -> 0
D110: =+IF(H20>1,E20*IFERROR(VLOOKUP(F20,Data!$H$33:$I$35,2,FALSE),Data!$I$34),0) -> 0 | E110: 0 | G110: 0 | H110: 2.22 | I110: 0 | L110: 2.56 | M110: 0 | N110: 3.77 | O110: 0 | P110: 4.66 | Q110: 0 | R110: 6.27 | S110: 0
D111: =+IF(H21>1,E21*IFERROR(VLOOKUP(F21,Data!$H$33:$I$35,2,FALSE),Data!$I$34),0) -> 0 | E111: 0 | G111: 0 | H111: 2.22 | I111: 0 | L111: 2.56 | M111: 0 | N111: 3.77 | O111: 0 | P111: 4.66 | Q111: 0 | R111: 6.27 | S111: 0
C112: Total | D112: =+SUM(D106:D111) -> 0 | E112: =+SUM(E106:E111) -> 0 | F112: =IF(D112<>0,SUMPRODUCT(D106:D111,F106:F111)/D112,"") ->  | G112: =IFERROR(SUMPRODUCT(D106:D111,G106:G111)/D112,0) -> 0 | I112: =SUM(I106:I111) -> 0 | L112: 2.56 | M112: =SUM(M106:M111) -> 0 | N112: 3.77 | O112: =SUM(O106:O111) -> 0 | P112: 4.66 | Q112: =SUM(Q106:Q111) -> 0 | R112: 6.27 | S112: =SUM(S106:S111) -> 0
C113: Fraction Impervious | D113: =+IF(D112<>0,(D112-E112)/D112,0) -> 0
C115: Pre-settlement CN's | D115: HSG | E115: Area [sqft] | F115: SCS CN | G115: Ia [in] | H115: SRO [in] | I115: Volume [cft] | L115: SRO [in] | M115: Volume [cft] | N115: SRO [in] | O115: Volume [cft] | P115: SRO [in] | Q115: Volume [cft] | R115: SRO [in] | S115: Volume [cft]
C116: =IF(C8="","",VLOOKUP(C8,Data!$A$4:$F$21,6,FALSE)) ->  | D116: =IF(D8="","",D8) ->  | E116: =IF(H8<=1,"",E8*IFERROR(VLOOKUP(F8,Data!$H$33:$I$35,2,FALSE),Data!$I$34)) ->  | F116: =IF(H8<2,"",VLOOKUP(C116,Data!$A$4:$E$21,H8,FALSE)) ->  | G116: =+IFERROR(IF(F116=0,0,1000/F116-10),0)*$F$94 -> 0 | H116: =+IF((I$94-$G116)<0,0,(I$94-$G116)^2/(I$94+4*$G116)) -> 2.22 | I116: =+IFERROR($E116*H116/12,0) -> 0 | L116: =+IF((M$94-$G116)<0,0,(M$94-$G116)^2/(M$94+4*$G116)) -> 2.56 | M116: =+IFERROR($E116*L116/12,0) -> 0 | N116: =+IF((O$94-$G116)<0,0,(O$94-$G116)^2/(O$94+4*$G116)) -> 3.77 | O116: =+IFERROR($E116*N116/12,0) -> 0 | P116: =+IF((Q$94-$G116)<0,0,(Q$94-$G116)^2/(Q$94+4*$G116)) -> 4.66 | Q116: =+IFERROR($E116*P116/12,0) -> 0 | R116: =+IF((S$94-$G116)<0,0,(S$94-$G116)^2/(S$94+4*$G116)) -> 6.27 | S116: =+IFERROR($E116*R116/12,0) -> 0
C117: =IF(C9="","",VLOOKUP(C9,Data!$A$4:$F$21,6,FALSE)) ->  | D117: =IF(D9="","",D9) ->  | E117: =IF(H9<=1,"",E9*IFERROR(VLOOKUP(F9,Data!$H$33:$I$35,2,FALSE),Data!$I$34)) ->  | F117: =IF(H9<2,"",VLOOKUP(C117,Data!$A$4:$E$21,H9,FALSE)) ->  | G117: =+IFERROR(IF(F117=0,0,1000/F117-10),0)*$F$94 -> 0 | H117: =+IF((I$94-$G117)<0,0,(I$94-$G117)^2/(I$94+4*$G117)) -> 2.22 | I117: =+IFERROR($E117*H117/12,0) -> 0 | L117: 2.56 | M117: =+IFERROR($E117*L117/12,0) -> 0 | N117: 3.77 | O117: =+IFERROR($E117*N117/12,0) -> 0 | P117: 4.66 | Q117: =+IFERROR($E117*P117/12,0) -> 0 | R117: 6.27 | S117: =+IFERROR($E117*R117/12,0) -> 0
C118: =IF(C10="","",VLOOKUP(C10,Data!$A$4:$F$21,6,FALSE)) ->  | D118: =IF(D10="","",D10) ->  | E118: =IF(H10<=1,"",E10*IFERROR(VLOOKUP(F10,Data!$H$33:$I$35,2,FALSE),Data!$I$34)) ->  | F118: =IF(H10<2,"",VLOOKUP(C118,Data!$A$4:$E$21,H10,FALSE)) ->  | G118: =+IFERROR(IF(F118=0,0,1000/F118-10),0)*$F$94 -> 0 | H118: =+IF((I$94-$G118)<0,0,(I$94-$G118)^2/(I$94+4*$G118)) -> 2.22 | I118: 0 | L118: 2.56 | M118: 0 | N118: 3.77 | O118: 0 | P118: 4.66 | Q118: 0 | R118: 6.27 | S118: 0
C119: =IF(C11="","",VLOOKUP(C11,Data!$A$4:$F$21,6,FALSE)) ->  | D119: =IF(D11="","",D11) ->  | E119: =IF(H11<=1,"",E11*IFERROR(VLOOKUP(F11,Data!$H$33:$I$35,2,FALSE),Data!$I$34)) ->  | F119: =IF(H11<2,"",VLOOKUP(C119,Data!$A$4:$E$21,H11,FALSE)) ->  | G119: =+IFERROR(IF(F119=0,0,1000/F119-10),0)*$F$94 -> 0 | H119: =+IF((I$94-$G119)<0,0,(I$94-$G119)^2/(I$94+4*$G119)) -> 2.22 | I119: 0 | L119: 2.56 | M119: 0 | N119: 3.77 | O119: 0 | P119: 4.66 | Q119: 0 | R119: 6.27 | S119: 0
C120: =IF(C12="","",VLOOKUP(C12,Data!$A$4:$F$21,6,FALSE)) ->  | D120: =IF(D12="","",D12) ->  | E120: =IF(H12<=1,"",E12*IFERROR(VLOOKUP(F12,Data!$H$33:$I$35,2,FALSE),Data!$I$34)) ->  | F120: =IF(H12<2,"",VLOOKUP(C120,Data!$A$4:$E$21,H12,FALSE)) ->  | G120: =+IFERROR(IF(F120=0,0,1000/F120-10),0)*$F$94 -> 0 | H120: =+IF((I$94-$G120)<0,0,(I$94-$G120)^2/(I$94+4*$G120)) -> 2.22 | I120: 0 | L120: 2.56 | M120: 0 | N120: 3.77 | O120: 0 | P120: 4.66 | Q120: 0 | R120: 6.27 | S120: 0
D121: Totals | E121: =+SUM(E116:E120) -> 0 | F121: =+IF(E121<>0,SUMPRODUCT(E116:E120,F116:F120)/E121,100) -> 100 | G121: =IFERROR(SUMPRODUCT(E116:E120,G116:G120)/E121,0) -> 0 | I121: =SUM(I116:I120) -> 0 | L121: 2.56 | M121: =SUM(M116:M120) -> 0 | N121: 3.77 | O121: =SUM(O116:O120) -> 0 | P121: 4.66 | Q121: =SUM(Q116:Q120) -> 0 | R121: 6.27 | S121: =SUM(S116:S120) -> 0
D122: Fraction Imperv | E122: 0
C124: Calculation of 2-year runoff volume for Channel Protection
D126: Developed | E126: Pre-settlement | F126: Existing
C127: Drainage area [sqft] | D127: =+D112 -> 0 | E127: =+E121 -> 0 | F127: =+D102 -> 0
C128: Volume (cft) = | D128: =+M112 -> 0 | E128: =+M121 -> 0 | F128: =+M102 -> 0
C129: Runoff Depth [in] | D129: =+IFERROR(D128/D127*12,0) -> 0 | E129: =+IFERROR(E128/E127*12,0) -> 0 | F129: 0
C131: Structural BMP volumes
C133: BMP | D133: Area [sqft] | E133: Volume [cft] | F133: Infiltration rate [in/hr] | G133: Infiltrating volume [cft] | H133: Total volume [cft] | I133: Drain Time [hr] | R133: Infiltration Time [hr] | S133: Infiltration rate [cf/hr]
C134: =+IF(C37=0,Data!$A$84,C37) -> NoneSelected | D134: =+MAX(0,D37) -> 0 | E134: =+MAX(0,E37*VLOOKUP($C134,Data!$A$71:$C$84,2,FALSE)) -> 0 | F134: =+MAX(0,F37*VLOOKUP($C134,Data!$A$71:$C$84,3,FALSE)) -> 0 | G134: =+IF(OR(I134="N.A.",I134=""),0,IFERROR(R134*S134,0)) -> 0 | H134: =+G134+E134 -> 0 | I134: =+IF(IFERROR(VLOOKUP(C134,Data!$A$71:$C$84,3,FALSE),0)=0,"N.A.",IFERROR(E134/D134/F134*12,"")) -> N.A. | R134: =IFERROR(2+MIN(72,I134)*(0.222-0.553*LOG(MIN(72,I134)/72)),0) -> 17.984 | S134: =+D134*F134/12 -> 0
C135: =+IF(C38=0,Data!$A$84,C38) -> NoneSelected | D135: =+MAX(0,D38) -> 0 | E135: =+MAX(0,E38*VLOOKUP($C135,Data!$A$71:$C$84,2,FALSE)) -> 0 | F135: =+MAX(0,F38*VLOOKUP($C135,Data!$A$71:$C$84,3,FALSE)) -> 0 | G135: =+IF(OR(I135="N.A.",I135=""),0,IFERROR(R135*S135,0)) -> 0 | H135: =+G135+E135 -> 0 | I135: =+IF(IFERROR(VLOOKUP(C135,Data!$A$71:$C$84,3,FALSE),0)=0,"N.A.",IFERROR(E135/D135/F135*12,"")) -> N.A. | R135: =IFERROR(2+MIN(72,I135)*(0.222-0.553*LOG(MIN(72,I135)/72)),0) -> 17.984 | S135: =+D135*F135/12 -> 0
C136: =+IF(C39=0,Data!$A$84,C39) -> NoneSelected | D136: =+MAX(0,D39) -> 0 | E136: =+MAX(0,E39*VLOOKUP($C136,Data!$A$71:$C$84,2,FALSE)) -> 0 | F136: =+MAX(0,F39*VLOOKUP($C136,Data!$A$71:$C$84,3,FALSE)) -> 0 | G136: 0 | H136: 0 | I136: =+IF(IFERROR(VLOOKUP(C136,Data!$A$71:$C$84,3,FALSE),0)=0,"N.A.",IFERROR(E136/D136/F136*12,"")) -> N.A. | R136: 17.984 | S136: 0
C137: =+IF(C40=0,Data!$A$84,C40) -> NoneSelected | D137: =+MAX(0,D40) -> 0 | E137: =+MAX(0,E40*VLOOKUP($C137,Data!$A$71:$C$84,2,FALSE)) -> 0 | F137: =+MAX(0,F40*VLOOKUP($C137,Data!$A$71:$C$84,3,FALSE)) -> 0 | G137: 0 | H137: 0 | I137: =+IF(IFERROR(VLOOKUP(C137,Data!$A$71:$C$84,3,FALSE),0)=0,"N.A.",IFERROR(E137/D137/F137*12,"")) -> N.A. | R137: 17.984 | S137: 0
E138: =SUM(E134:E137) -> 0 | F138: Sum of all BMPs | G138: =SUM(G134:G137) -> 0 | H138: =SUM(H134:H137) -> 0
G139: 2-year runoff volume for sub-catchment | H139: =+D128 -> 0
G140: Unmet Channel Protection Volume from upstream subcatchments | H140: =+E186 -> 0
G141: Sum of 2-year runoff volume and unmet upstream volumes | H141: =+H140+H139 -> 0
C143: Maximum retained volume for all events
C145: Event | D145: =+Data!$H$20 -> 1-year | E145: =+Data!$H$21 -> 2-year | F145: =+Data!$H$22 -> 10-year | G145: =+Data!$H$23 -> 25-year | H145: =+Data!$H$24 -> 100-year
C146: Drainage area [sqft] | D146: =+$D112 -> 0 | E146: =+$D112 -> 0 | F146: =+$D112 -> 0 | G146: =+$D112 -> 0 | H146: =+$D112 -> 0
C147: Total Runoff, Q (in) = | D147: =+IFERROR(D148/D146*12,0) -> 0 | E147: =+IFERROR(E148/E146*12,0) -> 0 | F147: =+IFERROR(F148/F146*12,0) -> 0 | G147: =+IFERROR(G148/G146*12,0) -> 0 | H147: =+IFERROR(H148/H146*12,0) -> 0
C148: Runoff Volume (cft) = | D148: =+I112 -> 0 | E148: =+M112 -> 0 | F148: =O112 -> 0 | G148: =Q112 -> 0 | H148: =S112 -> 0
C149: Excess runoff volume upstream subcatchments (cft) | D149: =+E201 -> 0 | E149: =+F201 -> 0 | F149: 0 | G149: 0 | H149: 0
C150: Total Runoff to retentive BMP (cft) | D150: =+D149+D148 -> 0 | E150: =+E149+E148 -> 0 | F150: 0 | G150: 0 | H150: 0
C151: Volume retained in subcatchment [cft] | D151: =+MIN($H$138,D150) -> 0 | E151: =+MIN($H$138,E150) -> 0 | F151: 0 | G151: 0 | H151: 0
C152: Volume released from subcatchment [cft] | D152: =+D150-D151 -> 0 | E152: =+E150-E151 -> 0 | F152: 0 | G152: 0 | H152: 0
C154: Volume credited for detention flood control
C155: =+Data!H97 -> Volume Retained | D155: =+D151 -> 0 | E155: =+E151 -> 0 | F155: 0 | G155: 0 | H155: 0
C156: =+Data!H98 -> Storage Volume | D156: =+MIN(D150,$E$138) -> 0 | E156: =+MIN(E150,$E$138) -> 0 | F156: 0 | G156: 0 | H156: 0
C157: =+Data!H99 -> Storage Volume 2yr | D157: =+MIN(D156,$E$34) -> 0 | E157: =+MIN(E156,$E$34) -> 0 | F157: 0 | G157: 0 | H157: 0
C158: =+Data!H100 -> None | D158: 0 | E158: 0 | F158: 0 | G158: 0 | H158: 0
C159: ='Flood Control'!D24 -> None | D159: =VLOOKUP($C$159,$C$155:$H$158,D160,FALSE) -> 0 | E159: =VLOOKUP($C$159,$C$155:$H$158,E160,FALSE) -> 0 | F159: 0 | G159: 0 | H159: 0
D160: 2 | E160: 3 | F160: 4 | G160: 5 | H160: 6
C162: Areas for water quality volume
C163: Land use | D163: HSG | E163: DP Area [sqft] | F163: HSG = A | G163: HSG = B | H163: HSG = C or D | I163: Imp Area [sqft]
C164: =+IF(C16="","",C16) ->  | E164: =D106*IFERROR(VLOOKUP(C164,Data!$A$102:$B$105,2,FALSE),0) -> 0 | F164: =IF(D164="A",E164,0) -> 0 | G164: =IF(D164="B",E164,0) -> 0 | H164: =IF(OR(D164="C",D164="D"),E164,0) -> 0 | I164: =+D106*IFERROR(VLOOKUP(C164,Data!$A$95:$B$98,2,FALSE),0) -> 0
E165: =D107*IFERROR(VLOOKUP(C165,Data!$A$102:$B$105,2,FALSE),0) -> 0 | F165: =IF(D165="A",E165,0) -> 0 | G165: =IF(D165="B",E165,0) -> 0 | H165: =IF(OR(D165="C",D165="D"),E165,0) -> 0 | I165: =+D107*IFERROR(VLOOKUP(C165,Data!$A$95:$B$98,2,FALSE),0) -> 0
E166: =D108*IFERROR(VLOOKUP(C166,Data!$A$102:$B$105,2,FALSE),0) -> 0 | F166: =IF(D166="A",E166,0) -> 0 | G166: =IF(D166="B",E166,0) -> 0 | H166: 0 | I166: =+D108*IFERROR(VLOOKUP(C166,Data!$A$95:$B$98,2,FALSE),0) -> 0
E167: =D109*IFERROR(VLOOKUP(C167,Data!$A$102:$B$105,2,FALSE),0) -> 0 | F167: =IF(D167="A",E167,0) -> 0 | G167: =IF(D167="B",E167,0) -> 0 | H167: =IF(OR(D167="C",D167="D"),E167,0) -> 0 | I167: =+D109*IFERROR(VLOOKUP(C167,Data!$A$95:$B$98,2,FALSE),0) -> 0
E168: =D110*IFERROR(VLOOKUP(C168,Data!$A$102:$B$105,2,FALSE),0) -> 0 | F168: 0 | G168: 0 | H168: 0 | I168: =+D110*IFERROR(VLOOKUP(C168,Data!$A$95:$B$98,2,FALSE),0) -> 0
E169: =D111*IFERROR(VLOOKUP(C169,Data!$A$102:$B$105,2,FALSE),0) -> 0 | F169: 0 | G169: 0 | H169: 0 | I169: =+D111*IFERROR(VLOOKUP(C169,Data!$A$95:$B$98,2,FALSE),0) -> 0
E170: Total [sqft] | F170: =SUM(F164:F169) -> 0 | G170: =SUM(G164:G169) -> 0 | H170: =SUM(H164:H169) -> 0 | I170: =SUM(I164:I169) -> 0
E171: Total [ac] | F171: =+F170/43560 -> 0 | G171: =+G170/43560 -> 0 | H171: =+H170/43560 -> 0 | I171: =+I170/43560 -> 0
C174: Quantities from upstream sub-catchments
C175: Sub-catchment | D175: Upstream | E175: Unmet CPV [cft] | F175: Released WQV [cft] | G175: Released TSS
C176: Sub1 | D176: =+IFERROR(IF($M$5=VLOOKUP(C176,Summary!$C$52:$E$61,3,FALSE),"Y","N"),"N") -> N | E176: =+IF($D176="Y",IFERROR(VLOOKUP($C176,Summary!$C$87:$I$96,7,FALSE),0),0) -> 0 | F176: =+IF($D176="Y",IFERROR(VLOOKUP($C176,Summary!$C$109:$J$118,5,FALSE),0),0) -> 0 | G176: =+IF($D176="Y",IFERROR(VLOOKUP($C176,Summary!$C$109:$K$118,9,FALSE),0),0) -> 0
C177: Sub2 | D177: =+IFERROR(IF($M$5=VLOOKUP(C177,Summary!$C$52:$E$61,3,FALSE),"Y","N"),"N") -> N | E177: =+IF(D177="Y",IFERROR(VLOOKUP(C177,Summary!$C$87:$I$96,7,FALSE),0),0) -> 0 | F177: =+IF($D177="Y",IFERROR(VLOOKUP($C177,Summary!$C$109:$J$118,5,FALSE),0),0) -> 0 | G177: =+IF($D177="Y",IFERROR(VLOOKUP($C177,Summary!$C$109:$K$118,9,FALSE),0),0) -> 0
C178: Sub3 | D178: =+IFERROR(IF($M$5=VLOOKUP(C178,Summary!$C$52:$E$61,3,FALSE),"Y","N"),"N") -> N | E178: =+IF(D178="Y",IFERROR(VLOOKUP(C178,Summary!$C$87:$I$96,7,FALSE),0),0) -> 0 | F178: =+IF($D178="Y",IFERROR(VLOOKUP($C178,Summary!$C$109:$J$118,5,FALSE),0),0) -> 0 | G178: =+IF($D178="Y",IFERROR(VLOOKUP($C178,Summary!$C$109:$K$118,9,FALSE),0),0) -> 0
C179: Sub4 | D179: =+IFERROR(IF($M$5=VLOOKUP(C179,Summary!$C$52:$E$61,3,FALSE),"Y","N"),"N") -> N | E179: =+IF(D179="Y",IFERROR(VLOOKUP(C179,Summary!$C$87:$I$96,7,FALSE),0),0) -> 0 | F179: =+IF($D179="Y",IFERROR(VLOOKUP($C179,Summary!$C$109:$J$118,5,FALSE),0),0) -> 0 | G179: =+IF($D179="Y",IFERROR(VLOOKUP($C179,Summary!$C$109:$K$118,9,FALSE),0),0) -> 0
C180: Sub5 | D180: =+IFERROR(IF($M$5=VLOOKUP(C180,Summary!$C$52:$E$61,3,FALSE),"Y","N"),"N") -> N | E180: =+IF(D180="Y",IFERROR(VLOOKUP(C180,Summary!$C$87:$I$96,7,FALSE),0),0) -> 0 | F180: =+IF($D180="Y",IFERROR(VLOOKUP($C180,Summary!$C$109:$J$118,5,FALSE),0),0) -> 0 | G180: =+IF($D180="Y",IFERROR(VLOOKUP($C180,Summary!$C$109:$K$118,9,FALSE),0),0) -> 0
C181: Sub6 | D181: =+IFERROR(IF($M$5=VLOOKUP(C181,Summary!$C$52:$E$61,3,FALSE),"Y","N"),"N") -> N | E181: =+IF(D181="Y",IFERROR(VLOOKUP(C181,Summary!$C$87:$I$96,7,FALSE),0),0) -> 0 | F181: =+IF($D181="Y",IFERROR(VLOOKUP($C181,Summary!$C$109:$J$118,5,FALSE),0),0) -> 0 | G181: =+IF($D181="Y",IFERROR(VLOOKUP($C181,Summary!$C$109:$K$118,9,FALSE),0),0) -> 0
C182: Sub7 | D182: =+IFERROR(IF($M$5=VLOOKUP(C182,Summary!$C$52:$E$61,3,FALSE),"Y","N"),"N") -> N | E182: =+IF(D182="Y",IFERROR(VLOOKUP(C182,Summary!$C$87:$I$96,7,FALSE),0),0) -> 0 | F182: =+IF($D182="Y",IFERROR(VLOOKUP($C182,Summary!$C$109:$J$118,5,FALSE),0),0) -> 0 | G182: =+IF($D182="Y",IFERROR(VLOOKUP($C182,Summary!$C$109:$K$118,9,FALSE),0),0) -> 0
C183: Sub8 | D183: =+IFERROR(IF($M$5=VLOOKUP(C183,Summary!$C$52:$E$61,3,FALSE),"Y","N"),"N") -> N | E183: =+IF(D183="Y",IFERROR(VLOOKUP(C183,Summary!$C$87:$I$96,7,FALSE),0),0) -> 0 | F183: =+IF($D183="Y",IFERROR(VLOOKUP($C183,Summary!$C$109:$J$118,5,FALSE),0),0) -> 0 | G183: =+IF($D183="Y",IFERROR(VLOOKUP($C183,Summary!$C$109:$K$118,9,FALSE),0),0) -> 0
C184: Sub9 | D184: =+IFERROR(IF($M$5=VLOOKUP(C184,Summary!$C$52:$E$61,3,FALSE),"Y","N"),"N") -> N | E184: =+IF(D184="Y",IFERROR(VLOOKUP(C184,Summary!$C$87:$I$96,7,FALSE),0),0) -> 0 | F184: =+IF($D184="Y",IFERROR(VLOOKUP($C184,Summary!$C$109:$J$118,5,FALSE),0),0) -> 0 | G184: =+IF($D184="Y",IFERROR(VLOOKUP($C184,Summary!$C$109:$K$118,9,FALSE),0),0) -> 0
C185: Sub10 | D185: =+IFERROR(IF($M$5=VLOOKUP(C185,Summary!$C$52:$E$61,3,FALSE),"Y","N"),"N") -> N | E185: =+IF(D185="Y",IFERROR(VLOOKUP(C185,Summary!$C$87:$I$96,7,FALSE),0),0) -> 0 | F185: =+IF($D185="Y",IFERROR(VLOOKUP($C185,Summary!$C$109:$J$118,5,FALSE),0),0) -> 0 | G185: =+IF($D185="Y",IFERROR(VLOOKUP($C185,Summary!$C$109:$K$118,9,FALSE),0),0) -> 0
E186: =+SUM(E176:E185) -> 0 | F186: =+SUM(F176:F185) -> 0 | G186: =+SUM(G176:G185) -> 0
C189: Flood control Carry over | M189: =ROW(D152) -> 152 | N189: =ROW(E152) -> 152 | O189: =ROW(F152) -> 152 | P189: =ROW(G152) -> 152 | Q189: =ROW(H152) -> 152
C190: Sub-catchment | D190: Upstream | E190: =+Data!$H$20 -> 1-year | F190: =+Data!$H$21 -> 2-year | G190: =+Data!$H$22 -> 10-year | H190: =+Data!$H$23 -> 25-year | I190: =+Data!$H$24 -> 100-year | M190: =COLUMN(D152) -> 4 | N190: =COLUMN(E152) -> 5 | O190: =COLUMN(F152) -> 6 | P190: =COLUMN(G152) -> 7 | Q190: =COLUMN(H152) -> 8
C191: Sub1 | D191: =+IFERROR(IF($M$5=VLOOKUP(C191,Summary!$C$52:$E$61,3,FALSE),"Y","N"),"N") -> N | E191: =IF($D191="N",0,OFFSET(INDIRECT(CONCATENATE($C191,"!a1")),M$189-1,M$190-1)) -> 0 | F191: =IF($D191="N",0,OFFSET(INDIRECT(CONCATENATE($C191,"!a1")),N$189-1,N$190-1)) -> 0 | G191: 0 | H191: 0 | I191: 0
C192: Sub2 | D192: =+IFERROR(IF($M$5=VLOOKUP(C192,Summary!$C$52:$E$61,3,FALSE),"Y","N"),"N") -> N | E192: =IF($D192="N",0,OFFSET(INDIRECT(CONCATENATE($C192,"!a1")),M$189-1,M$190-1)) -> 0 | F192: =IF($D192="N",0,OFFSET(INDIRECT(CONCATENATE($C192,"!a1")),N$189-1,N$190-1)) -> 0 | G192: =IF($D192="N",0,OFFSET(INDIRECT(CONCATENATE($C192,"!a1")),O$189-1,O$190-1)) -> 0 | H192: =IF($D192="N",0,OFFSET(INDIRECT(CONCATENATE($C192,"!a1")),P$189-1,P$190-1)) -> 0 | I192: =IF($D192="N",0,OFFSET(INDIRECT(CONCATENATE($C192,"!a1")),Q$189-1,Q$190-1)) -> 0
C193: Sub3 | D193: =+IFERROR(IF($M$5=VLOOKUP(C193,Summary!$C$52:$E$61,3,FALSE),"Y","N"),"N") -> N | E193: 0 | F193: 0 | G193: 0 | H193: 0 | I193: 0
C194: Sub4 | D194: =+IFERROR(IF($M$5=VLOOKUP(C194,Summary!$C$52:$E$61,3,FALSE),"Y","N"),"N") -> N | E194: 0 | F194: 0 | G194: 0 | H194: 0 | I194: 0
C195: Sub5 | D195: =+IFERROR(IF($M$5=VLOOKUP(C195,Summary!$C$52:$E$61,3,FALSE),"Y","N"),"N") -> N | E195: 0 | F195: 0 | G195: 0 | H195: 0 | I195: 0
C196: Sub6 | D196: =+IFERROR(IF($M$5=VLOOKUP(C196,Summary!$C$52:$E$61,3,FALSE),"Y","N"),"N") -> N | E196: 0 | F196: 0 | G196: 0 | H196: 0 | I196: 0
C197: Sub7 | D197: =+IFERROR(IF($M$5=VLOOKUP(C197,Summary!$C$52:$E$61,3,FALSE),"Y","N"),"N") -> N | E197: 0 | F197: 0 | G197: 0 | H197: 0 | I197: 0
C198: Sub8 | D198: =+IFERROR(IF($M$5=VLOOKUP(C198,Summary!$C$52:$E$61,3,FALSE),"Y","N"),"N") -> N | E198: 0 | F198: 0 | G198: 0 | H198: 0 | I198: 0
C199: Sub9 | D199: =+IFERROR(IF($M$5=VLOOKUP(C199,Summary!$C$52:$E$61,3,FALSE),"Y","N"),"N") -> N | E199: 0 | F199: 0 | G199: 0 | H199: 0 | I199: 0
C200: Sub10 | D200: =+IFERROR(IF($M$5=VLOOKUP(C200,Summary!$C$52:$E$61,3,FALSE),"Y","N"),"N") -> N | E200: 0 | F200: 0 | G200: 0 | H200: 0 | I200: 0
C201: Total | E201: =SUM(E191:E200) -> 0 | F201: =SUM(F191:F200) -> 0 | G201: 0 | H201: 0 | I201: 0

Sheet Sub2
C2: =" " & Data!$H$2 &CHAR(10) & " " & Settings!$D$5 -> LGROW Design Spreadsheet City of Ferrysburg
B4: =CONCATENATE(M5,": ") -> Sub2: | D4: =+IFERROR(IF(VLOOKUP(M5,Summary!$C$52:$L$61,4,FALSE)=0,"",VLOOKUP(M5,Summary!$C$52:$L$61,4,FALSE)),N4) -> This subcatchment is not defined on the Summary tab. | M4: Text | N4: This subcatchment is not defined on the Summary tab.
C5: Runoff | M5: =MID(CELL("filename",A1),FIND("]",CELL("filename",A1))+1,255) -> Sub2 | N5: Sheet name
G6: Curve Number | M6: =RIGHT(M5,1) -> 2 | N6: Subcatchment number
C7: Existing Land Use | D7: HSG | E7: Area | F7: Units | G7: Existing | I7: Pre-settlement
G8: =IF(H8<2,"",VLOOKUP(C8,Data!$A$4:$E$21,H8,FALSE)) ->  | H8: =IF(AND(C8="",D8=""),0,IF(AND(C8<>"",D8<>""),HLOOKUP(D8,Data!$B$2:$E$3,2),1)) -> 0 | I8: =+F116 -> 
G9: =IF(H9<2,"",VLOOKUP(C9,Data!$A$4:$E$21,H9,FALSE)) ->  | H9: =IF(AND(C9="",D9=""),0,IF(AND(C9<>"",D9<>""),HLOOKUP(D9,Data!$B$2:$E$3,2),1)) -> 0
G10: =IF(H10<2,"",VLOOKUP(C10,Data!$A$4:$E$21,H10,FALSE)) ->  | H10: =IF(AND(C10="",D10=""),0,IF(AND(C10<>"",D10<>""),HLOOKUP(D10,Data!$B$2:$E$3,2),1)) -> 0
G11: =IF(H11<2,"",VLOOKUP(C11,Data!$A$4:$E$21,H11,FALSE)) ->  | H11: =IF(AND(C11="",D11=""),0,IF(AND(C11<>"",D11<>""),HLOOKUP(D11,Data!$B$2:$E$3,2),1)) -> 0
G12: =IF(H12<2,"",VLOOKUP(C12,Data!$A$4:$E$21,H12,FALSE)) ->  | H12: =IF(AND(C12="",D12=""),0,IF(AND(C12<>"",D12<>""),HLOOKUP(D12,Data!$B$2:$E$3,2),1)) -> 0
E13: =+D102/43560 -> 0 | F13: acre | G13: =+IF(F102=100,"",F102) ->  | I13: =+IF(F121=100,"",F121) -> 
C15: Developed Land Use | D15: HSG | E15: Area | F15: Units | G15: Curve Number | I15: Notes
G16: =IF(H16<2,"",VLOOKUP(C16,Data!$A$28:$E$67,H16,FALSE)) ->  | H16: =+IF(AND(C16="",D16=""),0,IF(AND(C16<>"",D16<>""),HLOOKUP(D16,Data!$B$2:$E$3,2),1)) -> 0
G17: =IF(H17<2,"",VLOOKUP(C17,Data!$A$28:$E$67,H17,FALSE)) ->  | H17: =+IF(AND(C17="",D17=""),0,IF(AND(C17<>"",D17<>""),HLOOKUP(D17,Data!$B$2:$E$3,2),1)) -> 0
G18: =IF(H18<2,"",VLOOKUP(C18,Data!$A$28:$E$67,H18,FALSE)) ->  | H18: =+IF(AND(C18="",D18=""),0,IF(AND(C18<>"",D18<>""),HLOOKUP(D18,Data!$B$2:$E$3,2),1)) -> 0
G19: =IF(H19<2,"",VLOOKUP(C19,Data!$A$28:$E$67,H19,FALSE)) ->  | H19: =+IF(AND(C19="",D19=""),0,IF(AND(C19<>"",D19<>""),HLOOKUP(D19,Data!$B$2:$E$3,2),1)) -> 0
G20: =IF(H20<2,"",VLOOKUP(C20,Data!$A$28:$E$67,H20,FALSE)) ->  | H20: =+IF(AND(C20="",D20=""),0,IF(AND(C20<>"",D20<>""),HLOOKUP(D20,Data!$B$2:$E$3,2),1)) -> 0
G21: =IF(H21<2,"",VLOOKUP(C21,Data!$A$28:$E$67,H21,FALSE)) ->  | H21: =+IF(AND(C21="",D21=""),0,IF(AND(C21<>"",D21<>""),HLOOKUP(D21,Data!$B$2:$E$3,2),1)) -> 0
C22: Notes: | D22: =IF(H22=1,"≠ Existing →","") ->  | E22: =+D112/43560 -> 0 | F22: acre | G22: =+IF(F112=100,"",F112) ->  | H22: =IF(AND(E13=0,E22=0),0,IF(ABS(E22-E13)/MAX(E22,E13)>0.01,1,0)) -> 0
C24: Subcatchment Runoff Volume for Developed Land Use
C25: Rainfall Frequency | D25: =+Data!$H$20 -> 1-year | E25: =+Data!$H$21 -> 2-year | F25: =+Data!$H$22 -> 10-year | G25: =+Data!$H$23 -> 25-year | I25: =+Data!$H$24 -> 100-year
C26: Volume from this Subcatchment [cft] | D26: =D148 -> 0 | E26: =E148 -> 0 | F26: 0 | G26: 0 | I26: =+H148 -> 0
C29: Channel Protection Volume
C30: Required Channel Protection Volume | F30: 2-year Runoff Volumes [cft]
D31: Is Channel Protection Volume required? If no, provide reason. | E31: Yes | F31: Developed | G31: Pre-developed
D32: Required this Subcatchment [cft] | E32: =IF(E31=Data!H38,MAX(F32-G32,0),0) -> 0 | F32: =+D128 -> 0 | G32: =+IF(Summary!E41=Data!H9,E128,F128) -> 0
D33: Unmet from Upstream Subcatchments [cft] | E33: =+E186 -> 0
C34: Required Channel Protection Volume [cft] | E34: =+E33+E32 -> 0
C35: Structural BMPs used to meet Channel Protection Volume
C36: Structural BMP | D36: A Infiltration Area [sqft] | E36: V Storage Volume [cft] | F36: i Design Infiltration Rate [in/hr] | G36: Drain Time [hr] | I36: Volume Retained [cft]
G37: =+I134 -> N.A. | I37: =+IF(H134<=0,"",H134) -> 
G38: =+I135 -> N.A. | I38: =+IF(H135<=0,"",H135) -> 
G39: N.A.
G40: =+I137 -> N.A. | I40: =+IF(H137<=0,"",H137) -> 
C41: Totals | E41: =+SUM(E37:E40) -> 0 | I41: =+H138 -> 0
G42: Credited Channel Protection Volume | I42: =MIN(H138,H141,E34) -> 0
C43: Notes: | G43: Percentage of Channel Protection Volume Met by Retention | I43: =+IFERROR(IF(E32>0,MIN(1,I42/E34),1),"") -> 1
C47: Water Quality Volume
F48: =+Data!$A$89 -> Paved [ac] | G48: =+Data!$A$88 -> Pitched Roofs [ac] | I48: =+Data!$A$87 -> Flat Roofs/Unpaved [ac] | L48: Paved | M48: Pitched | O48: Flat
D49: Sum of Directly Connected Impervious Area [ac] | E49: =+I171 -> 0 | F49: =+E49-I49-G49 -> 0 | H49: =+IF(OR(F49<0,F49>E49),1,0) -> 0 | L49: =+F49/12*VLOOKUP(F48,WaterQualityFactors,2,FALSE) -> 0 | M49: =+G49/12*VLOOKUP(G48,WaterQualityFactors,2,FALSE) -> 0 | O49: =+I49/12*VLOOKUP(I48,WaterQualityFactors,2,FALSE) -> 0
D50: Sum of Directly Connected Disturbed Pervious Area [ac] | E50: =SUM(L51,M51,N51) -> 0 | G50: =+IF(OR(G49<0,G49>E$49,H$49=1),"Invalid Entry","") ->  | H50: =+SUM(O49,M49,L49,L52,M52,N52) -> 0 | I50: =+IF(OR(I49<0,I49>E$49,H$49=1),"Invalid Entry","") ->  | L50: =+Data!$A$90 -> Sandy Soils (HSG A) [ac] | M50: =+Data!$A$91 -> Silty Soils (HSG B) [ac] | N50: =+Data!$A$92 -> Clayey Soils (HSG C&D) [ac]
D51: Required Volume this Subcatchment [cft] | E51: =43560*H50 -> 0 | G51: TSS Generated this Subcatchment | I51: =+E51 -> 0 | L51: =+F171 -> 0 | M51: =+G171 -> 0 | N51: =H171 -> 0
D52: Volume from Upstream Subcatchments [cft] | E52: =+F186 -> 0 | G52: TSS from Upstream Subcatchments | I52: =+G186 -> 0 | L52: =+L51/12*VLOOKUP(L50,WaterQualityFactors,2,FALSE) -> 0 | M52: =+M51/12*VLOOKUP(M50,WaterQualityFactors,2,FALSE) -> 0 | N52: =+N51/12*VLOOKUP(N50,WaterQualityFactors,2,FALSE) -> 0
C53: Water Quality Volume to be Treated [cft] | E53: =+E52+E51 -> 0 | F53: TSS to be Treated | I53: =+I51+I52 -> 0
C54: TSS Accounting
C55: BMPs Used in Treatment Train | D55: Treated Water Volume [cft] | E55: TSS Removal Efficiency | I55: TSS Removed
E56: Tabulated | F56: Third-Party | G56: Effective | H56: TSS in stream | M56: Released water Volume | P56: Need 3rd party value
E57: =+IF(C57="","",IF(P57=Data!$H$38,"--",VLOOKUP(C57,Data!$A$109:$B$143,2,FALSE))) ->  | G57: =+IF(C57="","",IF(P57=Data!$H$38,F57,VLOOKUP(C57,Data!$A$109:$B$143,2,FALSE))*MIN(1,IFERROR(D57/L57,0))) ->  | H57: =+I53-I57 -> 0 | I57: =+IFERROR(I53*G57/100,0) -> 0 | L57: =+$E$53 -> 0 | M57: =+IF(D57="","",IFERROR(MIN(IF(VLOOKUP(C57,Data!$A$109:$C$143,3,FALSE)=Data!$C$112,L57,MAX(0,L57-D57)),$E$53),"")) ->  | N57: =IFERROR(1/ISNUMBER(M57),"") ->  | O57: =+IF(D57*1.01>L57,1,0) -> 0 | P57: =+IF(C57="","",IF(VLOOKUP(C57,Data!$A$109:$B$143,2,FALSE)="",Data!$H$38,Data!$H$39)) -> 
E58: =+IF(C58="","",IF(P58=Data!$H$38,"--",VLOOKUP(C58,Data!$A$109:$B$143,2,FALSE))) ->  | G58: =+IF(C58="","",IF(P58=Data!$H$38,F58,VLOOKUP(C58,Data!$A$109:$B$143,2,FALSE))*MIN(1,IFERROR(D58/L58,0))) ->  | H58: =+H57-I58 -> 0 | I58: =+IFERROR(H57*G58/100,0) -> 0 | L58: =MIN(L57:M57) -> 0 | M58: =+IF(D58="","",IFERROR(MIN(IF(VLOOKUP(C58,Data!$A$109:$C$143,3,FALSE)=Data!$C$112,L58,MAX(0,L58-D58)),$E$53),"")) ->  | N58: =IFERROR(1/ISNUMBER(M58),"") ->  | O58: =+IF(D58*1.01>L58,1,0) -> 0 | P58: =+IF(C58="","",IF(VLOOKUP(C58,Data!$A$109:$B$143,2,FALSE)="",Data!$H$38,Data!$H$39)) -> 
E59: =+IF(C59="","",IF(P59=Data!$H$38,"--",VLOOKUP(C59,Data!$A$109:$B$143,2,FALSE))) ->  | G59: =+IF(C59="","",IF(P59=Data!$H$38,F59,VLOOKUP(C59,Data!$A$109:$B$143,2,FALSE))*MIN(1,IFERROR(D59/L59,0))) ->  | H59: 0 | I59: =+IFERROR(H58*G59/100,0) -> 0 | L59: =MIN(L58:M58) -> 0 | M59: =+IF(D59="","",IFERROR(MIN(IF(VLOOKUP(C59,Data!$A$109:$C$143,3,FALSE)=Data!$C$112,L59,MAX(0,L59-D59)),$E$53),"")) ->  | O59: =+IF(D59*1.01>L59,1,0) -> 0 | P59: =+IF(C59="","",IF(VLOOKUP(C59,Data!$A$109:$B$143,2,FALSE)="",Data!$H$38,Data!$H$39)) -> 
E60: =+IF(C60="","",IF(P60=Data!$H$38,"--",VLOOKUP(C60,Data!$A$109:$B$143,2,FALSE))) ->  | G60: =+IF(C60="","",IF(P60=Data!$H$38,F60,VLOOKUP(C60,Data!$A$109:$B$143,2,FALSE))*MIN(1,IFERROR(D60/L60,0))) ->  | H60: 0 | I60: 0 | L60: 0 | M60: =+IF(D60="","",IFERROR(MIN(IF(VLOOKUP(C60,Data!$A$109:$C$143,3,FALSE)=Data!$C$112,L60,MAX(0,L60-D60)),$E$53),"")) ->  | O60: 0 | P60: =+IF(C60="","",IF(VLOOKUP(C60,Data!$A$109:$B$143,2,FALSE)="",Data!$H$38,Data!$H$39)) -> 
E61: =+IF(C61="","",IF(P61=Data!$H$38,"--",VLOOKUP(C61,Data!$A$109:$B$143,2,FALSE))) ->  | G61: =+IF(C61="","",IF(P61=Data!$H$38,F61,VLOOKUP(C61,Data!$A$109:$B$143,2,FALSE))*MIN(1,IFERROR(D61/L61,0))) ->  | H61: 0 | I61: 0 | L61: 0 | M61: =+IF(D61="","",IFERROR(MIN(IF(VLOOKUP(C61,Data!$A$109:$C$143,3,FALSE)=Data!$C$112,L61,MAX(0,L61-D61)),$E$53),"")) ->  | O61: 0 | P61: =+IF(C61="","",IF(VLOOKUP(C61,Data!$A$109:$B$143,2,FALSE)="",Data!$H$38,Data!$H$39)) -> 
C62: Released Water Volume [cft] | D62: =+M62 -> 0 | G62: Total TSS Removed | I62: =+SUM(I57:I61) -> 0 | M62: =IFERROR(LOOKUP(2,N57:N61,M57:M61),E53) -> 0 | O62: =SUM(O57:O61) -> 0
C63: Water Quality Volume met? | D63: =+M63 -> Yes | G63: TSS Remaining | I63: =+I53-I62 -> 0 | M63: =IF(OR(O62>0,E53<0.5),"Yes","No") -> Yes
C64: Notes: | G64: TSS Removal Efficiency [%] | I64: =+IFERROR(I62/I53*100,0) -> 0
C68: Infiltration Rate Calculator for Filter Media
C70: Filter Media Component | D70: K [ft/day] | E70: Weight | G70: Constructed Filter | H70: Weight | I70: Value
D71: =+IFERROR(VLOOKUP(C71,Data!$A$146:$B$151,2,FALSE),"") ->  | G71: Average Head on the Filter [ft] | H71: =+IF(D71="",0,E71) -> 0
D72: =+IFERROR(VLOOKUP(C72,Data!$A$146:$B$151,2,FALSE),"") ->  | G72: Depth of Filter Media [ft] | H72: =+IF(D72="",0,E72) -> 0
D73: =+IFERROR(VLOOKUP(C73,Data!$A$146:$B$151,2,FALSE),"") ->  | G73: Infiltration Rate [in/hr] | H73: 0 | I73: =+IFERROR(D75*(I71+I72)/2/I72,"") -> 
G74: Retentive BMP | H74: 0
C75: Average Hydraulic Conductivity of Filter Media [ft/day] | D75: =IFERROR(SUMPRODUCT(D71:D74,H71:H74)/SUM(H71:H74),"") ->  | G75: Infiltration Rate [in/hr] | I75: =IFERROR(D75/2,"") -> 
C76: Notes:
B89: =CELL("width",B89) -> 4 | C89: 54 | D89: 15 | E89: 15 | F89: 15 | G89: 15 | I89: =CELL("width",I89) -> 15 | J89: =CELL("width",J89) -> 4 | R89: =+SUM(B89:J89) -> 137
C90: Start of Hidden Cells
C92: Calculation of pervious CN and fraction impervious
E94: Ia factor | F94: 0.2 | H94: =+Data!H20 -> 1-year | I94: =VLOOKUP(H94,Settings!$C$20:$D$24,2,FALSE) -> 2.22 | L94: =+Data!H21 -> 2-year | M94: =VLOOKUP(L94,Settings!$C$20:$D$24,2,FALSE) -> 2.56 | N94: =+Data!H22 -> 10-year | O94: =VLOOKUP(N94,Settings!$C$20:$D$24,2,FALSE) -> 3.77 | P94: =+Data!H23 -> 25-year | Q94: =VLOOKUP(P94,Settings!$C$20:$D$24,2,FALSE) -> 4.66 | R94: =+Data!H24 -> 100-year | S94: =VLOOKUP(R94,Settings!$C$20:$D$24,2,FALSE) -> 6.27
C96: Existing CNs | D96: Area [sqft] | E96: Per. area [sqft] | F96: CN | G96: Ia [in] | H96: SRO [in] | I96: Volume [cft] | L96: SRO [in] | M96: Volume [cft] | N96: SRO [in] | O96: Volume [cft] | P96: SRO [in] | Q96: Volume [cft] | R96: SRO [in] | S96: Volume [cft]
C97: =+IF(C8="","",C8) ->  | D97: =+IF(H8>1,E8*IFERROR(VLOOKUP(F8,Data!$H$33:$I$35,2,FALSE),Data!$I$34),0) -> 0 | E97: =+IF(C97<>Data!$A$4,D97,0) -> 0 | F97: =+G8 ->  | G97: =+IFERROR(IF(F97=0,0,1000/F97-10),0)*$F$94 -> 0 | H97: =+IF((I$94-$G97)<0,0,(I$94-$G97)^2/(I$94+4*$G97)) -> 2.22 | I97: =+$D97*H97/12 -> 0 | L97: =+IF((M$94-$G97)<0,0,(M$94-$G97)^2/(M$94+4*$G97)) -> 2.56 | M97: =+$D97*L97/12 -> 0 | N97: =+IF((O$94-$G97)<0,0,(O$94-$G97)^2/(O$94+4*$G97)) -> 3.77 | O97: =+$D97*N97/12 -> 0 | P97: =+IF((Q$94-$G97)<0,0,(Q$94-$G97)^2/(Q$94+4*$G97)) -> 4.66 | Q97: =+$D97*P97/12 -> 0 | R97: =+IF((S$94-$G97)<0,0,(S$94-$G97)^2/(S$94+4*$G97)) -> 6.27 | S97: =+$D97*R97/12 -> 0
C98: =+IF(C9="","",C9) ->  | D98: =+IF(H9>1,E9*IFERROR(VLOOKUP(F9,Data!$H$33:$I$35,2,FALSE),Data!$I$34),0) -> 0 | E98: =+IF(C98<>Data!$A$4,D98,0) -> 0 | F98: =+G9 ->  | G98: =+IFERROR(IF(F98=0,0,1000/F98-10),0)*$F$94 -> 0 | H98: =+IF((I$94-$G98)<0,0,(I$94-$G98)^2/(I$94+4*$G98)) -> 2.22 | I98: =+$D98*H98/12 -> 0 | L98: 2.56 | M98: =+$D98*L98/12 -> 0 | N98: 3.77 | O98: =+$D98*N98/12 -> 0 | P98: 4.66 | Q98: =+$D98*P98/12 -> 0 | R98: 6.27 | S98: =+$D98*R98/12 -> 0
C99: =+IF(C10="","",C10) ->  | D99: =+IF(H10>1,E10*IFERROR(VLOOKUP(F10,Data!$H$33:$I$35,2,FALSE),Data!$I$34),0) -> 0 | E99: =+IF(C99<>Data!$A$4,D99,0) -> 0 | F99: =+G10 ->  | G99: =+IFERROR(IF(F99=0,0,1000/F99-10),0)*$F$94 -> 0 | H99: =+IF((I$94-$G99)<0,0,(I$94-$G99)^2/(I$94+4*$G99)) -> 2.22 | I99: 0 | L99: 2.56 | M99: 0 | N99: 3.77 | O99: 0 | P99: 4.66 | Q99: 0 | R99: 6.27 | S99: 0
C100: =+IF(C11="","",C11) ->  | D100: =+IF(H11>1,E11*IFERROR(VLOOKUP(F11,Data!$H$33:$I$35,2,FALSE),Data!$I$34),0) -> 0 | E100: =+IF(C100<>Data!$A$4,D100,0) -> 0 | F100: =+G11 ->  | G100: =+IFERROR(IF(F100=0,0,1000/F100-10),0)*$F$94 -> 0 | H100: =+IF((I$94-$G100)<0,0,(I$94-$G100)^2/(I$94+4*$G100)) -> 2.22 | I100: 0 | L100: 2.56 | M100: 0 | N100: 3.77 | O100: 0 | P100: 4.66 | Q100: 0 | R100: 6.27 | S100: 0
C101: =+IF(C12="","",C12) ->  | D101: =+IF(H12>1,E12*IFERROR(VLOOKUP(F12,Data!$H$33:$I$35,2,FALSE),Data!$I$34),0) -> 0 | E101: =+IF(C101<>Data!$A$4,D101,0) -> 0 | F101: =+G12 ->  | G101: =+IFERROR(IF(F101=0,0,1000/F101-10),0)*$F$94 -> 0 | H101: =+IF((I$94-$G101)<0,0,(I$94-$G101)^2/(I$94+4*$G101)) -> 2.22 | I101: 0 | L101: 2.56 | M101: 0 | N101: 3.77 | O101: 0 | P101: 4.66 | Q101: 0 | R101: 6.27 | S101: 0
C102: Totals | D102: =+SUM(D97:D101) -> 0 | E102: =+SUM(E97:E101) -> 0 | F102: =+IF(D102<>0,SUMPRODUCT(D97:D101,F97:F101)/D102,100) -> 100 | G102: =+IFERROR(SUMPRODUCT(D97:D101,G97:G101)/D102,0) -> 0 | I102: =SUM(I97:I101) -> 0 | L102: 2.56 | M102: =SUM(M97:M101) -> 0 | N102: 3.77 | O102: =SUM(O97:O101) -> 0 | P102: 4.66 | Q102: =SUM(Q97:Q101) -> 0 | R102: 6.27 | S102: =SUM(S97:S101) -> 0
C103: Fraction Impervious | D103: =+IF(D102<>0,(D102-E102)/D102,0) -> 0
C105: Developed CN's | D105: Area [sqft] | E105: Perv. Area [sqft] | F105: CN | G105: Ia [in] | H105: SRO [in] | I105: Volume [cft] | L105: SRO [in] | M105: Volume [cft] | N105: SRO [in] | O105: Volume [cft] | P105: SRO [in] | Q105: Volume [cft] | R105: SRO [in] | S105: Volume [cft]
C106: =+IF(C16="","",C16) ->  | D106: =+IF(H16>1,E16*IFERROR(VLOOKUP(F16,Data!$H$33:$I$35,2,FALSE),Data!$I$34),0) -> 0 | E106: =+IF(F106=98,0,D106) -> 0 | F106: =+G16 ->  | G106: =+IFERROR(IF(F106=0,0,1000/F106-10),0)*$F$94 -> 0 | H106: =+IF((I$94-$G106)<0,0,(I$94-$G106)^2/(I$94+4*$G106)) -> 2.22 | I106: =+$D106*H106/12 -> 0 | L106: =+IF((M$94-$G106)<0,0,(M$94-$G106)^2/(M$94+4*$G106)) -> 2.56 | M106: =+$D106*L106/12 -> 0 | N106: =+IF((O$94-$G106)<0,0,(O$94-$G106)^2/(O$94+4*$G106)) -> 3.77 | O106: =+$D106*N106/12 -> 0 | P106: =+IF((Q$94-$G106)<0,0,(Q$94-$G106)^2/(Q$94+4*$G106)) -> 4.66 | Q106: =+$D106*P106/12 -> 0 | R106: =+IF((S$94-$G106)<0,0,(S$94-$G106)^2/(S$94+4*$G106)) -> 6.27 | S106: =+$D106*R106/12 -> 0
D107: =+IF(H17>1,E17*IFERROR(VLOOKUP(F17,Data!$H$33:$I$35,2,FALSE),Data!$I$34),0) -> 0 | E107: =+IF(F107=98,0,D107) -> 0 | G107: 0 | H107: 2.22 | I107: =+$D107*H107/12 -> 0 | L107: 2.56 | M107: =+$D107*L107/12 -> 0 | N107: 3.77 | O107: =+$D107*N107/12 -> 0 | P107: 4.66 | Q107: =+$D107*P107/12 -> 0 | R107: 6.27 | S107: =+$D107*R107/12 -> 0
D108: =+IF(H18>1,E18*IFERROR(VLOOKUP(F18,Data!$H$33:$I$35,2,FALSE),Data!$I$34),0) -> 0 | E108: 0 | G108: 0 | H108: 2.22 | I108: 0 | L108: 2.56 | M108: 0 | N108: 3.77 | O108: 0 | P108: 4.66 | Q108: 0 | R108: 6.27 | S108: 0
D109: =+IF(H19>1,E19*IFERROR(VLOOKUP(F19,Data!$H$33:$I$35,2,FALSE),Data!$I$34),0) -> 0 | E109: 0 | G109: 0 | H109: 2.22 | I109: 0 | L109: 2.56 | M109: 0 | N109: 3.77 | O109: 0 | P109: 4.66 | Q109: 0 | R109: 6.27 | S109: 0
D110: =+IF(H20>1,E20*IFERROR(VLOOKUP(F20,Data!$H$33:$I$35,2,FALSE),Data!$I$34),0) -> 0 | E110: 0 | G110: 0 | H110: 2.22 | I110: 0 | L110: 2.56 | M110: 0 | N110: 3.77 | O110: 0 | P110: 4.66 | Q110: 0 | R110: 6.27 | S110: 0
D111: =+IF(H21>1,E21*IFERROR(VLOOKUP(F21,Data!$H$33:$I$35,2,FALSE),Data!$I$34),0) -> 0 | E111: 0 | G111: 0 | H111: 2.22 | I111: 0 | L111: 2.56 | M111: 0 | N111: 3.77 | O111: 0 | P111: 4.66 | Q111: 0 | R111: 6.27 | S111: 0
C112: Total | D112: =+SUM(D106:D111) -> 0 | E112: =+SUM(E106:E111) -> 0 | F112: =IF(D112<>0,SUMPRODUCT(D106:D111,F106:F111)/D112,"") ->  | G112: =IFERROR(SUMPRODUCT(D106:D111,G106:G111)/D112,0) -> 0 | I112: =SUM(I106:I111) -> 0 | L112: 2.56 | M112: =SUM(M106:M111) -> 0 | N112: 3.77 | O112: =SUM(O106:O111) -> 0 | P112: 4.66 | Q112: =SUM(Q106:Q111) -> 0 | R112: 6.27 | S112: =SUM(S106:S111) -> 0
C113: Fraction Impervious | D113: =+IF(D112<>0,(D112-E112)/D112,0) -> 0
C115: Pre-settlement CN's | D115: HSG | E115: Area [sqft] | F115: SCS CN | G115: Ia [in] | H115: SRO [in] | I115: Volume [cft] | L115: SRO [in] | M115: Volume [cft] | N115: SRO [in] | O115: Volume [cft] | P115: SRO [in] | Q115: Volume [cft] | R115: SRO [in] | S115: Volume [cft]
C116: =IF(C8="","",VLOOKUP(C8,Data!$A$4:$F$21,6,FALSE)) ->  | D116: =IF(D8="","",D8) ->  | E116: =IF(H8<=1,"",E8*IFERROR(VLOOKUP(F8,Data!$H$33:$I$35,2,FALSE),Data!$I$34)) ->  | F116: =IF(H8<2,"",VLOOKUP(C116,Data!$A$4:$E$21,H8,FALSE)) ->  | G116: =+IFERROR(IF(F116=0,0,1000/F116-10),0)*$F$94 -> 0 | H116: =+IF((I$94-$G116)<0,0,(I$94-$G116)^2/(I$94+4*$G116)) -> 2.22 | I116: =+IFERROR($E116*H116/12,0) -> 0 | L116: =+IF((M$94-$G116)<0,0,(M$94-$G116)^2/(M$94+4*$G116)) -> 2.56 | M116: =+IFERROR($E116*L116/12,0) -> 0 | N116: =+IF((O$94-$G116)<0,0,(O$94-$G116)^2/(O$94+4*$G116)) -> 3.77 | O116: =+IFERROR($E116*N116/12,0) -> 0 | P116: =+IF((Q$94-$G116)<0,0,(Q$94-$G116)^2/(Q$94+4*$G116)) -> 4.66 | Q116: =+IFERROR($E116*P116/12,0) -> 0 | R116: =+IF((S$94-$G116)<0,0,(S$94-$G116)^2/(S$94+4*$G116)) -> 6.27 | S116: =+IFERROR($E116*R116/12,0) -> 0
C117: =IF(C9="","",VLOOKUP(C9,Data!$A$4:$F$21,6,FALSE)) ->  | D117: =IF(D9="","",D9) ->  | E117: =IF(H9<=1,"",E9*IFERROR(VLOOKUP(F9,Data!$H$33:$I$35,2,FALSE),Data!$I$34)) ->  | F117: =IF(H9<2,"",VLOOKUP(C117,Data!$A$4:$E$21,H9,FALSE)) ->  | G117: =+IFERROR(IF(F117=0,0,1000/F117-10),0)*$F$94 -> 0 | H117: =+IF((I$94-$G117)<0,0,(I$94-$G117)^2/(I$94+4*$G117)) -> 2.22 | I117: =+IFERROR($E117*H117/12,0) -> 0 | L117: 2.56 | M117: =+IFERROR($E117*L117/12,0) -> 0 | N117: 3.77 | O117: =+IFERROR($E117*N117/12,0) -> 0 | P117: 4.66 | Q117: =+IFERROR($E117*P117/12,0) -> 0 | R117: 6.27 | S117: =+IFERROR($E117*R117/12,0) -> 0
C118: =IF(C10="","",VLOOKUP(C10,Data!$A$4:$F$21,6,FALSE)) ->  | D118: =IF(D10="","",D10) ->  | E118: =IF(H10<=1,"",E10*IFERROR(VLOOKUP(F10,Data!$H$33:$I$35,2,FALSE),Data!$I$34)) ->  | F118: =IF(H10<2,"",VLOOKUP(C118,Data!$A$4:$E$21,H10,FALSE)) ->  | G118: =+IFERROR(IF(F118=0,0,1000/F118-10),0)*$F$94 -> 0 | H118: =+IF((I$94-$G118)<0,0,(I$94-$G118)^2/(I$94+4*$G118)) -> 2.22 | I118: 0 | L118: 2.56 | M118: 0 | N118: 3.77 | O118: 0 | P118: 4.66 | Q118: 0 | R118: 6.27 | S118: 0
C119: =IF(C11="","",VLOOKUP(C11,Data!$A$4:$F$21,6,FALSE)) ->  | D119: =IF(D11="","",D11) ->  | E119: =IF(H11<=1,"",E11*IFERROR(VLOOKUP(F11,Data!$H$33:$I$35,2,FALSE),Data!$I$34)) ->  | F119: =IF(H11<2,"",VLOOKUP(C119,Data!$A$4:$E$21,H11,FALSE)) ->  | G119: =+IFERROR(IF(F119=0,0,1000/F119-10),0)*$F$94 -> 0 | H119: =+IF((I$94-$G119)<0,0,(I$94-$G119)^2/(I$94+4*$G119)) -> 2.22 | I119: 0 | L119: 2.56 | M119: 0 | N119: 3.77 | O119: 0 | P119: 4.66 | Q119: 0 | R119: 6.27 | S119: 0
C120: =IF(C12="","",VLOOKUP(C12,Data!$A$4:$F$21,6,FALSE)) ->  | D120: =IF(D12="","",D12) ->  | E120: =IF(H12<=1,"",E12*IFERROR(VLOOKUP(F12,Data!$H$33:$I$35,2,FALSE),Data!$I$34)) ->  | F120: =IF(H12<2,"",VLOOKUP(C120,Data!$A$4:$E$21,H12,FALSE)) ->  | G120: =+IFERROR(IF(F120=0,0,1000/F120-10),0)*$F$94 -> 0 | H120: =+IF((I$94-$G120)<0,0,(I$94-$G120)^2/(I$94+4*$G120)) -> 2.22 | I120: 0 | L120: 2.56 | M120: 0 | N120: 3.77 | O120: 0 | P120: 4.66 | Q120: 0 | R120: 6.27 | S120: 0
D121: Totals | E121: =+SUM(E116:E120) -> 0 | F121: =+IF(E121<>0,SUMPRODUCT(E116:E120,F116:F120)/E121,100) -> 100 | G121: =IFERROR(SUMPRODUCT(E116:E120,G116:G120)/E121,0) -> 0 | I121: =SUM(I116:I120) -> 0 | L121: 2.56 | M121: =SUM(M116:M120) -> 0 | N121: 3.77 | O121: =SUM(O116:O120) -> 0 | P121: 4.66 | Q121: =SUM(Q116:Q120) -> 0 | R121: 6.27 | S121: =SUM(S116:S120) -> 0
D122: Fraction Imperv | E122: 0
C124: Calculation of 2-year runoff volume for Channel Protection
D126: Developed | E126: Pre-settlement | F126: Existing
C127: Drainage area [sqft] | D127: =+D112 -> 0 | E127: =+E121 -> 0 | F127: =+D102 -> 0
C128: Volume (cft) = | D128: =+M112 -> 0 | E128: =+M121 -> 0 | F128: =+M102 -> 0
C129: Runoff Depth [in] | D129: =+IFERROR(D128/D127*12,0) -> 0 | E129: =+IFERROR(E128/E127*12,0) -> 0 | F129: 0
C131: Structural BMP volumes
C133: BMP | D133: Area [sqft] | E133: Volume [cft] | F133: Infiltration rate [in/hr] | G133: Infiltrating volume [cft] | H133: Total volume [cft] | I133: Drain Time [hr] | R133: Infiltration Time [hr] | S133: Infiltration rate [cf/hr]
C134: =+IF(C37=0,Data!$A$84,C37) -> NoneSelected | D134: =+MAX(0,D37) -> 0 | E134: =+MAX(0,E37*VLOOKUP($C134,Data!$A$71:$C$84,2,FALSE)) -> 0 | F134: =+MAX(0,F37*VLOOKUP($C134,Data!$A$71:$C$84,3,FALSE)) -> 0 | G134: =+IF(OR(I134="N.A.",I134=""),0,IFERROR(R134*S134,0)) -> 0 | H134: =+G134+E134 -> 0 | I134: =+IF(IFERROR(VLOOKUP(C134,Data!$A$71:$C$84,3,FALSE),0)=0,"N.A.",IFERROR(E134/D134/F134*12,"")) -> N.A. | R134: =IFERROR(2+MIN(72,I134)*(0.222-0.553*LOG(MIN(72,I134)/72)),0) -> 17.984 | S134: =+D134*F134/12 -> 0
C135: =+IF(C38=0,Data!$A$84,C38) -> NoneSelected | D135: =+MAX(0,D38) -> 0 | E135: =+MAX(0,E38*VLOOKUP($C135,Data!$A$71:$C$84,2,FALSE)) -> 0 | F135: =+MAX(0,F38*VLOOKUP($C135,Data!$A$71:$C$84,3,FALSE)) -> 0 | G135: =+IF(OR(I135="N.A.",I135=""),0,IFERROR(R135*S135,0)) -> 0 | H135: =+G135+E135 -> 0 | I135: =+IF(IFERROR(VLOOKUP(C135,Data!$A$71:$C$84,3,FALSE),0)=0,"N.A.",IFERROR(E135/D135/F135*12,"")) -> N.A. | R135: =IFERROR(2+MIN(72,I135)*(0.222-0.553*LOG(MIN(72,I135)/72)),0) -> 17.984 | S135: =+D135*F135/12 -> 0
C136: =+IF(C39=0,Data!$A$84,C39) -> NoneSelected | D136: =+MAX(0,D39) -> 0 | E136: =+MAX(0,E39*VLOOKUP($C136,Data!$A$71:$C$84,2,FALSE)) -> 0 | F136: =+MAX(0,F39*VLOOKUP($C136,Data!$A$71:$C$84,3,FALSE)) -> 0 | G136: 0 | H136: 0 | I136: =+IF(IFERROR(VLOOKUP(C136,Data!$A$71:$C$84,3,FALSE),0)=0,"N.A.",IFERROR(E136/D136/F136*12,"")) -> N.A. | R136: 17.984 | S136: 0
C137: =+IF(C40=0,Data!$A$84,C40) -> NoneSelected | D137: =+MAX(0,D40) -> 0 | E137: =+MAX(0,E40*VLOOKUP($C137,Data!$A$71:$C$84,2,FALSE)) -> 0 | F137: =+MAX(0,F40*VLOOKUP($C137,Data!$A$71:$C$84,3,FALSE)) -> 0 | G137: 0 | H137: 0 | I137: =+IF(IFERROR(VLOOKUP(C137,Data!$A$71:$C$84,3,FALSE),0)=0,"N.A.",IFERROR(E137/D137/F137*12,"")) -> N.A. | R137: 17.984 | S137: 0
E138: =SUM(E134:E137) -> 0 | F138: Sum of all BMPs | G138: =SUM(G134:G137) -> 0 | H138: =SUM(H134:H137) -> 0
G139: 2-year runoff volume for sub-catchment | H139: =+D128 -> 0
G140: Unmet Channel Protection Volume from upstream subcatchments | H140: =+E186 -> 0
G141: Sum of 2-year runoff volume and unmet upstream volumes | H141: =+H140+H139 -> 0
C143: Maximum retained volume for all events
C145: Event | D145: =+Data!$H$20 -> 1-year | E145: =+Data!$H$21 -> 2-year | F145: =+Data!$H$22 -> 10-year | G145: =+Data!$H$23 -> 25-year | H145: =+Data!$H$24 -> 100-year
C146: Drainage area [sqft] | D146: =+$D112 -> 0 | E146: =+$D112 -> 0 | F146: =+$D112 -> 0 | G146: =+$D112 -> 0 | H146: =+$D112 -> 0
C147: Total Runoff, Q (in) = | D147: =+IFERROR(D148/D146*12,0) -> 0 | E147: =+IFERROR(E148/E146*12,0) -> 0 | F147: =+IFERROR(F148/F146*12,0) -> 0 | G147: =+IFERROR(G148/G146*12,0) -> 0 | H147: =+IFERROR(H148/H146*12,0) -> 0
C148: Runoff Volume (cft) = | D148: =+I112 -> 0 | E148: =+M112 -> 0 | F148: =O112 -> 0 | G148: =Q112 -> 0 | H148: =S112 -> 0
C149: Excess runoff volume upstream subcatchments (cft) | D149: =+E201 -> 0 | E149: =+F201 -> 0 | F149: 0 | G149: 0 | H149: 0
C150: Total Runoff to retentive BMP (cft) | D150: =+D149+D148 -> 0 | E150: =+E149+E148 -> 0 | F150: 0 | G150: 0 | H150: 0
C151: Volume retained in subcatchment [cft] | D151: =+MIN($H$138,D150) -> 0 | E151: =+MIN($H$138,E150) -> 0 | F151: 0 | G151: 0 | H151: 0
C152: Volume released from subcatchment [cft] | D152: =+D150-D151 -> 0 | E152: =+E150-E151 -> 0 | F152: 0 | G152: 0 | H152: 0
C154: Volume credited for detention flood control
C155: =+Data!H97 -> Volume Retained | D155: =+D151 -> 0 | E155: =+E151 -> 0 | F155: 0 | G155: 0 | H155: 0
C156: =+Data!H98 -> Storage Volume | D156: =+MIN(D150,$E$138) -> 0 | E156: =+MIN(E150,$E$138) -> 0 | F156: 0 | G156: 0 | H156: 0
C157: =+Data!H99 -> Storage Volume 2yr | D157: =+MIN(D156,$E$34) -> 0 | E157: =+MIN(E156,$E$34) -> 0 | F157: 0 | G157: 0 | H157: 0
C158: =+Data!H100 -> None | D158: 0 | E158: 0 | F158: 0 | G158: 0 | H158: 0
C159: ='Flood Control'!D24 -> None | D159: =VLOOKUP($C$159,$C$155:$H$158,D160,FALSE) -> 0 | E159: =VLOOKUP($C$159,$C$155:$H$158,E160,FALSE) -> 0 | F159: 0 | G159: 0 | H159: 0
D160: 2 | E160: 3 | F160: 4 | G160: 5 | H160: 6
C162: Areas for water quality volume
C163: Land use | D163: HSG | E163: DP Area [sqft] | F163: HSG = A | G163: HSG = B | H163: HSG = C or D | I163: Imp Area [sqft]
C164: =+IF(C16="","",C16) ->  | E164: =D106*IFERROR(VLOOKUP(C164,Data!$A$102:$B$105,2,FALSE),0) -> 0 | F164: =IF(D164="A",E164,0) -> 0 | G164: =IF(D164="B",E164,0) -> 0 | H164: =IF(OR(D164="C",D164="D"),E164,0) -> 0 | I164: =+D106*IFERROR(VLOOKUP(C164,Data!$A$95:$B$98,2,FALSE),0) -> 0
E165: =D107*IFERROR(VLOOKUP(C165,Data!$A$102:$B$105,2,FALSE),0) -> 0 | F165: =IF(D165="A",E165,0) -> 0 | G165: =IF(D165="B",E165,0) -> 0 | H165: 0 | I165: =+D107*IFERROR(VLOOKUP(C165,Data!$A$95:$B$98,2,FALSE),0) -> 0
E166: =D108*IFERROR(VLOOKUP(C166,Data!$A$102:$B$105,2,FALSE),0) -> 0 | F166: =IF(D166="A",E166,0) -> 0 | G166: =IF(D166="B",E166,0) -> 0 | H166: 0 | I166: =+D108*IFERROR(VLOOKUP(C166,Data!$A$95:$B$98,2,FALSE),0) -> 0
E167: =D109*IFERROR(VLOOKUP(C167,Data!$A$102:$B$105,2,FALSE),0) -> 0 | F167: 0 | G167: 0 | H167: 0 | I167: =+D109*IFERROR(VLOOKUP(C167,Data!$A$95:$B$98,2,FALSE),0) -> 0
E168: =D110*IFERROR(VLOOKUP(C168,Data!$A$102:$B$105,2,FALSE),0) -> 0 | F168: 0 | G168: 0 | H168: 0 | I168: =+D110*IFERROR(VLOOKUP(C168,Data!$A$95:$B$98,2,FALSE),0) -> 0
E169: =D111*IFERROR(VLOOKUP(C169,Data!$A$102:$B$105,2,FALSE),0) -> 0 | F169: 0 | G169: 0 | H169: 0 | I169: =+D111*IFERROR(VLOOKUP(C169,Data!$A$95:$B$98,2,FALSE),0) -> 0
E170: Total [sqft] | F170: =SUM(F164:F169) -> 0 | G170: =SUM(G164:G169) -> 0 | H170: =SUM(H164:H169) -> 0 | I170: =SUM(I164:I169) -> 0
E171: Total [ac] | F171: =+F170/43560 -> 0 | G171: =+G170/43560 -> 0 | H171: =+H170/43560 -> 0 | I171: =+I170/43560 -> 0
C174: Quantities from upstream sub-catchments
C175: Sub-catchment | D175: Upstream | E175: Unmet CPV [cft] | F175: Released WQV [cft] | G175: Released TSS
C176: Sub1 | D176: =+IFERROR(IF($M$5=VLOOKUP(C176,Summary!$C$52:$E$61,3,FALSE),"Y","N"),"N") -> N | E176: =+IF($D176="Y",IFERROR(VLOOKUP($C176,Summary!$C$87:$I$96,7,FALSE),0),0) -> 0 | F176: =+IF($D176="Y",IFERROR(VLOOKUP($C176,Summary!$C$109:$J$118,5,FALSE),0),0) -> 0 | G176: =+IF($D176="Y",IFERROR(VLOOKUP($C176,Summary!$C$109:$K$118,9,FALSE),0),0) -> 0
C177: Sub2 | D177: =+IFERROR(IF($M$5=VLOOKUP(C177,Summary!$C$52:$E$61,3,FALSE),"Y","N"),"N") -> N | E177: =+IF(D177="Y",IFERROR(VLOOKUP(C177,Summary!$C$87:$I$96,7,FALSE),0),0) -> 0 | F177: =+IF($D177="Y",IFERROR(VLOOKUP($C177,Summary!$C$109:$J$118,5,FALSE),0),0) -> 0 | G177: =+IF($D177="Y",IFERROR(VLOOKUP($C177,Summary!$C$109:$K$118,9,FALSE),0),0) -> 0
C178: Sub3 | D178: =+IFERROR(IF($M$5=VLOOKUP(C178,Summary!$C$52:$E$61,3,FALSE),"Y","N"),"N") -> N | E178: =+IF(D178="Y",IFERROR(VLOOKUP(C178,Summary!$C$87:$I$96,7,FALSE),0),0) -> 0 | F178: =+IF($D178="Y",IFERROR(VLOOKUP($C178,Summary!$C$109:$J$118,5,FALSE),0),0) -> 0 | G178: =+IF($D178="Y",IFERROR(VLOOKUP($C178,Summary!$C$109:$K$118,9,FALSE),0),0) -> 0
C179: Sub4 | D179: =+IFERROR(IF($M$5=VLOOKUP(C179,Summary!$C$52:$E$61,3,FALSE),"Y","N"),"N") -> N | E179: =+IF(D179="Y",IFERROR(VLOOKUP(C179,Summary!$C$87:$I$96,7,FALSE),0),0) -> 0 | F179: =+IF($D179="Y",IFERROR(VLOOKUP($C179,Summary!$C$109:$J$118,5,FALSE),0),0) -> 0 | G179: =+IF($D179="Y",IFERROR(VLOOKUP($C179,Summary!$C$109:$K$118,9,FALSE),0),0) -> 0
C180: Sub5 | D180: =+IFERROR(IF($M$5=VLOOKUP(C180,Summary!$C$52:$E$61,3,FALSE),"Y","N"),"N") -> N | E180: =+IF(D180="Y",IFERROR(VLOOKUP(C180,Summary!$C$87:$I$96,7,FALSE),0),0) -> 0 | F180: =+IF($D180="Y",IFERROR(VLOOKUP($C180,Summary!$C$109:$J$118,5,FALSE),0),0) -> 0 | G180: =+IF($D180="Y",IFERROR(VLOOKUP($C180,Summary!$C$109:$K$118,9,FALSE),0),0) -> 0
C181: Sub6 | D181: =+IFERROR(IF($M$5=VLOOKUP(C181,Summary!$C$52:$E$61,3,FALSE),"Y","N"),"N") -> N | E181: =+IF(D181="Y",IFERROR(VLOOKUP(C181,Summary!$C$87:$I$96,7,FALSE),0),0) -> 0 | F181: =+IF($D181="Y",IFERROR(VLOOKUP($C181,Summary!$C$109:$J$118,5,FALSE),0),0) -> 0 | G181: =+IF($D181="Y",IFERROR(VLOOKUP($C181,Summary!$C$109:$K$118,9,FALSE),0),0) -> 0
C182: Sub7 | D182: =+IFERROR(IF($M$5=VLOOKUP(C182,Summary!$C$52:$E$61,3,FALSE),"Y","N"),"N") -> N | E182: =+IF(D182="Y",IFERROR(VLOOKUP(C182,Summary!$C$87:$I$96,7,FALSE),0),0) -> 0 | F182: =+IF($D182="Y",IFERROR(VLOOKUP($C182,Summary!$C$109:$J$118,5,FALSE),0),0) -> 0 | G182: =+IF($D182="Y",IFERROR(VLOOKUP($C182,Summary!$C$109:$K$118,9,FALSE),0),0) -> 0
C183: Sub8 | D183: =+IFERROR(IF($M$5=VLOOKUP(C183,Summary!$C$52:$E$61,3,FALSE),"Y","N"),"N") -> N | E183: =+IF(D183="Y",IFERROR(VLOOKUP(C183,Summary!$C$87:$I$96,7,FALSE),0),0) -> 0 | F183: =+IF($D183="Y",IFERROR(VLOOKUP($C183,Summary!$C$109:$J$118,5,FALSE),0),0) -> 0 | G183: =+IF($D183="Y",IFERROR(VLOOKUP($C183,Summary!$C$109:$K$118,9,FALSE),0),0) -> 0
C184: Sub9 | D184: =+IFERROR(IF($M$5=VLOOKUP(C184,Summary!$C$52:$E$61,3,FALSE),"Y","N"),"N") -> N | E184: =+IF(D184="Y",IFERROR(VLOOKUP(C184,Summary!$C$87:$I$96,7,FALSE),0),0) -> 0 | F184: =+IF($D184="Y",IFERROR(VLOOKUP($C184,Summary!$C$109:$J$118,5,FALSE),0),0) -> 0 | G184: =+IF($D184="Y",IFERROR(VLOOKUP($C184,Summary!$C$109:$K$118,9,FALSE),0),0) -> 0
C185: Sub10 | D185: =+IFERROR(IF($M$5=VLOOKUP(C185,Summary!$C$52:$E$61,3,FALSE),"Y","N"),"N") -> N | E185: =+IF(D185="Y",IFERROR(VLOOKUP(C185,Summary!$C$87:$I$96,7,FALSE),0),0) -> 0 | F185: =+IF($D185="Y",IFERROR(VLOOKUP($C185,Summary!$C$109:$J$118,5,FALSE),0),0) -> 0 | G185: =+IF($D185="Y",IFERROR(VLOOKUP($C185,Summary!$C$109:$K$118,9,FALSE),0),0) -> 0
E186: =+SUM(E176:E185) -> 0 | F186: =+SUM(F176:F185) -> 0 | G186: =+SUM(G176:G185) -> 0
C189: Flood control Carry over | M189: =ROW(D152) -> 152 | N189: =ROW(E152) -> 152 | O189: =ROW(F152) -> 152 | P189: =ROW(G152) -> 152 | Q189: =ROW(H152) -> 152
C190: Sub-catchment | D190: Upstream | E190: =+Data!$H$20 -> 1-year | F190: =+Data!$H$21 -> 2-year | G190: =+Data!$H$22 -> 10-year | H190: =+Data!$H$23 -> 25-year | I190: =+Data!$H$24 -> 100-year | M190: =COLUMN(D152) -> 4 | N190: =COLUMN(E152) -> 5 | O190: =COLUMN(F152) -> 6 | P190: =COLUMN(G152) -> 7 | Q190: =COLUMN(H152) -> 8
C191: Sub1 | D191: =+IFERROR(IF($M$5=VLOOKUP(C191,Summary!$C$52:$E$61,3,FALSE),"Y","N"),"N") -> N | E191: =IF($D191="N",0,OFFSET(INDIRECT(CONCATENATE($C191,"!a1")),M$189-1,M$190-1)) -> 0 | F191: =IF($D191="N",0,OFFSET(INDIRECT(CONCATENATE($C191,"!a1")),N$189-1,N$190-1)) -> 0 | G191: 0 | H191: 0 | I191: 0
C192: Sub2 | D192: =+IFERROR(IF($M$5=VLOOKUP(C192,Summary!$C$52:$E$61,3,FALSE),"Y","N"),"N") -> N | E192: =IF($D192="N",0,OFFSET(INDIRECT(CONCATENATE($C192,"!a1")),M$189-1,M$190-1)) -> 0 | F192: 0 | G192: 0 | H192: 0 | I192: 0
C193: Sub3 | D193: =+IFERROR(IF($M$5=VLOOKUP(C193,Summary!$C$52:$E$61,3,FALSE),"Y","N"),"N") -> N | E193: 0 | F193: 0 | G193: 0 | H193: 0 | I193: 0
C194: Sub4 | D194: =+IFERROR(IF($M$5=VLOOKUP(C194,Summary!$C$52:$E$61,3,FALSE),"Y","N"),"N") -> N | E194: 0 | F194: 0 | G194: 0 | H194: 0 | I194: 0
C195: Sub5 | D195: =+IFERROR(IF($M$5=VLOOKUP(C195,Summary!$C$52:$E$61,3,FALSE),"Y","N"),"N") -> N | E195: 0 | F195: 0 | G195: 0 | H195: 0 | I195: 0
C196: Sub6 | D196: =+IFERROR(IF($M$5=VLOOKUP(C196,Summary!$C$52:$E$61,3,FALSE),"Y","N"),"N") -> N | E196: 0 | F196: 0 | G196: 0 | H196: 0 | I196: 0
C197: Sub7 | D197: =+IFERROR(IF($M$5=VLOOKUP(C197,Summary!$C$52:$E$61,3,FALSE),"Y","N"),"N") -> N | E197: 0 | F197: 0 | G197: 0 | H197: 0 | I197: 0
C198: Sub8 | D198: =+IFERROR(IF($M$5=VLOOKUP(C198,Summary!$C$52:$E$61,3,FALSE),"Y","N"),"N") -> N | E198: 0 | F198: 0 | G198: 0 | H198: 0 | I198: 0
C199: Sub9 | D199: =+IFERROR(IF($M$5=VLOOKUP(C199,Summary!$C$52:$E$61,3,FALSE),"Y","N"),"N") -> N | E199: 0 | F199: 0 | G199: 0 | H199: 0 | I199: 0
C200: Sub10 | D200: =+IFERROR(IF($M$5=VLOOKUP(C200,Summary!$C$52:$E$61,3,FALSE),"Y","N"),"N") -> N | E200: 0 | F200: 0 | G200: 0 | H200: 0 | I200: 0
C201: Total | E201: =SUM(E191:E200) -> 0 | F201: =SUM(F191:F200) -> 0 | G201: 0 | H201: 0 | I201: 0

Sheet Sub3
C2: =" " & Data!$H$2 &CHAR(10) & " " & Settings!$D$5 -> LGROW Design Spreadsheet City of Ferrysburg
B4: =CONCATENATE(M5,": ") -> Sub3: | D4: =+IFERROR(IF(VLOOKUP(M5,Summary!$C$52:$L$61,4,FALSE)=0,"",VLOOKUP(M5,Summary!$C$52:$L$61,4,FALSE)),N4) -> This subcatchment is not defined on the Summary tab. | M4: Text | N4: This subcatchment is not defined on the Summary tab.
C5: Runoff | M5: =MID(CELL("filename",A1),FIND("]",CELL("filename",A1))+1,255) -> Sub3 | N5: Sheet name
G6: Curve Number | M6: =RIGHT(M5,1) -> 3 | N6: Subcatchment number
C7: Existing Land Use | D7: HSG | E7: Area | F7: Units | G7: Existing | I7: Pre-settlement
G8: =IF(H8<2,"",VLOOKUP(C8,Data!$A$4:$E$21,H8,FALSE)) ->  | H8: =IF(AND(C8="",D8=""),0,IF(AND(C8<>"",D8<>""),HLOOKUP(D8,Data!$B$2:$E$3,2),1)) -> 0 | I8: =+F116 -> 
G9: =IF(H9<2,"",VLOOKUP(C9,Data!$A$4:$E$21,H9,FALSE)) ->  | H9: =IF(AND(C9="",D9=""),0,IF(AND(C9<>"",D9<>""),HLOOKUP(D9,Data!$B$2:$E$3,2),1)) -> 0
G10: =IF(H10<2,"",VLOOKUP(C10,Data!$A$4:$E$21,H10,FALSE)) ->  | H10: =IF(AND(C10="",D10=""),0,IF(AND(C10<>"",D10<>""),HLOOKUP(D10,Data!$B$2:$E$3,2),1)) -> 0
G11: =IF(H11<2,"",VLOOKUP(C11,Data!$A$4:$E$21,H11,FALSE)) ->  | H11: =IF(AND(C11="",D11=""),0,IF(AND(C11<>"",D11<>""),HLOOKUP(D11,Data!$B$2:$E$3,2),1)) -> 0
G12: =IF(H12<2,"",VLOOKUP(C12,Data!$A$4:$E$21,H12,FALSE)) ->  | H12: =IF(AND(C12="",D12=""),0,IF(AND(C12<>"",D12<>""),HLOOKUP(D12,Data!$B$2:$E$3,2),1)) -> 0
E13: =+D102/43560 -> 0 | F13: acre | G13: =+IF(F102=100,"",F102) ->  | I13: =+IF(F121=100,"",F121) -> 
C15: Developed Land Use | D15: HSG | E15: Area | F15: Units | G15: Curve Number | I15: Notes
G16: =IF(H16<2,"",VLOOKUP(C16,Data!$A$28:$E$67,H16,FALSE)) ->  | H16: =+IF(AND(C16="",D16=""),0,IF(AND(C16<>"",D16<>""),HLOOKUP(D16,Data!$B$2:$E$3,2),1)) -> 0
G17: =IF(H17<2,"",VLOOKUP(C17,Data!$A$28:$E$67,H17,FALSE)) ->  | H17: =+IF(AND(C17="",D17=""),0,IF(AND(C17<>"",D17<>""),HLOOKUP(D17,Data!$B$2:$E$3,2),1)) -> 0
G18: =IF(H18<2,"",VLOOKUP(C18,Data!$A$28:$E$67,H18,FALSE)) ->  | H18: =+IF(AND(C18="",D18=""),0,IF(AND(C18<>"",D18<>""),HLOOKUP(D18,Data!$B$2:$E$3,2),1)) -> 0
G19: =IF(H19<2,"",VLOOKUP(C19,Data!$A$28:$E$67,H19,FALSE)) ->  | H19: =+IF(AND(C19="",D19=""),0,IF(AND(C19<>"",D19<>""),HLOOKUP(D19,Data!$B$2:$E$3,2),1)) -> 0
G20: =IF(H20<2,"",VLOOKUP(C20,Data!$A$28:$E$67,H20,FALSE)) ->  | H20: =+IF(AND(C20="",D20=""),0,IF(AND(C20<>"",D20<>""),HLOOKUP(D20,Data!$B$2:$E$3,2),1)) -> 0
G21: =IF(H21<2,"",VLOOKUP(C21,Data!$A$28:$E$67,H21,FALSE)) ->  | H21: =+IF(AND(C21="",D21=""),0,IF(AND(C21<>"",D21<>""),HLOOKUP(D21,Data!$B$2:$E$3,2),1)) -> 0
C22: Notes: | D22: =IF(H22=1,"≠ Existing →","") ->  | E22: =+D112/43560 -> 0 | F22: acre | G22: =+IF(F112=100,"",F112) ->  | H22: =IF(AND(E13=0,E22=0),0,IF(ABS(E22-E13)/MAX(E22,E13)>0.01,1,0)) -> 0
C24: Subcatchment Runoff Volume for Developed Land Use
C25: Rainfall Frequency | D25: =+Data!$H$20 -> 1-year | E25: =+Data!$H$21 -> 2-year | F25: =+Data!$H$22 -> 10-year | G25: =+Data!$H$23 -> 25-year | I25: =+Data!$H$24 -> 100-year
C26: Volume from this Subcatchment [cft] | D26: =D148 -> 0 | E26: =E148 -> 0 | F26: 0 | G26: 0 | I26: =+H148 -> 0
C29: Channel Protection Volume
C30: Required Channel Protection Volume | F30: 2-year Runoff Volumes [cft]
D31: Is Channel Protection Volume required? If no, provide reason. | E31: Yes | F31: Developed | G31: Pre-developed
D32: Required this Subcatchment [cft] | E32: =IF(E31=Data!H38,MAX(F32-G32,0),0) -> 0 | F32: =+D128 -> 0 | G32: =+IF(Summary!E41=Data!H9,E128,F128) -> 0
D33: Unmet from Upstream Subcatchments [cft] | E33: =+E186 -> 0
C34: Required Channel Protection Volume [cft] | E34: =+E33+E32 -> 0
C35: Structural BMPs used to meet Channel Protection Volume
C36: Structural BMP | D36: A Infiltration Area [sqft] | E36: V Storage Volume [cft] | F36: i Design Infiltration Rate [in/hr] | G36: Drain Time [hr] | I36: Volume Retained [cft]
G37: =+I134 -> N.A. | I37: =+IF(H134<=0,"",H134) -> 
G38: =+I135 -> N.A. | I38: =+IF(H135<=0,"",H135) -> 
G39: N.A.
G40: =+I137 -> N.A. | I40: =+IF(H137<=0,"",H137) -> 
C41: Totals | E41: =+SUM(E37:E40) -> 0 | I41: =+H138 -> 0
G42: Credited Channel Protection Volume | I42: =MIN(H138,H141,E34) -> 0
C43: Notes: | G43: Percentage of Channel Protection Volume Met by Retention | I43: =+IFERROR(IF(E32>0,MIN(1,I42/E34),1),"") -> 1
C47: Water Quality Volume
F48: =+Data!$A$89 -> Paved [ac] | G48: =+Data!$A$88 -> Pitched Roofs [ac] | I48: =+Data!$A$87 -> Flat Roofs/Unpaved [ac] | L48: Paved | M48: Pitched | O48: Flat
D49: Sum of Directly Connected Impervious Area [ac] | E49: =+I171 -> 0 | F49: =+E49-I49-G49 -> 0 | H49: =+IF(OR(F49<0,F49>E49),1,0) -> 0 | L49: =+F49/12*VLOOKUP(F48,WaterQualityFactors,2,FALSE) -> 0 | M49: =+G49/12*VLOOKUP(G48,WaterQualityFactors,2,FALSE) -> 0 | O49: =+I49/12*VLOOKUP(I48,WaterQualityFactors,2,FALSE) -> 0
D50: Sum of Directly Connected Disturbed Pervious Area [ac] | E50: =SUM(L51,M51,N51) -> 0 | G50: =+IF(OR(G49<0,G49>E$49,H$49=1),"Invalid Entry","") ->  | H50: =+SUM(O49,M49,L49,L52,M52,N52) -> 0 | I50: =+IF(OR(I49<0,I49>E$49,H$49=1),"Invalid Entry","") ->  | L50: =+Data!$A$90 -> Sandy Soils (HSG A) [ac] | M50: =+Data!$A$91 -> Silty Soils (HSG B) [ac] | N50: =+Data!$A$92 -> Clayey Soils (HSG C&D) [ac]
D51: Required Volume this Subcatchment [cft] | E51: =43560*H50 -> 0 | G51: TSS Generated this Subcatchment | I51: =+E51 -> 0 | L51: =+F171 -> 0 | M51: =+G171 -> 0 | N51: =H171 -> 0
D52: Volume from Upstream Subcatchments [cft] | E52: =+F186 -> 0 | G52: TSS from Upstream Subcatchments | I52: =+G186 -> 0 | L52: =+L51/12*VLOOKUP(L50,WaterQualityFactors,2,FALSE) -> 0 | M52: =+M51/12*VLOOKUP(M50,WaterQualityFactors,2,FALSE) -> 0 | N52: =+N51/12*VLOOKUP(N50,WaterQualityFactors,2,FALSE) -> 0
C53: Water Quality Volume to be Treated [cft] | E53: =+E52+E51 -> 0 | F53: TSS to be Treated | I53: =+I51+I52 -> 0
C54: TSS Accounting
C55: BMPs Used in Treatment Train | D55: Treated Water Volume [cft] | E55: TSS Removal Efficiency | I55: TSS Removed
E56: Tabulated | F56: Third-Party | G56: Effective | H56: TSS in stream | M56: Released water Volume | P56: Need 3rd party value
E57: =+IF(C57="","",IF(P57=Data!$H$38,"--",VLOOKUP(C57,Data!$A$109:$B$143,2,FALSE))) ->  | G57: =+IF(C57="","",IF(P57=Data!$H$38,F57,VLOOKUP(C57,Data!$A$109:$B$143,2,FALSE))*MIN(1,IFERROR(D57/L57,0))) ->  | H57: =+I53-I57 -> 0 | I57: =+IFERROR(I53*G57/100,0) -> 0 | L57: =+$E$53 -> 0 | M57: =+IF(D57="","",IFERROR(MIN(IF(VLOOKUP(C57,Data!$A$109:$C$143,3,FALSE)=Data!$C$112,L57,MAX(0,L57-D57)),$E$53),"")) ->  | N57: =IFERROR(1/ISNUMBER(M57),"") ->  | O57: =+IF(D57*1.01>L57,1,0) -> 0 | P57: =+IF(C57="","",IF(VLOOKUP(C57,Data!$A$109:$B$143,2,FALSE)="",Data!$H$38,Data!$H$39)) -> 
E58: =+IF(C58="","",IF(P58=Data!$H$38,"--",VLOOKUP(C58,Data!$A$109:$B$143,2,FALSE))) ->  | G58: =+IF(C58="","",IF(P58=Data!$H$38,F58,VLOOKUP(C58,Data!$A$109:$B$143,2,FALSE))*MIN(1,IFERROR(D58/L58,0))) ->  | H58: =+H57-I58 -> 0 | I58: =+IFERROR(H57*G58/100,0) -> 0 | L58: =MIN(L57:M57) -> 0 | M58: =+IF(D58="","",IFERROR(MIN(IF(VLOOKUP(C58,Data!$A$109:$C$143,3,FALSE)=Data!$C$112,L58,MAX(0,L58-D58)),$E$53),"")) ->  | N58: =IFERROR(1/ISNUMBER(M58),"") ->  | O58: =+IF(D58*1.01>L58,1,0) -> 0 | P58: =+IF(C58="","",IF(VLOOKUP(C58,Data!$A$109:$B$143,2,FALSE)="",Data!$H$38,Data!$H$39)) -> 
E59: =+IF(C59="","",IF(P59=Data!$H$38,"--",VLOOKUP(C59,Data!$A$109:$B$143,2,FALSE))) ->  | G59: =+IF(C59="","",IF(P59=Data!$H$38,F59,VLOOKUP(C59,Data!$A$109:$B$143,2,FALSE))*MIN(1,IFERROR(D59/L59,0))) ->  | H59: 0 | I59: =+IFERROR(H58*G59/100,0) -> 0 | L59: =MIN(L58:M58) -> 0 | M59: =+IF(D59="","",IFERROR(MIN(IF(VLOOKUP(C59,Data!$A$109:$C$143,3,FALSE)=Data!$C$112,L59,MAX(0,L59-D59)),$E$53),"")) ->  | O59: =+IF(D59*1.01>L59,1,0) -> 0 | P59: =+IF(C59="","",IF(VLOOKUP(C59,Data!$A$109:$B$143,2,FALSE)="",Data!$H$38,Data!$H$39)) -> 
E60: =+IF(C60="","",IF(P60=Data!$H$38,"--",VLOOKUP(C60,Data!$A$109:$B$143,2,FALSE))) ->  | G60: =+IF(C60="","",IF(P60=Data!$H$38,F60,VLOOKUP(C60,Data!$A$109:$B$143,2,FALSE))*MIN(1,IFERROR(D60/L60,0))) ->  | H60: 0 | I60: 0 | L60: 0 | M60: =+IF(D60="","",IFERROR(MIN(IF(VLOOKUP(C60,Data!$A$109:$C$143,3,FALSE)=Data!$C$112,L60,MAX(0,L60-D60)),$E$53),"")) ->  | O60: 0 | P60: =+IF(C60="","",IF(VLOOKUP(C60,Data!$A$109:$B$143,2,FALSE)="",Data!$H$38,Data!$H$39)) -> 
E61: =+IF(C61="","",IF(P61=Data!$H$38,"--",VLOOKUP(C61,Data!$A$109:$B$143,2,FALSE))) ->  | G61: =+IF(C61="","",IF(P61=Data!$H$38,F61,VLOOKUP(C61,Data!$A$109:$B$143,2,FALSE))*MIN(1,IFERROR(D61/L61,0))) ->  | H61: 0 | I61: 0 | L61: 0 | M61: =+IF(D61="","",IFERROR(MIN(IF(VLOOKUP(C61,Data!$A$109:$C$143,3,FALSE)=Data!$C$112,L61,MAX(0,L61-D61)),$E$53),"")) ->  | O61: 0 | P61: =+IF(C61="","",IF(VLOOKUP(C61,Data!$A$109:$B$143,2,FALSE)="",Data!$H$38,Data!$H$39)) -> 
C62: Released Water Volume [cft] | D62: =+M62 -> 0 | G62: Total TSS Removed | I62: =+SUM(I57:I61) -> 0 | M62: =IFERROR(LOOKUP(2,N57:N61,M57:M61),E53) -> 0 | O62: =SUM(O57:O61) -> 0
C63: Water Quality Volume met? | D63: =+M63 -> Yes | G63: TSS Remaining | I63: =+I53-I62 -> 0 | M63: =IF(OR(O62>0,E53<0.5),"Yes","No") -> Yes
C64: Notes: | G64: TSS Removal Efficiency [%] | I64: =+IFERROR(I62/I53*100,0) -> 0
C68: Infiltration Rate Calculator for Filter Media
C70: Filter Media Component | D70: K [ft/day] | E70: Weight | G70: Constructed Filter | H70: Weight | I70: Value
D71: =+IFERROR(VLOOKUP(C71,Data!$A$146:$B$151,2,FALSE),"") ->  | G71: Average Head on the Filter [ft] | H71: =+IF(D71="",0,E71) -> 0
D72: =+IFERROR(VLOOKUP(C72,Data!$A$146:$B$151,2,FALSE),"") ->  | G72: Depth of Filter Media [ft] | H72: =+IF(D72="",0,E72) -> 0
D73: =+IFERROR(VLOOKUP(C73,Data!$A$146:$B$151,2,FALSE),"") ->  | G73: Infiltration Rate [in/hr] | H73: 0 | I73: =+IFERROR(D75*(I71+I72)/2/I72,"") -> 
G74: Retentive BMP | H74: 0
C75: Average Hydraulic Conductivity of Filter Media [ft/day] | D75: =IFERROR(SUMPRODUCT(D71:D74,H71:H74)/SUM(H71:H74),"") ->  | G75: Infiltration Rate [in/hr] | I75: =IFERROR(D75/2,"") -> 
C76: Notes:
B89: =CELL("width",B89) -> 4 | C89: 54 | D89: 15 | E89: 15 | F89: 15 | G89: 15 | I89: =CELL("width",I89) -> 15 | J89: =CELL("width",J89) -> 4 | R89: =+SUM(B89:J89) -> 137
C90: Start of Hidden Cells
C92: Calculation of pervious CN and fraction impervious
E94: Ia factor | F94: 0.2 | H94: =+Data!H20 -> 1-year | I94: =VLOOKUP(H94,Settings!$C$20:$D$24,2,FALSE) -> 2.22 | L94: =+Data!H21 -> 2-year | M94: =VLOOKUP(L94,Settings!$C$20:$D$24,2,FALSE) -> 2.56 | N94: =+Data!H22 -> 10-year | O94: =VLOOKUP(N94,Settings!$C$20:$D$24,2,FALSE) -> 3.77 | P94: =+Data!H23 -> 25-year | Q94: =VLOOKUP(P94,Settings!$C$20:$D$24,2,FALSE) -> 4.66 | R94: =+Data!H24 -> 100-year | S94: =VLOOKUP(R94,Settings!$C$20:$D$24,2,FALSE) -> 6.27
C96: Existing CNs | D96: Area [sqft] | E96: Per. area [sqft] | F96: CN | G96: Ia [in] | H96: SRO [in] | I96: Volume [cft] | L96: SRO [in] | M96: Volume [cft] | N96: SRO [in] | O96: Volume [cft] | P96: SRO [in] | Q96: Volume [cft] | R96: SRO [in] | S96: Volume [cft]
C97: =+IF(C8="","",C8) ->  | D97: =+IF(H8>1,E8*IFERROR(VLOOKUP(F8,Data!$H$33:$I$35,2,FALSE),Data!$I$34),0) -> 0 | E97: =+IF(C97<>Data!$A$4,D97,0) -> 0 | F97: =+G8 ->  | G97: =+IFERROR(IF(F97=0,0,1000/F97-10),0)*$F$94 -> 0 | H97: =+IF((I$94-$G97)<0,0,(I$94-$G97)^2/(I$94+4*$G97)) -> 2.22 | I97: =+$D97*H97/12 -> 0 | L97: =+IF((M$94-$G97)<0,0,(M$94-$G97)^2/(M$94+4*$G97)) -> 2.56 | M97: =+$D97*L97/12 -> 0 | N97: =+IF((O$94-$G97)<0,0,(O$94-$G97)^2/(O$94+4*$G97)) -> 3.77 | O97: =+$D97*N97/12 -> 0 | P97: =+IF((Q$94-$G97)<0,0,(Q$94-$G97)^2/(Q$94+4*$G97)) -> 4.66 | Q97: =+$D97*P97/12 -> 0 | R97: =+IF((S$94-$G97)<0,0,(S$94-$G97)^2/(S$94+4*$G97)) -> 6.27 | S97: =+$D97*R97/12 -> 0
C98: =+IF(C9="","",C9) ->  | D98: =+IF(H9>1,E9*IFERROR(VLOOKUP(F9,Data!$H$33:$I$35,2,FALSE),Data!$I$34),0) -> 0 | E98: =+IF(C98<>Data!$A$4,D98,0) -> 0 | F98: =+G9 ->  | G98: =+IFERROR(IF(F98=0,0,1000/F98-10),0)*$F$94 -> 0 | H98: =+IF((I$94-$G98)<0,0,(I$94-$G98)^2/(I$94+4*$G98)) -> 2.22 | I98: =+$D98*H98/12 -> 0 | L98: 2.56 | M98: =+$D98*L98/12 -> 0 | N98: 3.77 | O98: =+$D98*N98/12 -> 0 | P98: 4.66 | Q98: =+$D98*P98/12 -> 0 | R98: 6.27 | S98: =+$D98*R98/12 -> 0
C99: =+IF(C10="","",C10) ->  | D99: =+IF(H10>1,E10*IFERROR(VLOOKUP(F10,Data!$H$33:$I$35,2,FALSE),Data!$I$34),0) -> 0 | E99: =+IF(C99<>Data!$A$4,D99,0) -> 0 | F99: =+G10 ->  | G99: =+IFERROR(IF(F99=0,0,1000/F99-10),0)*$F$94 -> 0 | H99: =+IF((I$94-$G99)<0,0,(I$94-$G99)^2/(I$94+4*$G99)) -> 2.22 | I99: 0 | L99: 2.56 | M99: 0 | N99: 3.77 | O99: 0 | P99: 4.66 | Q99: 0 | R99: 6.27 | S99: 0
C100: =+IF(C11="","",C11) ->  | D100: =+IF(H11>1,E11*IFERROR(VLOOKUP(F11,Data!$H$33:$I$35,2,FALSE),Data!$I$34),0) -> 0 | E100: =+IF(C100<>Data!$A$4,D100,0) -> 0 | F100: =+G11 ->  | G100: =+IFERROR(IF(F100=0,0,1000/F100-10),0)*$F$94 -> 0 | H100: =+IF((I$94-$G100)<0,0,(I$94-$G100)^2/(I$94+4*$G100)) -> 2.22 | I100: 0 | L100: 2.56 | M100: 0 | N100: 3.77 | O100: 0 | P100: 4.66 | Q100: 0 | R100: 6.27 | S100: 0
C101: =+IF(C12="","",C12) ->  | D101: =+IF(H12>1,E12*IFERROR(VLOOKUP(F12,Data!$H$33:$I$35,2,FALSE),Data!$I$34),0) -> 0 | E101: =+IF(C101<>Data!$A$4,D101,0) -> 0 | F101: =+G12 ->  | G101: =+IFERROR(IF(F101=0,0,1000/F101-10),0)*$F$94 -> 0 | H101: =+IF((I$94-$G101)<0,0,(I$94-$G101)^2/(I$94+4*$G101)) -> 2.22 | I101: 0 | L101: 2.56 | M101: 0 | N101: 3.77 | O101: 0 | P101: 4.66 | Q101: 0 | R101: 6.27 | S101: 0
C102: Totals | D102: =+SUM(D97:D101) -> 0 | E102: =+SUM(E97:E101) -> 0 | F102: =+IF(D102<>0,SUMPRODUCT(D97:D101,F97:F101)/D102,100) -> 100 | G102: =+IFERROR(SUMPRODUCT(D97:D101,G97:G101)/D102,0) -> 0 | I102: =SUM(I97:I101) -> 0 | L102: 2.56 | M102: =SUM(M97:M101) -> 0 | N102: 3.77 | O102: =SUM(O97:O101) -> 0 | P102: 4.66 | Q102: =SUM(Q97:Q101) -> 0 | R102: 6.27 | S102: =SUM(S97:S101) -> 0
C103: Fraction Impervious | D103: =+IF(D102<>0,(D102-E102)/D102,0) -> 0
C105: Developed CN's | D105: Area [sqft] | E105: Perv. Area [sqft] | F105: CN | G105: Ia [in] | H105: SRO [in] | I105: Volume [cft] | L105: SRO [in] | M105: Volume [cft] | N105: SRO [in] | O105: Volume [cft] | P105: SRO [in] | Q105: Volume [cft] | R105: SRO [in] | S105: Volume [cft]
C106: =+IF(C16="","",C16) ->  | D106: =+IF(H16>1,E16*IFERROR(VLOOKUP(F16,Data!$H$33:$I$35,2,FALSE),Data!$I$34),0) -> 0 | E106: =+IF(F106=98,0,D106) -> 0 | F106: =+G16 ->  | G106: =+IFERROR(IF(F106=0,0,1000/F106-10),0)*$F$94 -> 0 | H106: =+IF((I$94-$G106)<0,0,(I$94-$G106)^2/(I$94+4*$G106)) -> 2.22 | I106: =+$D106*H106/12 -> 0 | L106: =+IF((M$94-$G106)<0,0,(M$94-$G106)^2/(M$94+4*$G106)) -> 2.56 | M106: =+$D106*L106/12 -> 0 | N106: =+IF((O$94-$G106)<0,0,(O$94-$G106)^2/(O$94+4*$G106)) -> 3.77 | O106: =+$D106*N106/12 -> 0 | P106: =+IF((Q$94-$G106)<0,0,(Q$94-$G106)^2/(Q$94+4*$G106)) -> 4.66 | Q106: =+$D106*P106/12 -> 0 | R106: =+IF((S$94-$G106)<0,0,(S$94-$G106)^2/(S$94+4*$G106)) -> 6.27 | S106: =+$D106*R106/12 -> 0
D107: =+IF(H17>1,E17*IFERROR(VLOOKUP(F17,Data!$H$33:$I$35,2,FALSE),Data!$I$34),0) -> 0 | E107: =+IF(F107=98,0,D107) -> 0 | G107: 0 | H107: 2.22 | I107: =+$D107*H107/12 -> 0 | L107: 2.56 | M107: =+$D107*L107/12 -> 0 | N107: 3.77 | O107: =+$D107*N107/12 -> 0 | P107: 4.66 | Q107: =+$D107*P107/12 -> 0 | R107: 6.27 | S107: =+$D107*R107/12 -> 0
D108: =+IF(H18>1,E18*IFERROR(VLOOKUP(F18,Data!$H$33:$I$35,2,FALSE),Data!$I$34),0) -> 0 | E108: 0 | G108: 0 | H108: 2.22 | I108: 0 | L108: 2.56 | M108: 0 | N108: 3.77 | O108: 0 | P108: 4.66 | Q108: 0 | R108: 6.27 | S108: 0
D109: =+IF(H19>1,E19*IFERROR(VLOOKUP(F19,Data!$H$33:$I$35,2,FALSE),Data!$I$34),0) -> 0 | E109: 0 | G109: 0 | H109: 2.22 | I109: 0 | L109: 2.56 | M109: 0 | N109: 3.77 | O109: 0 | P109: 4.66 | Q109: 0 | R109: 6.27 | S109: 0
D110: =+IF(H20>1,E20*IFERROR(VLOOKUP(F20,Data!$H$33:$I$35,2,FALSE),Data!$I$34),0) -> 0 | E110: 0 | G110: 0 | H110: 2.22 | I110: 0 | L110: 2.56 | M110: 0 | N110: 3.77 | O110: 0 | P110: 4.66 | Q110: 0 | R110: 6.27 | S110: 0
D111: =+IF(H21>1,E21*IFERROR(VLOOKUP(F21,Data!$H$33:$I$35,2,FALSE),Data!$I$34),0) -> 0 | E111: 0 | G111: 0 | H111: 2.22 | I111: 0 | L111: 2.56 | M111: 0 | N111: 3.77 | O111: 0 | P111: 4.66 | Q111: 0 | R111: 6.27 | S111: 0
C112: Total | D112: =+SUM(D106:D111) -> 0 | E112: =+SUM(E106:E111) -> 0 | F112: =IF(D112<>0,SUMPRODUCT(D106:D111,F106:F111)/D112,"") ->  | G112: =IFERROR(SUMPRODUCT(D106:D111,G106:G111)/D112,0) -> 0 | I112: =SUM(I106:I111) -> 0 | L112: 2.56 | M112: =SUM(M106:M111) -> 0 | N112: 3.77 | O112: =SUM(O106:O111) -> 0 | P112: 4.66 | Q112: =SUM(Q106:Q111) -> 0 | R112: 6.27 | S112: =SUM(S106:S111) -> 0
C113: Fraction Impervious | D113: =+IF(D112<>0,(D112-E112)/D112,0) -> 0
C115: Pre-settlement CN's | D115: HSG | E115: Area [sqft] | F115: SCS CN | G115: Ia [in] | H115: SRO [in] | I115: Volume [cft] | L115: SRO [in] | M115: Volume [cft] | N115: SRO [in] | O115: Volume [cft] | P115: SRO [in] | Q115: Volume [cft] | R115: SRO [in] | S115: Volume [cft]
C116: =IF(C8="","",VLOOKUP(C8,Data!$A$4:$F$21,6,FALSE)) ->  | D116: =IF(D8="","",D8) ->  | E116: =IF(H8<=1,"",E8*IFERROR(VLOOKUP(F8,Data!$H$33:$I$35,2,FALSE),Data!$I$34)) ->  | F116: =IF(H8<2,"",VLOOKUP(C116,Data!$A$4:$E$21,H8,FALSE)) ->  | G116: =+IFERROR(IF(F116=0,0,1000/F116-10),0)*$F$94 -> 0 | H116: =+IF((I$94-$G116)<0,0,(I$94-$G116)^2/(I$94+4*$G116)) -> 2.22 | I116: =+IFERROR($E116*H116/12,0) -> 0 | L116: =+IF((M$94-$G116)<0,0,(M$94-$G116)^2/(M$94+4*$G116)) -> 2.56 | M116: =+IFERROR($E116*L116/12,0) -> 0 | N116: =+IF((O$94-$G116)<0,0,(O$94-$G116)^2/(O$94+4*$G116)) -> 3.77 | O116: =+IFERROR($E116*N116/12,0) -> 0 | P116: =+IF((Q$94-$G116)<0,0,(Q$94-$G116)^2/(Q$94+4*$G116)) -> 4.66 | Q116: =+IFERROR($E116*P116/12,0) -> 0 | R116: =+IF((S$94-$G116)<0,0,(S$94-$G116)^2/(S$94+4*$G116)) -> 6.27 | S116: =+IFERROR($E116*R116/12,0) -> 0
C117: =IF(C9="","",VLOOKUP(C9,Data!$A$4:$F$21,6,FALSE)) ->  | D117: =IF(D9="","",D9) ->  | E117: =IF(H9<=1,"",E9*IFERROR(VLOOKUP(F9,Data!$H$33:$I$35,2,FALSE),Data!$I$34)) ->  | F117: =IF(H9<2,"",VLOOKUP(C117,Data!$A$4:$E$21,H9,FALSE)) ->  | G117: =+IFERROR(IF(F117=0,0,1000/F117-10),0)*$F$94 -> 0 | H117: =+IF((I$94-$G117)<0,0,(I$94-$G117)^2/(I$94+4*$G117)) -> 2.22 | I117: =+IFERROR($E117*H117/12,0) -> 0 | L117: 2.56 | M117: =+IFERROR($E117*L117/12,0) -> 0 | N117: 3.77 | O117: =+IFERROR($E117*N117/12,0) -> 0 | P117: 4.66 | Q117: =+IFERROR($E117*P117/12,0) -> 0 | R117: 6.27 | S117: =+IFERROR($E117*R117/12,0) -> 0
C118: =IF(C10="","",VLOOKUP(C10,Data!$A$4:$F$21,6,FALSE)) ->  | D118: =IF(D10="","",D10) ->  | E118: =IF(H10<=1,"",E10*IFERROR(VLOOKUP(F10,Data!$H$33:$I$35,2,FALSE),Data!$I$34)) ->  | F118: =IF(H10<2,"",VLOOKUP(C118,Data!$A$4:$E$21,H10,FALSE)) ->  | G118: =+IFERROR(IF(F118=0,0,1000/F118-10),0)*$F$94 -> 0 | H118: =+IF((I$94-$G118)<0,0,(I$94-$G118)^2/(I$94+4*$G118)) -> 2.22 | I118: 0 | L118: 2.56 | M118: 0 | N118: 3.77 | O118: 0 | P118: 4.66 | Q118: 0 | R118: 6.27 | S118: 0
C119: =IF(C11="","",VLOOKUP(C11,Data!$A$4:$F$21,6,FALSE)) ->  | D119: =IF(D11="","",D11) ->  | E119: =IF(H11<=1,"",E11*IFERROR(VLOOKUP(F11,Data!$H$33:$I$35,2,FALSE),Data!$I$34)) ->  | F119: =IF(H11<2,"",VLOOKUP(C119,Data!$A$4:$E$21,H11,FALSE)) ->  | G119: =+IFERROR(IF(F119=0,0,1000/F119-10),0)*$F$94 -> 0 | H119: =+IF((I$94-$G119)<0,0,(I$94-$G119)^2/(I$94+4*$G119)) -> 2.22 | I119: 0 | L119: 2.56 | M119: 0 | N119: 3.77 | O119: 0 | P119: 4.66 | Q119: 0 | R119: 6.27 | S119: 0
C120: =IF(C12="","",VLOOKUP(C12,Data!$A$4:$F$21,6,FALSE)) ->  | D120: =IF(D12="","",D12) ->  | E120: =IF(H12<=1,"",E12*IFERROR(VLOOKUP(F12,Data!$H$33:$I$35,2,FALSE),Data!$I$34)) ->  | F120: =IF(H12<2,"",VLOOKUP(C120,Data!$A$4:$E$21,H12,FALSE)) ->  | G120: =+IFERROR(IF(F120=0,0,1000/F120-10),0)*$F$94 -> 0 | H120: =+IF((I$94-$G120)<0,0,(I$94-$G120)^2/(I$94+4*$G120)) -> 2.22 | I120: 0 | L120: 2.56 | M120: 0 | N120: 3.77 | O120: 0 | P120: 4.66 | Q120: 0 | R120: 6.27 | S120: 0
D121: Totals | E121: =+SUM(E116:E120) -> 0 | F121: =+IF(E121<>0,SUMPRODUCT(E116:E120,F116:F120)/E121,100) -> 100 | G121: =IFERROR(SUMPRODUCT(E116:E120,G116:G120)/E121,0) -> 0 | I121: =SUM(I116:I120) -> 0 | L121: 2.56 | M121: =SUM(M116:M120) -> 0 | N121: 3.77 | O121: =SUM(O116:O120) -> 0 | P121: 4.66 | Q121: =SUM(Q116:Q120) -> 0 | R121: 6.27 | S121: =SUM(S116:S120) -> 0
D122: Fraction Imperv | E122: 0
C124: Calculation of 2-year runoff volume for Channel Protection
D126: Developed | E126: Pre-settlement | F126: Existing
C127: Drainage area [sqft] | D127: =+D112 -> 0 | E127: =+E121 -> 0 | F127: =+D102 -> 0
C128: Volume (cft) = | D128: =+M112 -> 0 | E128: =+M121 -> 0 | F128: =+M102 -> 0
C129: Runoff Depth [in] | D129: =+IFERROR(D128/D127*12,0) -> 0 | E129: =+IFERROR(E128/E127*12,0) -> 0 | F129: 0
C131: Structural BMP volumes
C133: BMP | D133: Area [sqft] | E133: Volume [cft] | F133: Infiltration rate [in/hr] | G133: Infiltrating volume [cft] | H133: Total volume [cft] | I133: Drain Time [hr] | R133: Infiltration Time [hr] | S133: Infiltration rate [cf/hr]
C134: =+IF(C37=0,Data!$A$84,C37) -> NoneSelected | D134: =+MAX(0,D37) -> 0 | E134: =+MAX(0,E37*VLOOKUP($C134,Data!$A$71:$C$84,2,FALSE)) -> 0 | F134: =+MAX(0,F37*VLOOKUP($C134,Data!$A$71:$C$84,3,FALSE)) -> 0 | G134: =+IF(OR(I134="N.A.",I134=""),0,IFERROR(R134*S134,0)) -> 0 | H134: =+G134+E134 -> 0 | I134: =+IF(IFERROR(VLOOKUP(C134,Data!$A$71:$C$84,3,FALSE),0)=0,"N.A.",IFERROR(E134/D134/F134*12,"")) -> N.A. | R134: =IFERROR(2+MIN(72,I134)*(0.222-0.553*LOG(MIN(72,I134)/72)),0) -> 17.984 | S134: =+D134*F134/12 -> 0
C135: =+IF(C38=0,Data!$A$84,C38) -> NoneSelected | D135: =+MAX(0,D38) -> 0 | E135: =+MAX(0,E38*VLOOKUP($C135,Data!$A$71:$C$84,2,FALSE)) -> 0 | F135: =+MAX(0,F38*VLOOKUP($C135,Data!$A$71:$C$84,3,FALSE)) -> 0 | G135: =+IF(OR(I135="N.A.",I135=""),0,IFERROR(R135*S135,0)) -> 0 | H135: =+G135+E135 -> 0 | I135: =+IF(IFERROR(VLOOKUP(C135,Data!$A$71:$C$84,3,FALSE),0)=0,"N.A.",IFERROR(E135/D135/F135*12,"")) -> N.A. | R135: =IFERROR(2+MIN(72,I135)*(0.222-0.553*LOG(MIN(72,I135)/72)),0) -> 17.984 | S135: =+D135*F135/12 -> 0
C136: =+IF(C39=0,Data!$A$84,C39) -> NoneSelected | D136: =+MAX(0,D39) -> 0 | E136: =+MAX(0,E39*VLOOKUP($C136,Data!$A$71:$C$84,2,FALSE)) -> 0 | F136: =+MAX(0,F39*VLOOKUP($C136,Data!$A$71:$C$84,3,FALSE)) -> 0 | G136: 0 | H136: 0 | I136: =+IF(IFERROR(VLOOKUP(C136,Data!$A$71:$C$84,3,FALSE),0)=0,"N.A.",IFERROR(E136/D136/F136*12,"")) -> N.A. | R136: 17.984 | S136: 0
C137: =+IF(C40=0,Data!$A$84,C40) -> NoneSelected | D137: =+MAX(0,D40) -> 0 | E137: =+MAX(0,E40*VLOOKUP($C137,Data!$A$71:$C$84,2,FALSE)) -> 0 | F137: =+MAX(0,F40*VLOOKUP($C137,Data!$A$71:$C$84,3,FALSE)) -> 0 | G137: 0 | H137: 0 | I137: =+IF(IFERROR(VLOOKUP(C137,Data!$A$71:$C$84,3,FALSE),0)=0,"N.A.",IFERROR(E137/D137/F137*12,"")) -> N.A. | R137: 17.984 | S137: 0
E138: =SUM(E134:E137) -> 0 | F138: Sum of all BMPs | G138: =SUM(G134:G137) -> 0 | H138: =SUM(H134:H137) -> 0
G139: 2-year runoff volume for sub-catchment | H139: =+D128 -> 0
G140: Unmet Channel Protection Volume from upstream subcatchments | H140: =+E186 -> 0
G141: Sum of 2-year runoff volume and unmet upstream volumes | H141: =+H140+H139 -> 0
C143: Maximum retained volume for all events
C145: Event | D145: =+Data!$H$20 -> 1-year | E145: =+Data!$H$21 -> 2-year | F145: =+Data!$H$22 -> 10-year | G145: =+Data!$H$23 -> 25-year | H145: =+Data!$H$24 -> 100-year
C146: Drainage area [sqft] | D146: =+$D112 -> 0 | E146: =+$D112 -> 0 | F146: =+$D112 -> 0 | G146: =+$D112 -> 0 | H146: =+$D112 -> 0
C147: Total Runoff, Q (in) = | D147: =+IFERROR(D148/D146*12,0) -> 0 | E147: =+IFERROR(E148/E146*12,0) -> 0 | F147: =+IFERROR(F148/F146*12,0) -> 0 | G147: =+IFERROR(G148/G146*12,0) -> 0 | H147: =+IFERROR(H148/H146*12,0) -> 0
C148: Runoff Volume (cft) = | D148: =+I112 -> 0 | E148: =+M112 -> 0 | F148: =O112 -> 0 | G148: =Q112 -> 0 | H148: =S112 -> 0
C149: Excess runoff volume upstream subcatchments (cft) | D149: =+E201 -> 0 | E149: =+F201 -> 0 | F149: 0 | G149: 0 | H149: 0
C150: Total Runoff to retentive BMP (cft) | D150: =+D149+D148 -> 0 | E150: =+E149+E148 -> 0 | F150: 0 | G150: 0 | H150: 0
C151: Volume retained in subcatchment [cft] | D151: =+MIN($H$138,D150) -> 0 | E151: =+MIN($H$138,E150) -> 0 | F151: 0 | G151: 0 | H151: 0
C152: Volume released from subcatchment [cft] | D152: =+D150-D151 -> 0 | E152: =+E150-E151 -> 0 | F152: 0 | G152: 0 | H152: 0
C154: Volume credited for detention flood control
C155: =+Data!H97 -> Volume Retained | D155: =+D151 -> 0 | E155: =+E151 -> 0 | F155: 0 | G155: 0 | H155: 0
C156: =+Data!H98 -> Storage Volume | D156: =+MIN(D150,$E$138) -> 0 | E156: =+MIN(E150,$E$138) -> 0 | F156: 0 | G156: 0 | H156: 0
C157: =+Data!H99 -> Storage Volume 2yr | D157: =+MIN(D156,$E$34) -> 0 | E157: =+MIN(E156,$E$34) -> 0 | F157: 0 | G157: 0 | H157: 0
C158: =+Data!H100 -> None | D158: 0 | E158: 0 | F158: 0 | G158: 0 | H158: 0
C159: ='Flood Control'!D24 -> None | D159: =VLOOKUP($C$159,$C$155:$H$158,D160,FALSE) -> 0 | E159: =VLOOKUP($C$159,$C$155:$H$158,E160,FALSE) -> 0 | F159: 0 | G159: 0 | H159: 0
D160: 2 | E160: 3 | F160: 4 | G160: 5 | H160: 6
C162: Areas for water quality volume
C163: Land use | D163: HSG | E163: DP Area [sqft] | F163: HSG = A | G163: HSG = B | H163: HSG = C or D | I163: Imp Area [sqft]
C164: =+IF(C16="","",C16) ->  | E164: =D106*IFERROR(VLOOKUP(C164,Data!$A$102:$B$105,2,FALSE),0) -> 0 | F164: =IF(D164="A",E164,0) -> 0 | G164: =IF(D164="B",E164,0) -> 0 | H164: =IF(OR(D164="C",D164="D"),E164,0) -> 0 | I164: =+D106*IFERROR(VLOOKUP(C164,Data!$A$95:$B$98,2,FALSE),0) -> 0
E165: =D107*IFERROR(VLOOKUP(C165,Data!$A$102:$B$105,2,FALSE),0) -> 0 | F165: =IF(D165="A",E165,0) -> 0 | G165: =IF(D165="B",E165,0) -> 0 | H165: 0 | I165: =+D107*IFERROR(VLOOKUP(C165,Data!$A$95:$B$98,2,FALSE),0) -> 0
E166: =D108*IFERROR(VLOOKUP(C166,Data!$A$102:$B$105,2,FALSE),0) -> 0 | F166: =IF(D166="A",E166,0) -> 0 | G166: =IF(D166="B",E166,0) -> 0 | H166: 0 | I166: =+D108*IFERROR(VLOOKUP(C166,Data!$A$95:$B$98,2,FALSE),0) -> 0
E167: =D109*IFERROR(VLOOKUP(C167,Data!$A$102:$B$105,2,FALSE),0) -> 0 | F167: 0 | G167: 0 | H167: 0 | I167: =+D109*IFERROR(VLOOKUP(C167,Data!$A$95:$B$98,2,FALSE),0) -> 0
E168: =D110*IFERROR(VLOOKUP(C168,Data!$A$102:$B$105,2,FALSE),0) -> 0 | F168: 0 | G168: 0 | H168: 0 | I168: =+D110*IFERROR(VLOOKUP(C168,Data!$A$95:$B$98,2,FALSE),0) -> 0
E169: =D111*IFERROR(VLOOKUP(C169,Data!$A$102:$B$105,2,FALSE),0) -> 0 | F169: 0 | G169: 0 | H169: 0 | I169: =+D111*IFERROR(VLOOKUP(C169,Data!$A$95:$B$98,2,FALSE),0) -> 0
E170: Total [sqft] | F170: =SUM(F164:F169) -> 0 | G170: =SUM(G164:G169) -> 0 | H170: =SUM(H164:H169) -> 0 | I170: =SUM(I164:I169) -> 0
E171: Total [ac] | F171: =+F170/43560 -> 0 | G171: =+G170/43560 -> 0 | H171: =+H170/43560 -> 0 | I171: =+I170/43560 -> 0
C174: Quantities from upstream sub-catchments
C175: Sub-catchment | D175: Upstream | E175: Unmet CPV [cft] | F175: Released WQV [cft] | G175: Released TSS
C176: Sub1 | D176: =+IFERROR(IF($M$5=VLOOKUP(C176,Summary!$C$52:$E$61,3,FALSE),"Y","N"),"N") -> N | E176: =+IF($D176="Y",IFERROR(VLOOKUP($C176,Summary!$C$87:$I$96,7,FALSE),0),0) -> 0 | F176: =+IF($D176="Y",IFERROR(VLOOKUP($C176,Summary!$C$109:$J$118,5,FALSE),0),0) -> 0 | G176: =+IF($D176="Y",IFERROR(VLOOKUP($C176,Summary!$C$109:$K$118,9,FALSE),0),0) -> 0
C177: Sub2 | D177: =+IFERROR(IF($M$5=VLOOKUP(C177,Summary!$C$52:$E$61,3,FALSE),"Y","N"),"N") -> N | E177: =+IF(D177="Y",IFERROR(VLOOKUP(C177,Summary!$C$87:$I$96,7,FALSE),0),0) -> 0 | F177: =+IF($D177="Y",IFERROR(VLOOKUP($C177,Summary!$C$109:$J$118,5,FALSE),0),0) -> 0 | G177: =+IF($D177="Y",IFERROR(VLOOKUP($C177,Summary!$C$109:$K$118,9,FALSE),0),0) -> 0
C178: Sub3 | D178: =+IFERROR(IF($M$5=VLOOKUP(C178,Summary!$C$52:$E$61,3,FALSE),"Y","N"),"N") -> N | E178: =+IF(D178="Y",IFERROR(VLOOKUP(C178,Summary!$C$87:$I$96,7,FALSE),0),0) -> 0 | F178: =+IF($D178="Y",IFERROR(VLOOKUP($C178,Summary!$C$109:$J$118,5,FALSE),0),0) -> 0 | G178: =+IF($D178="Y",IFERROR(VLOOKUP($C178,Summary!$C$109:$K$118,9,FALSE),0),0) -> 0
C179: Sub4 | D179: =+IFERROR(IF($M$5=VLOOKUP(C179,Summary!$C$52:$E$61,3,FALSE),"Y","N"),"N") -> N | E179: =+IF(D179="Y",IFERROR(VLOOKUP(C179,Summary!$C$87:$I$96,7,FALSE),0),0) -> 0 | F179: =+IF($D179="Y",IFERROR(VLOOKUP($C179,Summary!$C$109:$J$118,5,FALSE),0),0) -> 0 | G179: =+IF($D179="Y",IFERROR(VLOOKUP($C179,Summary!$C$109:$K$118,9,FALSE),0),0) -> 0
C180: Sub5 | D180: =+IFERROR(IF($M$5=VLOOKUP(C180,Summary!$C$52:$E$61,3,FALSE),"Y","N"),"N") -> N | E180: =+IF(D180="Y",IFERROR(VLOOKUP(C180,Summary!$C$87:$I$96,7,FALSE),0),0) -> 0 | F180: =+IF($D180="Y",IFERROR(VLOOKUP($C180,Summary!$C$109:$J$118,5,FALSE),0),0) -> 0 | G180: =+IF($D180="Y",IFERROR(VLOOKUP($C180,Summary!$C$109:$K$118,9,FALSE),0),0) -> 0
C181: Sub6 | D181: =+IFERROR(IF($M$5=VLOOKUP(C181,Summary!$C$52:$E$61,3,FALSE),"Y","N"),"N") -> N | E181: =+IF(D181="Y",IFERROR(VLOOKUP(C181,Summary!$C$87:$I$96,7,FALSE),0),0) -> 0 | F181: =+IF($D181="Y",IFERROR(VLOOKUP($C181,Summary!$C$109:$J$118,5,FALSE),0),0) -> 0 | G181: =+IF($D181="Y",IFERROR(VLOOKUP($C181,Summary!$C$109:$K$118,9,FALSE),0),0) -> 0
C182: Sub7 | D182: =+IFERROR(IF($M$5=VLOOKUP(C182,Summary!$C$52:$E$61,3,FALSE),"Y","N"),"N") -> N | E182: =+IF(D182="Y",IFERROR(VLOOKUP(C182,Summary!$C$87:$I$96,7,FALSE),0),0) -> 0 | F182: =+IF($D182="Y",IFERROR(VLOOKUP($C182,Summary!$C$109:$J$118,5,FALSE),0),0) -> 0 | G182: =+IF($D182="Y",IFERROR(VLOOKUP($C182,Summary!$C$109:$K$118,9,FALSE),0),0) -> 0
C183: Sub8 | D183: =+IFERROR(IF($M$5=VLOOKUP(C183,Summary!$C$52:$E$61,3,FALSE),"Y","N"),"N") -> N | E183: =+IF(D183="Y",IFERROR(VLOOKUP(C183,Summary!$C$87:$I$96,7,FALSE),0),0) -> 0 | F183: =+IF($D183="Y",IFERROR(VLOOKUP($C183,Summary!$C$109:$J$118,5,FALSE),0),0) -> 0 | G183: =+IF($D183="Y",IFERROR(VLOOKUP($C183,Summary!$C$109:$K$118,9,FALSE),0),0) -> 0
C184: Sub9 | D184: =+IFERROR(IF($M$5=VLOOKUP(C184,Summary!$C$52:$E$61,3,FALSE),"Y","N"),"N") -> N | E184: =+IF(D184="Y",IFERROR(VLOOKUP(C184,Summary!$C$87:$I$96,7,FALSE),0),0) -> 0 | F184: =+IF($D184="Y",IFERROR(VLOOKUP($C184,Summary!$C$109:$J$118,5,FALSE),0),0) -> 0 | G184: =+IF($D184="Y",IFERROR(VLOOKUP($C184,Summary!$C$109:$K$118,9,FALSE),0),0) -> 0
C185: Sub10 | D185: =+IFERROR(IF($M$5=VLOOKUP(C185,Summary!$C$52:$E$61,3,FALSE),"Y","N"),"N") -> N | E185: =+IF(D185="Y",IFERROR(VLOOKUP(C185,Summary!$C$87:$I$96,7,FALSE),0),0) -> 0 | F185: =+IF($D185="Y",IFERROR(VLOOKUP($C185,Summary!$C$109:$J$118,5,FALSE),0),0) -> 0 | G185: =+IF($D185="Y",IFERROR(VLOOKUP($C185,Summary!$C$109:$K$118,9,FALSE),0),0) -> 0
E186: =+SUM(E176:E185) -> 0 | F186: =+SUM(F176:F185) -> 0 | G186: =+SUM(G176:G185) -> 0
C189: Flood control Carry over | M189: =ROW(D152) -> 152 | N189: =ROW(E152) -> 152 | O189: =ROW(F152) -> 152 | P189: =ROW(G152) -> 152 | Q189: =ROW(H152) -> 152
C190: Sub-catchment | D190: Upstream | E190: =+Data!$H$20 -> 1-year | F190: =+Data!$H$21 -> 2-year | G190: =+Data!$H$22 -> 10-year | H190: =+Data!$H$23 -> 25-year | I190: =+Data!$H$24 -> 100-year | M190: =COLUMN(D152) -> 4 | N190: =COLUMN(E152) -> 5 | O190: =COLUMN(F152) -> 6 | P190: =COLUMN(G152) -> 7 | Q190: =COLUMN(H152) -> 8
C191: Sub1 | D191: =+IFERROR(IF($M$5=VLOOKUP(C191,Summary!$C$52:$E$61,3,FALSE),"Y","N"),"N") -> N | E191: =IF($D191="N",0,OFFSET(INDIRECT(CONCATENATE($C191,"!a1")),M$189-1,M$190-1)) -> 0 | F191: =IF($D191="N",0,OFFSET(INDIRECT(CONCATENATE($C191,"!a1")),N$189-1,N$190-1)) -> 0 | G191: 0 | H191: 0 | I191: 0
C192: Sub2 | D192: =+IFERROR(IF($M$5=VLOOKUP(C192,Summary!$C$52:$E$61,3,FALSE),"Y","N"),"N") -> N | E192: =IF($D192="N",0,OFFSET(INDIRECT(CONCATENATE($C192,"!a1")),M$189-1,M$190-1)) -> 0 | F192: 0 | G192: 0 | H192: 0 | I192: 0
C193: Sub3 | D193: =+IFERROR(IF($M$5=VLOOKUP(C193,Summary!$C$52:$E$61,3,FALSE),"Y","N"),"N") -> N | E193: 0 | F193: 0 | G193: 0 | H193: 0 | I193: 0
C194: Sub4 | D194: =+IFERROR(IF($M$5=VLOOKUP(C194,Summary!$C$52:$E$61,3,FALSE),"Y","N"),"N") -> N | E194: 0 | F194: 0 | G194: 0 | H194: 0 | I194: 0
C195: Sub5 | D195: =+IFERROR(IF($M$5=VLOOKUP(C195,Summary!$C$52:$E$61,3,FALSE),"Y","N"),"N") -> N | E195: 0 | F195: 0 | G195: 0 | H195: 0 | I195: 0
C196: Sub6 | D196: =+IFERROR(IF($M$5=VLOOKUP(C196,Summary!$C$52:$E$61,3,FALSE),"Y","N"),"N") -> N | E196: 0 | F196: 0 | G196: 0 | H196: 0 | I196: 0
C197: Sub7 | D197: =+IFERROR(IF($M$5=VLOOKUP(C197,Summary!$C$52:$E$61,3,FALSE),"Y","N"),"N") -> N | E197: 0 | F197: 0 | G197: 0 | H197: 0 | I197: 0
C198: Sub8 | D198: =+IFERROR(IF($M$5=VLOOKUP(C198,Summary!$C$52:$E$61,3,FALSE),"Y","N"),"N") -> N | E198: 0 | F198: 0 | G198: 0 | H198: 0 | I198: 0
C199: Sub9 | D199: =+IFERROR(IF($M$5=VLOOKUP(C199,Summary!$C$52:$E$61,3,FALSE),"Y","N"),"N") -> N | E199: 0 | F199: 0 | G199: 0 | H199: 0 | I199: 0
C200: Sub10 | D200: =+IFERROR(IF($M$5=VLOOKUP(C200,Summary!$C$52:$E$61,3,FALSE),"Y","N"),"N") -> N | E200: 0 | F200: 0 | G200: 0 | H200: 0 | I200: 0
C201: Total | E201: =SUM(E191:E200) -> 0 | F201: =SUM(F191:F200) -> 0 | G201: 0 | H201: 0 | I201: 0

Sheet Sub4
C2: =" " & Data!$H$2 &CHAR(10) & " " & Settings!$D$5 -> LGROW Design Spreadsheet City of Ferrysburg
B4: =CONCATENATE(M5,": ") -> Sub4: | D4: =+IFERROR(IF(VLOOKUP(M5,Summary!$C$52:$L$61,4,FALSE)=0,"",VLOOKUP(M5,Summary!$C$52:$L$61,4,FALSE)),N4) -> This subcatchment is not defined on the Summary tab. | M4: Text | N4: This subcatchment is not defined on the Summary tab.
C5: Runoff | M5: =MID(CELL("filename",A1),FIND("]",CELL("filename",A1))+1,255) -> Sub4 | N5: Sheet name
G6: Curve Number | M6: =RIGHT(M5,1) -> 4 | N6: Subcatchment number
C7: Existing Land Use | D7: HSG | E7: Area | F7: Units | G7: Existing | I7: Pre-settlement
G8: =IF(H8<2,"",VLOOKUP(C8,Data!$A$4:$E$21,H8,FALSE)) ->  | H8: =IF(AND(C8="",D8=""),0,IF(AND(C8<>"",D8<>""),HLOOKUP(D8,Data!$B$2:$E$3,2),1)) -> 0 | I8: =+F116 -> 
G9: =IF(H9<2,"",VLOOKUP(C9,Data!$A$4:$E$21,H9,FALSE)) ->  | H9: =IF(AND(C9="",D9=""),0,IF(AND(C9<>"",D9<>""),HLOOKUP(D9,Data!$B$2:$E$3,2),1)) -> 0
G10: =IF(H10<2,"",VLOOKUP(C10,Data!$A$4:$E$21,H10,FALSE)) ->  | H10: =IF(AND(C10="",D10=""),0,IF(AND(C10<>"",D10<>""),HLOOKUP(D10,Data!$B$2:$E$3,2),1)) -> 0
G11: =IF(H11<2,"",VLOOKUP(C11,Data!$A$4:$E$21,H11,FALSE)) ->  | H11: =IF(AND(C11="",D11=""),0,IF(AND(C11<>"",D11<>""),HLOOKUP(D11,Data!$B$2:$E$3,2),1)) -> 0
G12: =IF(H12<2,"",VLOOKUP(C12,Data!$A$4:$E$21,H12,FALSE)) ->  | H12: =IF(AND(C12="",D12=""),0,IF(AND(C12<>"",D12<>""),HLOOKUP(D12,Data!$B$2:$E$3,2),1)) -> 0
E13: =+D102/43560 -> 0 | F13: acre | G13: =+IF(F102=100,"",F102) ->  | I13: =+IF(F121=100,"",F121) -> 
C15: Developed Land Use | D15: HSG | E15: Area | F15: Units | G15: Curve Number | I15: Notes
G16: =IF(H16<2,"",VLOOKUP(C16,Data!$A$28:$E$67,H16,FALSE)) ->  | H16: =+IF(AND(C16="",D16=""),0,IF(AND(C16<>"",D16<>""),HLOOKUP(D16,Data!$B$2:$E$3,2),1)) -> 0
G17: =IF(H17<2,"",VLOOKUP(C17,Data!$A$28:$E$67,H17,FALSE)) ->  | H17: =+IF(AND(C17="",D17=""),0,IF(AND(C17<>"",D17<>""),HLOOKUP(D17,Data!$B$2:$E$3,2),1)) -> 0
G18: =IF(H18<2,"",VLOOKUP(C18,Data!$A$28:$E$67,H18,FALSE)) ->  | H18: =+IF(AND(C18="",D18=""),0,IF(AND(C18<>"",D18<>""),HLOOKUP(D18,Data!$B$2:$E$3,2),1)) -> 0
G19: =IF(H19<2,"",VLOOKUP(C19,Data!$A$28:$E$67,H19,FALSE)) ->  | H19: =+IF(AND(C19="",D19=""),0,IF(AND(C19<>"",D19<>""),HLOOKUP(D19,Data!$B$2:$E$3,2),1)) -> 0
G20: =IF(H20<2,"",VLOOKUP(C20,Data!$A$28:$E$67,H20,FALSE)) ->  | H20: =+IF(AND(C20="",D20=""),0,IF(AND(C20<>"",D20<>""),HLOOKUP(D20,Data!$B$2:$E$3,2),1)) -> 0
G21: =IF(H21<2,"",VLOOKUP(C21,Data!$A$28:$E$67,H21,FALSE)) ->  | H21: =+IF(AND(C21="",D21=""),0,IF(AND(C21<>"",D21<>""),HLOOKUP(D21,Data!$B$2:$E$3,2),1)) -> 0
C22: Notes: | D22: =IF(H22=1,"≠ Existing →","") ->  | E22: =+D112/43560 -> 0 | F22: acre | G22: =+IF(F112=100,"",F112) ->  | H22: =IF(AND(E13=0,E22=0),0,IF(ABS(E22-E13)/MAX(E22,E13)>0.01,1,0)) -> 0
C24: Subcatchment Runoff Volume for Developed Land Use
C25: Rainfall Frequency | D25: =+Data!$H$20 -> 1-year | E25: =+Data!$H$21 -> 2-year | F25: =+Data!$H$22 -> 10-year | G25: =+Data!$H$23 -> 25-year | I25: =+Data!$H$24 -> 100-year
C26: Volume from this Subcatchment [cft] | D26: =D148 -> 0 | E26: =E148 -> 0 | F26: 0 | G26: 0 | I26: =+H148 -> 0
C29: Channel Protection Volume
C30: Required Channel Protection Volume | F30: 2-year Runoff Volumes [cft]
D31: Is Channel Protection Volume required? If no, provide reason. | E31: Yes | F31: Developed | G31: Pre-developed
D32: Required this Subcatchment [cft] | E32: =IF(E31=Data!H38,MAX(F32-G32,0),0) -> 0 | F32: =+D128 -> 0 | G32: =+IF(Summary!E41=Data!H9,E128,F128) -> 0
D33: Unmet from Upstream Subcatchments [cft] | E33: =+E186 -> 0
C34: Required Channel Protection Volume [cft] | E34: =+E33+E32 -> 0
C35: Structural BMPs used to meet Channel Protection Volume
C36: Structural BMP | D36: A Infiltration Area [sqft] | E36: V Storage Volume [cft] | F36: i Design Infiltration Rate [in/hr] | G36: Drain Time [hr] | I36: Volume Retained [cft]
G37: =+I134 -> N.A. | I37: =+IF(H134<=0,"",H134) -> 
G38: =+I135 -> N.A. | I38: =+IF(H135<=0,"",H135) -> 
G39: N.A.
G40: =+I137 -> N.A. | I40: =+IF(H137<=0,"",H137) -> 
C41: Totals | E41: =+SUM(E37:E40) -> 0 | I41: =+H138 -> 0
G42: Credited Channel Protection Volume | I42: =MIN(H138,H141,E34) -> 0
C43: Notes: | G43: Percentage of Channel Protection Volume Met by Retention | I43: =+IFERROR(IF(E32>0,MIN(1,I42/E34),1),"") -> 1
C47: Water Quality Volume
F48: =+Data!$A$89 -> Paved [ac] | G48: =+Data!$A$88 -> Pitched Roofs [ac] | I48: =+Data!$A$87 -> Flat Roofs/Unpaved [ac] | L48: Paved | M48: Pitched | O48: Flat
D49: Sum of Directly Connected Impervious Area [ac] | E49: =+I171 -> 0 | F49: =+E49-I49-G49 -> 0 | H49: =+IF(OR(F49<0,F49>E49),1,0) -> 0 | L49: =+F49/12*VLOOKUP(F48,WaterQualityFactors,2,FALSE) -> 0 | M49: =+G49/12*VLOOKUP(G48,WaterQualityFactors,2,FALSE) -> 0 | O49: =+I49/12*VLOOKUP(I48,WaterQualityFactors,2,FALSE) -> 0
D50: Sum of Directly Connected Disturbed Pervious Area [ac] | E50: =SUM(L51,M51,N51) -> 0 | G50: =+IF(OR(G49<0,G49>E$49,H$49=1),"Invalid Entry","") ->  | H50: =+SUM(O49,M49,L49,L52,M52,N52) -> 0 | I50: =+IF(OR(I49<0,I49>E$49,H$49=1),"Invalid Entry","") ->  | L50: =+Data!$A$90 -> Sandy Soils (HSG A) [ac] | M50: =+Data!$A$91 -> Silty Soils (HSG B) [ac] | N50: =+Data!$A$92 -> Clayey Soils (HSG C&D) [ac]
D51: Required Volume this Subcatchment [cft] | E51: =43560*H50 -> 0 | G51: TSS Generated this Subcatchment | I51: =+E51 -> 0 | L51: =+F171 -> 0 | M51: =+G171 -> 0 | N51: =H171 -> 0
D52: Volume from Upstream Subcatchments [cft] | E52: =+F186 -> 0 | G52: TSS from Upstream Subcatchments | I52: =+G186 -> 0 | L52: =+L51/12*VLOOKUP(L50,WaterQualityFactors,2,FALSE) -> 0 | M52: =+M51/12*VLOOKUP(M50,WaterQualityFactors,2,FALSE) -> 0 | N52: =+N51/12*VLOOKUP(N50,WaterQualityFactors,2,FALSE) -> 0
C53: Water Quality Volume to be Treated [cft] | E53: =+E52+E51 -> 0 | F53: TSS to be Treated | I53: =+I51+I52 -> 0
C54: TSS Accounting
C55: BMPs Used in Treatment Train | D55: Treated Water Volume [cft] | E55: TSS Removal Efficiency | I55: TSS Removed
E56: Tabulated | F56: Third-Party | G56: Effective | H56: TSS in stream | M56: Released water Volume | P56: Need 3rd party value
E57: =+IF(C57="","",IF(P57=Data!$H$38,"--",VLOOKUP(C57,Data!$A$109:$B$143,2,FALSE))) ->  | G57: =+IF(C57="","",IF(P57=Data!$H$38,F57,VLOOKUP(C57,Data!$A$109:$B$143,2,FALSE))*MIN(1,IFERROR(D57/L57,0))) ->  | H57: =+I53-I57 -> 0 | I57: =+IFERROR(I53*G57/100,0) -> 0 | L57: =+$E$53 -> 0 | M57: =+IF(D57="","",IFERROR(MIN(IF(VLOOKUP(C57,Data!$A$109:$C$143,3,FALSE)=Data!$C$112,L57,MAX(0,L57-D57)),$E$53),"")) ->  | N57: =IFERROR(1/ISNUMBER(M57),"") ->  | O57: =+IF(D57*1.01>L57,1,0) -> 0 | P57: =+IF(C57="","",IF(VLOOKUP(C57,Data!$A$109:$B$143,2,FALSE)="",Data!$H$38,Data!$H$39)) -> 
E58: =+IF(C58="","",IF(P58=Data!$H$38,"--",VLOOKUP(C58,Data!$A$109:$B$143,2,FALSE))) ->  | G58: =+IF(C58="","",IF(P58=Data!$H$38,F58,VLOOKUP(C58,Data!$A$109:$B$143,2,FALSE))*MIN(1,IFERROR(D58/L58,0))) ->  | H58: =+H57-I58 -> 0 | I58: =+IFERROR(H57*G58/100,0) -> 0 | L58: =MIN(L57:M57) -> 0 | M58: =+IF(D58="","",IFERROR(MIN(IF(VLOOKUP(C58,Data!$A$109:$C$143,3,FALSE)=Data!$C$112,L58,MAX(0,L58-D58)),$E$53),"")) ->  | N58: =IFERROR(1/ISNUMBER(M58),"") ->  | O58: =+IF(D58*1.01>L58,1,0) -> 0 | P58: =+IF(C58="","",IF(VLOOKUP(C58,Data!$A$109:$B$143,2,FALSE)="",Data!$H$38,Data!$H$39)) -> 
E59: =+IF(C59="","",IF(P59=Data!$H$38,"--",VLOOKUP(C59,Data!$A$109:$B$143,2,FALSE))) ->  | G59: =+IF(C59="","",IF(P59=Data!$H$38,F59,VLOOKUP(C59,Data!$A$109:$B$143,2,FALSE))*MIN(1,IFERROR(D59/L59,0))) ->  | H59: 0 | I59: =+IFERROR(H58*G59/100,0) -> 0 | L59: =MIN(L58:M58) -> 0 | M59: =+IF(D59="","",IFERROR(MIN(IF(VLOOKUP(C59,Data!$A$109:$C$143,3,FALSE)=Data!$C$112,L59,MAX(0,L59-D59)),$E$53),"")) ->  | O59: =+IF(D59*1.01>L59,1,0) -> 0 | P59: =+IF(C59="","",IF(VLOOKUP(C59,Data!$A$109:$B$143,2,FALSE)="",Data!$H$38,Data!$H$39)) -> 
E60: =+IF(C60="","",IF(P60=Data!$H$38,"--",VLOOKUP(C60,Data!$A$109:$B$143,2,FALSE))) ->  | G60: =+IF(C60="","",IF(P60=Data!$H$38,F60,VLOOKUP(C60,Data!$A$109:$B$143,2,FALSE))*MIN(1,IFERROR(D60/L60,0))) ->  | H60: 0 | I60: 0 | L60: 0 | M60: =+IF(D60="","",IFERROR(MIN(IF(VLOOKUP(C60,Data!$A$109:$C$143,3,FALSE)=Data!$C$112,L60,MAX(0,L60-D60)),$E$53),"")) ->  | O60: 0 | P60: =+IF(C60="","",IF(VLOOKUP(C60,Data!$A$109:$B$143,2,FALSE)="",Data!$H$38,Data!$H$39)) -> 
E61: =+IF(C61="","",IF(P61=Data!$H$38,"--",VLOOKUP(C61,Data!$A$109:$B$143,2,FALSE))) ->  | G61: =+IF(C61="","",IF(P61=Data!$H$38,F61,VLOOKUP(C61,Data!$A$109:$B$143,2,FALSE))*MIN(1,IFERROR(D61/L61,0))) ->  | H61: 0 | I61: 0 | L61: 0 | M61: =+IF(D61="","",IFERROR(MIN(IF(VLOOKUP(C61,Data!$A$109:$C$143,3,FALSE)=Data!$C$112,L61,MAX(0,L61-D61)),$E$53),"")) ->  | O61: 0 | P61: =+IF(C61="","",IF(VLOOKUP(C61,Data!$A$109:$B$143,2,FALSE)="",Data!$H$38,Data!$H$39)) -> 
C62: Released Water Volume [cft] | D62: =+M62 -> 0 | G62: Total TSS Removed | I62: =+SUM(I57:I61) -> 0 | M62: =IFERROR(LOOKUP(2,N57:N61,M57:M61),E53) -> 0 | O62: =SUM(O57:O61) -> 0
C63: Water Quality Volume met? | D63: =+M63 -> Yes | G63: TSS Remaining | I63: =+I53-I62 -> 0 | M63: =IF(OR(O62>0,E53<0.5),"Yes","No") -> Yes
C64: Notes: | G64: TSS Removal Efficiency [%] | I64: =+IFERROR(I62/I53*100,0) -> 0
C68: Infiltration Rate Calculator for Filter Media
C70: Filter Media Component | D70: K [ft/day] | E70: Weight | G70: Constructed Filter | H70: Weight | I70: Value
D71: =+IFERROR(VLOOKUP(C71,Data!$A$146:$B$151,2,FALSE),"") ->  | G71: Average Head on the Filter [ft] | H71: =+IF(D71="",0,E71) -> 0
D72: =+IFERROR(VLOOKUP(C72,Data!$A$146:$B$151,2,FALSE),"") ->  | G72: Depth of Filter Media [ft] | H72: =+IF(D72="",0,E72) -> 0
D73: =+IFERROR(VLOOKUP(C73,Data!$A$146:$B$151,2,FALSE),"") ->  | G73: Infiltration Rate [in/hr] | H73: 0 | I73: =+IFERROR(D75*(I71+I72)/2/I72,"") -> 
G74: Retentive BMP | H74: 0
C75: Average Hydraulic Conductivity of Filter Media [ft/day] | D75: =IFERROR(SUMPRODUCT(D71:D74,H71:H74)/SUM(H71:H74),"") ->  | G75: Infiltration Rate [in/hr] | I75: =IFERROR(D75/2,"") -> 
C76: Notes:
B89: =CELL("width",B89) -> 4 | C89: 54 | D89: 15 | E89: 15 | F89: 15 | G89: 15 | I89: =CELL("width",I89) -> 15 | J89: =CELL("width",J89) -> 4 | R89: =+SUM(B89:J89) -> 137
C90: Start of Hidden Cells
C92: Calculation of pervious CN and fraction impervious
E94: Ia factor | F94: 0.2 | H94: =+Data!H20 -> 1-year | I94: =VLOOKUP(H94,Settings!$C$20:$D$24,2,FALSE) -> 2.22 | L94: =+Data!H21 -> 2-year | M94: =VLOOKUP(L94,Settings!$C$20:$D$24,2,FALSE) -> 2.56 | N94: =+Data!H22 -> 10-year | O94: =VLOOKUP(N94,Settings!$C$20:$D$24,2,FALSE) -> 3.77 | P94: =+Data!H23 -> 25-year | Q94: =VLOOKUP(P94,Settings!$C$20:$D$24,2,FALSE) -> 4.66 | R94: =+Data!H24 -> 100-year | S94: =VLOOKUP(R94,Settings!$C$20:$D$24,2,FALSE) -> 6.27
C96: Existing CNs | D96: Area [sqft] | E96: Per. area [sqft] | F96: CN | G96: Ia [in] | H96: SRO [in] | I96: Volume [cft] | L96: SRO [in] | M96: Volume [cft] | N96: SRO [in] | O96: Volume [cft] | P96: SRO [in] | Q96: Volume [cft] | R96: SRO [in] | S96: Volume [cft]
C97: =+IF(C8="","",C8) ->  | D97: =+IF(H8>1,E8*IFERROR(VLOOKUP(F8,Data!$H$33:$I$35,2,FALSE),Data!$I$34),0) -> 0 | E97: =+IF(C97<>Data!$A$4,D97,0) -> 0 | F97: =+G8 ->  | G97: =+IFERROR(IF(F97=0,0,1000/F97-10),0)*$F$94 -> 0 | H97: =+IF((I$94-$G97)<0,0,(I$94-$G97)^2/(I$94+4*$G97)) -> 2.22 | I97: =+$D97*H97/12 -> 0 | L97: =+IF((M$94-$G97)<0,0,(M$94-$G97)^2/(M$94+4*$G97)) -> 2.56 | M97: =+$D97*L97/12 -> 0 | N97: =+IF((O$94-$G97)<0,0,(O$94-$G97)^2/(O$94+4*$G97)) -> 3.77 | O97: =+$D97*N97/12 -> 0 | P97: =+IF((Q$94-$G97)<0,0,(Q$94-$G97)^2/(Q$94+4*$G97)) -> 4.66 | Q97: =+$D97*P97/12 -> 0 | R97: =+IF((S$94-$G97)<0,0,(S$94-$G97)^2/(S$94+4*$G97)) -> 6.27 | S97: =+$D97*R97/12 -> 0
C98: =+IF(C9="","",C9) ->  | D98: =+IF(H9>1,E9*IFERROR(VLOOKUP(F9,Data!$H$33:$I$35,2,FALSE),Data!$I$34),0) -> 0 | E98: =+IF(C98<>Data!$A$4,D98,0) -> 0 | F98: =+G9 ->  | G98: =+IFERROR(IF(F98=0,0,1000/F98-10),0)*$F$94 -> 0 | H98: =+IF((I$94-$G98)<0,0,(I$94-$G98)^2/(I$94+4*$G98)) -> 2.22 | I98: =+$D98*H98/12 -> 0 | L98: 2.56 | M98: =+$D98*L98/12 -> 0 | N98: 3.77 | O98: =+$D98*N98/12 -> 0 | P98: 4.66 | Q98: =+$D98*P98/12 -> 0 | R98: 6.27 | S98: =+$D98*R98/12 -> 0
C99: =+IF(C10="","",C10) ->  | D99: =+IF(H10>1,E10*IFERROR(VLOOKUP(F10,Data!$H$33:$I$35,2,FALSE),Data!$I$34),0) -> 0 | E99: =+IF(C99<>Data!$A$4,D99,0) -> 0 | F99: =+G10 ->  | G99: =+IFERROR(IF(F99=0,0,1000/F99-10),0)*$F$94 -> 0 | H99: =+IF((I$94-$G99)<0,0,(I$94-$G99)^2/(I$94+4*$G99)) -> 2.22 | I99: 0 | L99: 2.56 | M99: 0 | N99: 3.77 | O99: 0 | P99: 4.66 | Q99: 0 | R99: 6.27 | S99: 0
C100: =+IF(C11="","",C11) ->  | D100: =+IF(H11>1,E11*IFERROR(VLOOKUP(F11,Data!$H$33:$I$35,2,FALSE),Data!$I$34),0) -> 0 | E100: =+IF(C100<>Data!$A$4,D100,0) -> 0 | F100: =+G11 ->  | G100: =+IFERROR(IF(F100=0,0,1000/F100-10),0)*$F$94 -> 0 | H100: =+IF((I$94-$G100)<0,0,(I$94-$G100)^2/(I$94+4*$G100)) -> 2.22 | I100: 0 | L100: 2.56 | M100: 0 | N100: 3.77 | O100: 0 | P100: 4.66 | Q100: 0 | R100: 6.27 | S100: 0
C101: =+IF(C12="","",C12) ->  | D101: =+IF(H12>1,E12*IFERROR(VLOOKUP(F12,Data!$H$33:$I$35,2,FALSE),Data!$I$34),0) -> 0 | E101: =+IF(C101<>Data!$A$4,D101,0) -> 0 | F101: =+G12 ->  | G101: =+IFERROR(IF(F101=0,0,1000/F101-10),0)*$F$94 -> 0 | H101: =+IF((I$94-$G101)<0,0,(I$94-$G101)^2/(I$94+4*$G101)) -> 2.22 | I101: 0 | L101: 2.56 | M101: 0 | N101: 3.77 | O101: 0 | P101: 4.66 | Q101: 0 | R101: 6.27 | S101: 0
C102: Totals | D102: =+SUM(D97:D101) -> 0 | E102: =+SUM(E97:E101) -> 0 | F102: =+IF(D102<>0,SUMPRODUCT(D97:D101,F97:F101)/D102,100) -> 100 | G102: =+IFERROR(SUMPRODUCT(D97:D101,G97:G101)/D102,0) -> 0 | I102: =SUM(I97:I101) -> 0 | L102: 2.56 | M102: =SUM(M97:M101) -> 0 | N102: 3.77 | O102: =SUM(O97:O101) -> 0 | P102: 4.66 | Q102: =SUM(Q97:Q101) -> 0 | R102: 6.27 | S102: =SUM(S97:S101) -> 0
C103: Fraction Impervious | D103: =+IF(D102<>0,(D102-E102)/D102,0) -> 0
C105: Developed CN's | D105: Area [sqft] | E105: Perv. Area [sqft] | F105: CN | G105: Ia [in] | H105: SRO [in] | I105: Volume [cft] | L105: SRO [in] | M105: Volume [cft] | N105: SRO [in] | O105: Volume [cft] | P105: SRO [in] | Q105: Volume [cft] | R105: SRO [in] | S105: Volume [cft]
C106: =+IF(C16="","",C16) ->  | D106: =+IF(H16>1,E16*IFERROR(VLOOKUP(F16,Data!$H$33:$I$35,2,FALSE),Data!$I$34),0) -> 0 | E106: =+IF(F106=98,0,D106) -> 0 | F106: =+G16 ->  | G106: =+IFERROR(IF(F106=0,0,1000/F106-10),0)*$F$94 -> 0 | H106: =+IF((I$94-$G106)<0,0,(I$94-$G106)^2/(I$94+4*$G106)) -> 2.22 | I106: =+$D106*H106/12 -> 0 | L106: =+IF((M$94-$G106)<0,0,(M$94-$G106)^2/(M$94+4*$G106)) -> 2.56 | M106: =+$D106*L106/12 -> 0 | N106: =+IF((O$94-$G106)<0,0,(O$94-$G106)^2/(O$94+4*$G106)) -> 3.77 | O106: =+$D106*N106/12 -> 0 | P106: =+IF((Q$94-$G106)<0,0,(Q$94-$G106)^2/(Q$94+4*$G106)) -> 4.66 | Q106: =+$D106*P106/12 -> 0 | R106: =+IF((S$94-$G106)<0,0,(S$94-$G106)^2/(S$94+4*$G106)) -> 6.27 | S106: =+$D106*R106/12 -> 0
D107: =+IF(H17>1,E17*IFERROR(VLOOKUP(F17,Data!$H$33:$I$35,2,FALSE),Data!$I$34),0) -> 0 | E107: =+IF(F107=98,0,D107) -> 0 | G107: 0 | H107: 2.22 | I107: =+$D107*H107/12 -> 0 | L107: 2.56 | M107: =+$D107*L107/12 -> 0 | N107: 3.77 | O107: =+$D107*N107/12 -> 0 | P107: 4.66 | Q107: =+$D107*P107/12 -> 0 | R107: 6.27 | S107: =+$D107*R107/12 -> 0
D108: =+IF(H18>1,E18*IFERROR(VLOOKUP(F18,Data!$H$33:$I$35,2,FALSE),Data!$I$34),0) -> 0 | E108: 0 | G108: 0 | H108: 2.22 | I108: 0 | L108: 2.56 | M108: 0 | N108: 3.77 | O108: 0 | P108: 4.66 | Q108: 0 | R108: 6.27 | S108: 0
D109: =+IF(H19>1,E19*IFERROR(VLOOKUP(F19,Data!$H$33:$I$35,2,FALSE),Data!$I$34),0) -> 0 | E109: 0 | G109: 0 | H109: 2.22 | I109: 0 | L109: 2.56 | M109: 0 | N109: 3.77 | O109: 0 | P109: 4.66 | Q109: 0 | R109: 6.27 | S109: 0
D110: =+IF(H20>1,E20*IFERROR(VLOOKUP(F20,Data!$H$33:$I$35,2,FALSE),Data!$I$34),0) -> 0 | E110: 0 | G110: 0 | H110: 2.22 | I110: 0 | L110: 2.56 | M110: 0 | N110: 3.77 | O110: 0 | P110: 4.66 | Q110: 0 | R110: 6.27 | S110: 0
D111: =+IF(H21>1,E21*IFERROR(VLOOKUP(F21,Data!$H$33:$I$35,2,FALSE),Data!$I$34),0) -> 0 | E111: 0 | G111: 0 | H111: 2.22 | I111: 0 | L111: 2.56 | M111: 0 | N111: 3.77 | O111: 0 | P111: 4.66 | Q111: 0 | R111: 6.27 | S111: 0
C112: Total | D112: =+SUM(D106:D111) -> 0 | E112: =+SUM(E106:E111) -> 0 | F112: =IF(D112<>0,SUMPRODUCT(D106:D111,F106:F111)/D112,"") ->  | G112: =IFERROR(SUMPRODUCT(D106:D111,G106:G111)/D112,0) -> 0 | I112: =SUM(I106:I111) -> 0 | L112: 2.56 | M112: =SUM(M106:M111) -> 0 | N112: 3.77 | O112: =SUM(O106:O111) -> 0 | P112: 4.66 | Q112: =SUM(Q106:Q111) -> 0 | R112: 6.27 | S112: =SUM(S106:S111) -> 0
C113: Fraction Impervious | D113: =+IF(D112<>0,(D112-E112)/D112,0) -> 0
C115: Pre-settlement CN's | D115: HSG | E115: Area [sqft] | F115: SCS CN | G115: Ia [in] | H115: SRO [in] | I115: Volume [cft] | L115: SRO [in] | M115: Volume [cft] | N115: SRO [in] | O115: Volume [cft] | P115: SRO [in] | Q115: Volume [cft] | R115: SRO [in] | S115: Volume [cft]
C116: =IF(C8="","",VLOOKUP(C8,Data!$A$4:$F$21,6,FALSE)) ->  | D116: =IF(D8="","",D8) ->  | E116: =IF(H8<=1,"",E8*IFERROR(VLOOKUP(F8,Data!$H$33:$I$35,2,FALSE),Data!$I$34)) ->  | F116: =IF(H8<2,"",VLOOKUP(C116,Data!$A$4:$E$21,H8,FALSE)) ->  | G116: =+IFERROR(IF(F116=0,0,1000/F116-10),0)*$F$94 -> 0 | H116: =+IF((I$94-$G116)<0,0,(I$94-$G116)^2/(I$94+4*$G116)) -> 2.22 | I116: =+IFERROR($E116*H116/12,0) -> 0 | L116: =+IF((M$94-$G116)<0,0,(M$94-$G116)^2/(M$94+4*$G116)) -> 2.56 | M116: =+IFERROR($E116*L116/12,0) -> 0 | N116: =+IF((O$94-$G116)<0,0,(O$94-$G116)^2/(O$94+4*$G116)) -> 3.77 | O116: =+IFERROR($E116*N116/12,0) -> 0 | P116: =+IF((Q$94-$G116)<0,0,(Q$94-$G116)^2/(Q$94+4*$G116)) -> 4.66 | Q116: =+IFERROR($E116*P116/12,0) -> 0 | R116: =+IF((S$94-$G116)<0,0,(S$94-$G116)^2/(S$94+4*$G116)) -> 6.27 | S116: =+IFERROR($E116*R116/12,0) -> 0
C117: =IF(C9="","",VLOOKUP(C9,Data!$A$4:$F$21,6,FALSE)) ->  | D117: =IF(D9="","",D9) ->  | E117: =IF(H9<=1,"",E9*IFERROR(VLOOKUP(F9,Data!$H$33:$I$35,2,FALSE),Data!$I$34)) ->  | F117: =IF(H9<2,"",VLOOKUP(C117,Data!$A$4:$E$21,H9,FALSE)) ->  | G117: =+IFERROR(IF(F117=0,0,1000/F117-10),0)*$F$94 -> 0 | H117: =+IF((I$94-$G117)<0,0,(I$94-$G117)^2/(I$94+4*$G117)) -> 2.22 | I117: =+IFERROR($E117*H117/12,0) -> 0 | L117: 2.56 | M117: =+IFERROR($E117*L117/12,0) -> 0 | N117: 3.77 | O117: =+IFERROR($E117*N117/12,0) -> 0 | P117: 4.66 | Q117: =+IFERROR($E117*P117/12,0) -> 0 | R117: 6.27 | S117: =+IFERROR($E117*R117/12,0) -> 0
C118: =IF(C10="","",VLOOKUP(C10,Data!$A$4:$F$21,6,FALSE)) ->  | D118: =IF(D10="","",D10) ->  | E118: =IF(H10<=1,"",E10*IFERROR(VLOOKUP(F10,Data!$H$33:$I$35,2,FALSE),Data!$I$34)) ->  | F118: =IF(H10<2,"",VLOOKUP(C118,Data!$A$4:$E$21,H10,FALSE)) ->  | G118: =+IFERROR(IF(F118=0,0,1000/F118-10),0)*$F$94 -> 0 | H118: =+IF((I$94-$G118)<0,0,(I$94-$G118)^2/(I$94+4*$G118)) -> 2.22 | I118: 0 | L118: 2.56 | M118: 0 | N118: 3.77 | O118: 0 | P118: 4.66 | Q118: 0 | R118: 6.27 | S118: 0
C119: =IF(C11="","",VLOOKUP(C11,Data!$A$4:$F$21,6,FALSE)) ->  | D119: =IF(D11="","",D11) ->  | E119: =IF(H11<=1,"",E11*IFERROR(VLOOKUP(F11,Data!$H$33:$I$35,2,FALSE),Data!$I$34)) ->  | F119: =IF(H11<2,"",VLOOKUP(C119,Data!$A$4:$E$21,H11,FALSE)) ->  | G119: =+IFERROR(IF(F119=0,0,1000/F119-10),0)*$F$94 -> 0 | H119: =+IF((I$94-$G119)<0,0,(I$94-$G119)^2/(I$94+4*$G119)) -> 2.22 | I119: 0 | L119: 2.56 | M119: 0 | N119: 3.77 | O119: 0 | P119: 4.66 | Q119: 0 | R119: 6.27 | S119: 0
C120: =IF(C12="","",VLOOKUP(C12,Data!$A$4:$F$21,6,FALSE)) ->  | D120: =IF(D12="","",D12) ->  | E120: =IF(H12<=1,"",E12*IFERROR(VLOOKUP(F12,Data!$H$33:$I$35,2,FALSE),Data!$I$34)) ->  | F120: =IF(H12<2,"",VLOOKUP(C120,Data!$A$4:$E$21,H12,FALSE)) ->  | G120: =+IFERROR(IF(F120=0,0,1000/F120-10),0)*$F$94 -> 0 | H120: =+IF((I$94-$G120)<0,0,(I$94-$G120)^2/(I$94+4*$G120)) -> 2.22 | I120: 0 | L120: 2.56 | M120: 0 | N120: 3.77 | O120: 0 | P120: 4.66 | Q120: 0 | R120: 6.27 | S120: 0
D121: Totals | E121: =+SUM(E116:E120) -> 0 | F121: =+IF(E121<>0,SUMPRODUCT(E116:E120,F116:F120)/E121,100) -> 100 | G121: =IFERROR(SUMPRODUCT(E116:E120,G116:G120)/E121,0) -> 0 | I121: =SUM(I116:I120) -> 0 | L121: 2.56 | M121: =SUM(M116:M120) -> 0 | N121: 3.77 | O121: =SUM(O116:O120) -> 0 | P121: 4.66 | Q121: =SUM(Q116:Q120) -> 0 | R121: 6.27 | S121: =SUM(S116:S120) -> 0
D122: Fraction Imperv | E122: 0
C124: Calculation of 2-year runoff volume for Channel Protection
D126: Developed | E126: Pre-settlement | F126: Existing
C127: Drainage area [sqft] | D127: =+D112 -> 0 | E127: =+E121 -> 0 | F127: =+D102 -> 0
C128: Volume (cft) = | D128: =+M112 -> 0 | E128: =+M121 -> 0 | F128: =+M102 -> 0
C129: Runoff Depth [in] | D129: =+IFERROR(D128/D127*12,0) -> 0 | E129: =+IFERROR(E128/E127*12,0) -> 0 | F129: 0
C131: Structural BMP volumes
C133: BMP | D133: Area [sqft] | E133: Volume [cft] | F133: Infiltration rate [in/hr] | G133: Infiltrating volume [cft] | H133: Total volume [cft] | I133: Drain Time [hr] | R133: Infiltration Time [hr] | S133: Infiltration rate [cf/hr]
C134: =+IF(C37=0,Data!$A$84,C37) -> NoneSelected | D134: =+MAX(0,D37) -> 0 | E134: =+MAX(0,E37*VLOOKUP($C134,Data!$A$71:$C$84,2,FALSE)) -> 0 | F134: =+MAX(0,F37*VLOOKUP($C134,Data!$A$71:$C$84,3,FALSE)) -> 0 | G134: =+IF(OR(I134="N.A.",I134=""),0,IFERROR(R134*S134,0)) -> 0 | H134: =+G134+E134 -> 0 | I134: =+IF(IFERROR(VLOOKUP(C134,Data!$A$71:$C$84,3,FALSE),0)=0,"N.A.",IFERROR(E134/D134/F134*12,"")) -> N.A. | R134: =IFERROR(2+MIN(72,I134)*(0.222-0.553*LOG(MIN(72,I134)/72)),0) -> 17.984 | S134: =+D134*F134/12 -> 0
C135: =+IF(C38=0,Data!$A$84,C38) -> NoneSelected | D135: =+MAX(0,D38) -> 0 | E135: =+MAX(0,E38*VLOOKUP($C135,Data!$A$71:$C$84,2,FALSE)) -> 0 | F135: =+MAX(0,F38*VLOOKUP($C135,Data!$A$71:$C$84,3,FALSE)) -> 0 | G135: =+IF(OR(I135="N.A.",I135=""),0,IFERROR(R135*S135,0)) -> 0 | H135: =+G135+E135 -> 0 | I135: =+IF(IFERROR(VLOOKUP(C135,Data!$A$71:$C$84,3,FALSE),0)=0,"N.A.",IFERROR(E135/D135/F135*12,"")) -> N.A. | R135: =IFERROR(2+MIN(72,I135)*(0.222-0.553*LOG(MIN(72,I135)/72)),0) -> 17.984 | S135: =+D135*F135/12 -> 0
C136: =+IF(C39=0,Data!$A$84,C39) -> NoneSelected | D136: =+MAX(0,D39) -> 0 | E136: =+MAX(0,E39*VLOOKUP($C136,Data!$A$71:$C$84,2,FALSE)) -> 0 | F136: =+MAX(0,F39*VLOOKUP($C136,Data!$A$71:$C$84,3,FALSE)) -> 0 | G136: 0 | H136: 0 | I136: =+IF(IFERROR(VLOOKUP(C136,Data!$A$71:$C$84,3,FALSE),0)=0,"N.A.",IFERROR(E136/D136/F136*12,"")) -> N.A. | R136: 17.984 | S136: 0
C137: =+IF(C40=0,Data!$A$84,C40) -> NoneSelected | D137: =+MAX(0,D40) -> 0 | E137: =+MAX(0,E40*VLOOKUP($C137,Data!$A$71:$C$84,2,FALSE)) -> 0 | F137: =+MAX(0,F40*VLOOKUP($C137,Data!$A$71:$C$84,3,FALSE)) -> 0 | G137: 0 | H137: 0 | I137: =+IF(IFERROR(VLOOKUP(C137,Data!$A$71:$C$84,3,FALSE),0)=0,"N.A.",IFERROR(E137/D137/F137*12,"")) -> N.A. | R137: 17.984 | S137: 0
E138: =SUM(E134:E137) -> 0 | F138: Sum of all BMPs | G138: =SUM(G134:G137) -> 0 | H138: =SUM(H134:H137) -> 0
G139: 2-year runoff volume for sub-catchment | H139: =+D128 -> 0
G140: Unmet Channel Protection Volume from upstream subcatchments | H140: =+E186 -> 0
G141: Sum of 2-year runoff volume and unmet upstream volumes | H141: =+H140+H139 -> 0
C143: Maximum retained volume for all events
C145: Event | D145: =+Data!$H$20 -> 1-year | E145: =+Data!$H$21 -> 2-year | F145: =+Data!$H$22 -> 10-year | G145: =+Data!$H$23 -> 25-year | H145: =+Data!$H$24 -> 100-year
C146: Drainage area [sqft] | D146: =+$D112 -> 0 | E146: =+$D112 -> 0 | F146: =+$D112 -> 0 | G146: =+$D112 -> 0 | H146: =+$D112 -> 0
C147: Total Runoff, Q (in) = | D147: =+IFERROR(D148/D146*12,0) -> 0 | E147: =+IFERROR(E148/E146*12,0) -> 0 | F147: =+IFERROR(F148/F146*12,0) -> 0 | G147: =+IFERROR(G148/G146*12,0) -> 0 | H147: =+IFERROR(H148/H146*12,0) -> 0
C148: Runoff Volume (cft) = | D148: =+I112 -> 0 | E148: =+M112 -> 0 | F148: =O112 -> 0 | G148: =Q112 -> 0 | H148: =S112 -> 0
C149: Excess runoff volume upstream subcatchments (cft) | D149: =+E201 -> 0 | E149: =+F201 -> 0 | F149: 0 | G149: 0 | H149: 0
C150: Total Runoff to retentive BMP (cft) | D150: =+D149+D148 -> 0 | E150: =+E149+E148 -> 0 | F150: 0 | G150: 0 | H150: 0
C151: Volume retained in subcatchment [cft] | D151: =+MIN($H$138,D150) -> 0 | E151: =+MIN($H$138,E150) -> 0 | F151: 0 | G151: 0 | H151: 0
C152: Volume released from subcatchment [cft] | D152: =+D150-D151 -> 0 | E152: =+E150-E151 -> 0 | F152: 0 | G152: 0 | H152: 0
C154: Volume credited for detention flood control
C155: =+Data!H97 -> Volume Retained | D155: =+D151 -> 0 | E155: =+E151 -> 0 | F155: 0 | G155: 0 | H155: 0
C156: =+Data!H98 -> Storage Volume | D156: =+MIN(D150,$E$138) -> 0 | E156: =+MIN(E150,$E$138) -> 0 | F156: 0 | G156: 0 | H156: 0
C157: =+Data!H99 -> Storage Volume 2yr | D157: =+MIN(D156,$E$34) -> 0 | E157: =+MIN(E156,$E$34) -> 0 | F157: 0 | G157: 0 | H157: 0
C158: =+Data!H100 -> None | D158: 0 | E158: 0 | F158: 0 | G158: 0 | H158: 0
C159: ='Flood Control'!D24 -> None | D159: =VLOOKUP($C$159,$C$155:$H$158,D160,FALSE) -> 0 | E159: =VLOOKUP($C$159,$C$155:$H$158,E160,FALSE) -> 0 | F159: 0 | G159: 0 | H159: 0
D160: 2 | E160: 3 | F160: 4 | G160: 5 | H160: 6
C162: Areas for water quality volume
C163: Land use | D163: HSG | E163: DP Area [sqft] | F163: HSG = A | G163: HSG = B | H163: HSG = C or D | I163: Imp Area [sqft]
C164: =+IF(C16="","",C16) ->  | E164: =D106*IFERROR(VLOOKUP(C164,Data!$A$102:$B$105,2,FALSE),0) -> 0 | F164: =IF(D164="A",E164,0) -> 0 | G164: =IF(D164="B",E164,0) -> 0 | H164: =IF(OR(D164="C",D164="D"),E164,0) -> 0 | I164: =+D106*IFERROR(VLOOKUP(C164,Data!$A$95:$B$98,2,FALSE),0) -> 0
E165: =D107*IFERROR(VLOOKUP(C165,Data!$A$102:$B$105,2,FALSE),0) -> 0 | F165: =IF(D165="A",E165,0) -> 0 | G165: =IF(D165="B",E165,0) -> 0 | H165: 0 | I165: =+D107*IFERROR(VLOOKUP(C165,Data!$A$95:$B$98,2,FALSE),0) -> 0
E166: =D108*IFERROR(VLOOKUP(C166,Data!$A$102:$B$105,2,FALSE),0) -> 0 | F166: =IF(D166="A",E166,0) -> 0 | G166: =IF(D166="B",E166,0) -> 0 | H166: 0 | I166: =+D108*IFERROR(VLOOKUP(C166,Data!$A$95:$B$98,2,FALSE),0) -> 0
E167: =D109*IFERROR(VLOOKUP(C167,Data!$A$102:$B$105,2,FALSE),0) -> 0 | F167: 0 | G167: 0 | H167: 0 | I167: =+D109*IFERROR(VLOOKUP(C167,Data!$A$95:$B$98,2,FALSE),0) -> 0
E168: =D110*IFERROR(VLOOKUP(C168,Data!$A$102:$B$105,2,FALSE),0) -> 0 | F168: 0 | G168: 0 | H168: 0 | I168: =+D110*IFERROR(VLOOKUP(C168,Data!$A$95:$B$98,2,FALSE),0) -> 0
E169: =D111*IFERROR(VLOOKUP(C169,Data!$A$102:$B$105,2,FALSE),0) -> 0 | F169: 0 | G169: 0 | H169: 0 | I169: =+D111*IFERROR(VLOOKUP(C169,Data!$A$95:$B$98,2,FALSE),0) -> 0
E170: Total [sqft] | F170: =SUM(F164:F169) -> 0 | G170: =SUM(G164:G169) -> 0 | H170: =SUM(H164:H169) -> 0 | I170: =SUM(I164:I169) -> 0
E171: Total [ac] | F171: =+F170/43560 -> 0 | G171: =+G170/43560 -> 0 | H171: =+H170/43560 -> 0 | I171: =+I170/43560 -> 0
C174: Quantities from upstream sub-catchments
C175: Sub-catchment | D175: Upstream | E175: Unmet CPV [cft] | F175: Released WQV [cft] | G175: Released TSS
C176: Sub1 | D176: =+IFERROR(IF($M$5=VLOOKUP(C176,Summary!$C$52:$E$61,3,FALSE),"Y","N"),"N") -> N | E176: =+IF($D176="Y",IFERROR(VLOOKUP($C176,Summary!$C$87:$I$96,7,FALSE),0),0) -> 0 | F176: =+IF($D176="Y",IFERROR(VLOOKUP($C176,Summary!$C$109:$J$118,5,FALSE),0),0) -> 0 | G176: =+IF($D176="Y",IFERROR(VLOOKUP($C176,Summary!$C$109:$K$118,9,FALSE),0),0) -> 0
C177: Sub2 | D177: =+IFERROR(IF($M$5=VLOOKUP(C177,Summary!$C$52:$E$61,3,FALSE),"Y","N"),"N") -> N | E177: =+IF(D177="Y",IFERROR(VLOOKUP(C177,Summary!$C$87:$I$96,7,FALSE),0),0) -> 0 | F177: =+IF($D177="Y",IFERROR(VLOOKUP($C177,Summary!$C$109:$J$118,5,FALSE),0),0) -> 0 | G177: =+IF($D177="Y",IFERROR(VLOOKUP($C177,Summary!$C$109:$K$118,9,FALSE),0),0) -> 0
C178: Sub3 | D178: =+IFERROR(IF($M$5=VLOOKUP(C178,Summary!$C$52:$E$61,3,FALSE),"Y","N"),"N") -> N | E178: =+IF(D178="Y",IFERROR(VLOOKUP(C178,Summary!$C$87:$I$96,7,FALSE),0),0) -> 0 | F178: =+IF($D178="Y",IFERROR(VLOOKUP($C178,Summary!$C$109:$J$118,5,FALSE),0),0) -> 0 | G178: =+IF($D178="Y",IFERROR(VLOOKUP($C178,Summary!$C$109:$K$118,9,FALSE),0),0) -> 0
C179: Sub4 | D179: =+IFERROR(IF($M$5=VLOOKUP(C179,Summary!$C$52:$E$61,3,FALSE),"Y","N"),"N") -> N | E179: =+IF(D179="Y",IFERROR(VLOOKUP(C179,Summary!$C$87:$I$96,7,FALSE),0),0) -> 0 | F179: =+IF($D179="Y",IFERROR(VLOOKUP($C179,Summary!$C$109:$J$118,5,FALSE),0),0) -> 0 | G179: =+IF($D179="Y",IFERROR(VLOOKUP($C179,Summary!$C$109:$K$118,9,FALSE),0),0) -> 0
C180: Sub5 | D180: =+IFERROR(IF($M$5=VLOOKUP(C180,Summary!$C$52:$E$61,3,FALSE),"Y","N"),"N") -> N | E180: =+IF(D180="Y",IFERROR(VLOOKUP(C180,Summary!$C$87:$I$96,7,FALSE),0),0) -> 0 | F180: =+IF($D180="Y",IFERROR(VLOOKUP($C180,Summary!$C$109:$J$118,5,FALSE),0),0) -> 0 | G180: =+IF($D180="Y",IFERROR(VLOOKUP($C180,Summary!$C$109:$K$118,9,FALSE),0),0) -> 0
C181: Sub6 | D181: =+IFERROR(IF($M$5=VLOOKUP(C181,Summary!$C$52:$E$61,3,FALSE),"Y","N"),"N") -> N | E181: =+IF(D181="Y",IFERROR(VLOOKUP(C181,Summary!$C$87:$I$96,7,FALSE),0),0) -> 0 | F181: =+IF($D181="Y",IFERROR(VLOOKUP($C181,Summary!$C$109:$J$118,5,FALSE),0),0) -> 0 | G181: =+IF($D181="Y",IFERROR(VLOOKUP($C181,Summary!$C$109:$K$118,9,FALSE),0),0) -> 0
C182: Sub7 | D182: =+IFERROR(IF($M$5=VLOOKUP(C182,Summary!$C$52:$E$61,3,FALSE),"Y","N"),"N") -> N | E182: =+IF(D182="Y",IFERROR(VLOOKUP(C182,Summary!$C$87:$I$96,7,FALSE),0),0) -> 0 | F182: =+IF($D182="Y",IFERROR(VLOOKUP($C182,Summary!$C$109:$J$118,5,FALSE),0),0) -> 0 | G182: =+IF($D182="Y",IFERROR(VLOOKUP($C182,Summary!$C$109:$K$118,9,FALSE),0),0) -> 0
C183: Sub8 | D183: =+IFERROR(IF($M$5=VLOOKUP(C183,Summary!$C$52:$E$61,3,FALSE),"Y","N"),"N") -> N | E183: =+IF(D183="Y",IFERROR(VLOOKUP(C183,Summary!$C$87:$I$96,7,FALSE),0),0) -> 0 | F183: =+IF($D183="Y",IFERROR(VLOOKUP($C183,Summary!$C$109:$J$118,5,FALSE),0),0) -> 0 | G183: =+IF($D183="Y",IFERROR(VLOOKUP($C183,Summary!$C$109:$K$118,9,FALSE),0),0) -> 0
C184: Sub9 | D184: =+IFERROR(IF($M$5=VLOOKUP(C184,Summary!$C$52:$E$61,3,FALSE),"Y","N"),"N") -> N | E184: =+IF(D184="Y",IFERROR(VLOOKUP(C184,Summary!$C$87:$I$96,7,FALSE),0),0) -> 0 | F184: =+IF($D184="Y",IFERROR(VLOOKUP($C184,Summary!$C$109:$J$118,5,FALSE),0),0) -> 0 | G184: =+IF($D184="Y",IFERROR(VLOOKUP($C184,Summary!$C$109:$K$118,9,FALSE),0),0) -> 0
C185: Sub10 | D185: =+IFERROR(IF($M$5=VLOOKUP(C185,Summary!$C$52:$E$61,3,FALSE),"Y","N"),"N") -> N | E185: =+IF(D185="Y",IFERROR(VLOOKUP(C185,Summary!$C$87:$I$96,7,FALSE),0),0) -> 0 | F185: =+IF($D185="Y",IFERROR(VLOOKUP($C185,Summary!$C$109:$J$118,5,FALSE),0),0) -> 0 | G185: =+IF($D185="Y",IFERROR(VLOOKUP($C185,Summary!$C$109:$K$118,9,FALSE),0),0) -> 0
E186: =+SUM(E176:E185) -> 0 | F186: =+SUM(F176:F185) -> 0 | G186: =+SUM(G176:G185) -> 0
C189: Flood control Carry over | M189: =ROW(D152) -> 152 | N189: =ROW(E152) -> 152 | O189: =ROW(F152) -> 152 | P189: =ROW(G152) -> 152 | Q189: =ROW(H152) -> 152
C190: Sub-catchment | D190: Upstream | E190: =+Data!$H$20 -> 1-year | F190: =+Data!$H$21 -> 2-year | G190: =+Data!$H$22 -> 10-year | H190: =+Data!$H$23 -> 25-year | I190: =+Data!$H$24 -> 100-year | M190: =COLUMN(D152) -> 4 | N190: =COLUMN(E152) -> 5 | O190: =COLUMN(F152) -> 6 | P190: =COLUMN(G152) -> 7 | Q190: =COLUMN(H152) -> 8
C191: Sub1 | D191: =+IFERROR(IF($M$5=VLOOKUP(C191,Summary!$C$52:$E$61,3,FALSE),"Y","N"),"N") -> N | E191: =IF($D191="N",0,OFFSET(INDIRECT(CONCATENATE($C191,"!a1")),M$189-1,M$190-1)) -> 0 | F191: =IF($D191="N",0,OFFSET(INDIRECT(CONCATENATE($C191,"!a1")),N$189-1,N$190-1)) -> 0 | G191: 0 | H191: 0 | I191: 0
C192: Sub2 | D192: =+IFERROR(IF($M$5=VLOOKUP(C192,Summary!$C$52:$E$61,3,FALSE),"Y","N"),"N") -> N | E192: =IF($D192="N",0,OFFSET(INDIRECT(CONCATENATE($C192,"!a1")),M$189-1,M$190-1)) -> 0 | F192: 0 | G192: 0 | H192: 0 | I192: 0
C193: Sub3 | D193: =+IFERROR(IF($M$5=VLOOKUP(C193,Summary!$C$52:$E$61,3,FALSE),"Y","N"),"N") -> N | E193: 0 | F193: 0 | G193: 0 | H193: 0 | I193: 0
C194: Sub4 | D194: =+IFERROR(IF($M$5=VLOOKUP(C194,Summary!$C$52:$E$61,3,FALSE),"Y","N"),"N") -> N | E194: 0 | F194: 0 | G194: 0 | H194: 0 | I194: 0
C195: Sub5 | D195: =+IFERROR(IF($M$5=VLOOKUP(C195,Summary!$C$52:$E$61,3,FALSE),"Y","N"),"N") -> N | E195: 0 | F195: 0 | G195: 0 | H195: 0 | I195: 0
C196: Sub6 | D196: =+IFERROR(IF($M$5=VLOOKUP(C196,Summary!$C$52:$E$61,3,FALSE),"Y","N"),"N") -> N | E196: 0 | F196: 0 | G196: 0 | H196: 0 | I196: 0
C197: Sub7 | D197: =+IFERROR(IF($M$5=VLOOKUP(C197,Summary!$C$52:$E$61,3,FALSE),"Y","N"),"N") -> N | E197: 0 | F197: 0 | G197: 0 | H197: 0 | I197: 0
C198: Sub8 | D198: =+IFERROR(IF($M$5=VLOOKUP(C198,Summary!$C$52:$E$61,3,FALSE),"Y","N"),"N") -> N | E198: 0 | F198: 0 | G198: 0 | H198: 0 | I198: 0
C199: Sub9 | D199: =+IFERROR(IF($M$5=VLOOKUP(C199,Summary!$C$52:$E$61,3,FALSE),"Y","N"),"N") -> N | E199: 0 | F199: 0 | G199: 0 | H199: 0 | I199: 0
C200: Sub10 | D200: =+IFERROR(IF($M$5=VLOOKUP(C200,Summary!$C$52:$E$61,3,FALSE),"Y","N"),"N") -> N | E200: 0 | F200: 0 | G200: 0 | H200: 0 | I200: 0
C201: Total | E201: =SUM(E191:E200) -> 0 | F201: =SUM(F191:F200) -> 0 | G201: 0 | H201: 0 | I201: 0

Sheet Sub5
C2: =" " & Data!$H$2 &CHAR(10) & " " & Settings!$D$5 -> LGROW Design Spreadsheet City of Ferrysburg
B4: =CONCATENATE(M5,": ") -> Sub5: | D4: =+IFERROR(IF(VLOOKUP(M5,Summary!$C$52:$L$61,4,FALSE)=0,"",VLOOKUP(M5,Summary!$C$52:$L$61,4,FALSE)),N4) -> This subcatchment is not defined on the Summary tab. | M4: Text | N4: This subcatchment is not defined on the Summary tab.
C5: Runoff | M5: =MID(CELL("filename",A1),FIND("]",CELL("filename",A1))+1,255) -> Sub5 | N5: Sheet name
G6: Curve Number | M6: =RIGHT(M5,1) -> 5 | N6: Subcatchment number
C7: Existing Land Use | D7: HSG | E7: Area | F7: Units | G7: Existing | I7: Pre-settlement
G8: =IF(H8<2,"",VLOOKUP(C8,Data!$A$4:$E$21,H8,FALSE)) ->  | H8: =IF(AND(C8="",D8=""),0,IF(AND(C8<>"",D8<>""),HLOOKUP(D8,Data!$B$2:$E$3,2),1)) -> 0 | I8: =+F116 -> 
G9: =IF(H9<2,"",VLOOKUP(C9,Data!$A$4:$E$21,H9,FALSE)) ->  | H9: =IF(AND(C9="",D9=""),0,IF(AND(C9<>"",D9<>""),HLOOKUP(D9,Data!$B$2:$E$3,2),1)) -> 0
G10: =IF(H10<2,"",VLOOKUP(C10,Data!$A$4:$E$21,H10,FALSE)) ->  | H10: =IF(AND(C10="",D10=""),0,IF(AND(C10<>"",D10<>""),HLOOKUP(D10,Data!$B$2:$E$3,2),1)) -> 0
G11: =IF(H11<2,"",VLOOKUP(C11,Data!$A$4:$E$21,H11,FALSE)) ->  | H11: =IF(AND(C11="",D11=""),0,IF(AND(C11<>"",D11<>""),HLOOKUP(D11,Data!$B$2:$E$3,2),1)) -> 0
G12: =IF(H12<2,"",VLOOKUP(C12,Data!$A$4:$E$21,H12,FALSE)) ->  | H12: =IF(AND(C12="",D12=""),0,IF(AND(C12<>"",D12<>""),HLOOKUP(D12,Data!$B$2:$E$3,2),1)) -> 0
E13: =+D102/43560 -> 0 | F13: acre | G13: =+IF(F102=100,"",F102) ->  | I13: =+IF(F121=100,"",F121) -> 
C15: Developed Land Use | D15: HSG | E15: Area | F15: Units | G15: Curve Number | I15: Notes
G16: =IF(H16<2,"",VLOOKUP(C16,Data!$A$28:$E$67,H16,FALSE)) ->  | H16: =+IF(AND(C16="",D16=""),0,IF(AND(C16<>"",D16<>""),HLOOKUP(D16,Data!$B$2:$E$3,2),1)) -> 0
G17: =IF(H17<2,"",VLOOKUP(C17,Data!$A$28:$E$67,H17,FALSE)) ->  | H17: =+IF(AND(C17="",D17=""),0,IF(AND(C17<>"",D17<>""),HLOOKUP(D17,Data!$B$2:$E$3,2),1)) -> 0
G18: =IF(H18<2,"",VLOOKUP(C18,Data!$A$28:$E$67,H18,FALSE)) ->  | H18: =+IF(AND(C18="",D18=""),0,IF(AND(C18<>"",D18<>""),HLOOKUP(D18,Data!$B$2:$E$3,2),1)) -> 0
G19: =IF(H19<2,"",VLOOKUP(C19,Data!$A$28:$E$67,H19,FALSE)) ->  | H19: =+IF(AND(C19="",D19=""),0,IF(AND(C19<>"",D19<>""),HLOOKUP(D19,Data!$B$2:$E$3,2),1)) -> 0
G20: =IF(H20<2,"",VLOOKUP(C20,Data!$A$28:$E$67,H20,FALSE)) ->  | H20: =+IF(AND(C20="",D20=""),0,IF(AND(C20<>"",D20<>""),HLOOKUP(D20,Data!$B$2:$E$3,2),1)) -> 0
G21: =IF(H21<2,"",VLOOKUP(C21,Data!$A$28:$E$67,H21,FALSE)) ->  | H21: =+IF(AND(C21="",D21=""),0,IF(AND(C21<>"",D21<>""),HLOOKUP(D21,Data!$B$2:$E$3,2),1)) -> 0
C22: Notes: | D22: =IF(H22=1,"≠ Existing →","") ->  | E22: =+D112/43560 -> 0 | F22: acre | G22: =+IF(F112=100,"",F112) ->  | H22: =IF(AND(E13=0,E22=0),0,IF(ABS(E22-E13)/MAX(E22,E13)>0.01,1,0)) -> 0
C24: Subcatchment Runoff Volume for Developed Land Use
C25: Rainfall Frequency | D25: =+Data!$H$20 -> 1-year | E25: =+Data!$H$21 -> 2-year | F25: =+Data!$H$22 -> 10-year | G25: =+Data!$H$23 -> 25-year | I25: =+Data!$H$24 -> 100-year
C26: Volume from this Subcatchment [cft] | D26: =D148 -> 0 | E26: =E148 -> 0 | F26: 0 | G26: 0 | I26: =+H148 -> 0
C29: Channel Protection Volume
C30: Required Channel Protection Volume | F30: 2-year Runoff Volumes [cft]
D31: Is Channel Protection Volume required? If no, provide reason. | E31: Yes | F31: Developed | G31: Pre-developed
D32: Required this Subcatchment [cft] | E32: =IF(E31=Data!H38,MAX(F32-G32,0),0) -> 0 | F32: =+D128 -> 0 | G32: =+IF(Summary!E41=Data!H9,E128,F128) -> 0
D33: Unmet from Upstream Subcatchments [cft] | E33: =+E186 -> 0
C34: Required Channel Protection Volume [cft] | E34: =+E33+E32 -> 0
C35: Structural BMPs used to meet Channel Protection Volume
C36: Structural BMP | D36: A Infiltration Area [sqft] | E36: V Storage Volume [cft] | F36: i Design Infiltration Rate [in/hr] | G36: Drain Time [hr] | I36: Volume Retained [cft]
G37: =+I134 -> N.A. | I37: =+IF(H134<=0,"",H134) -> 
G38: =+I135 -> N.A. | I38: =+IF(H135<=0,"",H135) -> 
G39: N.A.
G40: =+I137 -> N.A. | I40: =+IF(H137<=0,"",H137) -> 
C41: Totals | E41: =+SUM(E37:E40) -> 0 | I41: =+H138 -> 0
G42: Credited Channel Protection Volume | I42: =MIN(H138,H141,E34) -> 0
C43: Notes: | G43: Percentage of Channel Protection Volume Met by Retention | I43: =+IFERROR(IF(E32>0,MIN(1,I42/E34),1),"") -> 1
C47: Water Quality Volume
F48: =+Data!$A$89 -> Paved [ac] | G48: =+Data!$A$88 -> Pitched Roofs [ac] | I48: =+Data!$A$87 -> Flat Roofs/Unpaved [ac] | L48: Paved | M48: Pitched | O48: Flat
D49: Sum of Directly Connected Impervious Area [ac] | E49: =+I171 -> 0 | F49: =+E49-I49-G49 -> 0 | H49: =+IF(OR(F49<0,F49>E49),1,0) -> 0 | L49: =+F49/12*VLOOKUP(F48,WaterQualityFactors,2,FALSE) -> 0 | M49: =+G49/12*VLOOKUP(G48,WaterQualityFactors,2,FALSE) -> 0 | O49: =+I49/12*VLOOKUP(I48,WaterQualityFactors,2,FALSE) -> 0
D50: Sum of Directly Connected Disturbed Pervious Area [ac] | E50: =SUM(L51,M51,N51) -> 0 | G50: =+IF(OR(G49<0,G49>E$49,H$49=1),"Invalid Entry","") ->  | H50: =+SUM(O49,M49,L49,L52,M52,N52) -> 0 | I50: =+IF(OR(I49<0,I49>E$49,H$49=1),"Invalid Entry","") ->  | L50: =+Data!$A$90 -> Sandy Soils (HSG A) [ac] | M50: =+Data!$A$91 -> Silty Soils (HSG B) [ac] | N50: =+Data!$A$92 -> Clayey Soils (HSG C&D) [ac]
D51: Required Volume this Subcatchment [cft] | E51: =43560*H50 -> 0 | G51: TSS Generated this Subcatchment | I51: =+E51 -> 0 | L51: =+F171 -> 0 | M51: =+G171 -> 0 | N51: =H171 -> 0
D52: Volume from Upstream Subcatchments [cft] | E52: =+F186 -> 0 | G52: TSS from Upstream Subcatchments | I52: =+G186 -> 0 | L52: =+L51/12*VLOOKUP(L50,WaterQualityFactors,2,FALSE) -> 0 | M52: =+M51/12*VLOOKUP(M50,WaterQualityFactors,2,FALSE) -> 0 | N52: =+N51/12*VLOOKUP(N50,WaterQualityFactors,2,FALSE) -> 0
C53: Water Quality Volume to be Treated [cft] | E53: =+E52+E51 -> 0 | F53: TSS to be Treated | I53: =+I51+I52 -> 0
C54: TSS Accounting
C55: BMPs Used in Treatment Train | D55: Treated Water Volume [cft] | E55: TSS Removal Efficiency | I55: TSS Removed
E56: Tabulated | F56: Third-Party | G56: Effective | H56: TSS in stream | M56: Released water Volume | P56: Need 3rd party value
E57: =+IF(C57="","",IF(P57=Data!$H$38,"--",VLOOKUP(C57,Data!$A$109:$B$143,2,FALSE))) ->  | G57: =+IF(C57="","",IF(P57=Data!$H$38,F57,VLOOKUP(C57,Data!$A$109:$B$143,2,FALSE))*MIN(1,IFERROR(D57/L57,0))) ->  | H57: =+I53-I57 -> 0 | I57: =+IFERROR(I53*G57/100,0) -> 0 | L57: =+$E$53 -> 0 | M57: =+IF(D57="","",IFERROR(MIN(IF(VLOOKUP(C57,Data!$A$109:$C$143,3,FALSE)=Data!$C$112,L57,MAX(0,L57-D57)),$E$53),"")) ->  | N57: =IFERROR(1/ISNUMBER(M57),"") ->  | O57: =+IF(D57*1.01>L57,1,0) -> 0 | P57: =+IF(C57="","",IF(VLOOKUP(C57,Data!$A$109:$B$143,2,FALSE)="",Data!$H$38,Data!$H$39)) -> 
E58: =+IF(C58="","",IF(P58=Data!$H$38,"--",VLOOKUP(C58,Data!$A$109:$B$143,2,FALSE))) ->  | G58: =+IF(C58="","",IF(P58=Data!$H$38,F58,VLOOKUP(C58,Data!$A$109:$B$143,2,FALSE))*MIN(1,IFERROR(D58/L58,0))) ->  | H58: =+H57-I58 -> 0 | I58: =+IFERROR(H57*G58/100,0) -> 0 | L58: =MIN(L57:M57) -> 0 | M58: =+IF(D58="","",IFERROR(MIN(IF(VLOOKUP(C58,Data!$A$109:$C$143,3,FALSE)=Data!$C$112,L58,MAX(0,L58-D58)),$E$53),"")) ->  | N58: =IFERROR(1/ISNUMBER(M58),"") ->  | O58: =+IF(D58*1.01>L58,1,0) -> 0 | P58: =+IF(C58="","",IF(VLOOKUP(C58,Data!$A$109:$B$143,2,FALSE)="",Data!$H$38,Data!$H$39)) -> 
E59: =+IF(C59="","",IF(P59=Data!$H$38,"--",VLOOKUP(C59,Data!$A$109:$B$143,2,FALSE))) ->  | G59: =+IF(C59="","",IF(P59=Data!$H$38,F59,VLOOKUP(C59,Data!$A$109:$B$143,2,FALSE))*MIN(1,IFERROR(D59/L59,0))) ->  | H59: 0 | I59: =+IFERROR(H58*G59/100,0) -> 0 | L59: =MIN(L58:M58) -> 0 | M59: =+IF(D59="","",IFERROR(MIN(IF(VLOOKUP(C59,Data!$A$109:$C$143,3,FALSE)=Data!$C$112,L59,MAX(0,L59-D59)),$E$53),"")) ->  | O59: =+IF(D59*1.01>L59,1,0) -> 0 | P59: =+IF(C59="","",IF(VLOOKUP(C59,Data!$A$109:$B$143,2,FALSE)="",Data!$H$38,Data!$H$39)) -> 
E60: =+IF(C60="","",IF(P60=Data!$H$38,"--",VLOOKUP(C60,Data!$A$109:$B$143,2,FALSE))) ->  | G60: =+IF(C60="","",IF(P60=Data!$H$38,F60,VLOOKUP(C60,Data!$A$109:$B$143,2,FALSE))*MIN(1,IFERROR(D60/L60,0))) ->  | H60: 0 | I60: 0 | L60: 0 | M60: =+IF(D60="","",IFERROR(MIN(IF(VLOOKUP(C60,Data!$A$109:$C$143,3,FALSE)=Data!$C$112,L60,MAX(0,L60-D60)),$E$53),"")) ->  | O60: 0 | P60: =+IF(C60="","",IF(VLOOKUP(C60,Data!$A$109:$B$143,2,FALSE)="",Data!$H$38,Data!$H$39)) -> 
E61: =+IF(C61="","",IF(P61=Data!$H$38,"--",VLOOKUP(C61,Data!$A$109:$B$143,2,FALSE))) ->  | G61: =+IF(C61="","",IF(P61=Data!$H$38,F61,VLOOKUP(C61,Data!$A$109:$B$143,2,FALSE))*MIN(1,IFERROR(D61/L61,0))) ->  | H61: 0 | I61: 0 | L61: 0 | M61: =+IF(D61="","",IFERROR(MIN(IF(VLOOKUP(C61,Data!$A$109:$C$143,3,FALSE)=Data!$C$112,L61,MAX(0,L61-D61)),$E$53),"")) ->  | O61: 0 | P61: =+IF(C61="","",IF(VLOOKUP(C61,Data!$A$109:$B$143,2,FALSE)="",Data!$H$38,Data!$H$39)) -> 
C62: Released Water Volume [cft] | D62: =+M62 -> 0 | G62: Total TSS Removed | I62: =+SUM(I57:I61) -> 0 | M62: =IFERROR(LOOKUP(2,N57:N61,M57:M61),E53) -> 0 | O62: =SUM(O57:O61) -> 0
C63: Water Quality Volume met? | D63: =+M63 -> Yes | G63: TSS Remaining | I63: =+I53-I62 -> 0 | M63: =IF(OR(O62>0,E53<0.5),"Yes","No") -> Yes
C64: Notes: | G64: TSS Removal Efficiency [%] | I64: =+IFERROR(I62/I53*100,0) -> 0
C68: Infiltration Rate Calculator for Filter Media
C70: Filter Media Component | D70: K [ft/day] | E70: Weight | G70: Constructed Filter | H70: Weight | I70: Value
D71: =+IFERROR(VLOOKUP(C71,Data!$A$146:$B$151,2,FALSE),"") ->  | G71: Average Head on the Filter [ft] | H71: =+IF(D71="",0,E71) -> 0
D72: =+IFERROR(VLOOKUP(C72,Data!$A$146:$B$151,2,FALSE),"") ->  | G72: Depth of Filter Media [ft] | H72: =+IF(D72="",0,E72) -> 0
D73: =+IFERROR(VLOOKUP(C73,Data!$A$146:$B$151,2,FALSE),"") ->  | G73: Infiltration Rate [in/hr] | H73: 0 | I73: =+IFERROR(D75*(I71+I72)/2/I72,"") -> 
G74: Retentive BMP | H74: 0
C75: Average Hydraulic Conductivity of Filter Media [ft/day] | D75: =IFERROR(SUMPRODUCT(D71:D74,H71:H74)/SUM(H71:H74),"") ->  | G75: Infiltration Rate [in/hr] | I75: =IFERROR(D75/2,"") -> 
C76: Notes:
B89: =CELL("width",B89) -> 4 | C89: 54 | D89: 15 | E89: 15 | F89: 15 | G89: 15 | I89: =CELL("width",I89) -> 15 | J89: =CELL("width",J89) -> 4 | R89: =+SUM(B89:J89) -> 137
C90: Start of Hidden Cells
C92: Calculation of pervious CN and fraction impervious
E94: Ia factor | F94: 0.2 | H94: =+Data!H20 -> 1-year | I94: =VLOOKUP(H94,Settings!$C$20:$D$24,2,FALSE) -> 2.22 | L94: =+Data!H21 -> 2-year | M94: =VLOOKUP(L94,Settings!$C$20:$D$24,2,FALSE) -> 2.56 | N94: =+Data!H22 -> 10-year | O94: =VLOOKUP(N94,Settings!$C$20:$D$24,2,FALSE) -> 3.77 | P94: =+Data!H23 -> 25-year | Q94: =VLOOKUP(P94,Settings!$C$20:$D$24,2,FALSE) -> 4.66 | R94: =+Data!H24 -> 100-year | S94: =VLOOKUP(R94,Settings!$C$20:$D$24,2,FALSE) -> 6.27
C96: Existing CNs | D96: Area [sqft] | E96: Per. area [sqft] | F96: CN | G96: Ia [in] | H96: SRO [in] | I96: Volume [cft] | L96: SRO [in] | M96: Volume [cft] | N96: SRO [in] | O96: Volume [cft] | P96: SRO [in] | Q96: Volume [cft] | R96: SRO [in] | S96: Volume [cft]
C97: =+IF(C8="","",C8) ->  | D97: =+IF(H8>1,E8*IFERROR(VLOOKUP(F8,Data!$H$33:$I$35,2,FALSE),Data!$I$34),0) -> 0 | E97: =+IF(C97<>Data!$A$4,D97,0) -> 0 | F97: =+G8 ->  | G97: =+IFERROR(IF(F97=0,0,1000/F97-10),0)*$F$94 -> 0 | H97: =+IF((I$94-$G97)<0,0,(I$94-$G97)^2/(I$94+4*$G97)) -> 2.22 | I97: =+$D97*H97/12 -> 0 | L97: =+IF((M$94-$G97)<0,0,(M$94-$G97)^2/(M$94+4*$G97)) -> 2.56 | M97: =+$D97*L97/12 -> 0 | N97: =+IF((O$94-$G97)<0,0,(O$94-$G97)^2/(O$94+4*$G97)) -> 3.77 | O97: =+$D97*N97/12 -> 0 | P97: =+IF((Q$94-$G97)<0,0,(Q$94-$G97)^2/(Q$94+4*$G97)) -> 4.66 | Q97: =+$D97*P97/12 -> 0 | R97: =+IF((S$94-$G97)<0,0,(S$94-$G97)^2/(S$94+4*$G97)) -> 6.27 | S97: =+$D97*R97/12 -> 0
C98: =+IF(C9="","",C9) ->  | D98: =+IF(H9>1,E9*IFERROR(VLOOKUP(F9,Data!$H$33:$I$35,2,FALSE),Data!$I$34),0) -> 0 | E98: =+IF(C98<>Data!$A$4,D98,0) -> 0 | F98: =+G9 ->  | G98: =+IFERROR(IF(F98=0,0,1000/F98-10),0)*$F$94 -> 0 | H98: =+IF((I$94-$G98)<0,0,(I$94-$G98)^2/(I$94+4*$G98)) -> 2.22 | I98: =+$D98*H98/12 -> 0 | L98: 2.56 | M98: =+$D98*L98/12 -> 0 | N98: 3.77 | O98: =+$D98*N98/12 -> 0 | P98: 4.66 | Q98: =+$D98*P98/12 -> 0 | R98: 6.27 | S98: =+$D98*R98/12 -> 0
C99: =+IF(C10="","",C10) ->  | D99: =+IF(H10>1,E10*IFERROR(VLOOKUP(F10,Data!$H$33:$I$35,2,FALSE),Data!$I$34),0) -> 0 | E99: =+IF(C99<>Data!$A$4,D99,0) -> 0 | F99: =+G10 ->  | G99: =+IFERROR(IF(F99=0,0,1000/F99-10),0)*$F$94 -> 0 | H99: =+IF((I$94-$G99)<0,0,(I$94-$G99)^2/(I$94+4*$G99)) -> 2.22 | I99: 0 | L99: 2.56 | M99: 0 | N99: 3.77 | O99: 0 | P99: 4.66 | Q99: 0 | R99: 6.27 | S99: 0
C100: =+IF(C11="","",C11) ->  | D100: =+IF(H11>1,E11*IFERROR(VLOOKUP(F11,Data!$H$33:$I$35,2,FALSE),Data!$I$34),0) -> 0 | E100: =+IF(C100<>Data!$A$4,D100,0) -> 0 | F100: =+G11 ->  | G100: =+IFERROR(IF(F100=0,0,1000/F100-10),0)*$F$94 -> 0 | H100: =+IF((I$94-$G100)<0,0,(I$94-$G100)^2/(I$94+4*$G100)) -> 2.22 | I100: 0 | L100: 2.56 | M100: 0 | N100: 3.77 | O100: 0 | P100: 4.66 | Q100: 0 | R100: 6.27 | S100: 0
C101: =+IF(C12="","",C12) ->  | D101: =+IF(H12>1,E12*IFERROR(VLOOKUP(F12,Data!$H$33:$I$35,2,FALSE),Data!$I$34),0) -> 0 | E101: =+IF(C101<>Data!$A$4,D101,0) -> 0 | F101: =+G12 ->  | G101: =+IFERROR(IF(F101=0,0,1000/F101-10),0)*$F$94 -> 0 | H101: =+IF((I$94-$G101)<0,0,(I$94-$G101)^2/(I$94+4*$G101)) -> 2.22 | I101: 0 | L101: 2.56 | M101: 0 | N101: 3.77 | O101: 0 | P101: 4.66 | Q101: 0 | R101: 6.27 | S101: 0
C102: Totals | D102: =+SUM(D97:D101) -> 0 | E102: =+SUM(E97:E101) -> 0 | F102: =+IF(D102<>0,SUMPRODUCT(D97:D101,F97:F101)/D102,100) -> 100 | G102: =+IFERROR(SUMPRODUCT(D97:D101,G97:G101)/D102,0) -> 0 | I102: =SUM(I97:I101) -> 0 | L102: 2.56 | M102: =SUM(M97:M101) -> 0 | N102: 3.77 | O102: =SUM(O97:O101) -> 0 | P102: 4.66 | Q102: =SUM(Q97:Q101) -> 0 | R102: 6.27 | S102: =SUM(S97:S101) -> 0
C103: Fraction Impervious | D103: =+IF(D102<>0,(D102-E102)/D102,0) -> 0
C105: Developed CN's | D105: Area [sqft] | E105: Perv. Area [sqft] | F105: CN | G105: Ia [in] | H105: SRO [in] | I105: Volume [cft] | L105: SRO [in] | M105: Volume [cft] | N105: SRO [in] | O105: Volume [cft] | P105: SRO [in] | Q105: Volume [cft] | R105: SRO [in] | S105: Volume [cft]
C106: =+IF(C16="","",C16) ->  | D106: =+IF(H16>1,E16*IFERROR(VLOOKUP(F16,Data!$H$33:$I$35,2,FALSE),Data!$I$34),0) -> 0 | E106: =+IF(F106=98,0,D106) -> 0 | F106: =+G16 ->  | G106: =+IFERROR(IF(F106=0,0,1000/F106-10),0)*$F$94 -> 0 | H106: =+IF((I$94-$G106)<0,0,(I$94-$G106)^2/(I$94+4*$G106)) -> 2.22 | I106: =+$D106*H106/12 -> 0 | L106: =+IF((M$94-$G106)<0,0,(M$94-$G106)^2/(M$94+4*$G106)) -> 2.56 | M106: =+$D106*L106/12 -> 0 | N106: =+IF((O$94-$G106)<0,0,(O$94-$G106)^2/(O$94+4*$G106)) -> 3.77 | O106: =+$D106*N106/12 -> 0 | P106: =+IF((Q$94-$G106)<0,0,(Q$94-$G106)^2/(Q$94+4*$G106)) -> 4.66 | Q106: =+$D106*P106/12 -> 0 | R106: =+IF((S$94-$G106)<0,0,(S$94-$G106)^2/(S$94+4*$G106)) -> 6.27 | S106: =+$D106*R106/12 -> 0
D107: =+IF(H17>1,E17*IFERROR(VLOOKUP(F17,Data!$H$33:$I$35,2,FALSE),Data!$I$34),0) -> 0 | E107: =+IF(F107=98,0,D107) -> 0 | G107: 0 | H107: 2.22 | I107: =+$D107*H107/12 -> 0 | L107: 2.56 | M107: =+$D107*L107/12 -> 0 | N107: 3.77 | O107: =+$D107*N107/12 -> 0 | P107: 4.66 | Q107: =+$D107*P107/12 -> 0 | R107: 6.27 | S107: =+$D107*R107/12 -> 0
D108: =+IF(H18>1,E18*IFERROR(VLOOKUP(F18,Data!$H$33:$I$35,2,FALSE),Data!$I$34),0) -> 0 | E108: 0 | G108: 0 | H108: 2.22 | I108: 0 | L108: 2.56 | M108: 0 | N108: 3.77 | O108: 0 | P108: 4.66 | Q108: 0 | R108: 6.27 | S108: 0
D109: =+IF(H19>1,E19*IFERROR(VLOOKUP(F19,Data!$H$33:$I$35,2,FALSE),Data!$I$34),0) -> 0 | E109: 0 | G109: 0 | H109: 2.22 | I109: 0 | L109: 2.56 | M109: 0 | N109: 3.77 | O109: 0 | P109: 4.66 | Q109: 0 | R109: 6.27 | S109: 0
D110: =+IF(H20>1,E20*IFERROR(VLOOKUP(F20,Data!$H$33:$I$35,2,FALSE),Data!$I$34),0) -> 0 | E110: 0 | G110: 0 | H110: 2.22 | I110: 0 | L110: 2.56 | M110: 0 | N110: 3.77 | O110: 0 | P110: 4.66 | Q110: 0 | R110: 6.27 | S110: 0
D111: =+IF(H21>1,E21*IFERROR(VLOOKUP(F21,Data!$H$33:$I$35,2,FALSE),Data!$I$34),0) -> 0 | E111: 0 | G111: 0 | H111: 2.22 | I111: 0 | L111: 2.56 | M111: 0 | N111: 3.77 | O111: 0 | P111: 4.66 | Q111: 0 | R111: 6.27 | S111: 0
C112: Total | D112: =+SUM(D106:D111) -> 0 | E112: =+SUM(E106:E111) -> 0 | F112: =IF(D112<>0,SUMPRODUCT(D106:D111,F106:F111)/D112,"") ->  | G112: =IFERROR(SUMPRODUCT(D106:D111,G106:G111)/D112,0) -> 0 | I112: =SUM(I106:I111) -> 0 | L112: 2.56 | M112: =SUM(M106:M111) -> 0 | N112: 3.77 | O112: =SUM(O106:O111) -> 0 | P112: 4.66 | Q112: =SUM(Q106:Q111) -> 0 | R112: 6.27 | S112: =SUM(S106:S111) -> 0
C113: Fraction Impervious | D113: =+IF(D112<>0,(D112-E112)/D112,0) -> 0
C115: Pre-settlement CN's | D115: HSG | E115: Area [sqft] | F115: SCS CN | G115: Ia [in] | H115: SRO [in] | I115: Volume [cft] | L115: SRO [in] | M115: Volume [cft] | N115: SRO [in] | O115: Volume [cft] | P115: SRO [in] | Q115: Volume [cft] | R115: SRO [in] | S115: Volume [cft]
C116: =IF(C8="","",VLOOKUP(C8,Data!$A$4:$F$21,6,FALSE)) ->  | D116: =IF(D8="","",D8) ->  | E116: =IF(H8<=1,"",E8*IFERROR(VLOOKUP(F8,Data!$H$33:$I$35,2,FALSE),Data!$I$34)) ->  | F116: =IF(H8<2,"",VLOOKUP(C116,Data!$A$4:$E$21,H8,FALSE)) ->  | G116: =+IFERROR(IF(F116=0,0,1000/F116-10),0)*$F$94 -> 0 | H116: =+IF((I$94-$G116)<0,0,(I$94-$G116)^2/(I$94+4*$G116)) -> 2.22 | I116: =+IFERROR($E116*H116/12,0) -> 0 | L116: =+IF((M$94-$G116)<0,0,(M$94-$G116)^2/(M$94+4*$G116)) -> 2.56 | M116: =+IFERROR($E116*L116/12,0) -> 0 | N116: =+IF((O$94-$G116)<0,0,(O$94-$G116)^2/(O$94+4*$G116)) -> 3.77 | O116: =+IFERROR($E116*N116/12,0) -> 0 | P116: =+IF((Q$94-$G116)<0,0,(Q$94-$G116)^2/(Q$94+4*$G116)) -> 4.66 | Q116: =+IFERROR($E116*P116/12,0) -> 0 | R116: =+IF((S$94-$G116)<0,0,(S$94-$G116)^2/(S$94+4*$G116)) -> 6.27 | S116: =+IFERROR($E116*R116/12,0) -> 0
C117: =IF(C9="","",VLOOKUP(C9,Data!$A$4:$F$21,6,FALSE)) ->  | D117: =IF(D9="","",D9) ->  | E117: =IF(H9<=1,"",E9*IFERROR(VLOOKUP(F9,Data!$H$33:$I$35,2,FALSE),Data!$I$34)) ->  | F117: =IF(H9<2,"",VLOOKUP(C117,Data!$A$4:$E$21,H9,FALSE)) ->  | G117: =+IFERROR(IF(F117=0,0,1000/F117-10),0)*$F$94 -> 0 | H117: =+IF((I$94-$G117)<0,0,(I$94-$G117)^2/(I$94+4*$G117)) -> 2.22 | I117: =+IFERROR($E117*H117/12,0) -> 0 | L117: 2.56 | M117: =+IFERROR($E117*L117/12,0) -> 0 | N117: 3.77 | O117: =+IFERROR($E117*N117/12,0) -> 0 | P117: 4.66 | Q117: =+IFERROR($E117*P117/12,0) -> 0 | R117: 6.27 | S117: =+IFERROR($E117*R117/12,0) -> 0
C118: =IF(C10="","",VLOOKUP(C10,Data!$A$4:$F$21,6,FALSE)) ->  | D118: =IF(D10="","",D10) ->  | E118: =IF(H10<=1,"",E10*IFERROR(VLOOKUP(F10,Data!$H$33:$I$35,2,FALSE),Data!$I$34)) ->  | F118: =IF(H10<2,"",VLOOKUP(C118,Data!$A$4:$E$21,H10,FALSE)) ->  | G118: =+IFERROR(IF(F118=0,0,1000/F118-10),0)*$F$94 -> 0 | H118: =+IF((I$94-$G118)<0,0,(I$94-$G118)^2/(I$94+4*$G118)) -> 2.22 | I118: 0 | L118: 2.56 | M118: 0 | N118: 3.77 | O118: 0 | P118: 4.66 | Q118: 0 | R118: 6.27 | S118: 0
C119: =IF(C11="","",VLOOKUP(C11,Data!$A$4:$F$21,6,FALSE)) ->  | D119: =IF(D11="","",D11) ->  | E119: =IF(H11<=1,"",E11*IFERROR(VLOOKUP(F11,Data!$H$33:$I$35,2,FALSE),Data!$I$34)) ->  | F119: =IF(H11<2,"",VLOOKUP(C119,Data!$A$4:$E$21,H11,FALSE)) ->  | G119: =+IFERROR(IF(F119=0,0,1000/F119-10),0)*$F$94 -> 0 | H119: =+IF((I$94-$G119)<0,0,(I$94-$G119)^2/(I$94+4*$G119)) -> 2.22 | I119: 0 | L119: 2.56 | M119: 0 | N119: 3.77 | O119: 0 | P119: 4.66 | Q119: 0 | R119: 6.27 | S119: 0
C120: =IF(C12="","",VLOOKUP(C12,Data!$A$4:$F$21,6,FALSE)) ->  | D120: =IF(D12="","",D12) ->  | E120: =IF(H12<=1,"",E12*IFERROR(VLOOKUP(F12,Data!$H$33:$I$35,2,FALSE),Data!$I$34)) ->  | F120: =IF(H12<2,"",VLOOKUP(C120,Data!$A$4:$E$21,H12,FALSE)) ->  | G120: =+IFERROR(IF(F120=0,0,1000/F120-10),0)*$F$94 -> 0 | H120: =+IF((I$94-$G120)<0,0,(I$94-$G120)^2/(I$94+4*$G120)) -> 2.22 | I120: 0 | L120: 2.56 | M120: 0 | N120: 3.77 | O120: 0 | P120: 4.66 | Q120: 0 | R120: 6.27 | S120: 0
D121: Totals | E121: =+SUM(E116:E120) -> 0 | F121: =+IF(E121<>0,SUMPRODUCT(E116:E120,F116:F120)/E121,100) -> 100 | G121: =IFERROR(SUMPRODUCT(E116:E120,G116:G120)/E121,0) -> 0 | I121: =SUM(I116:I120) -> 0 | L121: 2.56 | M121: =SUM(M116:M120) -> 0 | N121: 3.77 | O121: =SUM(O116:O120) -> 0 | P121: 4.66 | Q121: =SUM(Q116:Q120) -> 0 | R121: 6.27 | S121: =SUM(S116:S120) -> 0
D122: Fraction Imperv | E122: 0
C124: Calculation of 2-year runoff volume for Channel Protection
D126: Developed | E126: Pre-settlement | F126: Existing
C127: Drainage area [sqft] | D127: =+D112 -> 0 | E127: =+E121 -> 0 | F127: =+D102 -> 0
C128: Volume (cft) = | D128: =+M112 -> 0 | E128: =+M121 -> 0 | F128: =+M102 -> 0
C129: Runoff Depth [in] | D129: =+IFERROR(D128/D127*12,0) -> 0 | E129: =+IFERROR(E128/E127*12,0) -> 0 | F129: 0
C131: Structural BMP volumes
C133: BMP | D133: Area [sqft] | E133: Volume [cft] | F133: Infiltration rate [in/hr] | G133: Infiltrating volume [cft] | H133: Total volume [cft] | I133: Drain Time [hr] | R133: Infiltration Time [hr] | S133: Infiltration rate [cf/hr]
C134: =+IF(C37=0,Data!$A$84,C37) -> NoneSelected | D134: =+MAX(0,D37) -> 0 | E134: =+MAX(0,E37*VLOOKUP($C134,Data!$A$71:$C$84,2,FALSE)) -> 0 | F134: =+MAX(0,F37*VLOOKUP($C134,Data!$A$71:$C$84,3,FALSE)) -> 0 | G134: =+IF(OR(I134="N.A.",I134=""),0,IFERROR(R134*S134,0)) -> 0 | H134: =+G134+E134 -> 0 | I134: =+IF(IFERROR(VLOOKUP(C134,Data!$A$71:$C$84,3,FALSE),0)=0,"N.A.",IFERROR(E134/D134/F134*12,"")) -> N.A. | R134: =IFERROR(2+MIN(72,I134)*(0.222-0.553*LOG(MIN(72,I134)/72)),0) -> 17.984 | S134: =+D134*F134/12 -> 0
C135: =+IF(C38=0,Data!$A$84,C38) -> NoneSelected | D135: =+MAX(0,D38) -> 0 | E135: =+MAX(0,E38*VLOOKUP($C135,Data!$A$71:$C$84,2,FALSE)) -> 0 | F135: =+MAX(0,F38*VLOOKUP($C135,Data!$A$71:$C$84,3,FALSE)) -> 0 | G135: =+IF(OR(I135="N.A.",I135=""),0,IFERROR(R135*S135,0)) -> 0 | H135: =+G135+E135 -> 0 | I135: =+IF(IFERROR(VLOOKUP(C135,Data!$A$71:$C$84,3,FALSE),0)=0,"N.A.",IFERROR(E135/D135/F135*12,"")) -> N.A. | R135: =IFERROR(2+MIN(72,I135)*(0.222-0.553*LOG(MIN(72,I135)/72)),0) -> 17.984 | S135: =+D135*F135/12 -> 0
C136: =+IF(C39=0,Data!$A$84,C39) -> NoneSelected | D136: =+MAX(0,D39) -> 0 | E136: =+MAX(0,E39*VLOOKUP($C136,Data!$A$71:$C$84,2,FALSE)) -> 0 | F136: =+MAX(0,F39*VLOOKUP($C136,Data!$A$71:$C$84,3,FALSE)) -> 0 | G136: 0 | H136: 0 | I136: =+IF(IFERROR(VLOOKUP(C136,Data!$A$71:$C$84,3,FALSE),0)=0,"N.A.",IFERROR(E136/D136/F136*12,"")) -> N.A. | R136: 17.984 | S136: 0
C137: =+IF(C40=0,Data!$A$84,C40) -> NoneSelected | D137: =+MAX(0,D40) -> 0 | E137: =+MAX(0,E40*VLOOKUP($C137,Data!$A$71:$C$84,2,FALSE)) -> 0 | F137: =+MAX(0,F40*VLOOKUP($C137,Data!$A$71:$C$84,3,FALSE)) -> 0 | G137: 0 | H137: 0 | I137: =+IF(IFERROR(VLOOKUP(C137,Data!$A$71:$C$84,3,FALSE),0)=0,"N.A.",IFERROR(E137/D137/F137*12,"")) -> N.A. | R137: 17.984 | S137: 0
E138: =SUM(E134:E137) -> 0 | F138: Sum of all BMPs | G138: =SUM(G134:G137) -> 0 | H138: =SUM(H134:H137) -> 0
G139: 2-year runoff volume for sub-catchment | H139: =+D128 -> 0
G140: Unmet Channel Protection Volume from upstream subcatchments | H140: =+E186 -> 0
G141: Sum of 2-year runoff volume and unmet upstream volumes | H141: =+H140+H139 -> 0
C143: Maximum retained volume for all events
C145: Event | D145: =+Data!$H$20 -> 1-year | E145: =+Data!$H$21 -> 2-year | F145: =+Data!$H$22 -> 10-year | G145: =+Data!$H$23 -> 25-year | H145: =+Data!$H$24 -> 100-year
C146: Drainage area [sqft] | D146: =+$D112 -> 0 | E146: =+$D112 -> 0 | F146: =+$D112 -> 0 | G146: =+$D112 -> 0 | H146: =+$D112 -> 0
C147: Total Runoff, Q (in) = | D147: =+IFERROR(D148/D146*12,0) -> 0 | E147: =+IFERROR(E148/E146*12,0) -> 0 | F147: =+IFERROR(F148/F146*12,0) -> 0 | G147: =+IFERROR(G148/G146*12,0) -> 0 | H147: =+IFERROR(H148/H146*12,0) -> 0
C148: Runoff Volume (cft) = | D148: =+I112 -> 0 | E148: =+M112 -> 0 | F148: =O112 -> 0 | G148: =Q112 -> 0 | H148: =S112 -> 0
C149: Excess runoff volume upstream subcatchments (cft) | D149: =+E201 -> 0 | E149: =+F201 -> 0 | F149: 0 | G149: 0 | H149: 0
C150: Total Runoff to retentive BMP (cft) | D150: =+D149+D148 -> 0 | E150: =+E149+E148 -> 0 | F150: 0 | G150: 0 | H150: 0
C151: Volume retained in subcatchment [cft] | D151: =+MIN($H$138,D150) -> 0 | E151: =+MIN($H$138,E150) -> 0 | F151: 0 | G151: 0 | H151: 0
C152: Volume released from subcatchment [cft] | D152: =+D150-D151 -> 0 | E152: =+E150-E151 -> 0 | F152: 0 | G152: 0 | H152: 0
C154: Volume credited for detention flood control
C155: =+Data!H97 -> Volume Retained | D155: =+D151 -> 0 | E155: =+E151 -> 0 | F155: 0 | G155: 0 | H155: 0
C156: =+Data!H98 -> Storage Volume | D156: =+MIN(D150,$E$138) -> 0 | E156: =+MIN(E150,$E$138) -> 0 | F156: 0 | G156: 0 | H156: 0
C157: =+Data!H99 -> Storage Volume 2yr | D157: =+MIN(D156,$E$34) -> 0 | E157: =+MIN(E156,$E$34) -> 0 | F157: 0 | G157: 0 | H157: 0
C158: =+Data!H100 -> None | D158: 0 | E158: 0 | F158: 0 | G158: 0 | H158: 0
C159: ='Flood Control'!D24 -> None | D159: =VLOOKUP($C$159,$C$155:$H$158,D160,FALSE) -> 0 | E159: =VLOOKUP($C$159,$C$155:$H$158,E160,FALSE) -> 0 | F159: 0 | G159: 0 | H159: 0
D160: 2 | E160: 3 | F160: 4 | G160: 5 | H160: 6
C162: Areas for water quality volume
C163: Land use | D163: HSG | E163: DP Area [sqft] | F163: HSG = A | G163: HSG = B | H163: HSG = C or D | I163: Imp Area [sqft]
C164: =+IF(C16="","",C16) ->  | E164: =D106*IFERROR(VLOOKUP(C164,Data!$A$102:$B$105,2,FALSE),0) -> 0 | F164: =IF(D164="A",E164,0) -> 0 | G164: =IF(D164="B",E164,0) -> 0 | H164: =IF(OR(D164="C",D164="D"),E164,0) -> 0 | I164: =+D106*IFERROR(VLOOKUP(C164,Data!$A$95:$B$98,2,FALSE),0) -> 0
E165: =D107*IFERROR(VLOOKUP(C165,Data!$A$102:$B$105,2,FALSE),0) -> 0 | F165: =IF(D165="A",E165,0) -> 0 | G165: =IF(D165="B",E165,0) -> 0 | H165: 0 | I165: =+D107*IFERROR(VLOOKUP(C165,Data!$A$95:$B$98,2,FALSE),0) -> 0
E166: =D108*IFERROR(VLOOKUP(C166,Data!$A$102:$B$105,2,FALSE),0) -> 0 | F166: =IF(D166="A",E166,0) -> 0 | G166: =IF(D166="B",E166,0) -> 0 | H166: 0 | I166: =+D108*IFERROR(VLOOKUP(C166,Data!$A$95:$B$98,2,FALSE),0) -> 0
E167: =D109*IFERROR(VLOOKUP(C167,Data!$A$102:$B$105,2,FALSE),0) -> 0 | F167: 0 | G167: 0 | H167: 0 | I167: =+D109*IFERROR(VLOOKUP(C167,Data!$A$95:$B$98,2,FALSE),0) -> 0
E168: =D110*IFERROR(VLOOKUP(C168,Data!$A$102:$B$105,2,FALSE),0) -> 0 | F168: 0 | G168: 0 | H168: 0 | I168: =+D110*IFERROR(VLOOKUP(C168,Data!$A$95:$B$98,2,FALSE),0) -> 0
E169: =D111*IFERROR(VLOOKUP(C169,Data!$A$102:$B$105,2,FALSE),0) -> 0 | F169: 0 | G169: 0 | H169: 0 | I169: =+D111*IFERROR(VLOOKUP(C169,Data!$A$95:$B$98,2,FALSE),0) -> 0
E170: Total [sqft] | F170: =SUM(F164:F169) -> 0 | G170: =SUM(G164:G169) -> 0 | H170: =SUM(H164:H169) -> 0 | I170: =SUM(I164:I169) -> 0
E171: Total [ac] | F171: =+F170/43560 -> 0 | G171: =+G170/43560 -> 0 | H171: =+H170/43560 -> 0 | I171: =+I170/43560 -> 0
C174: Quantities from upstream sub-catchments
C175: Sub-catchment | D175: Upstream | E175: Unmet CPV [cft] | F175: Released WQV [cft] | G175: Released TSS
C176: Sub1 | D176: =+IFERROR(IF($M$5=VLOOKUP(C176,Summary!$C$52:$E$61,3,FALSE),"Y","N"),"N") -> N | E176: =+IF($D176="Y",IFERROR(VLOOKUP($C176,Summary!$C$87:$I$96,7,FALSE),0),0) -> 0 | F176: =+IF($D176="Y",IFERROR(VLOOKUP($C176,Summary!$C$109:$J$118,5,FALSE),0),0) -> 0 | G176: =+IF($D176="Y",IFERROR(VLOOKUP($C176,Summary!$C$109:$K$118,9,FALSE),0),0) -> 0
C177: Sub2 | D177: =+IFERROR(IF($M$5=VLOOKUP(C177,Summary!$C$52:$E$61,3,FALSE),"Y","N"),"N") -> N | E177: =+IF(D177="Y",IFERROR(VLOOKUP(C177,Summary!$C$87:$I$96,7,FALSE),0),0) -> 0 | F177: =+IF($D177="Y",IFERROR(VLOOKUP($C177,Summary!$C$109:$J$118,5,FALSE),0),0) -> 0 | G177: =+IF($D177="Y",IFERROR(VLOOKUP($C177,Summary!$C$109:$K$118,9,FALSE),0),0) -> 0
C178: Sub3 | D178: =+IFERROR(IF($M$5=VLOOKUP(C178,Summary!$C$52:$E$61,3,FALSE),"Y","N"),"N") -> N | E178: =+IF(D178="Y",IFERROR(VLOOKUP(C178,Summary!$C$87:$I$96,7,FALSE),0),0) -> 0 | F178: =+IF($D178="Y",IFERROR(VLOOKUP($C178,Summary!$C$109:$J$118,5,FALSE),0),0) -> 0 | G178: =+IF($D178="Y",IFERROR(VLOOKUP($C178,Summary!$C$109:$K$118,9,FALSE),0),0) -> 0
C179: Sub4 | D179: =+IFERROR(IF($M$5=VLOOKUP(C179,Summary!$C$52:$E$61,3,FALSE),"Y","N"),"N") -> N | E179: =+IF(D179="Y",IFERROR(VLOOKUP(C179,Summary!$C$87:$I$96,7,FALSE),0),0) -> 0 | F179: =+IF($D179="Y",IFERROR(VLOOKUP($C179,Summary!$C$109:$J$118,5,FALSE),0),0) -> 0 | G179: =+IF($D179="Y",IFERROR(VLOOKUP($C179,Summary!$C$109:$K$118,9,FALSE),0),0) -> 0
C180: Sub5 | D180: =+IFERROR(IF($M$5=VLOOKUP(C180,Summary!$C$52:$E$61,3,FALSE),"Y","N"),"N") -> N | E180: =+IF(D180="Y",IFERROR(VLOOKUP(C180,Summary!$C$87:$I$96,7,FALSE),0),0) -> 0 | F180: =+IF($D180="Y",IFERROR(VLOOKUP($C180,Summary!$C$109:$J$118,5,FALSE),0),0) -> 0 | G180: =+IF($D180="Y",IFERROR(VLOOKUP($C180,Summary!$C$109:$K$118,9,FALSE),0),0) -> 0
C181: Sub6 | D181: =+IFERROR(IF($M$5=VLOOKUP(C181,Summary!$C$52:$E$61,3,FALSE),"Y","N"),"N") -> N | E181: =+IF(D181="Y",IFERROR(VLOOKUP(C181,Summary!$C$87:$I$96,7,FALSE),0),0) -> 0 | F181: =+IF($D181="Y",IFERROR(VLOOKUP($C181,Summary!$C$109:$J$118,5,FALSE),0),0) -> 0 | G181: =+IF($D181="Y",IFERROR(VLOOKUP($C181,Summary!$C$109:$K$118,9,FALSE),0),0) -> 0
C182: Sub7 | D182: =+IFERROR(IF($M$5=VLOOKUP(C182,Summary!$C$52:$E$61,3,FALSE),"Y","N"),"N") -> N | E182: =+IF(D182="Y",IFERROR(VLOOKUP(C182,Summary!$C$87:$I$96,7,FALSE),0),0) -> 0 | F182: =+IF($D182="Y",IFERROR(VLOOKUP($C182,Summary!$C$109:$J$118,5,FALSE),0),0) -> 0 | G182: =+IF($D182="Y",IFERROR(VLOOKUP($C182,Summary!$C$109:$K$118,9,FALSE),0),0) -> 0
C183: Sub8 | D183: =+IFERROR(IF($M$5=VLOOKUP(C183,Summary!$C$52:$E$61,3,FALSE),"Y","N"),"N") -> N | E183: =+IF(D183="Y",IFERROR(VLOOKUP(C183,Summary!$C$87:$I$96,7,FALSE),0),0) -> 0 | F183: =+IF($D183="Y",IFERROR(VLOOKUP($C183,Summary!$C$109:$J$118,5,FALSE),0),0) -> 0 | G183: =+IF($D183="Y",IFERROR(VLOOKUP($C183,Summary!$C$109:$K$118,9,FALSE),0),0) -> 0
C184: Sub9 | D184: =+IFERROR(IF($M$5=VLOOKUP(C184,Summary!$C$52:$E$61,3,FALSE),"Y","N"),"N") -> N | E184: =+IF(D184="Y",IFERROR(VLOOKUP(C184,Summary!$C$87:$I$96,7,FALSE),0),0) -> 0 | F184: =+IF($D184="Y",IFERROR(VLOOKUP($C184,Summary!$C$109:$J$118,5,FALSE),0),0) -> 0 | G184: =+IF($D184="Y",IFERROR(VLOOKUP($C184,Summary!$C$109:$K$118,9,FALSE),0),0) -> 0
C185: Sub10 | D185: =+IFERROR(IF($M$5=VLOOKUP(C185,Summary!$C$52:$E$61,3,FALSE),"Y","N"),"N") -> N | E185: =+IF(D185="Y",IFERROR(VLOOKUP(C185,Summary!$C$87:$I$96,7,FALSE),0),0) -> 0 | F185: =+IF($D185="Y",IFERROR(VLOOKUP($C185,Summary!$C$109:$J$118,5,FALSE),0),0) -> 0 | G185: =+IF($D185="Y",IFERROR(VLOOKUP($C185,Summary!$C$109:$K$118,9,FALSE),0),0) -> 0
E186: =+SUM(E176:E185) -> 0 | F186: =+SUM(F176:F185) -> 0 | G186: =+SUM(G176:G185) -> 0
C189: Flood control Carry over | M189: =ROW(D152) -> 152 | N189: =ROW(E152) -> 152 | O189: =ROW(F152) -> 152 | P189: =ROW(G152) -> 152 | Q189: =ROW(H152) -> 152
C190: Sub-catchment | D190: Upstream | E190: =+Data!$H$20 -> 1-year | F190: =+Data!$H$21 -> 2-year | G190: =+Data!$H$22 -> 10-year | H190: =+Data!$H$23 -> 25-year | I190: =+Data!$H$24 -> 100-year | M190: =COLUMN(D152) -> 4 | N190: =COLUMN(E152) -> 5 | O190: =COLUMN(F152) -> 6 | P190: =COLUMN(G152) -> 7 | Q190: =COLUMN(H152) -> 8
C191: Sub1 | D191: =+IFERROR(IF($M$5=VLOOKUP(C191,Summary!$C$52:$E$61,3,FALSE),"Y","N"),"N") -> N | E191: =IF($D191="N",0,OFFSET(INDIRECT(CONCATENATE($C191,"!a1")),M$189-1,M$190-1)) -> 0 | F191: =IF($D191="N",0,OFFSET(INDIRECT(CONCATENATE($C191,"!a1")),N$189-1,N$190-1)) -> 0 | G191: 0 | H191: 0 | I191: 0
C192: Sub2 | D192: =+IFERROR(IF($M$5=VLOOKUP(C192,Summary!$C$52:$E$61,3,FALSE),"Y","N"),"N") -> N | E192: =IF($D192="N",0,OFFSET(INDIRECT(CONCATENATE($C192,"!a1")),M$189-1,M$190-1)) -> 0 | F192: 0 | G192: 0 | H192: 0 | I192: 0
C193: Sub3 | D193: =+IFERROR(IF($M$5=VLOOKUP(C193,Summary!$C$52:$E$61,3,FALSE),"Y","N"),"N") -> N | E193: 0 | F193: 0 | G193: 0 | H193: 0 | I193: 0
C194: Sub4 | D194: =+IFERROR(IF($M$5=VLOOKUP(C194,Summary!$C$52:$E$61,3,FALSE),"Y","N"),"N") -> N | E194: 0 | F194: 0 | G194: 0 | H194: 0 | I194: 0
C195: Sub5 | D195: =+IFERROR(IF($M$5=VLOOKUP(C195,Summary!$C$52:$E$61,3,FALSE),"Y","N"),"N") -> N | E195: 0 | F195: 0 | G195: 0 | H195: 0 | I195: 0
C196: Sub6 | D196: =+IFERROR(IF($M$5=VLOOKUP(C196,Summary!$C$52:$E$61,3,FALSE),"Y","N"),"N") -> N | E196: 0 | F196: 0 | G196: 0 | H196: 0 | I196: 0
C197: Sub7 | D197: =+IFERROR(IF($M$5=VLOOKUP(C197,Summary!$C$52:$E$61,3,FALSE),"Y","N"),"N") -> N | E197: 0 | F197: 0 | G197: 0 | H197: 0 | I197: 0
C198: Sub8 | D198: =+IFERROR(IF($M$5=VLOOKUP(C198,Summary!$C$52:$E$61,3,FALSE),"Y","N"),"N") -> N | E198: 0 | F198: 0 | G198: 0 | H198: 0 | I198: 0
C199: Sub9 | D199: =+IFERROR(IF($M$5=VLOOKUP(C199,Summary!$C$52:$E$61,3,FALSE),"Y","N"),"N") -> N | E199: 0 | F199: 0 | G199: 0 | H199: 0 | I199: 0
C200: Sub10 | D200: =+IFERROR(IF($M$5=VLOOKUP(C200,Summary!$C$52:$E$61,3,FALSE),"Y","N"),"N") -> N | E200: 0 | F200: 0 | G200: 0 | H200: 0 | I200: 0
C201: Total | E201: =SUM(E191:E200) -> 0 | F201: =SUM(F191:F200) -> 0 | G201: 0 | H201: 0 | I201: 0

Sheet Sub6
C2: =" " & Data!$H$2 &CHAR(10) & " " & Settings!$D$5 -> LGROW Design Spreadsheet City of Ferrysburg
B4: =CONCATENATE(M5,": ") -> Sub6: | D4: =+IFERROR(IF(VLOOKUP(M5,Summary!$C$52:$L$61,4,FALSE)=0,"",VLOOKUP(M5,Summary!$C$52:$L$61,4,FALSE)),N4) -> This subcatchment is not defined on the Summary tab. | M4: Text | N4: This subcatchment is not defined on the Summary tab.
C5: Runoff | M5: =MID(CELL("filename",A1),FIND("]",CELL("filename",A1))+1,255) -> Sub6 | N5: Sheet name
G6: Curve Number | M6: =RIGHT(M5,1) -> 6 | N6: Subcatchment number
C7: Existing Land Use | D7: HSG | E7: Area | F7: Units | G7: Existing | I7: Pre-settlement
G8: =IF(H8<2,"",VLOOKUP(C8,Data!$A$4:$E$21,H8,FALSE)) ->  | H8: =IF(AND(C8="",D8=""),0,IF(AND(C8<>"",D8<>""),HLOOKUP(D8,Data!$B$2:$E$3,2),1)) -> 0 | I8: =+F116 -> 
G9: =IF(H9<2,"",VLOOKUP(C9,Data!$A$4:$E$21,H9,FALSE)) ->  | H9: =IF(AND(C9="",D9=""),0,IF(AND(C9<>"",D9<>""),HLOOKUP(D9,Data!$B$2:$E$3,2),1)) -> 0
G10: =IF(H10<2,"",VLOOKUP(C10,Data!$A$4:$E$21,H10,FALSE)) ->  | H10: =IF(AND(C10="",D10=""),0,IF(AND(C10<>"",D10<>""),HLOOKUP(D10,Data!$B$2:$E$3,2),1)) -> 0
G11: =IF(H11<2,"",VLOOKUP(C11,Data!$A$4:$E$21,H11,FALSE)) ->  | H11: =IF(AND(C11="",D11=""),0,IF(AND(C11<>"",D11<>""),HLOOKUP(D11,Data!$B$2:$E$3,2),1)) -> 0
G12: =IF(H12<2,"",VLOOKUP(C12,Data!$A$4:$E$21,H12,FALSE)) ->  | H12: =IF(AND(C12="",D12=""),0,IF(AND(C12<>"",D12<>""),HLOOKUP(D12,Data!$B$2:$E$3,2),1)) -> 0
E13: =+D102/43560 -> 0 | F13: acre | G13: =+IF(F102=100,"",F102) ->  | I13: =+IF(F121=100,"",F121) -> 
C15: Developed Land Use | D15: HSG | E15: Area | F15: Units | G15: Curve Number | I15: Notes
G16: =IF(H16<2,"",VLOOKUP(C16,Data!$A$28:$E$67,H16,FALSE)) ->  | H16: =+IF(AND(C16="",D16=""),0,IF(AND(C16<>"",D16<>""),HLOOKUP(D16,Data!$B$2:$E$3,2),1)) -> 0
G17: =IF(H17<2,"",VLOOKUP(C17,Data!$A$28:$E$67,H17,FALSE)) ->  | H17: =+IF(AND(C17="",D17=""),0,IF(AND(C17<>"",D17<>""),HLOOKUP(D17,Data!$B$2:$E$3,2),1)) -> 0
G18: =IF(H18<2,"",VLOOKUP(C18,Data!$A$28:$E$67,H18,FALSE)) ->  | H18: =+IF(AND(C18="",D18=""),0,IF(AND(C18<>"",D18<>""),HLOOKUP(D18,Data!$B$2:$E$3,2),1)) -> 0
G19: =IF(H19<2,"",VLOOKUP(C19,Data!$A$28:$E$67,H19,FALSE)) ->  | H19: =+IF(AND(C19="",D19=""),0,IF(AND(C19<>"",D19<>""),HLOOKUP(D19,Data!$B$2:$E$3,2),1)) -> 0
G20: =IF(H20<2,"",VLOOKUP(C20,Data!$A$28:$E$67,H20,FALSE)) ->  | H20: =+IF(AND(C20="",D20=""),0,IF(AND(C20<>"",D20<>""),HLOOKUP(D20,Data!$B$2:$E$3,2),1)) -> 0
G21: =IF(H21<2,"",VLOOKUP(C21,Data!$A$28:$E$67,H21,FALSE)) ->  | H21: =+IF(AND(C21="",D21=""),0,IF(AND(C21<>"",D21<>""),HLOOKUP(D21,Data!$B$2:$E$3,2),1)) -> 0
C22: Notes: | D22: =IF(H22=1,"≠ Existing →","") ->  | E22: =+D112/43560 -> 0 | F22: acre | G22: =+IF(F112=100,"",F112) ->  | H22: =IF(AND(E13=0,E22=0),0,IF(ABS(E22-E13)/MAX(E22,E13)>0.01,1,0)) -> 0
C24: Subcatchment Runoff Volume for Developed Land Use
C25: Rainfall Frequency | D25: =+Data!$H$20 -> 1-year | E25: =+Data!$H$21 -> 2-year | F25: =+Data!$H$22 -> 10-year | G25: =+Data!$H$23 -> 25-year | I25: =+Data!$H$24 -> 100-year
C26: Volume from this Subcatchment [cft] | D26: =D148 -> 0 | E26: =E148 -> 0 | F26: 0 | G26: 0 | I26: =+H148 -> 0
C29: Channel Protection Volume
C30: Required Channel Protection Volume | F30: 2-year Runoff Volumes [cft]
D31: Is Channel Protection Volume required? If no, provide reason. | E31: Yes | F31: Developed | G31: Pre-developed
D32: Required this Subcatchment [cft] | E32: =IF(E31=Data!H38,MAX(F32-G32,0),0) -> 0 | F32: =+D128 -> 0 | G32: =+IF(Summary!E41=Data!H9,E128,F128) -> 0
D33: Unmet from Upstream Subcatchments [cft] | E33: =+E186 -> 0
C34: Required Channel Protection Volume [cft] | E34: =+E33+E32 -> 0
C35: Structural BMPs used to meet Channel Protection Volume
C36: Structural BMP | D36: A Infiltration Area [sqft] | E36: V Storage Volume [cft] | F36: i Design Infiltration Rate [in/hr] | G36: Drain Time [hr] | I36: Volume Retained [cft]
G37: =+I134 -> N.A. | I37: =+IF(H134<=0,"",H134) -> 
G38: =+I135 -> N.A. | I38: =+IF(H135<=0,"",H135) -> 
G39: N.A.
G40: =+I137 -> N.A. | I40: =+IF(H137<=0,"",H137) -> 
C41: Totals | E41: =+SUM(E37:E40) -> 0 | I41: =+H138 -> 0
G42: Credited Channel Protection Volume | I42: =MIN(H138,H141,E34) -> 0
C43: Notes: | G43: Percentage of Channel Protection Volume Met by Retention | I43: =+IFERROR(IF(E32>0,MIN(1,I42/E34),1),"") -> 1
C47: Water Quality Volume
F48: =+Data!$A$89 -> Paved [ac] | G48: =+Data!$A$88 -> Pitched Roofs [ac] | I48: =+Data!$A$87 -> Flat Roofs/Unpaved [ac] | L48: Paved | M48: Pitched | O48: Flat
D49: Sum of Directly Connected Impervious Area [ac] | E49: =+I171 -> 0 | F49: =+E49-I49-G49 -> 0 | H49: =+IF(OR(F49<0,F49>E49),1,0) -> 0 | L49: =+F49/12*VLOOKUP(F48,WaterQualityFactors,2,FALSE) -> 0 | M49: =+G49/12*VLOOKUP(G48,WaterQualityFactors,2,FALSE) -> 0 | O49: =+I49/12*VLOOKUP(I48,WaterQualityFactors,2,FALSE) -> 0
D50: Sum of Directly Connected Disturbed Pervious Area [ac] | E50: =SUM(L51,M51,N51) -> 0 | G50: =+IF(OR(G49<0,G49>E$49,H$49=1),"Invalid Entry","") ->  | H50: =+SUM(O49,M49,L49,L52,M52,N52) -> 0 | I50: =+IF(OR(I49<0,I49>E$49,H$49=1),"Invalid Entry","") ->  | L50: =+Data!$A$90 -> Sandy Soils (HSG A) [ac] | M50: =+Data!$A$91 -> Silty Soils (HSG B) [ac] | N50: =+Data!$A$92 -> Clayey Soils (HSG C&D) [ac]
D51: Required Volume this Subcatchment [cft] | E51: =43560*H50 -> 0 | G51: TSS Generated this Subcatchment | I51: =+E51 -> 0 | L51: =+F171 -> 0 | M51: =+G171 -> 0 | N51: =H171 -> 0
D52: Volume from Upstream Subcatchments [cft] | E52: =+F186 -> 0 | G52: TSS from Upstream Subcatchments | I52: =+G186 -> 0 | L52: =+L51/12*VLOOKUP(L50,WaterQualityFactors,2,FALSE) -> 0 | M52: =+M51/12*VLOOKUP(M50,WaterQualityFactors,2,FALSE) -> 0 | N52: =+N51/12*VLOOKUP(N50,WaterQualityFactors,2,FALSE) -> 0
C53: Water Quality Volume to be Treated [cft] | E53: =+E52+E51 -> 0 | F53: TSS to be Treated | I53: =+I51+I52 -> 0
C54: TSS Accounting
C55: BMPs Used in Treatment Train | D55: Treated Water Volume [cft] | E55: TSS Removal Efficiency | I55: TSS Removed
E56: Tabulated | F56: Third-Party | G56: Effective | H56: TSS in stream | M56: Released water Volume | P56: Need 3rd party value
E57: =+IF(C57="","",IF(P57=Data!$H$38,"--",VLOOKUP(C57,Data!$A$109:$B$143,2,FALSE))) ->  | G57: =+IF(C57="","",IF(P57=Data!$H$38,F57,VLOOKUP(C57,Data!$A$109:$B$143,2,FALSE))*MIN(1,IFERROR(D57/L57,0))) ->  | H57: =+I53-I57 -> 0 | I57: =+IFERROR(I53*G57/100,0) -> 0 | L57: =+$E$53 -> 0 | M57: =+IF(D57="","",IFERROR(MIN(IF(VLOOKUP(C57,Data!$A$109:$C$143,3,FALSE)=Data!$C$112,L57,MAX(0,L57-D57)),$E$53),"")) ->  | N57: =IFERROR(1/ISNUMBER(M57),"") ->  | O57: =+IF(D57*1.01>L57,1,0) -> 0 | P57: =+IF(C57="","",IF(VLOOKUP(C57,Data!$A$109:$B$143,2,FALSE)="",Data!$H$38,Data!$H$39)) -> 
E58: =+IF(C58="","",IF(P58=Data!$H$38,"--",VLOOKUP(C58,Data!$A$109:$B$143,2,FALSE))) ->  | G58: =+IF(C58="","",IF(P58=Data!$H$38,F58,VLOOKUP(C58,Data!$A$109:$B$143,2,FALSE))*MIN(1,IFERROR(D58/L58,0))) ->  | H58: =+H57-I58 -> 0 | I58: =+IFERROR(H57*G58/100,0) -> 0 | L58: =MIN(L57:M57) -> 0 | M58: =+IF(D58="","",IFERROR(MIN(IF(VLOOKUP(C58,Data!$A$109:$C$143,3,FALSE)=Data!$C$112,L58,MAX(0,L58-D58)),$E$53),"")) ->  | N58: =IFERROR(1/ISNUMBER(M58),"") ->  | O58: =+IF(D58*1.01>L58,1,0) -> 0 | P58: =+IF(C58="","",IF(VLOOKUP(C58,Data!$A$109:$B$143,2,FALSE)="",Data!$H$38,Data!$H$39)) -> 
E59: =+IF(C59="","",IF(P59=Data!$H$38,"--",VLOOKUP(C59,Data!$A$109:$B$143,2,FALSE))) ->  | G59: =+IF(C59="","",IF(P59=Data!$H$38,F59,VLOOKUP(C59,Data!$A$109:$B$143,2,FALSE))*MIN(1,IFERROR(D59/L59,0))) ->  | H59: 0 | I59: =+IFERROR(H58*G59/100,0) -> 0 | L59: =MIN(L58:M58) -> 0 | M59: =+IF(D59="","",IFERROR(MIN(IF(VLOOKUP(C59,Data!$A$109:$C$143,3,FALSE)=Data!$C$112,L59,MAX(0,L59-D59)),$E$53),"")) ->  | O59: =+IF(D59*1.01>L59,1,0) -> 0 | P59: =+IF(C59="","",IF(VLOOKUP(C59,Data!$A$109:$B$143,2,FALSE)="",Data!$H$38,Data!$H$39)) -> 
E60: =+IF(C60="","",IF(P60=Data!$H$38,"--",VLOOKUP(C60,Data!$A$109:$B$143,2,FALSE))) ->  | G60: =+IF(C60="","",IF(P60=Data!$H$38,F60,VLOOKUP(C60,Data!$A$109:$B$143,2,FALSE))*MIN(1,IFERROR(D60/L60,0))) ->  | H60: 0 | I60: 0 | L60: 0 | M60: =+IF(D60="","",IFERROR(MIN(IF(VLOOKUP(C60,Data!$A$109:$C$143,3,FALSE)=Data!$C$112,L60,MAX(0,L60-D60)),$E$53),"")) ->  | O60: 0 | P60: =+IF(C60="","",IF(VLOOKUP(C60,Data!$A$109:$B$143,2,FALSE)="",Data!$H$38,Data!$H$39)) -> 
E61: =+IF(C61="","",IF(P61=Data!$H$38,"--",VLOOKUP(C61,Data!$A$109:$B$143,2,FALSE))) ->  | G61: =+IF(C61="","",IF(P61=Data!$H$38,F61,VLOOKUP(C61,Data!$A$109:$B$143,2,FALSE))*MIN(1,IFERROR(D61/L61,0))) ->  | H61: 0 | I61: 0 | L61: 0 | M61: =+IF(D61="","",IFERROR(MIN(IF(VLOOKUP(C61,Data!$A$109:$C$143,3,FALSE)=Data!$C$112,L61,MAX(0,L61-D61)),$E$53),"")) ->  | O61: 0 | P61: =+IF(C61="","",IF(VLOOKUP(C61,Data!$A$109:$B$143,2,FALSE)="",Data!$H$38,Data!$H$39)) -> 
C62: Released Water Volume [cft] | D62: =+M62 -> 0 | G62: Total TSS Removed | I62: =+SUM(I57:I61) -> 0 | M62: =IFERROR(LOOKUP(2,N57:N61,M57:M61),E53) -> 0 | O62: =SUM(O57:O61) -> 0
C63: Water Quality Volume met? | D63: =+M63 -> Yes | G63: TSS Remaining | I63: =+I53-I62 -> 0 | M63: =IF(OR(O62>0,E53<0.5),"Yes","No") -> Yes
C64: Notes: | G64: TSS Removal Efficiency [%] | I64: =+IFERROR(I62/I53*100,0) -> 0
C68: Infiltration Rate Calculator for Filter Media
C70: Filter Media Component | D70: K [ft/day] | E70: Weight | G70: Constructed Filter | H70: Weight | I70: Value
D71: =+IFERROR(VLOOKUP(C71,Data!$A$146:$B$151,2,FALSE),"") ->  | G71: Average Head on the Filter [ft] | H71: =+IF(D71="",0,E71) -> 0
D72: =+IFERROR(VLOOKUP(C72,Data!$A$146:$B$151,2,FALSE),"") ->  | G72: Depth of Filter Media [ft] | H72: =+IF(D72="",0,E72) -> 0
D73: =+IFERROR(VLOOKUP(C73,Data!$A$146:$B$151,2,FALSE),"") ->  | G73: Infiltration Rate [in/hr] | H73: 0 | I73: =+IFERROR(D75*(I71+I72)/2/I72,"") -> 
G74: Retentive BMP | H74: 0
C75: Average Hydraulic Conductivity of Filter Media [ft/day] | D75: =IFERROR(SUMPRODUCT(D71:D74,H71:H74)/SUM(H71:H74),"") ->  | G75: Infiltration Rate [in/hr] | I75: =IFERROR(D75/2,"") -> 
C76: Notes:
B89: =CELL("width",B89) -> 4 | C89: 54 | D89: 15 | E89: 15 | F89: 15 | G89: 15 | I89: =CELL("width",I89) -> 15 | J89: =CELL("width",J89) -> 4 | R89: =+SUM(B89:J89) -> 137
C90: Start of Hidden Cells
C92: Calculation of pervious CN and fraction impervious
E94: Ia factor | F94: 0.2 | H94: =+Data!H20 -> 1-year | I94: =VLOOKUP(H94,Settings!$C$20:$D$24,2,FALSE) -> 2.22 | L94: =+Data!H21 -> 2-year | M94: =VLOOKUP(L94,Settings!$C$20:$D$24,2,FALSE) -> 2.56 | N94: =+Data!H22 -> 10-year | O94: =VLOOKUP(N94,Settings!$C$20:$D$24,2,FALSE) -> 3.77 | P94: =+Data!H23 -> 25-year | Q94: =VLOOKUP(P94,Settings!$C$20:$D$24,2,FALSE) -> 4.66 | R94: =+Data!H24 -> 100-year | S94: =VLOOKUP(R94,Settings!$C$20:$D$24,2,FALSE) -> 6.27
C96: Existing CNs | D96: Area [sqft] | E96: Per. area [sqft] | F96: CN | G96: Ia [in] | H96: SRO [in] | I96: Volume [cft] | L96: SRO [in] | M96: Volume [cft] | N96: SRO [in] | O96: Volume [cft] | P96: SRO [in] | Q96: Volume [cft] | R96: SRO [in] | S96: Volume [cft]
C97: =+IF(C8="","",C8) ->  | D97: =+IF(H8>1,E8*IFERROR(VLOOKUP(F8,Data!$H$33:$I$35,2,FALSE),Data!$I$34),0) -> 0 | E97: =+IF(C97<>Data!$A$4,D97,0) -> 0 | F97: =+G8 ->  | G97: =+IFERROR(IF(F97=0,0,1000/F97-10),0)*$F$94 -> 0 | H97: =+IF((I$94-$G97)<0,0,(I$94-$G97)^2/(I$94+4*$G97)) -> 2.22 | I97: =+$D97*H97/12 -> 0 | L97: =+IF((M$94-$G97)<0,0,(M$94-$G97)^2/(M$94+4*$G97)) -> 2.56 | M97: =+$D97*L97/12 -> 0 | N97: =+IF((O$94-$G97)<0,0,(O$94-$G97)^2/(O$94+4*$G97)) -> 3.77 | O97: =+$D97*N97/12 -> 0 | P97: =+IF((Q$94-$G97)<0,0,(Q$94-$G97)^2/(Q$94+4*$G97)) -> 4.66 | Q97: =+$D97*P97/12 -> 0 | R97: =+IF((S$94-$G97)<0,0,(S$94-$G97)^2/(S$94+4*$G97)) -> 6.27 | S97: =+$D97*R97/12 -> 0
C98: =+IF(C9="","",C9) ->  | D98: =+IF(H9>1,E9*IFERROR(VLOOKUP(F9,Data!$H$33:$I$35,2,FALSE),Data!$I$34),0) -> 0 | E98: =+IF(C98<>Data!$A$4,D98,0) -> 0 | F98: =+G9 ->  | G98: =+IFERROR(IF(F98=0,0,1000/F98-10),0)*$F$94 -> 0 | H98: =+IF((I$94-$G98)<0,0,(I$94-$G98)^2/(I$94+4*$G98)) -> 2.22 | I98: =+$D98*H98/12 -> 0 | L98: 2.56 | M98: =+$D98*L98/12 -> 0 | N98: 3.77 | O98: =+$D98*N98/12 -> 0 | P98: 4.66 | Q98: =+$D98*P98/12 -> 0 | R98: 6.27 | S98: =+$D98*R98/12 -> 0
C99: =+IF(C10="","",C10) ->  | D99: =+IF(H10>1,E10*IFERROR(VLOOKUP(F10,Data!$H$33:$I$35,2,FALSE),Data!$I$34),0) -> 0 | E99: =+IF(C99<>Data!$A$4,D99,0) -> 0 | F99: =+G10 ->  | G99: =+IFERROR(IF(F99=0,0,1000/F99-10),0)*$F$94 -> 0 | H99: =+IF((I$94-$G99)<0,0,(I$94-$G99)^2/(I$94+4*$G99)) -> 2.22 | I99: 0 | L99: 2.56 | M99: 0 | N99: 3.77 | O99: 0 | P99: 4.66 | Q99: 0 | R99: 6.27 | S99: 0
C100: =+IF(C11="","",C11) ->  | D100: =+IF(H11>1,E11*IFERROR(VLOOKUP(F11,Data!$H$33:$I$35,2,FALSE),Data!$I$34),0) -> 0 | E100: =+IF(C100<>Data!$A$4,D100,0) -> 0 | F100: =+G11 ->  | G100: =+IFERROR(IF(F100=0,0,1000/F100-10),0)*$F$94 -> 0 | H100: =+IF((I$94-$G100)<0,0,(I$94-$G100)^2/(I$94+4*$G100)) -> 2.22 | I100: 0 | L100: 2.56 | M100: 0 | N100: 3.77 | O100: 0 | P100: 4.66 | Q100: 0 | R100: 6.27 | S100: 0
C101: =+IF(C12="","",C12) ->  | D101: =+IF(H12>1,E12*IFERROR(VLOOKUP(F12,Data!$H$33:$I$35,2,FALSE),Data!$I$34),0) -> 0 | E101: =+IF(C101<>Data!$A$4,D101,0) -> 0 | F101: =+G12 ->  | G101: =+IFERROR(IF(F101=0,0,1000/F101-10),0)*$F$94 -> 0 | H101: =+IF((I$94-$G101)<0,0,(I$94-$G101)^2/(I$94+4*$G101)) -> 2.22 | I101: 0 | L101: 2.56 | M101: 0 | N101: 3.77 | O101: 0 | P101: 4.66 | Q101: 0 | R101: 6.27 | S101: 0
C102: Totals | D102: =+SUM(D97:D101) -> 0 | E102: =+SUM(E97:E101) -> 0 | F102: =+IF(D102<>0,SUMPRODUCT(D97:D101,F97:F101)/D102,100) -> 100 | G102: =+IFERROR(SUMPRODUCT(D97:D101,G97:G101)/D102,0) -> 0 | I102: =SUM(I97:I101) -> 0 | L102: 2.56 | M102: =SUM(M97:M101) -> 0 | N102: 3.77 | O102: =SUM(O97:O101) -> 0 | P102: 4.66 | Q102: =SUM(Q97:Q101) -> 0 | R102: 6.27 | S102: =SUM(S97:S101) -> 0
C103: Fraction Impervious | D103: =+IF(D102<>0,(D102-E102)/D102,0) -> 0
C105: Developed CN's | D105: Area [sqft] | E105: Perv. Area [sqft] | F105: CN | G105: Ia [in] | H105: SRO [in] | I105: Volume [cft] | L105: SRO [in] | M105: Volume [cft] | N105: SRO [in] | O105: Volume [cft] | P105: SRO [in] | Q105: Volume [cft] | R105: SRO [in] | S105: Volume [cft]
C106: =+IF(C16="","",C16) ->  | D106: =+IF(H16>1,E16*IFERROR(VLOOKUP(F16,Data!$H$33:$I$35,2,FALSE),Data!$I$34),0) -> 0 | E106: =+IF(F106=98,0,D106) -> 0 | F106: =+G16 ->  | G106: =+IFERROR(IF(F106=0,0,1000/F106-10),0)*$F$94 -> 0 | H106: =+IF((I$94-$G106)<0,0,(I$94-$G106)^2/(I$94+4*$G106)) -> 2.22 | I106: =+$D106*H106/12 -> 0 | L106: =+IF((M$94-$G106)<0,0,(M$94-$G106)^2/(M$94+4*$G106)) -> 2.56 | M106: =+$D106*L106/12 -> 0 | N106: =+IF((O$94-$G106)<0,0,(O$94-$G106)^2/(O$94+4*$G106)) -> 3.77 | O106: =+$D106*N106/12 -> 0 | P106: =+IF((Q$94-$G106)<0,0,(Q$94-$G106)^2/(Q$94+4*$G106)) -> 4.66 | Q106: =+$D106*P106/12 -> 0 | R106: =+IF((S$94-$G106)<0,0,(S$94-$G106)^2/(S$94+4*$G106)) -> 6.27 | S106: =+$D106*R106/12 -> 0
D107: =+IF(H17>1,E17*IFERROR(VLOOKUP(F17,Data!$H$33:$I$35,2,FALSE),Data!$I$34),0) -> 0 | E107: =+IF(F107=98,0,D107) -> 0 | G107: 0 | H107: 2.22 | I107: =+$D107*H107/12 -> 0 | L107: 2.56 | M107: =+$D107*L107/12 -> 0 | N107: 3.77 | O107: =+$D107*N107/12 -> 0 | P107: 4.66 | Q107: =+$D107*P107/12 -> 0 | R107: 6.27 | S107: =+$D107*R107/12 -> 0
D108: =+IF(H18>1,E18*IFERROR(VLOOKUP(F18,Data!$H$33:$I$35,2,FALSE),Data!$I$34),0) -> 0 | E108: 0 | G108: 0 | H108: 2.22 | I108: 0 | L108: 2.56 | M108: 0 | N108: 3.77 | O108: 0 | P108: 4.66 | Q108: 0 | R108: 6.27 | S108: 0
D109: =+IF(H19>1,E19*IFERROR(VLOOKUP(F19,Data!$H$33:$I$35,2,FALSE),Data!$I$34),0) -> 0 | E109: 0 | G109: 0 | H109: 2.22 | I109: 0 | L109: 2.56 | M109: 0 | N109: 3.77 | O109: 0 | P109: 4.66 | Q109: 0 | R109: 6.27 | S109: 0
D110: =+IF(H20>1,E20*IFERROR(VLOOKUP(F20,Data!$H$33:$I$35,2,FALSE),Data!$I$34),0) -> 0 | E110: 0 | G110: 0 | H110: 2.22 | I110: 0 | L110: 2.56 | M110: 0 | N110: 3.77 | O110: 0 | P110: 4.66 | Q110: 0 | R110: 6.27 | S110: 0
D111: =+IF(H21>1,E21*IFERROR(VLOOKUP(F21,Data!$H$33:$I$35,2,FALSE),Data!$I$34),0) -> 0 | E111: 0 | G111: 0 | H111: 2.22 | I111: 0 | L111: 2.56 | M111: 0 | N111: 3.77 | O111: 0 | P111: 4.66 | Q111: 0 | R111: 6.27 | S111: 0
C112: Total | D112: =+SUM(D106:D111) -> 0 | E112: =+SUM(E106:E111) -> 0 | F112: =IF(D112<>0,SUMPRODUCT(D106:D111,F106:F111)/D112,"") ->  | G112: =IFERROR(SUMPRODUCT(D106:D111,G106:G111)/D112,0) -> 0 | I112: =SUM(I106:I111) -> 0 | L112: 2.56 | M112: =SUM(M106:M111) -> 0 | N112: 3.77 | O112: =SUM(O106:O111) -> 0 | P112: 4.66 | Q112: =SUM(Q106:Q111) -> 0 | R112: 6.27 | S112: =SUM(S106:S111) -> 0
C113: Fraction Impervious | D113: =+IF(D112<>0,(D112-E112)/D112,0) -> 0
C115: Pre-settlement CN's | D115: HSG | E115: Area [sqft] | F115: SCS CN | G115: Ia [in] | H115: SRO [in] | I115: Volume [cft] | L115: SRO [in] | M115: Volume [cft] | N115: SRO [in] | O115: Volume [cft] | P115: SRO [in] | Q115: Volume [cft] | R115: SRO [in] | S115: Volume [cft]
C116: =IF(C8="","",VLOOKUP(C8,Data!$A$4:$F$21,6,FALSE)) ->  | D116: =IF(D8="","",D8) ->  | E116: =IF(H8<=1,"",E8*IFERROR(VLOOKUP(F8,Data!$H$33:$I$35,2,FALSE),Data!$I$34)) ->  | F116: =IF(H8<2,"",VLOOKUP(C116,Data!$A$4:$E$21,H8,FALSE)) ->  | G116: =+IFERROR(IF(F116=0,0,1000/F116-10),0)*$F$94 -> 0 | H116: =+IF((I$94-$G116)<0,0,(I$94-$G116)^2/(I$94+4*$G116)) -> 2.22 | I116: =+IFERROR($E116*H116/12,0) -> 0 | L116: =+IF((M$94-$G116)<0,0,(M$94-$G116)^2/(M$94+4*$G116)) -> 2.56 | M116: =+IFERROR($E116*L116/12,0) -> 0 | N116: =+IF((O$94-$G116)<0,0,(O$94-$G116)^2/(O$94+4*$G116)) -> 3.77 | O116: =+IFERROR($E116*N116/12,0) -> 0 | P116: =+IF((Q$94-$G116)<0,0,(Q$94-$G116)^2/(Q$94+4*$G116)) -> 4.66 | Q116: =+IFERROR($E116*P116/12,0) -> 0 | R116: =+IF((S$94-$G116)<0,0,(S$94-$G116)^2/(S$94+4*$G116)) -> 6.27 | S116: =+IFERROR($E116*R116/12,0) -> 0
C117: =IF(C9="","",VLOOKUP(C9,Data!$A$4:$F$21,6,FALSE)) ->  | D117: =IF(D9="","",D9) ->  | E117: =IF(H9<=1,"",E9*IFERROR(VLOOKUP(F9,Data!$H$33:$I$35,2,FALSE),Data!$I$34)) ->  | F117: =IF(H9<2,"",VLOOKUP(C117,Data!$A$4:$E$21,H9,FALSE)) ->  | G117: =+IFERROR(IF(F117=0,0,1000/F117-10),0)*$F$94 -> 0 | H117: =+IF((I$94-$G117)<0,0,(I$94-$G117)^2/(I$94+4*$G117)) -> 2.22 | I117: =+IFERROR($E117*H117/12,0) -> 0 | L117: 2.56 | M117: =+IFERROR($E117*L117/12,0) -> 0 | N117: 3.77 | O117: =+IFERROR($E117*N117/12,0) -> 0 | P117: 4.66 | Q117: =+IFERROR($E117*P117/12,0) -> 0 | R117: 6.27 | S117: =+IFERROR($E117*R117/12,0) -> 0
C118: =IF(C10="","",VLOOKUP(C10,Data!$A$4:$F$21,6,FALSE)) ->  | D118: =IF(D10="","",D10) ->  | E118: =IF(H10<=1,"",E10*IFERROR(VLOOKUP(F10,Data!$H$33:$I$35,2,FALSE),Data!$I$34)) ->  | F118: =IF(H10<2,"",VLOOKUP(C118,Data!$A$4:$E$21,H10,FALSE)) ->  | G118: =+IFERROR(IF(F118=0,0,1000/F118-10),0)*$F$94 -> 0 | H118: =+IF((I$94-$G118)<0,0,(I$94-$G118)^2/(I$94+4*$G118)) -> 2.22 | I118: 0 | L118: 2.56 | M118: 0 | N118: 3.77 | O118: 0 | P118: 4.66 | Q118: 0 | R118: 6.27 | S118: 0
C119: =IF(C11="","",VLOOKUP(C11,Data!$A$4:$F$21,6,FALSE)) ->  | D119: =IF(D11="","",D11) ->  | E119: =IF(H11<=1,"",E11*IFERROR(VLOOKUP(F11,Data!$H$33:$I$35,2,FALSE),Data!$I$34)) ->  | F119: =IF(H11<2,"",VLOOKUP(C119,Data!$A$4:$E$21,H11,FALSE)) ->  | G119: =+IFERROR(IF(F119=0,0,1000/F119-10),0)*$F$94 -> 0 | H119: =+IF((I$94-$G119)<0,0,(I$94-$G119)^2/(I$94+4*$G119)) -> 2.22 | I119: 0 | L119: 2.56 | M119: 0 | N119: 3.77 | O119: 0 | P119: 4.66 | Q119: 0 | R119: 6.27 | S119: 0
C120: =IF(C12="","",VLOOKUP(C12,Data!$A$4:$F$21,6,FALSE)) ->  | D120: =IF(D12="","",D12) ->  | E120: =IF(H12<=1,"",E12*IFERROR(VLOOKUP(F12,Data!$H$33:$I$35,2,FALSE),Data!$I$34)) ->  | F120: =IF(H12<2,"",VLOOKUP(C120,Data!$A$4:$E$21,H12,FALSE)) ->  | G120: =+IFERROR(IF(F120=0,0,1000/F120-10),0)*$F$94 -> 0 | H120: =+IF((I$94-$G120)<0,0,(I$94-$G120)^2/(I$94+4*$G120)) -> 2.22 | I120: 0 | L120: 2.56 | M120: 0 | N120: 3.77 | O120: 0 | P120: 4.66 | Q120: 0 | R120: 6.27 | S120: 0
D121: Totals | E121: =+SUM(E116:E120) -> 0 | F121: =+IF(E121<>0,SUMPRODUCT(E116:E120,F116:F120)/E121,100) -> 100 | G121: =IFERROR(SUMPRODUCT(E116:E120,G116:G120)/E121,0) -> 0 | I121: =SUM(I116:I120) -> 0 | L121: 2.56 | M121: =SUM(M116:M120) -> 0 | N121: 3.77 | O121: =SUM(O116:O120) -> 0 | P121: 4.66 | Q121: =SUM(Q116:Q120) -> 0 | R121: 6.27 | S121: =SUM(S116:S120) -> 0
D122: Fraction Imperv | E122: 0
C124: Calculation of 2-year runoff volume for Channel Protection
D126: Developed | E126: Pre-settlement | F126: Existing
C127: Drainage area [sqft] | D127: =+D112 -> 0 | E127: =+E121 -> 0 | F127: =+D102 -> 0
C128: Volume (cft) = | D128: =+M112 -> 0 | E128: =+M121 -> 0 | F128: =+M102 -> 0
C129: Runoff Depth [in] | D129: =+IFERROR(D128/D127*12,0) -> 0 | E129: =+IFERROR(E128/E127*12,0) -> 0 | F129: 0
C131: Structural BMP volumes
C133: BMP | D133: Area [sqft] | E133: Volume [cft] | F133: Infiltration rate [in/hr] | G133: Infiltrating volume [cft] | H133: Total volume [cft] | I133: Drain Time [hr] | R133: Infiltration Time [hr] | S133: Infiltration rate [cf/hr]
C134: =+IF(C37=0,Data!$A$84,C37) -> NoneSelected | D134: =+MAX(0,D37) -> 0 | E134: =+MAX(0,E37*VLOOKUP($C134,Data!$A$71:$C$84,2,FALSE)) -> 0 | F134: =+MAX(0,F37*VLOOKUP($C134,Data!$A$71:$C$84,3,FALSE)) -> 0 | G134: =+IF(OR(I134="N.A.",I134=""),0,IFERROR(R134*S134,0)) -> 0 | H134: =+G134+E134 -> 0 | I134: =+IF(IFERROR(VLOOKUP(C134,Data!$A$71:$C$84,3,FALSE),0)=0,"N.A.",IFERROR(E134/D134/F134*12,"")) -> N.A. | R134: =IFERROR(2+MIN(72,I134)*(0.222-0.553*LOG(MIN(72,I134)/72)),0) -> 17.984 | S134: =+D134*F134/12 -> 0
C135: =+IF(C38=0,Data!$A$84,C38) -> NoneSelected | D135: =+MAX(0,D38) -> 0 | E135: =+MAX(0,E38*VLOOKUP($C135,Data!$A$71:$C$84,2,FALSE)) -> 0 | F135: =+MAX(0,F38*VLOOKUP($C135,Data!$A$71:$C$84,3,FALSE)) -> 0 | G135: =+IF(OR(I135="N.A.",I135=""),0,IFERROR(R135*S135,0)) -> 0 | H135: =+G135+E135 -> 0 | I135: =+IF(IFERROR(VLOOKUP(C135,Data!$A$71:$C$84,3,FALSE),0)=0,"N.A.",IFERROR(E135/D135/F135*12,"")) -> N.A. | R135: =IFERROR(2+MIN(72,I135)*(0.222-0.553*LOG(MIN(72,I135)/72)),0) -> 17.984 | S135: =+D135*F135/12 -> 0
C136: =+IF(C39=0,Data!$A$84,C39) -> NoneSelected | D136: =+MAX(0,D39) -> 0 | E136: =+MAX(0,E39*VLOOKUP($C136,Data!$A$71:$C$84,2,FALSE)) -> 0 | F136: =+MAX(0,F39*VLOOKUP($C136,Data!$A$71:$C$84,3,FALSE)) -> 0 | G136: 0 | H136: 0 | I136: =+IF(IFERROR(VLOOKUP(C136,Data!$A$71:$C$84,3,FALSE),0)=0,"N.A.",IFERROR(E136/D136/F136*12,"")) -> N.A. | R136: 17.984 | S136: 0
C137: =+IF(C40=0,Data!$A$84,C40) -> NoneSelected | D137: =+MAX(0,D40) -> 0 | E137: =+MAX(0,E40*VLOOKUP($C137,Data!$A$71:$C$84,2,FALSE)) -> 0 | F137: =+MAX(0,F40*VLOOKUP($C137,Data!$A$71:$C$84,3,FALSE)) -> 0 | G137: 0 | H137: 0 | I137: =+IF(IFERROR(VLOOKUP(C137,Data!$A$71:$C$84,3,FALSE),0)=0,"N.A.",IFERROR(E137/D137/F137*12,"")) -> N.A. | R137: 17.984 | S137: 0
E138: =SUM(E134:E137) -> 0 | F138: Sum of all BMPs | G138: =SUM(G134:G137) -> 0 | H138: =SUM(H134:H137) -> 0
G139: 2-year runoff volume for sub-catchment | H139: =+D128 -> 0
G140: Unmet Channel Protection Volume from upstream subcatchments | H140: =+E186 -> 0
G141: Sum of 2-year runoff volume and unmet upstream volumes | H141: =+H140+H139 -> 0
C143: Maximum retained volume for all events
C145: Event | D145: =+Data!$H$20 -> 1-year | E145: =+Data!$H$21 -> 2-year | F145: =+Data!$H$22 -> 10-year | G145: =+Data!$H$23 -> 25-year | H145: =+Data!$H$24 -> 100-year
C146: Drainage area [sqft] | D146: =+$D112 -> 0 | E146: =+$D112 -> 0 | F146: =+$D112 -> 0 | G146: =+$D112 -> 0 | H146: =+$D112 -> 0
C147: Total Runoff, Q (in) = | D147: =+IFERROR(D148/D146*12,0) -> 0 | E147: =+IFERROR(E148/E146*12,0) -> 0 | F147: =+IFERROR(F148/F146*12,0) -> 0 | G147: =+IFERROR(G148/G146*12,0) -> 0 | H147: =+IFERROR(H148/H146*12,0) -> 0
C148: Runoff Volume (cft) = | D148: =+I112 -> 0 | E148: =+M112 -> 0 | F148: =O112 -> 0 | G148: =Q112 -> 0 | H148: =S112 -> 0
C149: Excess runoff volume upstream subcatchments (cft) | D149: =+E201 -> 0 | E149: =+F201 -> 0 | F149: 0 | G149: 0 | H149: 0
C150: Total Runoff to retentive BMP (cft) | D150: =+D149+D148 -> 0 | E150: =+E149+E148 -> 0 | F150: 0 | G150: 0 | H150: 0
C151: Volume retained in subcatchment [cft] | D151: =+MIN($H$138,D150) -> 0 | E151: =+MIN($H$138,E150) -> 0 | F151: 0 | G151: 0 | H151: 0
C152: Volume released from subcatchment [cft] | D152: =+D150-D151 -> 0 | E152: =+E150-E151 -> 0 | F152: 0 | G152: 0 | H152: 0
C154: Volume credited for detention flood control
C155: =+Data!H97 -> Volume Retained | D155: =+D151 -> 0 | E155: =+E151 -> 0 | F155: 0 | G155: 0 | H155: 0
C156: =+Data!H98 -> Storage Volume | D156: =+MIN(D150,$E$138) -> 0 | E156: =+MIN(E150,$E$138) -> 0 | F156: 0 | G156: 0 | H156: 0
C157: =+Data!H99 -> Storage Volume 2yr | D157: =+MIN(D156,$E$34) -> 0 | E157: =+MIN(E156,$E$34) -> 0 | F157: 0 | G157: 0 | H157: 0
C158: =+Data!H100 -> None | D158: 0 | E158: 0 | F158: 0 | G158: 0 | H158: 0
C159: ='Flood Control'!D24 -> None | D159: =VLOOKUP($C$159,$C$155:$H$158,D160,FALSE) -> 0 | E159: =VLOOKUP($C$159,$C$155:$H$158,E160,FALSE) -> 0 | F159: 0 | G159: 0 | H159: 0
D160: 2 | E160: 3 | F160: 4 | G160: 5 | H160: 6
C162: Areas for water quality volume
C163: Land use | D163: HSG | E163: DP Area [sqft] | F163: HSG = A | G163: HSG = B | H163: HSG = C or D | I163: Imp Area [sqft]
C164: =+IF(C16="","",C16) ->  | E164: =D106*IFERROR(VLOOKUP(C164,Data!$A$102:$B$105,2,FALSE),0) -> 0 | F164: =IF(D164="A",E164,0) -> 0 | G164: =IF(D164="B",E164,0) -> 0 | H164: =IF(OR(D164="C",D164="D"),E164,0) -> 0 | I164: =+D106*IFERROR(VLOOKUP(C164,Data!$A$95:$B$98,2,FALSE),0) -> 0
E165: =D107*IFERROR(VLOOKUP(C165,Data!$A$102:$B$105,2,FALSE),0) -> 0 | F165: =IF(D165="A",E165,0) -> 0 | G165: =IF(D165="B",E165,0) -> 0 | H165: 0 | I165: =+D107*IFERROR(VLOOKUP(C165,Data!$A$95:$B$98,2,FALSE),0) -> 0
E166: =D108*IFERROR(VLOOKUP(C166,Data!$A$102:$B$105,2,FALSE),0) -> 0 | F166: =IF(D166="A",E166,0) -> 0 | G166: =IF(D166="B",E166,0) -> 0 | H166: 0 | I166: =+D108*IFERROR(VLOOKUP(C166,Data!$A$95:$B$98,2,FALSE),0) -> 0
E167: =D109*IFERROR(VLOOKUP(C167,Data!$A$102:$B$105,2,FALSE),0) -> 0 | F167: 0 | G167: 0 | H167: 0 | I167: =+D109*IFERROR(VLOOKUP(C167,Data!$A$95:$B$98,2,FALSE),0) -> 0
E168: =D110*IFERROR(VLOOKUP(C168,Data!$A$102:$B$105,2,FALSE),0) -> 0 | F168: 0 | G168: 0 | H168: 0 | I168: =+D110*IFERROR(VLOOKUP(C168,Data!$A$95:$B$98,2,FALSE),0) -> 0
E169: =D111*IFERROR(VLOOKUP(C169,Data!$A$102:$B$105,2,FALSE),0) -> 0 | F169: 0 | G169: 0 | H169: 0 | I169: =+D111*IFERROR(VLOOKUP(C169,Data!$A$95:$B$98,2,FALSE),0) -> 0
E170: Total [sqft] | F170: =SUM(F164:F169) -> 0 | G170: =SUM(G164:G169) -> 0 | H170: =SUM(H164:H169) -> 0 | I170: =SUM(I164:I169) -> 0
E171: Total [ac] | F171: =+F170/43560 -> 0 | G171: =+G170/43560 -> 0 | H171: =+H170/43560 -> 0 | I171: =+I170/43560 -> 0
C174: Quantities from upstream sub-catchments
C175: Sub-catchment | D175: Upstream | E175: Unmet CPV [cft] | F175: Released WQV [cft] | G175: Released TSS
C176: Sub1 | D176: =+IFERROR(IF($M$5=VLOOKUP(C176,Summary!$C$52:$E$61,3,FALSE),"Y","N"),"N") -> N | E176: =+IF($D176="Y",IFERROR(VLOOKUP($C176,Summary!$C$87:$I$96,7,FALSE),0),0) -> 0 | F176: =+IF($D176="Y",IFERROR(VLOOKUP($C176,Summary!$C$109:$J$118,5,FALSE),0),0) -> 0 | G176: =+IF($D176="Y",IFERROR(VLOOKUP($C176,Summary!$C$109:$K$118,9,FALSE),0),0) -> 0
C177: Sub2 | D177: =+IFERROR(IF($M$5=VLOOKUP(C177,Summary!$C$52:$E$61,3,FALSE),"Y","N"),"N") -> N | E177: =+IF(D177="Y",IFERROR(VLOOKUP(C177,Summary!$C$87:$I$96,7,FALSE),0),0) -> 0 | F177: =+IF($D177="Y",IFERROR(VLOOKUP($C177,Summary!$C$109:$J$118,5,FALSE),0),0) -> 0 | G177: =+IF($D177="Y",IFERROR(VLOOKUP($C177,Summary!$C$109:$K$118,9,FALSE),0),0) -> 0
C178: Sub3 | D178: =+IFERROR(IF($M$5=VLOOKUP(C178,Summary!$C$52:$E$61,3,FALSE),"Y","N"),"N") -> N | E178: =+IF(D178="Y",IFERROR(VLOOKUP(C178,Summary!$C$87:$I$96,7,FALSE),0),0) -> 0 | F178: =+IF($D178="Y",IFERROR(VLOOKUP($C178,Summary!$C$109:$J$118,5,FALSE),0),0) -> 0 | G178: =+IF($D178="Y",IFERROR(VLOOKUP($C178,Summary!$C$109:$K$118,9,FALSE),0),0) -> 0
C179: Sub4 | D179: =+IFERROR(IF($M$5=VLOOKUP(C179,Summary!$C$52:$E$61,3,FALSE),"Y","N"),"N") -> N | E179: =+IF(D179="Y",IFERROR(VLOOKUP(C179,Summary!$C$87:$I$96,7,FALSE),0),0) -> 0 | F179: =+IF($D179="Y",IFERROR(VLOOKUP($C179,Summary!$C$109:$J$118,5,FALSE),0),0) -> 0 | G179: =+IF($D179="Y",IFERROR(VLOOKUP($C179,Summary!$C$109:$K$118,9,FALSE),0),0) -> 0
C180: Sub5 | D180: =+IFERROR(IF($M$5=VLOOKUP(C180,Summary!$C$52:$E$61,3,FALSE),"Y","N"),"N") -> N | E180: =+IF(D180="Y",IFERROR(VLOOKUP(C180,Summary!$C$87:$I$96,7,FALSE),0),0) -> 0 | F180: =+IF($D180="Y",IFERROR(VLOOKUP($C180,Summary!$C$109:$J$118,5,FALSE),0),0) -> 0 | G180: =+IF($D180="Y",IFERROR(VLOOKUP($C180,Summary!$C$109:$K$118,9,FALSE),0),0) -> 0
C181: Sub6 | D181: =+IFERROR(IF($M$5=VLOOKUP(C181,Summary!$C$52:$E$61,3,FALSE),"Y","N"),"N") -> N | E181: =+IF(D181="Y",IFERROR(VLOOKUP(C181,Summary!$C$87:$I$96,7,FALSE),0),0) -> 0 | F181: =+IF($D181="Y",IFERROR(VLOOKUP($C181,Summary!$C$109:$J$118,5,FALSE),0),0) -> 0 | G181: =+IF($D181="Y",IFERROR(VLOOKUP($C181,Summary!$C$109:$K$118,9,FALSE),0),0) -> 0
C182: Sub7 | D182: =+IFERROR(IF($M$5=VLOOKUP(C182,Summary!$C$52:$E$61,3,FALSE),"Y","N"),"N") -> N | E182: =+IF(D182="Y",IFERROR(VLOOKUP(C182,Summary!$C$87:$I$96,7,FALSE),0),0) -> 0 | F182: =+IF($D182="Y",IFERROR(VLOOKUP($C182,Summary!$C$109:$J$118,5,FALSE),0),0) -> 0 | G182: =+IF($D182="Y",IFERROR(VLOOKUP($C182,Summary!$C$109:$K$118,9,FALSE),0),0) -> 0
C183: Sub8 | D183: =+IFERROR(IF($M$5=VLOOKUP(C183,Summary!$C$52:$E$61,3,FALSE),"Y","N"),"N") -> N | E183: =+IF(D183="Y",IFERROR(VLOOKUP(C183,Summary!$C$87:$I$96,7,FALSE),0),0) -> 0 | F183: =+IF($D183="Y",IFERROR(VLOOKUP($C183,Summary!$C$109:$J$118,5,FALSE),0),0) -> 0 | G183: =+IF($D183="Y",IFERROR(VLOOKUP($C183,Summary!$C$109:$K$118,9,FALSE),0),0) -> 0
C184: Sub9 | D184: =+IFERROR(IF($M$5=VLOOKUP(C184,Summary!$C$52:$E$61,3,FALSE),"Y","N"),"N") -> N | E184: =+IF(D184="Y",IFERROR(VLOOKUP(C184,Summary!$C$87:$I$96,7,FALSE),0),0) -> 0 | F184: =+IF($D184="Y",IFERROR(VLOOKUP($C184,Summary!$C$109:$J$118,5,FALSE),0),0) -> 0 | G184: =+IF($D184="Y",IFERROR(VLOOKUP($C184,Summary!$C$109:$K$118,9,FALSE),0),0) -> 0
C185: Sub10 | D185: =+IFERROR(IF($M$5=VLOOKUP(C185,Summary!$C$52:$E$61,3,FALSE),"Y","N"),"N") -> N | E185: =+IF(D185="Y",IFERROR(VLOOKUP(C185,Summary!$C$87:$I$96,7,FALSE),0),0) -> 0 | F185: =+IF($D185="Y",IFERROR(VLOOKUP($C185,Summary!$C$109:$J$118,5,FALSE),0),0) -> 0 | G185: =+IF($D185="Y",IFERROR(VLOOKUP($C185,Summary!$C$109:$K$118,9,FALSE),0),0) -> 0
E186: =+SUM(E176:E185) -> 0 | F186: =+SUM(F176:F185) -> 0 | G186: =+SUM(G176:G185) -> 0
C189: Flood control Carry over | M189: =ROW(D152) -> 152 | N189: =ROW(E152) -> 152 | O189: =ROW(F152) -> 152 | P189: =ROW(G152) -> 152 | Q189: =ROW(H152) -> 152
C190: Sub-catchment | D190: Upstream | E190: =+Data!$H$20 -> 1-year | F190: =+Data!$H$21 -> 2-year | G190: =+Data!$H$22 -> 10-year | H190: =+Data!$H$23 -> 25-year | I190: =+Data!$H$24 -> 100-year | M190: =COLUMN(D152) -> 4 | N190: =COLUMN(E152) -> 5 | O190: =COLUMN(F152) -> 6 | P190: =COLUMN(G152) -> 7 | Q190: =COLUMN(H152) -> 8
C191: Sub1 | D191: =+IFERROR(IF($M$5=VLOOKUP(C191,Summary!$C$52:$E$61,3,FALSE),"Y","N"),"N") -> N | E191: =IF($D191="N",0,OFFSET(INDIRECT(CONCATENATE($C191,"!a1")),M$189-1,M$190-1)) -> 0 | F191: =IF($D191="N",0,OFFSET(INDIRECT(CONCATENATE($C191,"!a1")),N$189-1,N$190-1)) -> 0 | G191: 0 | H191: 0 | I191: 0
C192: Sub2 | D192: =+IFERROR(IF($M$5=VLOOKUP(C192,Summary!$C$52:$E$61,3,FALSE),"Y","N"),"N") -> N | E192: =IF($D192="N",0,OFFSET(INDIRECT(CONCATENATE($C192,"!a1")),M$189-1,M$190-1)) -> 0 | F192: 0 | G192: 0 | H192: 0 | I192: 0
C193: Sub3 | D193: =+IFERROR(IF($M$5=VLOOKUP(C193,Summary!$C$52:$E$61,3,FALSE),"Y","N"),"N") -> N | E193: 0 | F193: 0 | G193: 0 | H193: 0 | I193: 0
C194: Sub4 | D194: =+IFERROR(IF($M$5=VLOOKUP(C194,Summary!$C$52:$E$61,3,FALSE),"Y","N"),"N") -> N | E194: 0 | F194: 0 | G194: 0 | H194: 0 | I194: 0
C195: Sub5 | D195: =+IFERROR(IF($M$5=VLOOKUP(C195,Summary!$C$52:$E$61,3,FALSE),"Y","N"),"N") -> N | E195: 0 | F195: 0 | G195: 0 | H195: 0 | I195: 0
C196: Sub6 | D196: =+IFERROR(IF($M$5=VLOOKUP(C196,Summary!$C$52:$E$61,3,FALSE),"Y","N"),"N") -> N | E196: 0 | F196: 0 | G196: 0 | H196: 0 | I196: 0
C197: Sub7 | D197: =+IFERROR(IF($M$5=VLOOKUP(C197,Summary!$C$52:$E$61,3,FALSE),"Y","N"),"N") -> N | E197: 0 | F197: 0 | G197: 0 | H197: 0 | I197: 0
C198: Sub8 | D198: =+IFERROR(IF($M$5=VLOOKUP(C198,Summary!$C$52:$E$61,3,FALSE),"Y","N"),"N") -> N | E198: 0 | F198: 0 | G198: 0 | H198: 0 | I198: 0
C199: Sub9 | D199: =+IFERROR(IF($M$5=VLOOKUP(C199,Summary!$C$52:$E$61,3,FALSE),"Y","N"),"N") -> N | E199: 0 | F199: 0 | G199: 0 | H199: 0 | I199: 0
C200: Sub10 | D200: =+IFERROR(IF($M$5=VLOOKUP(C200,Summary!$C$52:$E$61,3,FALSE),"Y","N"),"N") -> N | E200: 0 | F200: 0 | G200: 0 | H200: 0 | I200: 0
C201: Total | E201: =SUM(E191:E200) -> 0 | F201: =SUM(F191:F200) -> 0 | G201: 0 | H201: 0 | I201: 0

Sheet Sub7
C2: =" " & Data!$H$2 &CHAR(10) & " " & Settings!$D$5 -> LGROW Design Spreadsheet City of Ferrysburg
B4: =CONCATENATE(M5,": ") -> Sub7: | D4: =+IFERROR(IF(VLOOKUP(M5,Summary!$C$52:$L$61,4,FALSE)=0,"",VLOOKUP(M5,Summary!$C$52:$L$61,4,FALSE)),N4) -> This subcatchment is not defined on the Summary tab. | M4: Text | N4: This subcatchment is not defined on the Summary tab.
C5: Runoff | M5: =MID(CELL("filename",A1),FIND("]",CELL("filename",A1))+1,255) -> Sub7 | N5: Sheet name
G6: Curve Number | M6: =RIGHT(M5,1) -> 7 | N6: Subcatchment number
C7: Existing Land Use | D7: HSG | E7: Area | F7: Units | G7: Existing | I7: Pre-settlement
G8: =IF(H8<2,"",VLOOKUP(C8,Data!$A$4:$E$21,H8,FALSE)) ->  | H8: =IF(AND(C8="",D8=""),0,IF(AND(C8<>"",D8<>""),HLOOKUP(D8,Data!$B$2:$E$3,2),1)) -> 0 | I8: =+F116 -> 
G9: =IF(H9<2,"",VLOOKUP(C9,Data!$A$4:$E$21,H9,FALSE)) ->  | H9: =IF(AND(C9="",D9=""),0,IF(AND(C9<>"",D9<>""),HLOOKUP(D9,Data!$B$2:$E$3,2),1)) -> 0
G10: =IF(H10<2,"",VLOOKUP(C10,Data!$A$4:$E$21,H10,FALSE)) ->  | H10: =IF(AND(C10="",D10=""),0,IF(AND(C10<>"",D10<>""),HLOOKUP(D10,Data!$B$2:$E$3,2),1)) -> 0
G11: =IF(H11<2,"",VLOOKUP(C11,Data!$A$4:$E$21,H11,FALSE)) ->  | H11: =IF(AND(C11="",D11=""),0,IF(AND(C11<>"",D11<>""),HLOOKUP(D11,Data!$B$2:$E$3,2),1)) -> 0
G12: =IF(H12<2,"",VLOOKUP(C12,Data!$A$4:$E$21,H12,FALSE)) ->  | H12: =IF(AND(C12="",D12=""),0,IF(AND(C12<>"",D12<>""),HLOOKUP(D12,Data!$B$2:$E$3,2),1)) -> 0
E13: =+D102/43560 -> 0 | F13: acre | G13: =+IF(F102=100,"",F102) ->  | I13: =+IF(F121=100,"",F121) -> 
C15: Developed Land Use | D15: HSG | E15: Area | F15: Units | G15: Curve Number | I15: Notes
G16: =IF(H16<2,"",VLOOKUP(C16,Data!$A$28:$E$67,H16,FALSE)) ->  | H16: =+IF(AND(C16="",D16=""),0,IF(AND(C16<>"",D16<>""),HLOOKUP(D16,Data!$B$2:$E$3,2),1)) -> 0
G17: =IF(H17<2,"",VLOOKUP(C17,Data!$A$28:$E$67,H17,FALSE)) ->  | H17: =+IF(AND(C17="",D17=""),0,IF(AND(C17<>"",D17<>""),HLOOKUP(D17,Data!$B$2:$E$3,2),1)) -> 0
G18: =IF(H18<2,"",VLOOKUP(C18,Data!$A$28:$E$67,H18,FALSE)) ->  | H18: =+IF(AND(C18="",D18=""),0,IF(AND(C18<>"",D18<>""),HLOOKUP(D18,Data!$B$2:$E$3,2),1)) -> 0
G19: =IF(H19<2,"",VLOOKUP(C19,Data!$A$28:$E$67,H19,FALSE)) ->  | H19: =+IF(AND(C19="",D19=""),0,IF(AND(C19<>"",D19<>""),HLOOKUP(D19,Data!$B$2:$E$3,2),1)) -> 0
G20: =IF(H20<2,"",VLOOKUP(C20,Data!$A$28:$E$67,H20,FALSE)) ->  | H20: =+IF(AND(C20="",D20=""),0,IF(AND(C20<>"",D20<>""),HLOOKUP(D20,Data!$B$2:$E$3,2),1)) -> 0
G21: =IF(H21<2,"",VLOOKUP(C21,Data!$A$28:$E$67,H21,FALSE)) ->  | H21: =+IF(AND(C21="",D21=""),0,IF(AND(C21<>"",D21<>""),HLOOKUP(D21,Data!$B$2:$E$3,2),1)) -> 0
C22: Notes: | D22: =IF(H22=1,"≠ Existing →","") ->  | E22: =+D112/43560 -> 0 | F22: acre | G22: =+IF(F112=100,"",F112) ->  | H22: =IF(AND(E13=0,E22=0),0,IF(ABS(E22-E13)/MAX(E22,E13)>0.01,1,0)) -> 0
C24: Subcatchment Runoff Volume for Developed Land Use
C25: Rainfall Frequency | D25: =+Data!$H$20 -> 1-year | E25: =+Data!$H$21 -> 2-year | F25: =+Data!$H$22 -> 10-year | G25: =+Data!$H$23 -> 25-year | I25: =+Data!$H$24 -> 100-year
C26: Volume from this Subcatchment [cft] | D26: =D148 -> 0 | E26: =E148 -> 0 | F26: 0 | G26: 0 | I26: =+H148 -> 0
C29: Channel Protection Volume
C30: Required Channel Protection Volume | F30: 2-year Runoff Volumes [cft]
D31: Is Channel Protection Volume required? If no, provide reason. | E31: Yes | F31: Developed | G31: Pre-developed
D32: Required this Subcatchment [cft] | E32: =IF(E31=Data!H38,MAX(F32-G32,0),0) -> 0 | F32: =+D128 -> 0 | G32: =+IF(Summary!E41=Data!H9,E128,F128) -> 0
D33: Unmet from Upstream Subcatchments [cft] | E33: =+E186 -> 0
C34: Required Channel Protection Volume [cft] | E34: =+E33+E32 -> 0
C35: Structural BMPs used to meet Channel Protection Volume
C36: Structural BMP | D36: A Infiltration Area [sqft] | E36: V Storage Volume [cft] | F36: i Design Infiltration Rate [in/hr] | G36: Drain Time [hr] | I36: Volume Retained [cft]
G37: =+I134 -> N.A. | I37: =+IF(H134<=0,"",H134) -> 
G38: =+I135 -> N.A. | I38: =+IF(H135<=0,"",H135) -> 
G39: N.A.
G40: =+I137 -> N.A. | I40: =+IF(H137<=0,"",H137) -> 
C41: Totals | E41: =+SUM(E37:E40) -> 0 | I41: =+H138 -> 0
G42: Credited Channel Protection Volume | I42: =MIN(H138,H141,E34) -> 0
C43: Notes: | G43: Percentage of Channel Protection Volume Met by Retention | I43: =+IFERROR(IF(E32>0,MIN(1,I42/E34),1),"") -> 1
C47: Water Quality Volume
F48: =+Data!$A$89 -> Paved [ac] | G48: =+Data!$A$88 -> Pitched Roofs [ac] | I48: =+Data!$A$87 -> Flat Roofs/Unpaved [ac] | L48: Paved | M48: Pitched | O48: Flat
D49: Sum of Directly Connected Impervious Area [ac] | E49: =+I171 -> 0 | F49: =+E49-I49-G49 -> 0 | H49: =+IF(OR(F49<0,F49>E49),1,0) -> 0 | L49: =+F49/12*VLOOKUP(F48,WaterQualityFactors,2,FALSE) -> 0 | M49: =+G49/12*VLOOKUP(G48,WaterQualityFactors,2,FALSE) -> 0 | O49: =+I49/12*VLOOKUP(I48,WaterQualityFactors,2,FALSE) -> 0
D50: Sum of Directly Connected Disturbed Pervious Area [ac] | E50: =SUM(L51,M51,N51) -> 0 | G50: =+IF(OR(G49<0,G49>E$49,H$49=1),"Invalid Entry","") ->  | H50: =+SUM(O49,M49,L49,L52,M52,N52) -> 0 | I50: =+IF(OR(I49<0,I49>E$49,H$49=1),"Invalid Entry","") ->  | L50: =+Data!$A$90 -> Sandy Soils (HSG A) [ac] | M50: =+Data!$A$91 -> Silty Soils (HSG B) [ac] | N50: =+Data!$A$92 -> Clayey Soils (HSG C&D) [ac]
D51: Required Volume this Subcatchment [cft] | E51: =43560*H50 -> 0 | G51: TSS Generated this Subcatchment | I51: =+E51 -> 0 | L51: =+F171 -> 0 | M51: =+G171 -> 0 | N51: =H171 -> 0
D52: Volume from Upstream Subcatchments [cft] | E52: =+F186 -> 0 | G52: TSS from Upstream Subcatchments | I52: =+G186 -> 0 | L52: =+L51/12*VLOOKUP(L50,WaterQualityFactors,2,FALSE) -> 0 | M52: =+M51/12*VLOOKUP(M50,WaterQualityFactors,2,FALSE) -> 0 | N52: =+N51/12*VLOOKUP(N50,WaterQualityFactors,2,FALSE) -> 0
C53: Water Quality Volume to be Treated [cft] | E53: =+E52+E51 -> 0 | F53: TSS to be Treated | I53: =+I51+I52 -> 0
C54: TSS Accounting
C55: BMPs Used in Treatment Train | D55: Treated Water Volume [cft] | E55: TSS Removal Efficiency | I55: TSS Removed
E56: Tabulated | F56: Third-Party | G56: Effective | H56: TSS in stream | M56: Released water Volume | P56: Need 3rd party value
E57: =+IF(C57="","",IF(P57=Data!$H$38,"--",VLOOKUP(C57,Data!$A$109:$B$143,2,FALSE))) ->  | G57: =+IF(C57="","",IF(P57=Data!$H$38,F57,VLOOKUP(C57,Data!$A$109:$B$143,2,FALSE))*MIN(1,IFERROR(D57/L57,0))) ->  | H57: =+I53-I57 -> 0 | I57: =+IFERROR(I53*G57/100,0) -> 0 | L57: =+$E$53 -> 0 | M57: =+IF(D57="","",IFERROR(MIN(IF(VLOOKUP(C57,Data!$A$109:$C$143,3,FALSE)=Data!$C$112,L57,MAX(0,L57-D57)),$E$53),"")) ->  | N57: =IFERROR(1/ISNUMBER(M57),"") ->  | O57: =+IF(D57*1.01>L57,1,0) -> 0 | P57: =+IF(C57="","",IF(VLOOKUP(C57,Data!$A$109:$B$143,2,FALSE)="",Data!$H$38,Data!$H$39)) -> 
E58: =+IF(C58="","",IF(P58=Data!$H$38,"--",VLOOKUP(C58,Data!$A$109:$B$143,2,FALSE))) ->  | G58: =+IF(C58="","",IF(P58=Data!$H$38,F58,VLOOKUP(C58,Data!$A$109:$B$143,2,FALSE))*MIN(1,IFERROR(D58/L58,0))) ->  | H58: =+H57-I58 -> 0 | I58: =+IFERROR(H57*G58/100,0) -> 0 | L58: =MIN(L57:M57) -> 0 | M58: =+IF(D58="","",IFERROR(MIN(IF(VLOOKUP(C58,Data!$A$109:$C$143,3,FALSE)=Data!$C$112,L58,MAX(0,L58-D58)),$E$53),"")) ->  | N58: =IFERROR(1/ISNUMBER(M58),"") ->  | O58: =+IF(D58*1.01>L58,1,0) -> 0 | P58: =+IF(C58="","",IF(VLOOKUP(C58,Data!$A$109:$B$143,2,FALSE)="",Data!$H$38,Data!$H$39)) -> 
E59: =+IF(C59="","",IF(P59=Data!$H$38,"--",VLOOKUP(C59,Data!$A$109:$B$143,2,FALSE))) ->  | G59: =+IF(C59="","",IF(P59=Data!$H$38,F59,VLOOKUP(C59,Data!$A$109:$B$143,2,FALSE))*MIN(1,IFERROR(D59/L59,0))) ->  | H59: 0 | I59: =+IFERROR(H58*G59/100,0) -> 0 | L59: =MIN(L58:M58) -> 0 | M59: =+IF(D59="","",IFERROR(MIN(IF(VLOOKUP(C59,Data!$A$109:$C$143,3,FALSE)=Data!$C$112,L59,MAX(0,L59-D59)),$E$53),"")) ->  | O59: =+IF(D59*1.01>L59,1,0) -> 0 | P59: =+IF(C59="","",IF(VLOOKUP(C59,Data!$A$109:$B$143,2,FALSE)="",Data!$H$38,Data!$H$39)) -> 
E60: =+IF(C60="","",IF(P60=Data!$H$38,"--",VLOOKUP(C60,Data!$A$109:$B$143,2,FALSE))) ->  | G60: =+IF(C60="","",IF(P60=Data!$H$38,F60,VLOOKUP(C60,Data!$A$109:$B$143,2,FALSE))*MIN(1,IFERROR(D60/L60,0))) ->  | H60: 0 | I60: 0 | L60: 0 | M60: =+IF(D60="","",IFERROR(MIN(IF(VLOOKUP(C60,Data!$A$109:$C$143,3,FALSE)=Data!$C$112,L60,MAX(0,L60-D60)),$E$53),"")) ->  | O60: 0 | P60: =+IF(C60="","",IF(VLOOKUP(C60,Data!$A$109:$B$143,2,FALSE)="",Data!$H$38,Data!$H$39)) -> 
E61: =+IF(C61="","",IF(P61=Data!$H$38,"--",VLOOKUP(C61,Data!$A$109:$B$143,2,FALSE))) ->  | G61: =+IF(C61="","",IF(P61=Data!$H$38,F61,VLOOKUP(C61,Data!$A$109:$B$143,2,FALSE))*MIN(1,IFERROR(D61/L61,0))) ->  | H61: 0 | I61: 0 | L61: 0 | M61: =+IF(D61="","",IFERROR(MIN(IF(VLOOKUP(C61,Data!$A$109:$C$143,3,FALSE)=Data!$C$112,L61,MAX(0,L61-D61)),$E$53),"")) ->  | O61: 0 | P61: =+IF(C61="","",IF(VLOOKUP(C61,Data!$A$109:$B$143,2,FALSE)="",Data!$H$38,Data!$H$39)) -> 
C62: Released Water Volume [cft] | D62: =+M62 -> 0 | G62: Total TSS Removed | I62: =+SUM(I57:I61) -> 0 | M62: =IFERROR(LOOKUP(2,N57:N61,M57:M61),E53) -> 0 | O62: =SUM(O57:O61) -> 0
C63: Water Quality Volume met? | D63: =+M63 -> Yes | G63: TSS Remaining | I63: =+I53-I62 -> 0 | M63: =IF(OR(O62>0,E53<0.5),"Yes","No") -> Yes
C64: Notes: | G64: TSS Removal Efficiency [%] | I64: =+IFERROR(I62/I53*100,0) -> 0
C68: Infiltration Rate Calculator for Filter Media
C70: Filter Media Component | D70: K [ft/day] | E70: Weight | G70: Constructed Filter | H70: Weight | I70: Value
D71: =+IFERROR(VLOOKUP(C71,Data!$A$146:$B$151,2,FALSE),"") ->  | G71: Average Head on the Filter [ft] | H71: =+IF(D71="",0,E71) -> 0
D72: =+IFERROR(VLOOKUP(C72,Data!$A$146:$B$151,2,FALSE),"") ->  | G72: Depth of Filter Media [ft] | H72: =+IF(D72="",0,E72) -> 0
D73: =+IFERROR(VLOOKUP(C73,Data!$A$146:$B$151,2,FALSE),"") ->  | G73: Infiltration Rate [in/hr] | H73: 0 | I73: =+IFERROR(D75*(I71+I72)/2/I72,"") -> 
G74: Retentive BMP | H74: 0
C75: Average Hydraulic Conductivity of Filter Media [ft/day] | D75: =IFERROR(SUMPRODUCT(D71:D74,H71:H74)/SUM(H71:H74),"") ->  | G75: Infiltration Rate [in/hr] | I75: =IFERROR(D75/2,"") -> 
C76: Notes:
B89: =CELL("width",B89) -> 4 | C89: 54 | D89: 15 | E89: 15 | F89: 15 | G89: 15 | I89: =CELL("width",I89) -> 15 | J89: =CELL("width",J89) -> 4 | R89: =+SUM(B89:J89) -> 137
C90: Start of Hidden Cells
C92: Calculation of pervious CN and fraction impervious
E94: Ia factor | F94: 0.2 | H94: =+Data!H20 -> 1-year | I94: =VLOOKUP(H94,Settings!$C$20:$D$24,2,FALSE) -> 2.22 | L94: =+Data!H21 -> 2-year | M94: =VLOOKUP(L94,Settings!$C$20:$D$24,2,FALSE) -> 2.56 | N94: =+Data!H22 -> 10-year | O94: =VLOOKUP(N94,Settings!$C$20:$D$24,2,FALSE) -> 3.77 | P94: =+Data!H23 -> 25-year | Q94: =VLOOKUP(P94,Settings!$C$20:$D$24,2,FALSE) -> 4.66 | R94: =+Data!H24 -> 100-year | S94: =VLOOKUP(R94,Settings!$C$20:$D$24,2,FALSE) -> 6.27
C96: Existing CNs | D96: Area [sqft] | E96: Per. area [sqft] | F96: CN | G96: Ia [in] | H96: SRO [in] | I96: Volume [cft] | L96: SRO [in] | M96: Volume [cft] | N96: SRO [in] | O96: Volume [cft] | P96: SRO [in] | Q96: Volume [cft] | R96: SRO [in] | S96: Volume [cft]
C97: =+IF(C8="","",C8) ->  | D97: =+IF(H8>1,E8*IFERROR(VLOOKUP(F8,Data!$H$33:$I$35,2,FALSE),Data!$I$34),0) -> 0 | E97: =+IF(C97<>Data!$A$4,D97,0) -> 0 | F97: =+G8 ->  | G97: =+IFERROR(IF(F97=0,0,1000/F97-10),0)*$F$94 -> 0 | H97: =+IF((I$94-$G97)<0,0,(I$94-$G97)^2/(I$94+4*$G97)) -> 2.22 | I97: =+$D97*H97/12 -> 0 | L97: =+IF((M$94-$G97)<0,0,(M$94-$G97)^2/(M$94+4*$G97)) -> 2.56 | M97: =+$D97*L97/12 -> 0 | N97: =+IF((O$94-$G97)<0,0,(O$94-$G97)^2/(O$94+4*$G97)) -> 3.77 | O97: =+$D97*N97/12 -> 0 | P97: =+IF((Q$94-$G97)<0,0,(Q$94-$G97)^2/(Q$94+4*$G97)) -> 4.66 | Q97: =+$D97*P97/12 -> 0 | R97: =+IF((S$94-$G97)<0,0,(S$94-$G97)^2/(S$94+4*$G97)) -> 6.27 | S97: =+$D97*R97/12 -> 0
C98: =+IF(C9="","",C9) ->  | D98: =+IF(H9>1,E9*IFERROR(VLOOKUP(F9,Data!$H$33:$I$35,2,FALSE),Data!$I$34),0) -> 0 | E98: =+IF(C98<>Data!$A$4,D98,0) -> 0 | F98: =+G9 ->  | G98: =+IFERROR(IF(F98=0,0,1000/F98-10),0)*$F$94 -> 0 | H98: =+IF((I$94-$G98)<0,0,(I$94-$G98)^2/(I$94+4*$G98)) -> 2.22 | I98: =+$D98*H98/12 -> 0 | L98: 2.56 | M98: =+$D98*L98/12 -> 0 | N98: 3.77 | O98: =+$D98*N98/12 -> 0 | P98: 4.66 | Q98: =+$D98*P98/12 -> 0 | R98: 6.27 | S98: =+$D98*R98/12 -> 0
C99: =+IF(C10="","",C10) ->  | D99: =+IF(H10>1,E10*IFERROR(VLOOKUP(F10,Data!$H$33:$I$35,2,FALSE),Data!$I$34),0) -> 0 | E99: =+IF(C99<>Data!$A$4,D99,0) -> 0 | F99: =+G10 ->  | G99: =+IFERROR(IF(F99=0,0,1000/F99-10),0)*$F$94 -> 0 | H99: =+IF((I$94-$G99)<0,0,(I$94-$G99)^2/(I$94+4*$G99)) -> 2.22 | I99: 0 | L99: 2.56 | M99: 0 | N99: 3.77 | O99: 0 | P99: 4.66 | Q99: 0 | R99: 6.27 | S99: 0
C100: =+IF(C11="","",C11) ->  | D100: =+IF(H11>1,E11*IFERROR(VLOOKUP(F11,Data!$H$33:$I$35,2,FALSE),Data!$I$34),0) -> 0 | E100: =+IF(C100<>Data!$A$4,D100,0) -> 0 | F100: =+G11 ->  | G100: =+IFERROR(IF(F100=0,0,1000/F100-10),0)*$F$94 -> 0 | H100: =+IF((I$94-$G100)<0,0,(I$94-$G100)^2/(I$94+4*$G100)) -> 2.22 | I100: 0 | L100: 2.56 | M100: 0 | N100: 3.77 | O100: 0 | P100: 4.66 | Q100: 0 | R100: 6.27 | S100: 0
C101: =+IF(C12="","",C12) ->  | D101: =+IF(H12>1,E12*IFERROR(VLOOKUP(F12,Data!$H$33:$I$35,2,FALSE),Data!$I$34),0) -> 0 | E101: =+IF(C101<>Data!$A$4,D101,0) -> 0 | F101: =+G12 ->  | G101: =+IFERROR(IF(F101=0,0,1000/F101-10),0)*$F$94 -> 0 | H101: =+IF((I$94-$G101)<0,0,(I$94-$G101)^2/(I$94+4*$G101)) -> 2.22 | I101: 0 | L101: 2.56 | M101: 0 | N101: 3.77 | O101: 0 | P101: 4.66 | Q101: 0 | R101: 6.27 | S101: 0
C102: Totals | D102: =+SUM(D97:D101) -> 0 | E102: =+SUM(E97:E101) -> 0 | F102: =+IF(D102<>0,SUMPRODUCT(D97:D101,F97:F101)/D102,100) -> 100 | G102: =+IFERROR(SUMPRODUCT(D97:D101,G97:G101)/D102,0) -> 0 | I102: =SUM(I97:I101) -> 0 | L102: 2.56 | M102: =SUM(M97:M101) -> 0 | N102: 3.77 | O102: =SUM(O97:O101) -> 0 | P102: 4.66 | Q102: =SUM(Q97:Q101) -> 0 | R102: 6.27 | S102: =SUM(S97:S101) -> 0
C103: Fraction Impervious | D103: =+IF(D102<>0,(D102-E102)/D102,0) -> 0
C105: Developed CN's | D105: Area [sqft] | E105: Perv. Area [sqft] | F105: CN | G105: Ia [in] | H105: SRO [in] | I105: Volume [cft] | L105: SRO [in] | M105: Volume [cft] | N105: SRO [in] | O105: Volume [cft] | P105: SRO [in] | Q105: Volume [cft] | R105: SRO [in] | S105: Volume [cft]
C106: =+IF(C16="","",C16) ->  | D106: =+IF(H16>1,E16*IFERROR(VLOOKUP(F16,Data!$H$33:$I$35,2,FALSE),Data!$I$34),0) -> 0 | E106: =+IF(F106=98,0,D106) -> 0 | F106: =+G16 ->  | G106: =+IFERROR(IF(F106=0,0,1000/F106-10),0)*$F$94 -> 0 | H106: =+IF((I$94-$G106)<0,0,(I$94-$G106)^2/(I$94+4*$G106)) -> 2.22 | I106: =+$D106*H106/12 -> 0 | L106: =+IF((M$94-$G106)<0,0,(M$94-$G106)^2/(M$94+4*$G106)) -> 2.56 | M106: =+$D106*L106/12 -> 0 | N106: =+IF((O$94-$G106)<0,0,(O$94-$G106)^2/(O$94+4*$G106)) -> 3.77 | O106: =+$D106*N106/12 -> 0 | P106: =+IF((Q$94-$G106)<0,0,(Q$94-$G106)^2/(Q$94+4*$G106)) -> 4.66 | Q106: =+$D106*P106/12 -> 0 | R106: =+IF((S$94-$G106)<0,0,(S$94-$G106)^2/(S$94+4*$G106)) -> 6.27 | S106: =+$D106*R106/12 -> 0
D107: =+IF(H17>1,E17*IFERROR(VLOOKUP(F17,Data!$H$33:$I$35,2,FALSE),Data!$I$34),0) -> 0 | E107: =+IF(F107=98,0,D107) -> 0 | G107: 0 | H107: 2.22 | I107: =+$D107*H107/12 -> 0 | L107: 2.56 | M107: =+$D107*L107/12 -> 0 | N107: 3.77 | O107: =+$D107*N107/12 -> 0 | P107: 4.66 | Q107: =+$D107*P107/12 -> 0 | R107: 6.27 | S107: =+$D107*R107/12 -> 0
D108: =+IF(H18>1,E18*IFERROR(VLOOKUP(F18,Data!$H$33:$I$35,2,FALSE),Data!$I$34),0) -> 0 | E108: 0 | G108: 0 | H108: 2.22 | I108: 0 | L108: 2.56 | M108: 0 | N108: 3.77 | O108: 0 | P108: 4.66 | Q108: 0 | R108: 6.27 | S108: 0
D109: =+IF(H19>1,E19*IFERROR(VLOOKUP(F19,Data!$H$33:$I$35,2,FALSE),Data!$I$34),0) -> 0 | E109: 0 | G109: 0 | H109: 2.22 | I109: 0 | L109: 2.56 | M109: 0 | N109: 3.77 | O109: 0 | P109: 4.66 | Q109: 0 | R109: 6.27 | S109: 0
D110: =+IF(H20>1,E20*IFERROR(VLOOKUP(F20,Data!$H$33:$I$35,2,FALSE),Data!$I$34),0) -> 0 | E110: 0 | G110: 0 | H110: 2.22 | I110: 0 | L110: 2.56 | M110: 0 | N110: 3.77 | O110: 0 | P110: 4.66 | Q110: 0 | R110: 6.27 | S110: 0
D111: =+IF(H21>1,E21*IFERROR(VLOOKUP(F21,Data!$H$33:$I$35,2,FALSE),Data!$I$34),0) -> 0 | E111: 0 | G111: 0 | H111: 2.22 | I111: 0 | L111: 2.56 | M111: 0 | N111: 3.77 | O111: 0 | P111: 4.66 | Q111: 0 | R111: 6.27 | S111: 0
C112: Total | D112: =+SUM(D106:D111) -> 0 | E112: =+SUM(E106:E111) -> 0 | F112: =IF(D112<>0,SUMPRODUCT(D106:D111,F106:F111)/D112,"") ->  | G112: =IFERROR(SUMPRODUCT(D106:D111,G106:G111)/D112,0) -> 0 | I112: =SUM(I106:I111) -> 0 | L112: 2.56 | M112: =SUM(M106:M111) -> 0 | N112: 3.77 | O112: =SUM(O106:O111) -> 0 | P112: 4.66 | Q112: =SUM(Q106:Q111) -> 0 | R112: 6.27 | S112: =SUM(S106:S111) -> 0
C113: Fraction Impervious | D113: =+IF(D112<>0,(D112-E112)/D112,0) -> 0
C115: Pre-settlement CN's | D115: HSG | E115: Area [sqft] | F115: SCS CN | G115: Ia [in] | H115: SRO [in] | I115: Volume [cft] | L115: SRO [in] | M115: Volume [cft] | N115: SRO [in] | O115: Volume [cft] | P115: SRO [in] | Q115: Volume [cft] | R115: SRO [in] | S115: Volume [cft]
C116: =IF(C8="","",VLOOKUP(C8,Data!$A$4:$F$21,6,FALSE)) ->  | D116: =IF(D8="","",D8) ->  | E116: =IF(H8<=1,"",E8*IFERROR(VLOOKUP(F8,Data!$H$33:$I$35,2,FALSE),Data!$I$34)) ->  | F116: =IF(H8<2,"",VLOOKUP(C116,Data!$A$4:$E$21,H8,FALSE)) ->  | G116: =+IFERROR(IF(F116=0,0,1000/F116-10),0)*$F$94 -> 0 | H116: =+IF((I$94-$G116)<0,0,(I$94-$G116)^2/(I$94+4*$G116)) -> 2.22 | I116: =+IFERROR($E116*H116/12,0) -> 0 | L116: =+IF((M$94-$G116)<0,0,(M$94-$G116)^2/(M$94+4*$G116)) -> 2.56 | M116: =+IFERROR($E116*L116/12,0) -> 0 | N116: =+IF((O$94-$G116)<0,0,(O$94-$G116)^2/(O$94+4*$G116)) -> 3.77 | O116: =+IFERROR($E116*N116/12,0) -> 0 | P116: =+IF((Q$94-$G116)<0,0,(Q$94-$G116)^2/(Q$94+4*$G116)) -> 4.66 | Q116: =+IFERROR($E116*P116/12,0) -> 0 | R116: =+IF((S$94-$G116)<0,0,(S$94-$G116)^2/(S$94+4*$G116)) -> 6.27 | S116: =+IFERROR($E116*R116/12,0) -> 0
C117: =IF(C9="","",VLOOKUP(C9,Data!$A$4:$F$21,6,FALSE)) ->  | D117: =IF(D9="","",D9) ->  | E117: =IF(H9<=1,"",E9*IFERROR(VLOOKUP(F9,Data!$H$33:$I$35,2,FALSE),Data!$I$34)) ->  | F117: =IF(H9<2,"",VLOOKUP(C117,Data!$A$4:$E$21,H9,FALSE)) ->  | G117: =+IFERROR(IF(F117=0,0,1000/F117-10),0)*$F$94 -> 0 | H117: =+IF((I$94-$G117)<0,0,(I$94-$G117)^2/(I$94+4*$G117)) -> 2.22 | I117: =+IFERROR($E117*H117/12,0) -> 0 | L117: 2.56 | M117: =+IFERROR($E117*L117/12,0) -> 0 | N117: 3.77 | O117: =+IFERROR($E117*N117/12,0) -> 0 | P117: 4.66 | Q117: =+IFERROR($E117*P117/12,0) -> 0 | R117: 6.27 | S117: =+IFERROR($E117*R117/12,0) -> 0
C118: =IF(C10="","",VLOOKUP(C10,Data!$A$4:$F$21,6,FALSE)) ->  | D118: =IF(D10="","",D10) ->  | E118: =IF(H10<=1,"",E10*IFERROR(VLOOKUP(F10,Data!$H$33:$I$35,2,FALSE),Data!$I$34)) ->  | F118: =IF(H10<2,"",VLOOKUP(C118,Data!$A$4:$E$21,H10,FALSE)) ->  | G118: =+IFERROR(IF(F118=0,0,1000/F118-10),0)*$F$94 -> 0 | H118: =+IF((I$94-$G118)<0,0,(I$94-$G118)^2/(I$94+4*$G118)) -> 2.22 | I118: 0 | L118: 2.56 | M118: 0 | N118: 3.77 | O118: 0 | P118: 4.66 | Q118: 0 | R118: 6.27 | S118: 0
C119: =IF(C11="","",VLOOKUP(C11,Data!$A$4:$F$21,6,FALSE)) ->  | D119: =IF(D11="","",D11) ->  | E119: =IF(H11<=1,"",E11*IFERROR(VLOOKUP(F11,Data!$H$33:$I$35,2,FALSE),Data!$I$34)) ->  | F119: =IF(H11<2,"",VLOOKUP(C119,Data!$A$4:$E$21,H11,FALSE)) ->  | G119: =+IFERROR(IF(F119=0,0,1000/F119-10),0)*$F$94 -> 0 | H119: =+IF((I$94-$G119)<0,0,(I$94-$G119)^2/(I$94+4*$G119)) -> 2.22 | I119: 0 | L119: 2.56 | M119: 0 | N119: 3.77 | O119: 0 | P119: 4.66 | Q119: 0 | R119: 6.27 | S119: 0
C120: =IF(C12="","",VLOOKUP(C12,Data!$A$4:$F$21,6,FALSE)) ->  | D120: =IF(D12="","",D12) ->  | E120: =IF(H12<=1,"",E12*IFERROR(VLOOKUP(F12,Data!$H$33:$I$35,2,FALSE),Data!$I$34)) ->  | F120: =IF(H12<2,"",VLOOKUP(C120,Data!$A$4:$E$21,H12,FALSE)) ->  | G120: =+IFERROR(IF(F120=0,0,1000/F120-10),0)*$F$94 -> 0 | H120: =+IF((I$94-$G120)<0,0,(I$94-$G120)^2/(I$94+4*$G120)) -> 2.22 | I120: 0 | L120: 2.56 | M120: 0 | N120: 3.77 | O120: 0 | P120: 4.66 | Q120: 0 | R120: 6.27 | S120: 0
D121: Totals | E121: =+SUM(E116:E120) -> 0 | F121: =+IF(E121<>0,SUMPRODUCT(E116:E120,F116:F120)/E121,100) -> 100 | G121: =IFERROR(SUMPRODUCT(E116:E120,G116:G120)/E121,0) -> 0 | I121: =SUM(I116:I120) -> 0 | L121: 2.56 | M121: =SUM(M116:M120) -> 0 | N121: 3.77 | O121: =SUM(O116:O120) -> 0 | P121: 4.66 | Q121: =SUM(Q116:Q120) -> 0 | R121: 6.27 | S121: =SUM(S116:S120) -> 0
D122: Fraction Imperv | E122: 0
C124: Calculation of 2-year runoff volume for Channel Protection
D126: Developed | E126: Pre-settlement | F126: Existing
C127: Drainage area [sqft] | D127: =+D112 -> 0 | E127: =+E121 -> 0 | F127: =+D102 -> 0
C128: Volume (cft) = | D128: =+M112 -> 0 | E128: =+M121 -> 0 | F128: =+M102 -> 0
C129: Runoff Depth [in] | D129: =+IFERROR(D128/D127*12,0) -> 0 | E129: =+IFERROR(E128/E127*12,0) -> 0 | F129: 0
C131: Structural BMP volumes
C133: BMP | D133: Area [sqft] | E133: Volume [cft] | F133: Infiltration rate [in/hr] | G133: Infiltrating volume [cft] | H133: Total volume [cft] | I133: Drain Time [hr] | R133: Infiltration Time [hr] | S133: Infiltration rate [cf/hr]
C134: =+IF(C37=0,Data!$A$84,C37) -> NoneSelected | D134: =+MAX(0,D37) -> 0 | E134: =+MAX(0,E37*VLOOKUP($C134,Data!$A$71:$C$84,2,FALSE)) -> 0 | F134: =+MAX(0,F37*VLOOKUP($C134,Data!$A$71:$C$84,3,FALSE)) -> 0 | G134: =+IF(OR(I134="N.A.",I134=""),0,IFERROR(R134*S134,0)) -> 0 | H134: =+G134+E134 -> 0 | I134: =+IF(IFERROR(VLOOKUP(C134,Data!$A$71:$C$84,3,FALSE),0)=0,"N.A.",IFERROR(E134/D134/F134*12,"")) -> N.A. | R134: =IFERROR(2+MIN(72,I134)*(0.222-0.553*LOG(MIN(72,I134)/72)),0) -> 17.984 | S134: =+D134*F134/12 -> 0
C135: =+IF(C38=0,Data!$A$84,C38) -> NoneSelected | D135: =+MAX(0,D38) -> 0 | E135: =+MAX(0,E38*VLOOKUP($C135,Data!$A$71:$C$84,2,FALSE)) -> 0 | F135: =+MAX(0,F38*VLOOKUP($C135,Data!$A$71:$C$84,3,FALSE)) -> 0 | G135: =+IF(OR(I135="N.A.",I135=""),0,IFERROR(R135*S135,0)) -> 0 | H135: =+G135+E135 -> 0 | I135: =+IF(IFERROR(VLOOKUP(C135,Data!$A$71:$C$84,3,FALSE),0)=0,"N.A.",IFERROR(E135/D135/F135*12,"")) -> N.A. | R135: =IFERROR(2+MIN(72,I135)*(0.222-0.553*LOG(MIN(72,I135)/72)),0) -> 17.984 | S135: =+D135*F135/12 -> 0
C136: =+IF(C39=0,Data!$A$84,C39) -> NoneSelected | D136: =+MAX(0,D39) -> 0 | E136: =+MAX(0,E39*VLOOKUP($C136,Data!$A$71:$C$84,2,FALSE)) -> 0 | F136: =+MAX(0,F39*VLOOKUP($C136,Data!$A$71:$C$84,3,FALSE)) -> 0 | G136: 0 | H136: 0 | I136: =+IF(IFERROR(VLOOKUP(C136,Data!$A$71:$C$84,3,FALSE),0)=0,"N.A.",IFERROR(E136/D136/F136*12,"")) -> N.A. | R136: 17.984 | S136: 0
C137: =+IF(C40=0,Data!$A$84,C40) -> NoneSelected | D137: =+MAX(0,D40) -> 0 | E137: =+MAX(0,E40*VLOOKUP($C137,Data!$A$71:$C$84,2,FALSE)) -> 0 | F137: =+MAX(0,F40*VLOOKUP($C137,Data!$A$71:$C$84,3,FALSE)) -> 0 | G137: 0 | H137: 0 | I137: =+IF(IFERROR(VLOOKUP(C137,Data!$A$71:$C$84,3,FALSE),0)=0,"N.A.",IFERROR(E137/D137/F137*12,"")) -> N.A. | R137: 17.984 | S137: 0
E138: =SUM(E134:E137) -> 0 | F138: Sum of all BMPs | G138: =SUM(G134:G137) -> 0 | H138: =SUM(H134:H137) -> 0
G139: 2-year runoff volume for sub-catchment | H139: =+D128 -> 0
G140: Unmet Channel Protection Volume from upstream subcatchments | H140: =+E186 -> 0
G141: Sum of 2-year runoff volume and unmet upstream volumes | H141: =+H140+H139 -> 0
C143: Maximum retained volume for all events
C145: Event | D145: =+Data!$H$20 -> 1-year | E145: =+Data!$H$21 -> 2-year | F145: =+Data!$H$22 -> 10-year | G145: =+Data!$H$23 -> 25-year | H145: =+Data!$H$24 -> 100-year
C146: Drainage area [sqft] | D146: =+$D112 -> 0 | E146: =+$D112 -> 0 | F146: =+$D112 -> 0 | G146: =+$D112 -> 0 | H146: =+$D112 -> 0
C147: Total Runoff, Q (in) = | D147: =+IFERROR(D148/D146*12,0) -> 0 | E147: =+IFERROR(E148/E146*12,0) -> 0 | F147: =+IFERROR(F148/F146*12,0) -> 0 | G147: =+IFERROR(G148/G146*12,0) -> 0 | H147: =+IFERROR(H148/H146*12,0) -> 0
C148: Runoff Volume (cft) = | D148: =+I112 -> 0 | E148: =+M112 -> 0 | F148: =O112 -> 0 | G148: =Q112 -> 0 | H148: =S112 -> 0
C149: Excess runoff volume upstream subcatchments (cft) | D149: =+E201 -> 0 | E149: =+F201 -> 0 | F149: 0 | G149: 0 | H149: 0
C150: Total Runoff to retentive BMP (cft) | D150: =+D149+D148 -> 0 | E150: =+E149+E148 -> 0 | F150: 0 | G150: 0 | H150: 0
C151: Volume retained in subcatchment [cft] | D151: =+MIN($H$138,D150) -> 0 | E151: =+MIN($H$138,E150) -> 0 | F151: 0 | G151: 0 | H151: 0
C152: Volume released from subcatchment [cft] | D152: =+D150-D151 -> 0 | E152: =+E150-E151 -> 0 | F152: 0 | G152: 0 | H152: 0
C154: Volume credited for detention flood control
C155: =+Data!H97 -> Volume Retained | D155: =+D151 -> 0 | E155: =+E151 -> 0 | F155: 0 | G155: 0 | H155: 0
C156: =+Data!H98 -> Storage Volume | D156: =+MIN(D150,$E$138) -> 0 | E156: =+MIN(E150,$E$138) -> 0 | F156: 0 | G156: 0 | H156: 0
C157: =+Data!H99 -> Storage Volume 2yr | D157: =+MIN(D156,$E$34) -> 0 | E157: =+MIN(E156,$E$34) -> 0 | F157: 0 | G157: 0 | H157: 0
C158: =+Data!H100 -> None | D158: 0 | E158: 0 | F158: 0 | G158: 0 | H158: 0
C159: ='Flood Control'!D24 -> None | D159: =VLOOKUP($C$159,$C$155:$H$158,D160,FALSE) -> 0 | E159: =VLOOKUP($C$159,$C$155:$H$158,E160,FALSE) -> 0 | F159: 0 | G159: 0 | H159: 0
D160: 2 | E160: 3 | F160: 4 | G160: 5 | H160: 6
C162: Areas for water quality volume
C163: Land use | D163: HSG | E163: DP Area [sqft] | F163: HSG = A | G163: HSG = B | H163: HSG = C or D | I163: Imp Area [sqft]
C164: =+IF(C16="","",C16) ->  | E164: =D106*IFERROR(VLOOKUP(C164,Data!$A$102:$B$105,2,FALSE),0) -> 0 | F164: =IF(D164="A",E164,0) -> 0 | G164: =IF(D164="B",E164,0) -> 0 | H164: =IF(OR(D164="C",D164="D"),E164,0) -> 0 | I164: =+D106*IFERROR(VLOOKUP(C164,Data!$A$95:$B$98,2,FALSE),0) -> 0
E165: =D107*IFERROR(VLOOKUP(C165,Data!$A$102:$B$105,2,FALSE),0) -> 0 | F165: =IF(D165="A",E165,0) -> 0 | G165: =IF(D165="B",E165,0) -> 0 | H165: 0 | I165: =+D107*IFERROR(VLOOKUP(C165,Data!$A$95:$B$98,2,FALSE),0) -> 0
E166: =D108*IFERROR(VLOOKUP(C166,Data!$A$102:$B$105,2,FALSE),0) -> 0 | F166: =IF(D166="A",E166,0) -> 0 | G166: =IF(D166="B",E166,0) -> 0 | H166: 0 | I166: =+D108*IFERROR(VLOOKUP(C166,Data!$A$95:$B$98,2,FALSE),0) -> 0
E167: =D109*IFERROR(VLOOKUP(C167,Data!$A$102:$B$105,2,FALSE),0) -> 0 | F167: 0 | G167: 0 | H167: 0 | I167: =+D109*IFERROR(VLOOKUP(C167,Data!$A$95:$B$98,2,FALSE),0) -> 0
E168: =D110*IFERROR(VLOOKUP(C168,Data!$A$102:$B$105,2,FALSE),0) -> 0 | F168: 0 | G168: 0 | H168: 0 | I168: =+D110*IFERROR(VLOOKUP(C168,Data!$A$95:$B$98,2,FALSE),0) -> 0
E169: =D111*IFERROR(VLOOKUP(C169,Data!$A$102:$B$105,2,FALSE),0) -> 0 | F169: 0 | G169: 0 | H169: 0 | I169: =+D111*IFERROR(VLOOKUP(C169,Data!$A$95:$B$98,2,FALSE),0) -> 0
E170: Total [sqft] | F170: =SUM(F164:F169) -> 0 | G170: =SUM(G164:G169) -> 0 | H170: =SUM(H164:H169) -> 0 | I170: =SUM(I164:I169) -> 0
E171: Total [ac] | F171: =+F170/43560 -> 0 | G171: =+G170/43560 -> 0 | H171: =+H170/43560 -> 0 | I171: =+I170/43560 -> 0
C174: Quantities from upstream sub-catchments
C175: Sub-catchment | D175: Upstream | E175: Unmet CPV [cft] | F175: Released WQV [cft] | G175: Released TSS
C176: Sub1 | D176: =+IFERROR(IF($M$5=VLOOKUP(C176,Summary!$C$52:$E$61,3,FALSE),"Y","N"),"N") -> N | E176: =+IF($D176="Y",IFERROR(VLOOKUP($C176,Summary!$C$87:$I$96,7,FALSE),0),0) -> 0 | F176: =+IF($D176="Y",IFERROR(VLOOKUP($C176,Summary!$C$109:$J$118,5,FALSE),0),0) -> 0 | G176: =+IF($D176="Y",IFERROR(VLOOKUP($C176,Summary!$C$109:$K$118,9,FALSE),0),0) -> 0
C177: Sub2 | D177: =+IFERROR(IF($M$5=VLOOKUP(C177,Summary!$C$52:$E$61,3,FALSE),"Y","N"),"N") -> N | E177: =+IF(D177="Y",IFERROR(VLOOKUP(C177,Summary!$C$87:$I$96,7,FALSE),0),0) -> 0 | F177: =+IF($D177="Y",IFERROR(VLOOKUP($C177,Summary!$C$109:$J$118,5,FALSE),0),0) -> 0 | G177: =+IF($D177="Y",IFERROR(VLOOKUP($C177,Summary!$C$109:$K$118,9,FALSE),0),0) -> 0
C178: Sub3 | D178: =+IFERROR(IF($M$5=VLOOKUP(C178,Summary!$C$52:$E$61,3,FALSE),"Y","N"),"N") -> N | E178: =+IF(D178="Y",IFERROR(VLOOKUP(C178,Summary!$C$87:$I$96,7,FALSE),0),0) -> 0 | F178: =+IF($D178="Y",IFERROR(VLOOKUP($C178,Summary!$C$109:$J$118,5,FALSE),0),0) -> 0 | G178: =+IF($D178="Y",IFERROR(VLOOKUP($C178,Summary!$C$109:$K$118,9,FALSE),0),0) -> 0
C179: Sub4 | D179: =+IFERROR(IF($M$5=VLOOKUP(C179,Summary!$C$52:$E$61,3,FALSE),"Y","N"),"N") -> N | E179: =+IF(D179="Y",IFERROR(VLOOKUP(C179,Summary!$C$87:$I$96,7,FALSE),0),0) -> 0 | F179: =+IF($D179="Y",IFERROR(VLOOKUP($C179,Summary!$C$109:$J$118,5,FALSE),0),0) -> 0 | G179: =+IF($D179="Y",IFERROR(VLOOKUP($C179,Summary!$C$109:$K$118,9,FALSE),0),0) -> 0
C180: Sub5 | D180: =+IFERROR(IF($M$5=VLOOKUP(C180,Summary!$C$52:$E$61,3,FALSE),"Y","N"),"N") -> N | E180: =+IF(D180="Y",IFERROR(VLOOKUP(C180,Summary!$C$87:$I$96,7,FALSE),0),0) -> 0 | F180: =+IF($D180="Y",IFERROR(VLOOKUP($C180,Summary!$C$109:$J$118,5,FALSE),0),0) -> 0 | G180: =+IF($D180="Y",IFERROR(VLOOKUP($C180,Summary!$C$109:$K$118,9,FALSE),0),0) -> 0
C181: Sub6 | D181: =+IFERROR(IF($M$5=VLOOKUP(C181,Summary!$C$52:$E$61,3,FALSE),"Y","N"),"N") -> N | E181: =+IF(D181="Y",IFERROR(VLOOKUP(C181,Summary!$C$87:$I$96,7,FALSE),0),0) -> 0 | F181: =+IF($D181="Y",IFERROR(VLOOKUP($C181,Summary!$C$109:$J$118,5,FALSE),0),0) -> 0 | G181: =+IF($D181="Y",IFERROR(VLOOKUP($C181,Summary!$C$109:$K$118,9,FALSE),0),0) -> 0
C182: Sub7 | D182: =+IFERROR(IF($M$5=VLOOKUP(C182,Summary!$C$52:$E$61,3,FALSE),"Y","N"),"N") -> N | E182: =+IF(D182="Y",IFERROR(VLOOKUP(C182,Summary!$C$87:$I$96,7,FALSE),0),0) -> 0 | F182: =+IF($D182="Y",IFERROR(VLOOKUP($C182,Summary!$C$109:$J$118,5,FALSE),0),0) -> 0 | G182: =+IF($D182="Y",IFERROR(VLOOKUP($C182,Summary!$C$109:$K$118,9,FALSE),0),0) -> 0
C183: Sub8 | D183: =+IFERROR(IF($M$5=VLOOKUP(C183,Summary!$C$52:$E$61,3,FALSE),"Y","N"),"N") -> N | E183: =+IF(D183="Y",IFERROR(VLOOKUP(C183,Summary!$C$87:$I$96,7,FALSE),0),0) -> 0 | F183: =+IF($D183="Y",IFERROR(VLOOKUP($C183,Summary!$C$109:$J$118,5,FALSE),0),0) -> 0 | G183: =+IF($D183="Y",IFERROR(VLOOKUP($C183,Summary!$C$109:$K$118,9,FALSE),0),0) -> 0
C184: Sub9 | D184: =+IFERROR(IF($M$5=VLOOKUP(C184,Summary!$C$52:$E$61,3,FALSE),"Y","N"),"N") -> N | E184: =+IF(D184="Y",IFERROR(VLOOKUP(C184,Summary!$C$87:$I$96,7,FALSE),0),0) -> 0 | F184: =+IF($D184="Y",IFERROR(VLOOKUP($C184,Summary!$C$109:$J$118,5,FALSE),0),0) -> 0 | G184: =+IF($D184="Y",IFERROR(VLOOKUP($C184,Summary!$C$109:$K$118,9,FALSE),0),0) -> 0
C185: Sub10 | D185: =+IFERROR(IF($M$5=VLOOKUP(C185,Summary!$C$52:$E$61,3,FALSE),"Y","N"),"N") -> N | E185: =+IF(D185="Y",IFERROR(VLOOKUP(C185,Summary!$C$87:$I$96,7,FALSE),0),0) -> 0 | F185: =+IF($D185="Y",IFERROR(VLOOKUP($C185,Summary!$C$109:$J$118,5,FALSE),0),0) -> 0 | G185: =+IF($D185="Y",IFERROR(VLOOKUP($C185,Summary!$C$109:$K$118,9,FALSE),0),0) -> 0
E186: =+SUM(E176:E185) -> 0 | F186: =+SUM(F176:F185) -> 0 | G186: =+SUM(G176:G185) -> 0
C189: Flood control Carry over | M189: =ROW(D152) -> 152 | N189: =ROW(E152) -> 152 | O189: =ROW(F152) -> 152 | P189: =ROW(G152) -> 152 | Q189: =ROW(H152) -> 152
C190: Sub-catchment | D190: Upstream | E190: =+Data!$H$20 -> 1-year | F190: =+Data!$H$21 -> 2-year | G190: =+Data!$H$22 -> 10-year | H190: =+Data!$H$23 -> 25-year | I190: =+Data!$H$24 -> 100-year | M190: =COLUMN(D152) -> 4 | N190: =COLUMN(E152) -> 5 | O190: =COLUMN(F152) -> 6 | P190: =COLUMN(G152) -> 7 | Q190: =COLUMN(H152) -> 8
C191: Sub1 | D191: =+IFERROR(IF($M$5=VLOOKUP(C191,Summary!$C$52:$E$61,3,FALSE),"Y","N"),"N") -> N | E191: =IF($D191="N",0,OFFSET(INDIRECT(CONCATENATE($C191,"!a1")),M$189-1,M$190-1)) -> 0 | F191: =IF($D191="N",0,OFFSET(INDIRECT(CONCATENATE($C191,"!a1")),N$189-1,N$190-1)) -> 0 | G191: 0 | H191: 0 | I191: 0
C192: Sub2 | D192: =+IFERROR(IF($M$5=VLOOKUP(C192,Summary!$C$52:$E$61,3,FALSE),"Y","N"),"N") -> N | E192: =IF($D192="N",0,OFFSET(INDIRECT(CONCATENATE($C192,"!a1")),M$189-1,M$190-1)) -> 0 | F192: 0 | G192: 0 | H192: 0 | I192: 0
C193: Sub3 | D193: =+IFERROR(IF($M$5=VLOOKUP(C193,Summary!$C$52:$E$61,3,FALSE),"Y","N"),"N") -> N | E193: 0 | F193: 0 | G193: 0 | H193: 0 | I193: 0
C194: Sub4 | D194: =+IFERROR(IF($M$5=VLOOKUP(C194,Summary!$C$52:$E$61,3,FALSE),"Y","N"),"N") -> N | E194: 0 | F194: 0 | G194: 0 | H194: 0 | I194: 0
C195: Sub5 | D195: =+IFERROR(IF($M$5=VLOOKUP(C195,Summary!$C$52:$E$61,3,FALSE),"Y","N"),"N") -> N | E195: 0 | F195: 0 | G195: 0 | H195: 0 | I195: 0
C196: Sub6 | D196: =+IFERROR(IF($M$5=VLOOKUP(C196,Summary!$C$52:$E$61,3,FALSE),"Y","N"),"N") -> N | E196: 0 | F196: 0 | G196: 0 | H196: 0 | I196: 0
C197: Sub7 | D197: =+IFERROR(IF($M$5=VLOOKUP(C197,Summary!$C$52:$E$61,3,FALSE),"Y","N"),"N") -> N | E197: 0 | F197: 0 | G197: 0 | H197: 0 | I197: 0
C198: Sub8 | D198: =+IFERROR(IF($M$5=VLOOKUP(C198,Summary!$C$52:$E$61,3,FALSE),"Y","N"),"N") -> N | E198: 0 | F198: 0 | G198: 0 | H198: 0 | I198: 0
C199: Sub9 | D199: =+IFERROR(IF($M$5=VLOOKUP(C199,Summary!$C$52:$E$61,3,FALSE),"Y","N"),"N") -> N | E199: 0 | F199: 0 | G199: 0 | H199: 0 | I199: 0
C200: Sub10 | D200: =+IFERROR(IF($M$5=VLOOKUP(C200,Summary!$C$52:$E$61,3,FALSE),"Y","N"),"N") -> N | E200: 0 | F200: 0 | G200: 0 | H200: 0 | I200: 0
C201: Total | E201: =SUM(E191:E200) -> 0 | F201: =SUM(F191:F200) -> 0 | G201: 0 | H201: 0 | I201: 0

Sheet Sub8
C2: =" " & Data!$H$2 &CHAR(10) & " " & Settings!$D$5 -> LGROW Design Spreadsheet City of Ferrysburg
B4: =CONCATENATE(M5,": ") -> Sub8: | D4: =+IFERROR(IF(VLOOKUP(M5,Summary!$C$52:$L$61,4,FALSE)=0,"",VLOOKUP(M5,Summary!$C$52:$L$61,4,FALSE)),N4) -> This subcatchment is not defined on the Summary tab. | M4: Text | N4: This subcatchment is not defined on the Summary tab.
C5: Runoff | M5: =MID(CELL("filename",A1),FIND("]",CELL("filename",A1))+1,255) -> Sub8 | N5: Sheet name
G6: Curve Number | M6: =RIGHT(M5,1) -> 8 | N6: Subcatchment number
C7: Existing Land Use | D7: HSG | E7: Area | F7: Units | G7: Existing | I7: Pre-settlement
G8: =IF(H8<2,"",VLOOKUP(C8,Data!$A$4:$E$21,H8,FALSE)) ->  | H8: =IF(AND(C8="",D8=""),0,IF(AND(C8<>"",D8<>""),HLOOKUP(D8,Data!$B$2:$E$3,2),1)) -> 0 | I8: =+F116 -> 
G9: =IF(H9<2,"",VLOOKUP(C9,Data!$A$4:$E$21,H9,FALSE)) ->  | H9: =IF(AND(C9="",D9=""),0,IF(AND(C9<>"",D9<>""),HLOOKUP(D9,Data!$B$2:$E$3,2),1)) -> 0
G10: =IF(H10<2,"",VLOOKUP(C10,Data!$A$4:$E$21,H10,FALSE)) ->  | H10: =IF(AND(C10="",D10=""),0,IF(AND(C10<>"",D10<>""),HLOOKUP(D10,Data!$B$2:$E$3,2),1)) -> 0
G11: =IF(H11<2,"",VLOOKUP(C11,Data!$A$4:$E$21,H11,FALSE)) ->  | H11: =IF(AND(C11="",D11=""),0,IF(AND(C11<>"",D11<>""),HLOOKUP(D11,Data!$B$2:$E$3,2),1)) -> 0
G12: =IF(H12<2,"",VLOOKUP(C12,Data!$A$4:$E$21,H12,FALSE)) ->  | H12: =IF(AND(C12="",D12=""),0,IF(AND(C12<>"",D12<>""),HLOOKUP(D12,Data!$B$2:$E$3,2),1)) -> 0
E13: =+D102/43560 -> 0 | F13: acre | G13: =+IF(F102=100,"",F102) ->  | I13: =+IF(F121=100,"",F121) -> 
C15: Developed Land Use | D15: HSG | E15: Area | F15: Units | G15: Curve Number | I15: Notes
G16: =IF(H16<2,"",VLOOKUP(C16,Data!$A$28:$E$67,H16,FALSE)) ->  | H16: =+IF(AND(C16="",D16=""),0,IF(AND(C16<>"",D16<>""),HLOOKUP(D16,Data!$B$2:$E$3,2),1)) -> 0
G17: =IF(H17<2,"",VLOOKUP(C17,Data!$A$28:$E$67,H17,FALSE)) ->  | H17: =+IF(AND(C17="",D17=""),0,IF(AND(C17<>"",D17<>""),HLOOKUP(D17,Data!$B$2:$E$3,2),1)) -> 0
G18: =IF(H18<2,"",VLOOKUP(C18,Data!$A$28:$E$67,H18,FALSE)) ->  | H18: =+IF(AND(C18="",D18=""),0,IF(AND(C18<>"",D18<>""),HLOOKUP(D18,Data!$B$2:$E$3,2),1)) -> 0
G19: =IF(H19<2,"",VLOOKUP(C19,Data!$A$28:$E$67,H19,FALSE)) ->  | H19: =+IF(AND(C19="",D19=""),0,IF(AND(C19<>"",D19<>""),HLOOKUP(D19,Data!$B$2:$E$3,2),1)) -> 0
G20: =IF(H20<2,"",VLOOKUP(C20,Data!$A$28:$E$67,H20,FALSE)) ->  | H20: =+IF(AND(C20="",D20=""),0,IF(AND(C20<>"",D20<>""),HLOOKUP(D20,Data!$B$2:$E$3,2),1)) -> 0
G21: =IF(H21<2,"",VLOOKUP(C21,Data!$A$28:$E$67,H21,FALSE)) ->  | H21: =+IF(AND(C21="",D21=""),0,IF(AND(C21<>"",D21<>""),HLOOKUP(D21,Data!$B$2:$E$3,2),1)) -> 0
C22: Notes: | D22: =IF(H22=1,"≠ Existing →","") ->  | E22: =+D112/43560 -> 0 | F22: acre | G22: =+IF(F112=100,"",F112) ->  | H22: =IF(AND(E13=0,E22=0),0,IF(ABS(E22-E13)/MAX(E22,E13)>0.01,1,0)) -> 0
C24: Subcatchment Runoff Volume for Developed Land Use
C25: Rainfall Frequency | D25: =+Data!$H$20 -> 1-year | E25: =+Data!$H$21 -> 2-year | F25: =+Data!$H$22 -> 10-year | G25: =+Data!$H$23 -> 25-year | I25: =+Data!$H$24 -> 100-year
C26: Volume from this Subcatchment [cft] | D26: =D148 -> 0 | E26: =E148 -> 0 | F26: 0 | G26: 0 | I26: =+H148 -> 0
C29: Channel Protection Volume
C30: Required Channel Protection Volume | F30: 2-year Runoff Volumes [cft]
D31: Is Channel Protection Volume required? If no, provide reason. | E31: Yes | F31: Developed | G31: Pre-developed
D32: Required this Subcatchment [cft] | E32: =IF(E31=Data!H38,MAX(F32-G32,0),0) -> 0 | F32: =+D128 -> 0 | G32: =+IF(Summary!E41=Data!H9,E128,F128) -> 0
D33: Unmet from Upstream Subcatchments [cft] | E33: =+E186 -> 0
C34: Required Channel Protection Volume [cft] | E34: =+E33+E32 -> 0
C35: Structural BMPs used to meet Channel Protection Volume
C36: Structural BMP | D36: A Infiltration Area [sqft] | E36: V Storage Volume [cft] | F36: i Design Infiltration Rate [in/hr] | G36: Drain Time [hr] | I36: Volume Retained [cft]
G37: =+I134 -> N.A. | I37: =+IF(H134<=0,"",H134) -> 
G38: =+I135 -> N.A. | I38: =+IF(H135<=0,"",H135) -> 
G39: N.A.
G40: =+I137 -> N.A. | I40: =+IF(H137<=0,"",H137) -> 
C41: Totals | E41: =+SUM(E37:E40) -> 0 | I41: =+H138 -> 0
G42: Credited Channel Protection Volume | I42: =MIN(H138,H141,E34) -> 0
C43: Notes: | G43: Percentage of Channel Protection Volume Met by Retention | I43: =+IFERROR(IF(E32>0,MIN(1,I42/E34),1),"") -> 1
C47: Water Quality Volume
F48: =+Data!$A$89 -> Paved [ac] | G48: =+Data!$A$88 -> Pitched Roofs [ac] | I48: =+Data!$A$87 -> Flat Roofs/Unpaved [ac] | L48: Paved | M48: Pitched | O48: Flat
D49: Sum of Directly Connected Impervious Area [ac] | E49: =+I171 -> 0 | F49: =+E49-I49-G49 -> 0 | H49: =+IF(OR(F49<0,F49>E49),1,0) -> 0 | L49: =+F49/12*VLOOKUP(F48,WaterQualityFactors,2,FALSE) -> 0 | M49: =+G49/12*VLOOKUP(G48,WaterQualityFactors,2,FALSE) -> 0 | O49: =+I49/12*VLOOKUP(I48,WaterQualityFactors,2,FALSE) -> 0
D50: Sum of Directly Connected Disturbed Pervious Area [ac] | E50: =SUM(L51,M51,N51) -> 0 | G50: =+IF(OR(G49<0,G49>E$49,H$49=1),"Invalid Entry","") ->  | H50: =+SUM(O49,M49,L49,L52,M52,N52) -> 0 | I50: =+IF(OR(I49<0,I49>E$49,H$49=1),"Invalid Entry","") ->  | L50: =+Data!$A$90 -> Sandy Soils (HSG A) [ac] | M50: =+Data!$A$91 -> Silty Soils (HSG B) [ac] | N50: =+Data!$A$92 -> Clayey Soils (HSG C&D) [ac]
D51: Required Volume this Subcatchment [cft] | E51: =43560*H50 -> 0 | G51: TSS Generated this Subcatchment | I51: =+E51 -> 0 | L51: =+F171 -> 0 | M51: =+G171 -> 0 | N51: =H171 -> 0
D52: Volume from Upstream Subcatchments [cft] | E52: =+F186 -> 0 | G52: TSS from Upstream Subcatchments | I52: =+G186 -> 0 | L52: =+L51/12*VLOOKUP(L50,WaterQualityFactors,2,FALSE) -> 0 | M52: =+M51/12*VLOOKUP(M50,WaterQualityFactors,2,FALSE) -> 0 | N52: =+N51/12*VLOOKUP(N50,WaterQualityFactors,2,FALSE) -> 0
C53: Water Quality Volume to be Treated [cft] | E53: =+E52+E51 -> 0 | F53: TSS to be Treated | I53: =+I51+I52 -> 0
C54: TSS Accounting
C55: BMPs Used in Treatment Train | D55: Treated Water Volume [cft] | E55: TSS Removal Efficiency | I55: TSS Removed
E56: Tabulated | F56: Third-Party | G56: Effective | H56: TSS in stream | M56: Released water Volume | P56: Need 3rd party value
E57: =+IF(C57="","",IF(P57=Data!$H$38,"--",VLOOKUP(C57,Data!$A$109:$B$143,2,FALSE))) ->  | G57: =+IF(C57="","",IF(P57=Data!$H$38,F57,VLOOKUP(C57,Data!$A$109:$B$143,2,FALSE))*MIN(1,IFERROR(D57/L57,0))) ->  | H57: =+I53-I57 -> 0 | I57: =+IFERROR(I53*G57/100,0) -> 0 | L57: =+$E$53 -> 0 | M57: =+IF(D57="","",IFERROR(MIN(IF(VLOOKUP(C57,Data!$A$109:$C$143,3,FALSE)=Data!$C$112,L57,MAX(0,L57-D57)),$E$53),"")) ->  | N57: =IFERROR(1/ISNUMBER(M57),"") ->  | O57: =+IF(D57*1.01>L57,1,0) -> 0 | P57: =+IF(C57="","",IF(VLOOKUP(C57,Data!$A$109:$B$143,2,FALSE)="",Data!$H$38,Data!$H$39)) -> 
E58: =+IF(C58="","",IF(P58=Data!$H$38,"--",VLOOKUP(C58,Data!$A$109:$B$143,2,FALSE))) ->  | G58: =+IF(C58="","",IF(P58=Data!$H$38,F58,VLOOKUP(C58,Data!$A$109:$B$143,2,FALSE))*MIN(1,IFERROR(D58/L58,0))) ->  | H58: =+H57-I58 -> 0 | I58: =+IFERROR(H57*G58/100,0) -> 0 | L58: =MIN(L57:M57) -> 0 | M58: =+IF(D58="","",IFERROR(MIN(IF(VLOOKUP(C58,Data!$A$109:$C$143,3,FALSE)=Data!$C$112,L58,MAX(0,L58-D58)),$E$53),"")) ->  | N58: =IFERROR(1/ISNUMBER(M58),"") ->  | O58: =+IF(D58*1.01>L58,1,0) -> 0 | P58: =+IF(C58="","",IF(VLOOKUP(C58,Data!$A$109:$B$143,2,FALSE)="",Data!$H$38,Data!$H$39)) -> 
E59: =+IF(C59="","",IF(P59=Data!$H$38,"--",VLOOKUP(C59,Data!$A$109:$B$143,2,FALSE))) ->  | G59: =+IF(C59="","",IF(P59=Data!$H$38,F59,VLOOKUP(C59,Data!$A$109:$B$143,2,FALSE))*MIN(1,IFERROR(D59/L59,0))) ->  | H59: 0 | I59: =+IFERROR(H58*G59/100,0) -> 0 | L59: =MIN(L58:M58) -> 0 | M59: =+IF(D59="","",IFERROR(MIN(IF(VLOOKUP(C59,Data!$A$109:$C$143,3,FALSE)=Data!$C$112,L59,MAX(0,L59-D59)),$E$53),"")) ->  | O59: =+IF(D59*1.01>L59,1,0) -> 0 | P59: =+IF(C59="","",IF(VLOOKUP(C59,Data!$A$109:$B$143,2,FALSE)="",Data!$H$38,Data!$H$39)) -> 
E60: =+IF(C60="","",IF(P60=Data!$H$38,"--",VLOOKUP(C60,Data!$A$109:$B$143,2,FALSE))) ->  | G60: =+IF(C60="","",IF(P60=Data!$H$38,F60,VLOOKUP(C60,Data!$A$109:$B$143,2,FALSE))*MIN(1,IFERROR(D60/L60,0))) ->  | H60: 0 | I60: 0 | L60: 0 | M60: =+IF(D60="","",IFERROR(MIN(IF(VLOOKUP(C60,Data!$A$109:$C$143,3,FALSE)=Data!$C$112,L60,MAX(0,L60-D60)),$E$53),"")) ->  | O60: 0 | P60: =+IF(C60="","",IF(VLOOKUP(C60,Data!$A$109:$B$143,2,FALSE)="",Data!$H$38,Data!$H$39)) -> 
E61: =+IF(C61="","",IF(P61=Data!$H$38,"--",VLOOKUP(C61,Data!$A$109:$B$143,2,FALSE))) ->  | G61: =+IF(C61="","",IF(P61=Data!$H$38,F61,VLOOKUP(C61,Data!$A$109:$B$143,2,FALSE))*MIN(1,IFERROR(D61/L61,0))) ->  | H61: 0 | I61: 0 | L61: 0 | M61: =+IF(D61="","",IFERROR(MIN(IF(VLOOKUP(C61,Data!$A$109:$C$143,3,FALSE)=Data!$C$112,L61,MAX(0,L61-D61)),$E$53),"")) ->  | O61: 0 | P61: =+IF(C61="","",IF(VLOOKUP(C61,Data!$A$109:$B$143,2,FALSE)="",Data!$H$38,Data!$H$39)) -> 
C62: Released Water Volume [cft] | D62: =+M62 -> 0 | G62: Total TSS Removed | I62: =+SUM(I57:I61) -> 0 | M62: =IFERROR(LOOKUP(2,N57:N61,M57:M61),E53) -> 0 | O62: =SUM(O57:O61) -> 0
C63: Water Quality Volume met? | D63: =+M63 -> Yes | G63: TSS Remaining | I63: =+I53-I62 -> 0 | M63: =IF(OR(O62>0,E53<0.5),"Yes","No") -> Yes
C64: Notes: | G64: TSS Removal Efficiency [%] | I64: =+IFERROR(I62/I53*100,0) -> 0
C68: Infiltration Rate Calculator for Filter Media
C70: Filter Media Component | D70: K [ft/day] | E70: Weight | G70: Constructed Filter | H70: Weight | I70: Value
D71: =+IFERROR(VLOOKUP(C71,Data!$A$146:$B$151,2,FALSE),"") ->  | G71: Average Head on the Filter [ft] | H71: =+IF(D71="",0,E71) -> 0
D72: =+IFERROR(VLOOKUP(C72,Data!$A$146:$B$151,2,FALSE),"") ->  | G72: Depth of Filter Media [ft] | H72: =+IF(D72="",0,E72) -> 0
D73: =+IFERROR(VLOOKUP(C73,Data!$A$146:$B$151,2,FALSE),"") ->  | G73: Infiltration Rate [in/hr] | H73: 0 | I73: =+IFERROR(D75*(I71+I72)/2/I72,"") -> 
G74: Retentive BMP | H74: 0
C75: Average Hydraulic Conductivity of Filter Media [ft/day] | D75: =IFERROR(SUMPRODUCT(D71:D74,H71:H74)/SUM(H71:H74),"") ->  | G75: Infiltration Rate [in/hr] | I75: =IFERROR(D75/2,"") -> 
C76: Notes:
B89: =CELL("width",B89) -> 4 | C89: 54 | D89: 15 | E89: 15 | F89: 15 | G89: 15 | I89: =CELL("width",I89) -> 15 | J89: =CELL("width",J89) -> 4 | R89: =+SUM(B89:J89) -> 137
C90: Start of Hidden Cells
C92: Calculation of pervious CN and fraction impervious
E94: Ia factor | F94: 0.2 | H94: =+Data!H20 -> 1-year | I94: =VLOOKUP(H94,Settings!$C$20:$D$24,2,FALSE) -> 2.22 | L94: =+Data!H21 -> 2-year | M94: =VLOOKUP(L94,Settings!$C$20:$D$24,2,FALSE) -> 2.56 | N94: =+Data!H22 -> 10-year | O94: =VLOOKUP(N94,Settings!$C$20:$D$24,2,FALSE) -> 3.77 | P94: =+Data!H23 -> 25-year | Q94: =VLOOKUP(P94,Settings!$C$20:$D$24,2,FALSE) -> 4.66 | R94: =+Data!H24 -> 100-year | S94: =VLOOKUP(R94,Settings!$C$20:$D$24,2,FALSE) -> 6.27
C96: Existing CNs | D96: Area [sqft] | E96: Per. area [sqft] | F96: CN | G96: Ia [in] | H96: SRO [in] | I96: Volume [cft] | L96: SRO [in] | M96: Volume [cft] | N96: SRO [in] | O96: Volume [cft] | P96: SRO [in] | Q96: Volume [cft] | R96: SRO [in] | S96: Volume [cft]
C97: =+IF(C8="","",C8) ->  | D97: =+IF(H8>1,E8*IFERROR(VLOOKUP(F8,Data!$H$33:$I$35,2,FALSE),Data!$I$34),0) -> 0 | E97: =+IF(C97<>Data!$A$4,D97,0) -> 0 | F97: =+G8 ->  | G97: =+IFERROR(IF(F97=0,0,1000/F97-10),0)*$F$94 -> 0 | H97: =+IF((I$94-$G97)<0,0,(I$94-$G97)^2/(I$94+4*$G97)) -> 2.22 | I97: =+$D97*H97/12 -> 0 | L97: =+IF((M$94-$G97)<0,0,(M$94-$G97)^2/(M$94+4*$G97)) -> 2.56 | M97: =+$D97*L97/12 -> 0 | N97: =+IF((O$94-$G97)<0,0,(O$94-$G97)^2/(O$94+4*$G97)) -> 3.77 | O97: =+$D97*N97/12 -> 0 | P97: =+IF((Q$94-$G97)<0,0,(Q$94-$G97)^2/(Q$94+4*$G97)) -> 4.66 | Q97: =+$D97*P97/12 -> 0 | R97: =+IF((S$94-$G97)<0,0,(S$94-$G97)^2/(S$94+4*$G97)) -> 6.27 | S97: =+$D97*R97/12 -> 0
C98: =+IF(C9="","",C9) ->  | D98: =+IF(H9>1,E9*IFERROR(VLOOKUP(F9,Data!$H$33:$I$35,2,FALSE),Data!$I$34),0) -> 0 | E98: =+IF(C98<>Data!$A$4,D98,0) -> 0 | F98: =+G9 ->  | G98: =+IFERROR(IF(F98=0,0,1000/F98-10),0)*$F$94 -> 0 | H98: =+IF((I$94-$G98)<0,0,(I$94-$G98)^2/(I$94+4*$G98)) -> 2.22 | I98: =+$D98*H98/12 -> 0 | L98: 2.56 | M98: =+$D98*L98/12 -> 0 | N98: 3.77 | O98: =+$D98*N98/12 -> 0 | P98: 4.66 | Q98: =+$D98*P98/12 -> 0 | R98: 6.27 | S98: =+$D98*R98/12 -> 0
C99: =+IF(C10="","",C10) ->  | D99: =+IF(H10>1,E10*IFERROR(VLOOKUP(F10,Data!$H$33:$I$35,2,FALSE),Data!$I$34),0) -> 0 | E99: =+IF(C99<>Data!$A$4,D99,0) -> 0 | F99: =+G10 ->  | G99: =+IFERROR(IF(F99=0,0,1000/F99-10),0)*$F$94 -> 0 | H99: =+IF((I$94-$G99)<0,0,(I$94-$G99)^2/(I$94+4*$G99)) -> 2.22 | I99: 0 | L99: 2.56 | M99: 0 | N99: 3.77 | O99: 0 | P99: 4.66 | Q99: 0 | R99: 6.27 | S99: 0
C100: =+IF(C11="","",C11) ->  | D100: =+IF(H11>1,E11*IFERROR(VLOOKUP(F11,Data!$H$33:$I$35,2,FALSE),Data!$I$34),0) -> 0 | E100: =+IF(C100<>Data!$A$4,D100,0) -> 0 | F100: =+G11 ->  | G100: =+IFERROR(IF(F100=0,0,1000/F100-10),0)*$F$94 -> 0 | H100: =+IF((I$94-$G100)<0,0,(I$94-$G100)^2/(I$94+4*$G100)) -> 2.22 | I100: 0 | L100: 2.56 | M100: 0 | N100: 3.77 | O100: 0 | P100: 4.66 | Q100: 0 | R100: 6.27 | S100: 0
C101: =+IF(C12="","",C12) ->  | D101: =+IF(H12>1,E12*IFERROR(VLOOKUP(F12,Data!$H$33:$I$35,2,FALSE),Data!$I$34),0) -> 0 | E101: =+IF(C101<>Data!$A$4,D101,0) -> 0 | F101: =+G12 ->  | G101: =+IFERROR(IF(F101=0,0,1000/F101-10),0)*$F$94 -> 0 | H101: =+IF((I$94-$G101)<0,0,(I$94-$G101)^2/(I$94+4*$G101)) -> 2.22 | I101: 0 | L101: 2.56 | M101: 0 | N101: 3.77 | O101: 0 | P101: 4.66 | Q101: 0 | R101: 6.27 | S101: 0
C102: Totals | D102: =+SUM(D97:D101) -> 0 | E102: =+SUM(E97:E101) -> 0 | F102: =+IF(D102<>0,SUMPRODUCT(D97:D101,F97:F101)/D102,100) -> 100 | G102: =+IFERROR(SUMPRODUCT(D97:D101,G97:G101)/D102,0) -> 0 | I102: =SUM(I97:I101) -> 0 | L102: 2.56 | M102: =SUM(M97:M101) -> 0 | N102: 3.77 | O102: =SUM(O97:O101) -> 0 | P102: 4.66 | Q102: =SUM(Q97:Q101) -> 0 | R102: 6.27 | S102: =SUM(S97:S101) -> 0
C103: Fraction Impervious | D103: =+IF(D102<>0,(D102-E102)/D102,0) -> 0
C105: Developed CN's | D105: Area [sqft] | E105: Perv. Area [sqft] | F105: CN | G105: Ia [in] | H105: SRO [in] | I105: Volume [cft] | L105: SRO [in] | M105: Volume [cft] | N105: SRO [in] | O105: Volume [cft] | P105: SRO [in] | Q105: Volume [cft] | R105: SRO [in] | S105: Volume [cft]
C106: =+IF(C16="","",C16) ->  | D106: =+IF(H16>1,E16*IFERROR(VLOOKUP(F16,Data!$H$33:$I$35,2,FALSE),Data!$I$34),0) -> 0 | E106: =+IF(F106=98,0,D106) -> 0 | F106: =+G16 ->  | G106: =+IFERROR(IF(F106=0,0,1000/F106-10),0)*$F$94 -> 0 | H106: =+IF((I$94-$G106)<0,0,(I$94-$G106)^2/(I$94+4*$G106)) -> 2.22 | I106: =+$D106*H106/12 -> 0 | L106: =+IF((M$94-$G106)<0,0,(M$94-$G106)^2/(M$94+4*$G106)) -> 2.56 | M106: =+$D106*L106/12 -> 0 | N106: =+IF((O$94-$G106)<0,0,(O$94-$G106)^2/(O$94+4*$G106)) -> 3.77 | O106: =+$D106*N106/12 -> 0 | P106: =+IF((Q$94-$G106)<0,0,(Q$94-$G106)^2/(Q$94+4*$G106)) -> 4.66 | Q106: =+$D106*P106/12 -> 0 | R106: =+IF((S$94-$G106)<0,0,(S$94-$G106)^2/(S$94+4*$G106)) -> 6.27 | S106: =+$D106*R106/12 -> 0
D107: =+IF(H17>1,E17*IFERROR(VLOOKUP(F17,Data!$H$33:$I$35,2,FALSE),Data!$I$34),0) -> 0 | E107: =+IF(F107=98,0,D107) -> 0 | G107: 0 | H107: 2.22 | I107: =+$D107*H107/12 -> 0 | L107: 2.56 | M107: =+$D107*L107/12 -> 0 | N107: 3.77 | O107: =+$D107*N107/12 -> 0 | P107: 4.66 | Q107: =+$D107*P107/12 -> 0 | R107: 6.27 | S107: =+$D107*R107/12 -> 0
D108: =+IF(H18>1,E18*IFERROR(VLOOKUP(F18,Data!$H$33:$I$35,2,FALSE),Data!$I$34),0) -> 0 | E108: 0 | G108: 0 | H108: 2.22 | I108: 0 | L108: 2.56 | M108: 0 | N108: 3.77 | O108: 0 | P108: 4.66 | Q108: 0 | R108: 6.27 | S108: 0
D109: =+IF(H19>1,E19*IFERROR(VLOOKUP(F19,Data!$H$33:$I$35,2,FALSE),Data!$I$34),0) -> 0 | E109: 0 | G109: 0 | H109: 2.22 | I109: 0 | L109: 2.56 | M109: 0 | N109: 3.77 | O109: 0 | P109: 4.66 | Q109: 0 | R109: 6.27 | S109: 0
D110: =+IF(H20>1,E20*IFERROR(VLOOKUP(F20,Data!$H$33:$I$35,2,FALSE),Data!$I$34),0) -> 0 | E110: 0 | G110: 0 | H110: 2.22 | I110: 0 | L110: 2.56 | M110: 0 | N110: 3.77 | O110: 0 | P110: 4.66 | Q110: 0 | R110: 6.27 | S110: 0
D111: =+IF(H21>1,E21*IFERROR(VLOOKUP(F21,Data!$H$33:$I$35,2,FALSE),Data!$I$34),0) -> 0 | E111: 0 | G111: 0 | H111: 2.22 | I111: 0 | L111: 2.56 | M111: 0 | N111: 3.77 | O111: 0 | P111: 4.66 | Q111: 0 | R111: 6.27 | S111: 0
C112: Total | D112: =+SUM(D106:D111) -> 0 | E112: =+SUM(E106:E111) -> 0 | F112: =IF(D112<>0,SUMPRODUCT(D106:D111,F106:F111)/D112,"") ->  | G112: =IFERROR(SUMPRODUCT(D106:D111,G106:G111)/D112,0) -> 0 | I112: =SUM(I106:I111) -> 0 | L112: 2.56 | M112: =SUM(M106:M111) -> 0 | N112: 3.77 | O112: =SUM(O106:O111) -> 0 | P112: 4.66 | Q112: =SUM(Q106:Q111) -> 0 | R112: 6.27 | S112: =SUM(S106:S111) -> 0
C113: Fraction Impervious | D113: =+IF(D112<>0,(D112-E112)/D112,0) -> 0
C115: Pre-settlement CN's | D115: HSG | E115: Area [sqft] | F115: SCS CN | G115: Ia [in] | H115: SRO [in] | I115: Volume [cft] | L115: SRO [in] | M115: Volume [cft] | N115: SRO [in] | O115: Volume [cft] | P115: SRO [in] | Q115: Volume [cft] | R115: SRO [in] | S115: Volume [cft]
C116: =IF(C8="","",VLOOKUP(C8,Data!$A$4:$F$21,6,FALSE)) ->  | D116: =IF(D8="","",D8) ->  | E116: =IF(H8<=1,"",E8*IFERROR(VLOOKUP(F8,Data!$H$33:$I$35,2,FALSE),Data!$I$34)) ->  | F116: =IF(H8<2,"",VLOOKUP(C116,Data!$A$4:$E$21,H8,FALSE)) ->  | G116: =+IFERROR(IF(F116=0,0,1000/F116-10),0)*$F$94 -> 0 | H116: =+IF((I$94-$G116)<0,0,(I$94-$G116)^2/(I$94+4*$G116)) -> 2.22 | I116: =+IFERROR($E116*H116/12,0) -> 0 | L116: =+IF((M$94-$G116)<0,0,(M$94-$G116)^2/(M$94+4*$G116)) -> 2.56 | M116: =+IFERROR($E116*L116/12,0) -> 0 | N116: =+IF((O$94-$G116)<0,0,(O$94-$G116)^2/(O$94+4*$G116)) -> 3.77 | O116: =+IFERROR($E116*N116/12,0) -> 0 | P116: =+IF((Q$94-$G116)<0,0,(Q$94-$G116)^2/(Q$94+4*$G116)) -> 4.66 | Q116: =+IFERROR($E116*P116/12,0) -> 0 | R116: =+IF((S$94-$G116)<0,0,(S$94-$G116)^2/(S$94+4*$G116)) -> 6.27 | S116: =+IFERROR($E116*R116/12,0) -> 0
C117: =IF(C9="","",VLOOKUP(C9,Data!$A$4:$F$21,6,FALSE)) ->  | D117: =IF(D9="","",D9) ->  | E117: =IF(H9<=1,"",E9*IFERROR(VLOOKUP(F9,Data!$H$33:$I$35,2,FALSE),Data!$I$34)) ->  | F117: =IF(H9<2,"",VLOOKUP(C117,Data!$A$4:$E$21,H9,FALSE)) ->  | G117: =+IFERROR(IF(F117=0,0,1000/F117-10),0)*$F$94 -> 0 | H117: =+IF((I$94-$G117)<0,0,(I$94-$G117)^2/(I$94+4*$G117)) -> 2.22 | I117: =+IFERROR($E117*H117/12,0) -> 0 | L117: 2.56 | M117: =+IFERROR($E117*L117/12,0) -> 0 | N117: 3.77 | O117: =+IFERROR($E117*N117/12,0) -> 0 | P117: 4.66 | Q117: =+IFERROR($E117*P117/12,0) -> 0 | R117: 6.27 | S117: =+IFERROR($E117*R117/12,0) -> 0
C118: =IF(C10="","",VLOOKUP(C10,Data!$A$4:$F$21,6,FALSE)) ->  | D118: =IF(D10="","",D10) ->  | E118: =IF(H10<=1,"",E10*IFERROR(VLOOKUP(F10,Data!$H$33:$I$35,2,FALSE),Data!$I$34)) ->  | F118: =IF(H10<2,"",VLOOKUP(C118,Data!$A$4:$E$21,H10,FALSE)) ->  | G118: =+IFERROR(IF(F118=0,0,1000/F118-10),0)*$F$94 -> 0 | H118: =+IF((I$94-$G118)<0,0,(I$94-$G118)^2/(I$94+4*$G118)) -> 2.22 | I118: 0 | L118: 2.56 | M118: 0 | N118: 3.77 | O118: 0 | P118: 4.66 | Q118: 0 | R118: 6.27 | S118: 0
C119: =IF(C11="","",VLOOKUP(C11,Data!$A$4:$F$21,6,FALSE)) ->  | D119: =IF(D11="","",D11) ->  | E119: =IF(H11<=1,"",E11*IFERROR(VLOOKUP(F11,Data!$H$33:$I$35,2,FALSE),Data!$I$34)) ->  | F119: =IF(H11<2,"",VLOOKUP(C119,Data!$A$4:$E$21,H11,FALSE)) ->  | G119: =+IFERROR(IF(F119=0,0,1000/F119-10),0)*$F$94 -> 0 | H119: =+IF((I$94-$G119)<0,0,(I$94-$G119)^2/(I$94+4*$G119)) -> 2.22 | I119: 0 | L119: 2.56 | M119: 0 | N119: 3.77 | O119: 0 | P119: 4.66 | Q119: 0 | R119: 6.27 | S119: 0
C120: =IF(C12="","",VLOOKUP(C12,Data!$A$4:$F$21,6,FALSE)) ->  | D120: =IF(D12="","",D12) ->  | E120: =IF(H12<=1,"",E12*IFERROR(VLOOKUP(F12,Data!$H$33:$I$35,2,FALSE),Data!$I$34)) ->  | F120: =IF(H12<2,"",VLOOKUP(C120,Data!$A$4:$E$21,H12,FALSE)) ->  | G120: =+IFERROR(IF(F120=0,0,1000/F120-10),0)*$F$94 -> 0 | H120: =+IF((I$94-$G120)<0,0,(I$94-$G120)^2/(I$94+4*$G120)) -> 2.22 | I120: 0 | L120: 2.56 | M120: 0 | N120: 3.77 | O120: 0 | P120: 4.66 | Q120: 0 | R120: 6.27 | S120: 0
D121: Totals | E121: =+SUM(E116:E120) -> 0 | F121: =+IF(E121<>0,SUMPRODUCT(E116:E120,F116:F120)/E121,100) -> 100 | G121: =IFERROR(SUMPRODUCT(E116:E120,G116:G120)/E121,0) -> 0 | I121: =SUM(I116:I120) -> 0 | L121: 2.56 | M121: =SUM(M116:M120) -> 0 | N121: 3.77 | O121: =SUM(O116:O120) -> 0 | P121: 4.66 | Q121: =SUM(Q116:Q120) -> 0 | R121: 6.27 | S121: =SUM(S116:S120) -> 0
D122: Fraction Imperv | E122: 0
C124: Calculation of 2-year runoff volume for Channel Protection
D126: Developed | E126: Pre-settlement | F126: Existing
C127: Drainage area [sqft] | D127: =+D112 -> 0 | E127: =+E121 -> 0 | F127: =+D102 -> 0
C128: Volume (cft) = | D128: =+M112 -> 0 | E128: =+M121 -> 0 | F128: =+M102 -> 0
C129: Runoff Depth [in] | D129: =+IFERROR(D128/D127*12,0) -> 0 | E129: =+IFERROR(E128/E127*12,0) -> 0 | F129: 0
C131: Structural BMP volumes
C133: BMP | D133: Area [sqft] | E133: Volume [cft] | F133: Infiltration rate [in/hr] | G133: Infiltrating volume [cft] | H133: Total volume [cft] | I133: Drain Time [hr] | R133: Infiltration Time [hr] | S133: Infiltration rate [cf/hr]
C134: =+IF(C37=0,Data!$A$84,C37) -> NoneSelected | D134: =+MAX(0,D37) -> 0 | E134: =+MAX(0,E37*VLOOKUP($C134,Data!$A$71:$C$84,2,FALSE)) -> 0 | F134: =+MAX(0,F37*VLOOKUP($C134,Data!$A$71:$C$84,3,FALSE)) -> 0 | G134: =+IF(OR(I134="N.A.",I134=""),0,IFERROR(R134*S134,0)) -> 0 | H134: =+G134+E134 -> 0 | I134: =+IF(IFERROR(VLOOKUP(C134,Data!$A$71:$C$84,3,FALSE),0)=0,"N.A.",IFERROR(E134/D134/F134*12,"")) -> N.A. | R134: =IFERROR(2+MIN(72,I134)*(0.222-0.553*LOG(MIN(72,I134)/72)),0) -> 17.984 | S134: =+D134*F134/12 -> 0
C135: =+IF(C38=0,Data!$A$84,C38) -> NoneSelected | D135: =+MAX(0,D38) -> 0 | E135: =+MAX(0,E38*VLOOKUP($C135,Data!$A$71:$C$84,2,FALSE)) -> 0 | F135: =+MAX(0,F38*VLOOKUP($C135,Data!$A$71:$C$84,3,FALSE)) -> 0 | G135: =+IF(OR(I135="N.A.",I135=""),0,IFERROR(R135*S135,0)) -> 0 | H135: =+G135+E135 -> 0 | I135: =+IF(IFERROR(VLOOKUP(C135,Data!$A$71:$C$84,3,FALSE),0)=0,"N.A.",IFERROR(E135/D135/F135*12,"")) -> N.A. | R135: =IFERROR(2+MIN(72,I135)*(0.222-0.553*LOG(MIN(72,I135)/72)),0) -> 17.984 | S135: =+D135*F135/12 -> 0
C136: =+IF(C39=0,Data!$A$84,C39) -> NoneSelected | D136: =+MAX(0,D39) -> 0 | E136: =+MAX(0,E39*VLOOKUP($C136,Data!$A$71:$C$84,2,FALSE)) -> 0 | F136: =+MAX(0,F39*VLOOKUP($C136,Data!$A$71:$C$84,3,FALSE)) -> 0 | G136: 0 | H136: 0 | I136: =+IF(IFERROR(VLOOKUP(C136,Data!$A$71:$C$84,3,FALSE),0)=0,"N.A.",IFERROR(E136/D136/F136*12,"")) -> N.A. | R136: 17.984 | S136: 0
C137: =+IF(C40=0,Data!$A$84,C40) -> NoneSelected | D137: =+MAX(0,D40) -> 0 | E137: =+MAX(0,E40*VLOOKUP($C137,Data!$A$71:$C$84,2,FALSE)) -> 0 | F137: =+MAX(0,F40*VLOOKUP($C137,Data!$A$71:$C$84,3,FALSE)) -> 0 | G137: 0 | H137: 0 | I137: =+IF(IFERROR(VLOOKUP(C137,Data!$A$71:$C$84,3,FALSE),0)=0,"N.A.",IFERROR(E137/D137/F137*12,"")) -> N.A. | R137: 17.984 | S137: 0
E138: =SUM(E134:E137) -> 0 | F138: Sum of all BMPs | G138: =SUM(G134:G137) -> 0 | H138: =SUM(H134:H137) -> 0
G139: 2-year runoff volume for sub-catchment | H139: =+D128 -> 0
G140: Unmet Channel Protection Volume from upstream subcatchments | H140: =+E186 -> 0
G141: Sum of 2-year runoff volume and unmet upstream volumes | H141: =+H140+H139 -> 0
C143: Maximum retained volume for all events
C145: Event | D145: =+Data!$H$20 -> 1-year | E145: =+Data!$H$21 -> 2-year | F145: =+Data!$H$22 -> 10-year | G145: =+Data!$H$23 -> 25-year | H145: =+Data!$H$24 -> 100-year
C146: Drainage area [sqft] | D146: =+$D112 -> 0 | E146: =+$D112 -> 0 | F146: =+$D112 -> 0 | G146: =+$D112 -> 0 | H146: =+$D112 -> 0
C147: Total Runoff, Q (in) = | D147: =+IFERROR(D148/D146*12,0) -> 0 | E147: =+IFERROR(E148/E146*12,0) -> 0 | F147: =+IFERROR(F148/F146*12,0) -> 0 | G147: =+IFERROR(G148/G146*12,0) -> 0 | H147: =+IFERROR(H148/H146*12,0) -> 0
C148: Runoff Volume (cft) = | D148: =+I112 -> 0 | E148: =+M112 -> 0 | F148: =O112 -> 0 | G148: =Q112 -> 0 | H148: =S112 -> 0
C149: Excess runoff volume upstream subcatchments (cft) | D149: =+E201 -> 0 | E149: =+F201 -> 0 | F149: 0 | G149: 0 | H149: 0
C150: Total Runoff to retentive BMP (cft) | D150: =+D149+D148 -> 0 | E150: =+E149+E148 -> 0 | F150: 0 | G150: 0 | H150: 0
C151: Volume retained in subcatchment [cft] | D151: =+MIN($H$138,D150) -> 0 | E151: =+MIN($H$138,E150) -> 0 | F151: 0 | G151: 0 | H151: 0
C152: Volume released from subcatchment [cft] | D152: =+D150-D151 -> 0 | E152: =+E150-E151 -> 0 | F152: 0 | G152: 0 | H152: 0
C154: Volume credited for detention flood control
C155: =+Data!H97 -> Volume Retained | D155: =+D151 -> 0 | E155: =+E151 -> 0 | F155: 0 | G155: 0 | H155: 0
C156: =+Data!H98 -> Storage Volume | D156: =+MIN(D150,$E$138) -> 0 | E156: =+MIN(E150,$E$138) -> 0 | F156: 0 | G156: 0 | H156: 0
C157: =+Data!H99 -> Storage Volume 2yr | D157: =+MIN(D156,$E$34) -> 0 | E157: =+MIN(E156,$E$34) -> 0 | F157: 0 | G157: 0 | H157: 0
C158: =+Data!H100 -> None | D158: 0 | E158: 0 | F158: 0 | G158: 0 | H158: 0
C159: ='Flood Control'!D24 -> None | D159: =VLOOKUP($C$159,$C$155:$H$158,D160,FALSE) -> 0 | E159: =VLOOKUP($C$159,$C$155:$H$158,E160,FALSE) -> 0 | F159: 0 | G159: 0 | H159: 0
D160: 2 | E160: 3 | F160: 4 | G160: 5 | H160: 6
C162: Areas for water quality volume
C163: Land use | D163: HSG | E163: DP Area [sqft] | F163: HSG = A | G163: HSG = B | H163: HSG = C or D | I163: Imp Area [sqft]
C164: =+IF(C16="","",C16) ->  | E164: =D106*IFERROR(VLOOKUP(C164,Data!$A$102:$B$105,2,FALSE),0) -> 0 | F164: =IF(D164="A",E164,0) -> 0 | G164: =IF(D164="B",E164,0) -> 0 | H164: =IF(OR(D164="C",D164="D"),E164,0) -> 0 | I164: =+D106*IFERROR(VLOOKUP(C164,Data!$A$95:$B$98,2,FALSE),0) -> 0
E165: =D107*IFERROR(VLOOKUP(C165,Data!$A$102:$B$105,2,FALSE),0) -> 0 | F165: =IF(D165="A",E165,0) -> 0 | G165: =IF(D165="B",E165,0) -> 0 | H165: 0 | I165: =+D107*IFERROR(VLOOKUP(C165,Data!$A$95:$B$98,2,FALSE),0) -> 0
E166: =D108*IFERROR(VLOOKUP(C166,Data!$A$102:$B$105,2,FALSE),0) -> 0 | F166: =IF(D166="A",E166,0) -> 0 | G166: =IF(D166="B",E166,0) -> 0 | H166: 0 | I166: =+D108*IFERROR(VLOOKUP(C166,Data!$A$95:$B$98,2,FALSE),0) -> 0
E167: =D109*IFERROR(VLOOKUP(C167,Data!$A$102:$B$105,2,FALSE),0) -> 0 | F167: 0 | G167: 0 | H167: 0 | I167: =+D109*IFERROR(VLOOKUP(C167,Data!$A$95:$B$98,2,FALSE),0) -> 0
E168: =D110*IFERROR(VLOOKUP(C168,Data!$A$102:$B$105,2,FALSE),0) -> 0 | F168: 0 | G168: 0 | H168: 0 | I168: =+D110*IFERROR(VLOOKUP(C168,Data!$A$95:$B$98,2,FALSE),0) -> 0
E169: =D111*IFERROR(VLOOKUP(C169,Data!$A$102:$B$105,2,FALSE),0) -> 0 | F169: 0 | G169: 0 | H169: 0 | I169: =+D111*IFERROR(VLOOKUP(C169,Data!$A$95:$B$98,2,FALSE),0) -> 0
E170: Total [sqft] | F170: =SUM(F164:F169) -> 0 | G170: =SUM(G164:G169) -> 0 | H170: =SUM(H164:H169) -> 0 | I170: =SUM(I164:I169) -> 0
E171: Total [ac] | F171: =+F170/43560 -> 0 | G171: =+G170/43560 -> 0 | H171: =+H170/43560 -> 0 | I171: =+I170/43560 -> 0
C174: Quantities from upstream sub-catchments
C175: Sub-catchment | D175: Upstream | E175: Unmet CPV [cft] | F175: Released WQV [cft] | G175: Released TSS
C176: Sub1 | D176: =+IFERROR(IF($M$5=VLOOKUP(C176,Summary!$C$52:$E$61,3,FALSE),"Y","N"),"N") -> N | E176: =+IF($D176="Y",IFERROR(VLOOKUP($C176,Summary!$C$87:$I$96,7,FALSE),0),0) -> 0 | F176: =+IF($D176="Y",IFERROR(VLOOKUP($C176,Summary!$C$109:$J$118,5,FALSE),0),0) -> 0 | G176: =+IF($D176="Y",IFERROR(VLOOKUP($C176,Summary!$C$109:$K$118,9,FALSE),0),0) -> 0
C177: Sub2 | D177: =+IFERROR(IF($M$5=VLOOKUP(C177,Summary!$C$52:$E$61,3,FALSE),"Y","N"),"N") -> N | E177: =+IF(D177="Y",IFERROR(VLOOKUP(C177,Summary!$C$87:$I$96,7,FALSE),0),0) -> 0 | F177: =+IF($D177="Y",IFERROR(VLOOKUP($C177,Summary!$C$109:$J$118,5,FALSE),0),0) -> 0 | G177: =+IF($D177="Y",IFERROR(VLOOKUP($C177,Summary!$C$109:$K$118,9,FALSE),0),0) -> 0
C178: Sub3 | D178: =+IFERROR(IF($M$5=VLOOKUP(C178,Summary!$C$52:$E$61,3,FALSE),"Y","N"),"N") -> N | E178: =+IF(D178="Y",IFERROR(VLOOKUP(C178,Summary!$C$87:$I$96,7,FALSE),0),0) -> 0 | F178: =+IF($D178="Y",IFERROR(VLOOKUP($C178,Summary!$C$109:$J$118,5,FALSE),0),0) -> 0 | G178: =+IF($D178="Y",IFERROR(VLOOKUP($C178,Summary!$C$109:$K$118,9,FALSE),0),0) -> 0
C179: Sub4 | D179: =+IFERROR(IF($M$5=VLOOKUP(C179,Summary!$C$52:$E$61,3,FALSE),"Y","N"),"N") -> N | E179: =+IF(D179="Y",IFERROR(VLOOKUP(C179,Summary!$C$87:$I$96,7,FALSE),0),0) -> 0 | F179: =+IF($D179="Y",IFERROR(VLOOKUP($C179,Summary!$C$109:$J$118,5,FALSE),0),0) -> 0 | G179: =+IF($D179="Y",IFERROR(VLOOKUP($C179,Summary!$C$109:$K$118,9,FALSE),0),0) -> 0
C180: Sub5 | D180: =+IFERROR(IF($M$5=VLOOKUP(C180,Summary!$C$52:$E$61,3,FALSE),"Y","N"),"N") -> N | E180: =+IF(D180="Y",IFERROR(VLOOKUP(C180,Summary!$C$87:$I$96,7,FALSE),0),0) -> 0 | F180: =+IF($D180="Y",IFERROR(VLOOKUP($C180,Summary!$C$109:$J$118,5,FALSE),0),0) -> 0 | G180: =+IF($D180="Y",IFERROR(VLOOKUP($C180,Summary!$C$109:$K$118,9,FALSE),0),0) -> 0
C181: Sub6 | D181: =+IFERROR(IF($M$5=VLOOKUP(C181,Summary!$C$52:$E$61,3,FALSE),"Y","N"),"N") -> N | E181: =+IF(D181="Y",IFERROR(VLOOKUP(C181,Summary!$C$87:$I$96,7,FALSE),0),0) -> 0 | F181: =+IF($D181="Y",IFERROR(VLOOKUP($C181,Summary!$C$109:$J$118,5,FALSE),0),0) -> 0 | G181: =+IF($D181="Y",IFERROR(VLOOKUP($C181,Summary!$C$109:$K$118,9,FALSE),0),0) -> 0
C182: Sub7 | D182: =+IFERROR(IF($M$5=VLOOKUP(C182,Summary!$C$52:$E$61,3,FALSE),"Y","N"),"N") -> N | E182: =+IF(D182="Y",IFERROR(VLOOKUP(C182,Summary!$C$87:$I$96,7,FALSE),0),0) -> 0 | F182: =+IF($D182="Y",IFERROR(VLOOKUP($C182,Summary!$C$109:$J$118,5,FALSE),0),0) -> 0 | G182: =+IF($D182="Y",IFERROR(VLOOKUP($C182,Summary!$C$109:$K$118,9,FALSE),0),0) -> 0
C183: Sub8 | D183: =+IFERROR(IF($M$5=VLOOKUP(C183,Summary!$C$52:$E$61,3,FALSE),"Y","N"),"N") -> N | E183: =+IF(D183="Y",IFERROR(VLOOKUP(C183,Summary!$C$87:$I$96,7,FALSE),0),0) -> 0 | F183: =+IF($D183="Y",IFERROR(VLOOKUP($C183,Summary!$C$109:$J$118,5,FALSE),0),0) -> 0 | G183: =+IF($D183="Y",IFERROR(VLOOKUP($C183,Summary!$C$109:$K$118,9,FALSE),0),0) -> 0
C184: Sub9 | D184: =+IFERROR(IF($M$5=VLOOKUP(C184,Summary!$C$52:$E$61,3,FALSE),"Y","N"),"N") -> N | E184: =+IF(D184="Y",IFERROR(VLOOKUP(C184,Summary!$C$87:$I$96,7,FALSE),0),0) -> 0 | F184: =+IF($D184="Y",IFERROR(VLOOKUP($C184,Summary!$C$109:$J$118,5,FALSE),0),0) -> 0 | G184: =+IF($D184="Y",IFERROR(VLOOKUP($C184,Summary!$C$109:$K$118,9,FALSE),0),0) -> 0
C185: Sub10 | D185: =+IFERROR(IF($M$5=VLOOKUP(C185,Summary!$C$52:$E$61,3,FALSE),"Y","N"),"N") -> N | E185: =+IF(D185="Y",IFERROR(VLOOKUP(C185,Summary!$C$87:$I$96,7,FALSE),0),0) -> 0 | F185: =+IF($D185="Y",IFERROR(VLOOKUP($C185,Summary!$C$109:$J$118,5,FALSE),0),0) -> 0 | G185: =+IF($D185="Y",IFERROR(VLOOKUP($C185,Summary!$C$109:$K$118,9,FALSE),0),0) -> 0
E186: =+SUM(E176:E185) -> 0 | F186: =+SUM(F176:F185) -> 0 | G186: =+SUM(G176:G185) -> 0
C189: Flood control Carry over | M189: =ROW(D152) -> 152 | N189: =ROW(E152) -> 152 | O189: =ROW(F152) -> 152 | P189: =ROW(G152) -> 152 | Q189: =ROW(H152) -> 152
C190: Sub-catchment | D190: Upstream | E190: =+Data!$H$20 -> 1-year | F190: =+Data!$H$21 -> 2-year | G190: =+Data!$H$22 -> 10-year | H190: =+Data!$H$23 -> 25-year | I190: =+Data!$H$24 -> 100-year | M190: =COLUMN(D152) -> 4 | N190: =COLUMN(E152) -> 5 | O190: =COLUMN(F152) -> 6 | P190: =COLUMN(G152) -> 7 | Q190: =COLUMN(H152) -> 8
C191: Sub1 | D191: =+IFERROR(IF($M$5=VLOOKUP(C191,Summary!$C$52:$E$61,3,FALSE),"Y","N"),"N") -> N | E191: =IF($D191="N",0,OFFSET(INDIRECT(CONCATENATE($C191,"!a1")),M$189-1,M$190-1)) -> 0 | F191: =IF($D191="N",0,OFFSET(INDIRECT(CONCATENATE($C191,"!a1")),N$189-1,N$190-1)) -> 0 | G191: 0 | H191: 0 | I191: 0
C192: Sub2 | D192: =+IFERROR(IF($M$5=VLOOKUP(C192,Summary!$C$52:$E$61,3,FALSE),"Y","N"),"N") -> N | E192: =IF($D192="N",0,OFFSET(INDIRECT(CONCATENATE($C192,"!a1")),M$189-1,M$190-1)) -> 0 | F192: 0 | G192: 0 | H192: 0 | I192: 0
C193: Sub3 | D193: =+IFERROR(IF($M$5=VLOOKUP(C193,Summary!$C$52:$E$61,3,FALSE),"Y","N"),"N") -> N | E193: 0 | F193: 0 | G193: 0 | H193: 0 | I193: 0
C194: Sub4 | D194: =+IFERROR(IF($M$5=VLOOKUP(C194,Summary!$C$52:$E$61,3,FALSE),"Y","N"),"N") -> N | E194: 0 | F194: 0 | G194: 0 | H194: 0 | I194: 0
C195: Sub5 | D195: =+IFERROR(IF($M$5=VLOOKUP(C195,Summary!$C$52:$E$61,3,FALSE),"Y","N"),"N") -> N | E195: 0 | F195: 0 | G195: 0 | H195: 0 | I195: 0
C196: Sub6 | D196: =+IFERROR(IF($M$5=VLOOKUP(C196,Summary!$C$52:$E$61,3,FALSE),"Y","N"),"N") -> N | E196: 0 | F196: 0 | G196: 0 | H196: 0 | I196: 0
C197: Sub7 | D197: =+IFERROR(IF($M$5=VLOOKUP(C197,Summary!$C$52:$E$61,3,FALSE),"Y","N"),"N") -> N | E197: 0 | F197: 0 | G197: 0 | H197: 0 | I197: 0
C198: Sub8 | D198: =+IFERROR(IF($M$5=VLOOKUP(C198,Summary!$C$52:$E$61,3,FALSE),"Y","N"),"N") -> N | E198: 0 | F198: 0 | G198: 0 | H198: 0 | I198: 0
C199: Sub9 | D199: =+IFERROR(IF($M$5=VLOOKUP(C199,Summary!$C$52:$E$61,3,FALSE),"Y","N"),"N") -> N | E199: 0 | F199: 0 | G199: 0 | H199: 0 | I199: 0
C200: Sub10 | D200: =+IFERROR(IF($M$5=VLOOKUP(C200,Summary!$C$52:$E$61,3,FALSE),"Y","N"),"N") -> N | E200: 0 | F200: 0 | G200: 0 | H200: 0 | I200: 0
C201: Total | E201: =SUM(E191:E200) -> 0 | F201: =SUM(F191:F200) -> 0 | G201: 0 | H201: 0 | I201: 0

Sheet Tc
C2: =" " & Data!$H$2 &CHAR(10) & " " & Settings!$D$5 -> LGROW Design Spreadsheet City of Ferrysburg
C4: Existing Time-of-Concentration
C5: Sheet Flow
C6: Type | D6: US Elevation [ft] | E6: DS Elevation [ft] | F6: Flow Distance [ft] | G6: Manning's n | H6: Slope [ft/ft] | M6: Travel Time [hr]
G7: =IF(C7="","",VLOOKUP(C7,Data!$H$44:$I$55,2,FALSE)) ->  | H7: =IF(OR(F7<=0,F7=""),"",ABS(D7-E7)/F7) ->  | I7: =+IF(SUM(F7:F10)<=Data!$I$41,"",CONCATENATE("Total sheet flow distance exceeds ",Data!$I$41," [ft]")) ->  | M7: =IF(OR(G7="",H7="",H7<=0),"",0.007*(G7*F7)^0.8/SQRT('Flood Control'!$E$124)/H7^0.4) -> 
G8: =IF(C8="","",VLOOKUP(C8,Data!$H$44:$I$55,2,FALSE)) ->  | H8: =IF(OR(F8<=0,F8=""),"",ABS(D8-E8)/F8) ->  | M8: =IF(OR(G8="",H8="",H8<=0),"",0.007*(G8*F8)^0.8/SQRT('Flood Control'!$E$124)/H8^0.4) -> 
G9: =IF(C9="","",VLOOKUP(C9,Data!$H$44:$I$55,2,FALSE)) ->  | M9: =IF(OR(G9="",H9="",H9<=0),"",0.007*(G9*F9)^0.8/SQRT('Flood Control'!$E$124)/H9^0.4) -> 
G10: =IF(C10="","",VLOOKUP(C10,Data!$H$44:$I$55,2,FALSE)) ->  | M10: =IF(OR(G10="",H10="",H10<=0),"",0.007*(G10*F10)^0.8/SQRT('Flood Control'!$E$124)/H10^0.4) -> 
L11: Subtotal | M11: =SUM(M7:M10) -> 0
C12: Shallow Concentrated Flow (after 300 feet of sheet flow)
C13: Type | D13: US Elevation [ft] | E13: DS Elevation [ft] | F13: Flow Distance [ft] | G13: Slope [ft/ft] | H13: Velocity [ft/s] | M13: Travel Time [hr]
G14: =+IF(OR(F14<=0,F14=""),"",ABS(D14-E14)/F14) ->  | H14: =+IF(G14="","",VLOOKUP(C14,Data!$H$77:$I$78,2)*G14^0.5) ->  | M14: =+IF(OR(H14="",H14<=0),"",F14/H14/3600) -> 
G15: =+IF(OR(F15<=0,F15=""),"",ABS(D15-E15)/F15) ->  | H15: =+IF(G15="","",VLOOKUP(C15,Data!$H$77:$I$78,2)*G15^0.5) ->  | M15: =+IF(OR(H15="",H15<=0),"",F15/H15/3600) -> 
H16: =+IF(G16="","",VLOOKUP(C16,Data!$H$77:$I$78,2)*G16^0.5) -> 
H17: =+IF(G17="","",VLOOKUP(C17,Data!$H$77:$I$78,2)*G17^0.5) -> 
L18: Subtotal | M18: =SUM(M14:M17) -> 0
C19: Open Channels, Swales, and Pipes
C20: Type | D20: US Elevation [ft] | E20: DS Elevation [ft] | F20: Flow Distance [ft] | G20: Area [sqft] | H20: Wetted Perimeter [ft] | I20: User Specified, n | J20: Manning's n | K20: Slope [ft/ft] | L20: Velocity [ft/s] | M20: Travel Time [hr]
J21: =+IF(C21="","",IF(C21=Data!$H$58,Tc!I21,VLOOKUP(C21,Data!$H$58:$I$66,2,FALSE))) ->  | K21: =+IF(OR(F21<=0,F21=""),"",ABS(D21-E21)/F21) ->  | L21: =+IF(OR(J21="",J21<=0,H21="",H21=0,K21=""),"",1.486/J21*(G21/H21)^(2/3)*SQRT(K21)) ->  | M21: =+IF(OR(L21="",L21<=0),"",F21/L21/3600) -> 
J22: =+IF(C22="","",IF(C22=Data!$H$58,Tc!I22,VLOOKUP(C22,Data!$H$58:$I$66,2,FALSE))) ->  | K22: =+IF(OR(F22<=0,F22=""),"",ABS(D22-E22)/F22) ->  | L22: =+IF(OR(J22="",J22<=0,H22="",H22=0,K22=""),"",1.486/J22*(G22/H22)^(2/3)*SQRT(K22)) ->  | M22: =+IF(OR(L22="",L22<=0),"",F22/L22/3600) -> 
J23: =+IF(C23="","",IF(C23=Data!$H$58,Tc!I23,VLOOKUP(C23,Data!$H$58:$I$66,2,FALSE))) ->  | L23: =+IF(OR(J23="",J23<=0,H23="",H23=0,K23=""),"",1.486/J23*(G23/H23)^(2/3)*SQRT(K23)) -> 
J24: =+IF(C24="","",IF(C24=Data!$H$58,Tc!I24,VLOOKUP(C24,Data!$H$58:$I$66,2,FALSE))) ->  | L24: =+IF(OR(J24="",J24<=0,H24="",H24=0,K24=""),"",1.486/J24*(G24/H24)^(2/3)*SQRT(K24)) -> 
L25: Subtotal | M25: =SUM(M21:M24) -> 0
L27: Existing Time-of-concentration [hr] | M27: =+M25+M18+M11 -> 0
C30: Developed Time-of-Concentration
C31: Sheet Flow
C32: Type | D32: US Elevation [ft] | E32: DS Elevation [ft] | F32: Flow Distance [ft] | G32: Manning's n | H32: Slope [ft/ft] | M32: Travel Time [hr]
G33: =IF(C33="","",VLOOKUP(C33,Data!$H$44:$I$55,2,FALSE)) ->  | H33: =IF(OR(F33<=0,F33=""),"",ABS(D33-E33)/F33) ->  | I33: =+IF(SUM(F33:F36)<=Data!$I$41,"",CONCATENATE("Total sheet flow distance exceeds ",Data!$I$41," [ft]")) ->  | M33: =IF(OR(G33="",H33="",H33<=0),"",0.007*(G33*F33)^0.8/SQRT('Flood Control'!$E$124)/H33^0.4) -> 
G34: =IF(C34="","",VLOOKUP(C34,Data!$H$44:$I$55,2,FALSE)) ->  | H34: =IF(OR(F34<=0,F34=""),"",ABS(D34-E34)/F34) ->  | M34: =IF(OR(G34="",H34="",H34<=0),"",0.007*(G34*F34)^0.8/SQRT('Flood Control'!$E$124)/H34^0.4) -> 
G35: =IF(C35="","",VLOOKUP(C35,Data!$H$44:$I$55,2,FALSE)) ->  | M35: =IF(OR(G35="",H35="",H35<=0),"",0.007*(G35*F35)^0.8/SQRT('Flood Control'!$E$124)/H35^0.4) -> 
G36: =IF(C36="","",VLOOKUP(C36,Data!$H$44:$I$55,2,FALSE)) ->  | M36: =IF(OR(G36="",H36="",H36<=0),"",0.007*(G36*F36)^0.8/SQRT('Flood Control'!$E$124)/H36^0.4) -> 
L37: Subtotal | M37: =SUM(M33:M36) -> 0
C38: Shallow Concentrated Flow (after 300 feet of sheet flow)
C39: Type | D39: US Elevation [ft] | E39: DS Elevation [ft] | F39: Flow Distance [ft] | G39: Slope [ft/ft] | H39: Velocity [ft/s] | M39: Travel Time [hr]
G40: =+IF(OR(F40<=0,F40=""),"",ABS(D40-E40)/F40) ->  | H40: =+IF(G40="","",VLOOKUP(C40,Data!$H$77:$I$78,2)*G40^0.5) ->  | M40: =+IF(OR(H40="",H40<=0),"",F40/H40/3600) -> 
G41: =+IF(OR(F41<=0,F41=""),"",ABS(D41-E41)/F41) ->  | H41: =+IF(G41="","",VLOOKUP(C41,Data!$H$77:$I$78,2)*G41^0.5) ->  | M41: =+IF(OR(H41="",H41<=0),"",F41/H41/3600) -> 
H42: =+IF(G42="","",VLOOKUP(C42,Data!$H$77:$I$78,2)*G42^0.5) -> 
H43: =+IF(G43="","",VLOOKUP(C43,Data!$H$77:$I$78,2)*G43^0.5) -> 
L44: Subtotal | M44: =SUM(M40:M43) -> 0
C45: Open Channels, Swales, and Pipes
C46: Type | D46: US Elevation [ft] | E46: DS Elevation [ft] | F46: Flow Distance [ft] | G46: Area [sqft] | H46: Wetted Perimeter [ft] | I46: User Specified, n | J46: Manning's n | K46: Slope [ft/ft] | L46: Velocity [ft/s] | M46: Travel Time [hr]
J47: =+IF(C47="","",IF(C47=Data!$H$58,Tc!I47,VLOOKUP(C47,Data!$H$58:$I$66,2,FALSE))) ->  | K47: =+IF(OR(F47<=0,F47=""),"",ABS(D47-E47)/F47) ->  | L47: =+IF(OR(J47="",J47<=0,H47="",H47=0,K47=""),"",1.486/J47*(G47/H47)^(2/3)*SQRT(K47)) ->  | M47: =+IF(OR(L47="",L47<=0),"",F47/L47/3600) -> 
J48: =+IF(C48="","",IF(C48=Data!$H$58,Tc!I48,VLOOKUP(C48,Data!$H$58:$I$66,2,FALSE))) ->  | K48: =+IF(OR(F48<=0,F48=""),"",ABS(D48-E48)/F48) ->  | L48: =+IF(OR(J48="",J48<=0,H48="",H48=0,K48=""),"",1.486/J48*(G48/H48)^(2/3)*SQRT(K48)) ->  | M48: =+IF(OR(L48="",L48<=0),"",F48/L48/3600) -> 
J49: =+IF(C49="","",IF(C49=Data!$H$58,Tc!I49,VLOOKUP(C49,Data!$H$58:$I$66,2,FALSE))) ->  | L49: =+IF(OR(J49="",J49<=0,H49="",H49=0,K49=""),"",1.486/J49*(G49/H49)^(2/3)*SQRT(K49)) -> 
J50: =+IF(C50="","",IF(C50=Data!$H$58,Tc!I50,VLOOKUP(C50,Data!$H$58:$I$66,2,FALSE))) ->  | L50: =+IF(OR(J50="",J50<=0,H50="",H50=0,K50=""),"",1.486/J50*(G50/H50)^(2/3)*SQRT(K50)) -> 
L51: Subtotal | M51: =SUM(M47:M50) -> 0
L52: Developed Total without Storage Device [hr] | M52: =M51+M44+M37 -> 0
C53: Storage Device
C54: Storage Volume [cft] | D54: 10-year Design Discharge [cfs] | F54: Description | M54: Travel Time [hr]
M55: =+IFERROR(C55/D55/3600,"") -> 
M56: =+IFERROR(C56/D56/3600,"") -> 
L59: Subtotal | M59: =+SUM(M55:M58) -> 0
L61: Developed Time-of-Concentration [hr] | M61: =M59+M52 -> 0

Sheet Flood Control
C2: =" " & Data!$H$2 &CHAR(10) & " " & Settings!$D$5 -> LGROW Design Spreadsheet City of Ferrysburg
C4: ="Time-of-Concentration" -> Time-of-Concentration
D5: Worksheet | E5: User | F5: Value Used | I5: Method Selected
C6: Existing [hr] | D6: =+Tc!M27 -> 0 | F6: =+MAX(0.1,HLOOKUP($I$6,$D$5:$E$7,2,FALSE)) -> 0.1 | I6: User
C7: Developed [hr] | D7: =+Tc!M61 -> 0 | F7: =+MAX(0.1,HLOOKUP($I$6,$D$5:$E$7,3,FALSE)) -> 0.1 | G7: =IF(OR($F6>20,$F7>20),"Tc must be no greater than 20 [hr]","") -> 
C8: Notes:
C12: Flood Control Volume
C14: Detention - Routing Method | G14: Retention - Summary of Volumes
C15: Design Storm | D15: 100-year | G15: Design Storm | I15: 25-year
C16: Total Contributing Area [ac] | D16: =+Summary!I80 -> 0 | G16: Site Runoff Volume [cft] | I16: =IF($I$15=Data!H27,Summary!H225,Summary!I225) -> 0
C17: Developed Peak Discharge [cfs] | D17: =+HLOOKUP(DesignStorm,$D$147:$H$152,6,FALSE) -> 0 | G17: BMP Storage Volume [cft] | I17: =+Summary!G97 -> 0
G18: BMP Infiltrating Volume [cft] | I18: =+Summary!K97 -> 0
C19: Allowable Discharge Worksheet | E19: Select | G19: Total Volume Provided [cft] | I19: =+I18+I17 -> 0
C20: ="Standard Discharge [cfs] - " & Settings!D10 & " [cfs/ac]" -> Standard Discharge [cfs] - 0.13 [cfs/ac] | D20: =+Settings!D10*Summary!I80 -> 0 | G20: Runoff Volume Retained by BMPs [cft] | I20: =+IF(I15=Data!H23,Summary!H209,Summary!I209) -> 0
C21: Alternate Discharge [cfs] | G21: Unretained Runoff Volume [cft] | I21: =+I16-I20 -> 0
C22: =IF(IF(DesignStorm=Data!H23,'Flood Control'!G95-'Flood Control'!G85,'Flood Control'!I95-'Flood Control'!I85)<0,"Developed runoff volume is less than existing for flood control event. An alternate discharge may be allowed.","") -> 
H23: Leave Red Cells unlocked
C24: Credited BMP Retention Volume | D24: None | E24: =+IF(Settings!D9="","",CONCATENATE("← ",Settings!D9)) -> ←
C25: Detention Required? | D25: =IF(D17>D26,Data!H38,Data!H39) -> No | H25: 1
C26: Allowable Discharge [cfs] | D26: =+INDEX(D20:D21,H25,1) -> 0 | E26: =IF(H27=1,"Allowable discharge must be greater than zero","") -> 
C27: Required Storage Volume [cft] | D27: =IF(AND($H$28=1,H27=0,H30=1),HLOOKUP(DesignStorm,D171:H175,5,FALSE),0) -> 0 | F27: Required Storage Volume [cft] | H27: =IF(AND($D$26<=0,H28=1),1,0) -> 0
C28: Time to Drain [hrs] | D28: =IF(H30=1,IF(DesignStorm=Data!H23,'Hydro_25-year'!O17,'Hydro_100-year'!O17),"") -> 0 | H28: =+IF(DetentionYes=Data!H38,1,0) -> 0 | I28: =+Settings!D13 -> 
D29: =+IF(IF(H30=1,IF(DesignStorm=Data!H23,'Hydro_25-year'!O17,'Hydro_100-year'!O17),0)>72,"Time to Drain exceeds 72 [hrs]","") ->  | H29: =IF(AND(HLOOKUP(DesignStorm,D171:H174,4,FALSE)>1,H28=1),1,0) -> 0
D30: =IF(H28=0,"",IF(H27=1,"Correct error then re-calculate",IF(H30=1,"Calculated","Press button to calculate"))) ->  | H30: =IF(ABS(DischargeDiff)<0.005,1,0) -> 1
I31: =IF(N31>72,"Time to Drain exceeds 72 [hrs]","") -> 
C32: No Emergency Overflow Routes | E32: =IF(H32,"Provide twice the Required Storage Volume","") ->  | H32: FALSE
C33: Notes:
C37: Hydrograph
D61: Plot Event | E61: 100-year
C64: =" " & Data!$H$2 &CHAR(10) & " " & Settings!$D$5 -> LGROW Design Spreadsheet City of Ferrysburg
C66: Results Summary
C67: Volume Units | D67: cft
C69: Rainfall
C70: Source and Distribution | D70: =CONCATENATE("24-hour, ",Settings!D15,", ",Settings!$D$16) -> 24-hour, NOAA Atlas 14 at Grand Rapids Intl AP, NRCS MSE4
C71: Rainfall Frequency | D71: =D123 -> 1-year | E71: =E123 -> 2-year | F71: =F123 -> 10-year | G71: =G123 -> 25-year | I71: =H123 -> 100-year
C72: Rainfall Depth [in] | D72: =CHOOSE(VLOOKUP(D$71,Data!$H$20:$J$24,3,FALSE),$D124,$E124,$F124,$G124,$H124) -> 2.22 | E72: =CHOOSE(VLOOKUP(E$71,Data!$H$20:$J$24,3,FALSE),$D124,$E124,$F124,$G124,$H124) -> 2.56 | F72: =CHOOSE(VLOOKUP(F$71,Data!$H$20:$J$24,3,FALSE),$D124,$E124,$F124,$G124,$H124) -> 3.77 | G72: =CHOOSE(VLOOKUP(G$71,Data!$H$20:$J$24,3,FALSE),$D124,$E124,$F124,$G124,$H124) -> 4.66 | I72: =CHOOSE(VLOOKUP(I$71,Data!$H$20:$J$24,3,FALSE),$D124,$E124,$F124,$G124,$H124) -> 6.27
C74: Pre-settlement Land Use
C75: Time-of-Concentration [hr] | D75: =+F6 -> 0.1
C76: Average Runoff [in] | D76: =CHOOSE(VLOOKUP(D$71,Data!$H$20:$J$24,3,FALSE),$D166,$E166,$F166,$G166,$H166) -> 0 | E76: =CHOOSE(VLOOKUP(E$71,Data!$H$20:$J$24,3,FALSE),$D166,$E166,$F166,$G166,$H166) -> 0 | F76: =CHOOSE(VLOOKUP(F$71,Data!$H$20:$J$24,3,FALSE),$D166,$E166,$F166,$G166,$H166) -> 0 | G76: =CHOOSE(VLOOKUP(G$71,Data!$H$20:$J$24,3,FALSE),$D166,$E166,$F166,$G166,$H166) -> 0 | I76: =CHOOSE(VLOOKUP(I$71,Data!$H$20:$J$24,3,FALSE),$D166,$E166,$F166,$G166,$H166) -> 0
C77: Peak Discharge [cfs] | D77: =+CHOOSE(VLOOKUP(D$71,Data!$H$20:$J$24,3,FALSE),$D167,$E167,$F167,$G167,$H167) -> 0 | E77: =+CHOOSE(VLOOKUP(E$71,Data!$H$20:$J$24,3,FALSE),$D167,$E167,$F167,$G167,$H167) -> 0 | F77: =+CHOOSE(VLOOKUP(F$71,Data!$H$20:$J$24,3,FALSE),$D167,$E167,$F167,$G167,$H167) -> 0 | G77: =+CHOOSE(VLOOKUP(G$71,Data!$H$20:$J$24,3,FALSE),$D167,$E167,$F167,$G167,$H167) -> 0 | I77: =+CHOOSE(VLOOKUP(I$71,Data!$H$20:$J$24,3,FALSE),$D167,$E167,$F167,$G167,$H167) -> 0
C78: =CONCATENATE("Runoff Volume [",$D$67,"]") -> Runoff Volume [cft] | D78: =CHOOSE(VLOOKUP(D$71,Data!$H$20:$J$24,3,FALSE),$D168,$E168,$F168,$G168,$H168)*VLOOKUP($D$67,Data!$H$82:$I$83,2,FALSE) -> 0 | E78: =CHOOSE(VLOOKUP(E$71,Data!$H$20:$J$24,3,FALSE),$D168,$E168,$F168,$G168,$H168)*VLOOKUP($D$67,Data!$H$82:$I$83,2,FALSE) -> 0 | F78: =CHOOSE(VLOOKUP(F$71,Data!$H$20:$J$24,3,FALSE),$D168,$E168,$F168,$G168,$H168)*VLOOKUP($D$67,Data!$H$82:$I$83,2,FALSE) -> 0 | G78: =CHOOSE(VLOOKUP(G$71,Data!$H$20:$J$24,3,FALSE),$D168,$E168,$F168,$G168,$H168)*VLOOKUP($D$67,Data!$H$82:$I$83,2,FALSE) -> 0 | I78: =CHOOSE(VLOOKUP(I$71,Data!$H$20:$J$24,3,FALSE),$D168,$E168,$F168,$G168,$H168)*VLOOKUP($D$67,Data!$H$82:$I$83,2,FALSE) -> 0
C80: Existing Land Use
C81: Time-of-Concentration [hr] | D81: =+D75 -> 0.1
C82: Percent Impervious | D82: =+$D$131 -> 0 | E82: =+$D$131 -> 0 | F82: 0 | G82: 0 | H82: 0 | I82: 0
C83: Average Runoff [in] | D83: =CHOOSE(VLOOKUP(D$71,Data!$H$20:$J$24,3,FALSE),$D138,$E138,$F138,$G138,$H138) -> 0 | E83: =CHOOSE(VLOOKUP(E$71,Data!$H$20:$J$24,3,FALSE),$D138,$E138,$F138,$G138,$H138) -> 0 | F83: =CHOOSE(VLOOKUP(F$71,Data!$H$20:$J$24,3,FALSE),$D138,$E138,$F138,$G138,$H138) -> 0 | G83: =CHOOSE(VLOOKUP(G$71,Data!$H$20:$J$24,3,FALSE),$D138,$E138,$F138,$G138,$H138) -> 0 | I83: =CHOOSE(VLOOKUP(I$71,Data!$H$20:$J$24,3,FALSE),$D138,$E138,$F138,$G138,$H138) -> 0
